Workbook

Sheet Sección A
B2: A. ANÁLISIS PREVIO DE LA INTERVENCIÓN
B4: A1. DETERMINACIÓN DEL TIPO DE INVERSIÓN
C5: A1.1 Alcance de la idea de Intervención | I5: A1.2 Tipo de Inversión | N5: A1.3 Acción Pertinente
C6: TODO EL ESTABLECIMIENTO DE SALUD | I6: =IF(C6="NO SE REQUIERE INCREMENTAR LA CAPACIDAD DE ATENCIÓN EN MÁS DEL 20%","IOARR",IF(C6="NO SE REQUIERE INCREMENTAR LA CAPACIDAD DE ATENCIÓN","IOARR",IF(C6="SOLO SE REQUIERE REPONER EQUIPAMIENTO","IOARR",IF(C6="SOLO SE REQUIERE REHABILITAR TODAS LAS INSTALACIONES ELÉCTRICAS","IOARR",IF(C6="SOLO SE REQUIERE REHABILITAR TODAS LAS INSTALACIONES SANITARIAS","IOARR",IF(C6="SOLO SE REQUIERE REHABILITAR TODAS LAS INSTALACIONES DE TELECOMUNICACIONES","IOARR",IF(C6="SOLO SE REQUIERE REHABILITAR EL ESTABLECIMIENTO DE SALUD HASTA EL 40% DEL ÁREA TOTAL","IOARR","PROYECTO DE INVERSIÓN"))))))) -> PROYECTO DE INVERSIÓN | N6: =IF(I6="PROYECTO DE INVERSIÓN","CONTINUAR ANÁLISIS PREVIO","NO PROCEDE LA FORMULACIÓN DEL PI") -> CONTINUAR ANÁLISIS PREVIO
B8: A2. VERIFICACIÓN DE DUPLICIDAD DE INVERSIONES
C9: A2.1 Situación de la idea de PI con otras Inversiones | I9: A2.2 Condición de duplicación | N9: A2.3 Acción pertinente
C10: LA INVERSIÓN NO SE DUPLICA CON OTRO PI O IOARR | I10: =IF(C10="LA INVERSIÓN NO SE DUPLICA CON OTRO PI O IOARR","NO EXISTE DUPLICACIÓN DE INVERSIONES","EXISTE DUPLICACIÓN DE INVERSIONES") -> NO EXISTE DUPLICACIÓN DE INVERSIONES | N10: =IF(I10="NO EXISTE DUPLICACIÓN DE INVERSIONES","CONTINUAR ANÁLISIS PREVIO","NO PROCEDE LA FORMULACIÓN DEL PI") -> CONTINUAR ANÁLISIS PREVIO
B12: A3. SANEAMIENTO FÍSICO LEGAL
C13: A3.1 Tenencia legal del terreno donde se ejecutaría el PI | I13: A3.2 Situación real del predio | N13: A3.3 Acción pertinente
C14: CESIÓN EN USO | I14: =IF(C14="PARTIDA REGISTRAL A NOMBRE DEL GOBIERNO REGIONAL O DEL MINSA","CUENTA CON SANEAMIENTO FÍSICO LEGAL",IF(C14="CESIÓN EN USO","CUENTA CON ARREGLOS INSTITUCIONALES",IF(C14="AFECTACIÓN EN USO","CUENTA CON ARREGLOS INSTITUCIONALES",IF(C14="ESCRITURA PÚBLICA","CUENTA CON ARREGLOS INSTITUCIONALES",IF(C14="MINUTA","CUENTA CON ARREGLOS INSTITUCIONALES",IF(C14="CONTRATO DE TRANSFERENCIA DE DOMINIO","CUENTA CON ARREGLOS INSTITUCIONALES",IF(C14="CONVENIO INTERINSTITUCIONAL","CUENTA CON ARREGLOS INSTITUCIONALES",IF(C14="ACUERDO DE CONCEJO MUNICIPAL Y RESOLUCIÓN ADMINISTRATIVA DE CESIÓN EN USO","CUENTA CON ARREGLOS INSTITUCIONALES",IF(C14="ACUERDO DE CONCEJO MUNICIPAL Y RESOLUCIÓN ADMINISTRATIVA DE TRANSFERENCIA","CUENTA CON ARREGLOS INSTITUCIONALES",IF(C14="ACUERDO DE CONSEJO REGIONAL Y RESOLUCIÓN ADMINISTRATIVA DE TRANSFERENCIA","CUENTA CON ARREGLOS INSTITUCIONALES",IF(C14="ACUERDO DE CONSEJO REGIONAL Y RESOLUCIÓN ADMINISTRATIVA DE CESIÓN EN USO","CUENTA CON ARREGLOS INSTITUCIONALES",IF(C14="CONSTANCIA DE POSESIÓN DEL PREDIO A NOMBRE DEL ES O DEL GR","CUENTA CON DISPONIBILIDAD DE TERRENO",IF(C14="CERTIFICADO DE POSESIÓN DEL PREDIO A NOMBRE DEL ES O DEL GR","CUENTA CON DISPONIBILIDAD DE TERRENO",IF(C14="DOCUMENTO DE PREEXISTENCIA DEL SERVICIO PÚBLICO DE SALUD","CUENTA CON DISPONIBILIDAD DE TERRENO",IF(C14="ACTA DE ASAMBLEA Y/O DECLARACIÓN JURADA DEL ÁREA DE LIBRE DISPONIBILIDAD","CUENTA CON DISPONIBILIDAD DE TERRENO",IF(C14="ACTA DE ENTREGA DEL TERRENO POR EL TITULAR DE DOMINIO","CUENTA CON DISPONIBILIDAD DE TERRENO",IF(C14="CARTA DE INTENCIÓN DEL PROPIETARIO QUE DECLARE SU VOLUNTAD DE VENTA","TERRENO DISPONIBLE","NO EXISTE SFL, AI NI DISPONIBILIDAD DEL TERRENO"))))))))))))))))) -> CUENTA CON ARREGLOS INSTITUCIONALES | N14: =IF(I14="CUENTA CON SANEAMIENTO FÍSICO LEGAL","CONTINUAR ANÁLISIS PREVIO",IF(I14="CUENTA CON ARREGLOS INSTITUCIONALES","CONTINUAR ANÁLISIS PREVIO",IF(I14="CUENTA CON DISPONIBILIDAD DE TERRENO","CONTINUAR ANÁLISIS PREVIO",IF(I14="TERRENO DISPONIBLE","CONTINUAR ANÁLISIS PREVIO","NO PROCEDE LA FORMULACIÓN DEL PI")))) -> CONTINUAR ANÁLISIS PREVIO
C15: * Para cualquier alternativa se debe contar con la libre disponibilidad del terreno, caso contrario no se debe continuar con el registro
B16: A4. LOCALIZACIÓN Y ZONIFICACIÓN COMPATIBLE CON LAS ACTIVIDADES DE SALUD
C17: A5.1 Cumplimiento de criterios de localización | I17: A5.2 Zonificación compatible
C18: CUMPLE CON DISPOSICIONES PARA TERRENO EN USO | I18: TERRENO DESTINADO A SALUD
B21: A5. PERTINENCIA: | F21: =IF(AND(N6="CONTINUAR ANÁLISIS PREVIO",N10="CONTINUAR ANÁLISIS PREVIO",N14="CONTINUAR ANÁLISIS PREVIO",OR(C18="CUMPLE CON DISPOSICIONES PARA TERRENO EN USO",C18="SE HA PREVISTO MITIGAR VULNERABILIDAD",C18="CUMPLE CON CRITERIOS DE LOCALIZACIÓN DE TERRENO NUEVO"),OR(I18="TERRENO DESTINADO A SALUD",I18="TERRENO DESTINADO A OTROS USOS",I18="SE PREVÉ PROPUESTA DE ZONIFICACIÓN URBANA")),"ES PERTINENTE QUE LA UNIDAD FORMULADORA PROSIGA CON LA ELABORACIÓN DEL PROYECTO DE INVERSIÓN EN SALUD","NO ES PERTINENTE LA FORMULACIÓN DEL PROYECTO DE INVERSIÓN EN SALUD") -> ES PERTINENTE QUE LA UNIDAD FORMULADORA PROSIGA CON LA ELABORACIÓN DEL PROYECTO DE INVERSIÓN EN SALUD

Sheet FTE Sección B-F
B2: FICHA TÉCNICA ESTÁNDAR PARA LA FORMULACIÓN DE PROYECTOS DE INVERSIÓN DE CENTROS DE SALUD MENTAL COMUNITARIA (MENOR O IGUAL A 10,000,000.00)
B3: “Advertencia: Queda terminantemente prohibido modificar, agregar, quitar, celdas o rubros que no estén contemplados en la presente FTE, debiéndose de acatar la estructura establecida en cada hoja de cálculo, bajo responsabilidad funcional de la Unidad Formuladora y de la entidad a la cual pertenece, con consecuencias legales que disponga la Contraloría General de la República y la normativa vigente”.
C4: Seccion B. DATOS GENERALES
C5: NOMBRE DEL PROYECTO: | I5: MEJORAMIENTO Y AMPLIACIÓN | L5: =IF('Sección A'!F21="ES PERTINENTE QUE LA UNIDAD FORMULADORA PROSIGA CON LA ELABORACIÓN DEL PROYECTO DE INVERSIÓN EN SALUD",IF(I5="","DEL SERVICIO DE ATENCIÓN DE SALUD BÁSICA DEL ESTABLECIMIENTO DE SALUD"&" "&" "&W71&","&" DISTRITO DE"&" "&T71&","&" PROVINCIA DE"&" "&P71&","&" DEPARTAMENTO DE"&" "&M71,"DEL "&" "&C17&" DE "&G71&" "&W71&","&" DISTRITO DE"&" "&T71&","&" PROVINCIA DE"&" "&P71&","&" DEPARTAMENTO DE"&" "&M71),"NO PROCEDE LA FORMULACIÓN DEL PROYECTO DE INVERSIÓN") -> DEL SERVICIO DE ATENCIÓN DE SALUD BÁSICA DE CENTRO DE SALUD MENTAL COMUNITARIO EL AGUSTINO , DISTRITO DE EL AGUSTINO, PROVINCIA DE LIMA, DEPARTAMENTO DE LIMA
C7: Seccion C. ALINEAMIENTO A UNA BRECHA PRIORITARIA
C9: C1 RESPONSABILIDAD FUNCIONAL
C10: FUNCIÓN | I10: 20 SALUD
C11: DIVISIÓN FUNCIONAL | I11: 044 SALUD INDIVIDUAL
C12: GRUPO FUNCIONAL | I12: 0096 ATENCIÓN MÉDICA BÁSICA
C13: SECTOR RESPONSABLE | I13: SALUD
C15: C2 ARTICULACIÓN CON LA PROGRAMACIÓN MULTIANUAL DE INVERSIONES
C16: SERVICIOS PÚBLICOS CON BRECHA IDENTIFICADA Y PRIORIZADA:
C17: =IF('Sección A'!F21="ES PERTINENTE QUE LA UNIDAD FORMULADORA PROSIGA CON LA ELABORACIÓN DEL PROYECTO DE INVERSIÓN EN SALUD","SERVICIO DE ATENCIÓN DE SALUD BÁSICA","NO PROCEDE LA FORMULACIÓN DEL PROYECTO DE INVERSIÓN") -> SERVICIO DE ATENCIÓN DE SALUD BÁSICA
C18: INDICADOR DE PRODUCTO ASOCIADO A LA BRECHA DE SERVICIOS:
C19: =IF('Sección A'!F21="ES PERTINENTE QUE LA UNIDAD FORMULADORA PROSIGA CON LA ELABORACIÓN DEL PROYECTO DE INVERSIÓN EN SALUD",IF(I5="CREACIÓN","PORCENTAJE DE ESTABLECIMIENTOS DE SALUD DEL PRIMER NIVEL DE ATENCIÓN POR IMPLEMENTAR","PORCENTAJE DE ESTABLECIMIENTOS DE SALUD DEL PRIMER NIVEL DE ATENCIÓN CON CAPACIDAD INSTALADA INADECUADA"),"NO PROCEDE LA FORMULACIÓN DEL PROYECTO DE INVERSIÓN") -> PORCENTAJE DE ESTABLECIMIENTOS DE SALUD DEL PRIMER NIVEL DE ATENCIÓN CON CAPACIDAD INSTALADA INADECUADA
C21: Unidad de medida del indicador | I21: Establecimiento de Salud | M21: Espacio geográfico de la UP | Q21: LOCAL | T21: Año | U21: 2025 | W21: Valor | X21: =IFERROR(IF(AND(OR(I5="MEJORAMIENTO",I5="AMPLIACIÓN",I5="RECUPERACIÓN",I5="MEJORAMIENTO Y AMPLIACIÓN"),U21=2024),VLOOKUP(H50,ESI!B5:N2092,11,FALSE),IF(AND(OR(I5="MEJORAMIENTO",I5="AMPLIACIÓN",I5="RECUPERACIÓN",I5="MEJORAMIENTO Y AMPLIACIÓN"),U21=2025),VLOOKUP(H50,ESI!B5:N2090,13,FALSE),IF(AND(I5="CREACIÓN",U21=2024),VLOOKUP(H50,NES!B5:N2090,11,FALSE),IF(AND(I5="CREACIÓN",U21=2025),VLOOKUP(H50,NES!B5:N2090,13,FALSE))))),"") -> 0.9375 | Z21: Contribución al cierre de brechas | AE21: 1
C23: TIPOLOGÍA DEL PROYECTO DE INVERSIÓN | P23: ESTABLECIMIENTOS DE SALUD DEL PRIMER NIVEL DE ATENCIÓN
C26: Seccion D. INSTITUCIONALIDAD
C28: D1 OFICINA DE PROGRAMACIÓN MULTIANUAL DE INVERSIONBES (OPMI) | T28: D3 UNIDAD EJECUTORA DE INVERSIONES (UEI)
C30: SECTOR | K30: SALUD | T30: SECTOR | AA30: SALUD
C31: PLIEGO | K31: MINISTERIO DE SALUD | T31: PLIEGO | AA31: MINISTERIO DE SALUD
C32: NOMBRE DE LA OPMI | K32: OPMI DEL MINISTERIO DE SALUD | T32: NOMBRE DE LA UEI | AA32: DIRECCION DE REDES INTEGRADAS DE SALUD LIMA ESTE-DIRIS LIMA ESTE- DIRECCION ADMINISTRATIVA
C33: RESPONSABLE DE LA OPMI | K33: ELEAZAR TORRES YBAÑEZ | T33: RESPONSABLE DE LA UEI | AA33: ALEX EMILIANO LAVADO BASILIO
C35: D2 UNIDAD FORMULADORA DEL PROYECTO DE INVERSIÓN (UF)
C37: SECTOR | K37: SALUD
C38: PLIEGO | K38: MINISTERIO DE SALUD
C39: NOMBRE DE LA UF | K39: DIRECCION DE REDES INTEGRADAS DE SALUD LIMA ESTE - OFICINA DE INVERSIONES
C40: RESPONSABLE DE LA UF | K40: MANUELA PEJERREY CAMPODONICO
C41: RESPONSABLE DE LA FORMULACIÓN | K41: MANUELA PEJERREY CAMPODONICO
C43: Seccion E. IDENTIFICACIÓN, FORMULACION Y EVALUACION
C45: E1.1 DIAGNOSTICO
C47: E1.1.1 El Territorio
C48: Área de estudio- Area Influencia
C49: Área | H49: UBIGEO | J49: Departamento | L49: Provincia | N49: Distrito | Q49: Localidad | U49: Coordenadas Geográficas
C50: Área de Estudio | E50: Área de Influencia | H50: =+'Sección G'!F9 -> 150111 | J50: =+IFERROR(VLOOKUP(H50,UBIGEO!$A$2:$D$2090,2,FALSE),"") -> LIMA | L50: =IFERROR(VLOOKUP(H50,UBIGEO!$A$2:$D$2090,3,FALSE),"") -> LIMA | N50: =IFERROR(VLOOKUP(H50,UBIGEO!$A$2:$D$2090,4,FALSE),"") -> EL AGUSTINO | U50: -13.1899041 | X50: -74.30803156 | Z50: =+CONCATENATE(J50,AD51) -> LIMAURBANA | AA50: Región | AD50: Zona
H51: =+'Sección G'!F10 -> 150111 | J51: =+IFERROR(VLOOKUP(H51,UBIGEO!$A$2:$D$2090,2,FALSE),"") -> LIMA | L51: =IFERROR(VLOOKUP(H51,UBIGEO!$A$2:$D$2090,3,FALSE),"") -> LIMA | N51: =IFERROR(VLOOKUP(H51,UBIGEO!$A$2:$D$2090,4,FALSE),"") -> EL AGUSTINO | U51: -13.06577761 | X51: -74.30192993 | AA51: COSTA | AD51: URBANA
H52: =+'Sección G'!F11 -> 150111 | J52: =+IFERROR(VLOOKUP(H52,UBIGEO!$A$2:$D$2090,2,FALSE),"") -> LIMA | L52: =IFERROR(VLOOKUP(H52,UBIGEO!$A$2:$D$2090,3,FALSE),"") -> LIMA | N52: =IFERROR(VLOOKUP(H52,UBIGEO!$A$2:$D$2090,4,FALSE),"") -> EL AGUSTINO
H53: =+'Sección G'!F12 -> 0 | J53: =+IFERROR(VLOOKUP(H53,UBIGEO!$A$2:$D$2090,2,FALSE),"") ->  | L53: =IFERROR(VLOOKUP(H53,UBIGEO!$A$2:$D$2090,3,FALSE),"") ->  | N53: =IFERROR(VLOOKUP(H53,UBIGEO!$A$2:$D$2090,4,FALSE),"") -> 
H54: =+'Sección G'!F13 -> 0 | J54: =+IFERROR(VLOOKUP(H54,UBIGEO!$A$2:$D$2090,2,FALSE),"") ->  | L54: =IFERROR(VLOOKUP(H54,UBIGEO!$A$2:$D$2090,3,FALSE),"") ->  | N54: =IFERROR(VLOOKUP(H54,UBIGEO!$A$2:$D$2090,4,FALSE),"") -> 
H55: =+'Sección G'!F14 -> 0 | J55: =+IFERROR(VLOOKUP(H55,UBIGEO!$A$2:$D$2090,2,FALSE),"") ->  | L55: =IFERROR(VLOOKUP(H55,UBIGEO!$A$2:$D$2090,3,FALSE),"") ->  | N55: =IFERROR(VLOOKUP(H55,UBIGEO!$A$2:$D$2090,4,FALSE),"") -> 
C56: ¿por qué el area de esudio y el área de influencia son distintos?
C57: E1.1.2 La Población
C59: Población del área de Influencia del Centro de Salud Mental Comunitaria | V59: Población del área de influencia que atenderá el proyecto de inversión
C60: N° | D60: RIS/Zona/ Puerta de Entrada | K60: Código RENIPRESS | M60: Categoría | N60: ES Origen de la Referencia | S60: Población Asignada | V60: Población del Ambito de Influencia del ES | Y60: =SUM(S62:T65) -> 72890
C61: 1 | D61: =+'Sección G'!F7 -> Santa Anita-El AgustinoES de Primavera- CENTRO DE SALUD MENTAL COMUNITARIO EL AGUSTINO | K61: =+'Sección G'!C19 -> 00027290 | M61: =IFERROR(VLOOKUP(K61,ES!$A$2:$G$9061,7,FALSE),"") -> I-2 | N61: =IFERROR(VLOOKUP(K61,ES!$A$2:$G$9061,3,FALSE),"") -> CENTRO DE SALUD MENTAL COMUNITARIO EL AGUSTINO | S61: =+'Sección G'!H19 -> 0
C62: 2 | D62: =+'Sección G'!F7 -> Santa Anita-El AgustinoES de Primavera- CENTRO DE SALUD MENTAL COMUNITARIO EL AGUSTINO | K62: =+'Sección G'!C24 -> 00005921 | M62: =IFERROR(VLOOKUP(K62,ES!$A$2:$G$9061,7,FALSE),"") -> I-3 | N62: =IFERROR(VLOOKUP(K62,ES!$A$2:$G$9061,3,FALSE),"") -> ANCIETA BAJA | S62: =+'Sección G'!H24 -> 11258 | V62: Población Total | Y62: =+AE60+Y60 -> 72890 | AA62: Tasa de crecimiento poblacional | AE62: 0.012
C63: 3 | D63: =+'Sección G'!F7 -> Santa Anita-El AgustinoES de Primavera- CENTRO DE SALUD MENTAL COMUNITARIO EL AGUSTINO | K63: =+'Sección G'!C25 -> 00005922 | M63: =IFERROR(VLOOKUP(K63,ES!$A$2:$G$9061,7,FALSE),"") -> I-3 | N63: =IFERROR(VLOOKUP(K63,ES!$A$2:$G$9061,3,FALSE),"") -> PRIMAVERA | S63: =+'Sección G'!H25 -> 61632
C64: =+C63+1 -> 4 | D64: =+'Sección G'!F7 -> Santa Anita-El AgustinoES de Primavera- CENTRO DE SALUD MENTAL COMUNITARIO EL AGUSTINO | K64: =+'Sección G'!C26 -> 0 | M64: =IFERROR(VLOOKUP(K64,ES!$A$2:$G$9061,7,FALSE),"") ->  | N64: =IFERROR(VLOOKUP(K64,ES!$A$2:$G$9061,3,FALSE),"") ->  | S64: =+'Sección G'!H26 -> 0
C65: =+C64+1 -> 5 | D65: =+'Sección G'!F7 -> Santa Anita-El AgustinoES de Primavera- CENTRO DE SALUD MENTAL COMUNITARIO EL AGUSTINO | K65: =+'Sección G'!C27 -> 0 | M65: =IFERROR(VLOOKUP(K65,ES!$A$2:$G$9061,7,FALSE),"") ->  | N65: =IFERROR(VLOOKUP(K65,ES!$A$2:$G$9061,3,FALSE),"") ->  | S65: =+'Sección G'!H27 -> 0
C67: E1.1.3 Unidad Productora
C69: E1.1.3.1. Datos Generales de la UP (Centro de Salud Mental Comunitaria).
C70: Código Único RENIPRESS | E70: Categoría del ES | G70: Nombre del Establecimiento de Salud | M70: Departamento | P70: Provincia | T70: Distrito | W70: Localidad | Z70: Coordenadas Geográficas del ES (NORTE/ESTE)
C71: 00027290 | E71: =IFERROR(VLOOKUP(C71,ES!$A$2:$G$8801,7,FALSE),"") -> I-2 | G71: =IFERROR(VLOOKUP(C71,ES!$A$2:$G$8801,3,FALSE),"") -> CENTRO DE SALUD MENTAL COMUNITARIO EL AGUSTINO | M71: =+IFERROR(VLOOKUP(C71,ES!$A$2:$I$9061,4,FALSE),"") -> LIMA | P71: =+IFERROR(VLOOKUP(C71,ES!$A$2:$I$9061,5,FALSE),"") -> LIMA | T71: =+IFERROR(VLOOKUP(C71,ES!$A$2:$I$9061,6,FALSE),"") -> EL AGUSTINO | Z71: =+IFERROR(VLOOKUP(C71,ES!$A$2:$I$9061,8,FALSE),"") -> -12.03286184 | AC71: =+IFERROR(VLOOKUP(C71,ES!$A$2:$I$9061,9,FALSE),"") -> -77.00244761
C73: E1.1.3.2 Evolución de la Producción del Servicio del Centro de Salud Mental Comunitaria
C74: Servicios | I74: Unidad de Medida | K74: Año -5 | L74: Año -4 | M74: Año -3 | N74: Año -2 | O74: Año -1
C75: Consulta externa | I75: Atenciones | K75: 13223 | L75: 12651 | M75: 13562 | N75: 16254 | O75: 15246
C76: Centro de Rehabilitación Psicosocial | I76: Atenciones | K76: 850 | L76: 950 | M76: 1050 | N76: 1078 | O76: 1095
C77: Atemción de Urgencia y Emergencia | I77: Atenciones | K77: 2304 | L77: 1509 | M77: 2093 | N77: 1840 | O77: 1999
C78: Toma de muestas | I78: Atenciones
C79: Atención Medicamentos | I79: Atenciones | K79: =+(K76+K75)*0.96 -> 13510.08 | L79: =+(L76+L75)*0.96 -> 13056.96 | M79: 14027.52 | N79: 16638.72 | O79: 15687.36
C89: Desinfección y Esterilización
C90: Actidad de Salud Familiar y Comunitaria | I90: Atenciones
C92: E1.1.3.3 Diagnostico de las UPSS (factores Productivos)
C93: UPSS | H93: Factores Productivos | M93: Cumplimiento de las NTS | R93: Estado Situacional
M94: Documento | N94: N° | O94: B | P94: R | Q94: M
C95: UPSS Consulta Externa | H95: Infraestructura | M95: NTS 113-MINSA/DGIEM | N95: 5 | O95: 1 | P95: 2 | Q95: 2 | R95: Se tiene dos módulos uno de material concreto de 25 años de antigüedad y no cumplen el con las dimensiones mínimas establecidas en la NTS N° 113-MINSA/DGIEM, su estado de conservación es Regular, los elementos estructurales: columnas y muros no presentan grietas, humedad. En los techos no presentan fisuras ni humedad. Los acabados e instalaciones eléctricas y sanitarias presentan ligero deterioro Tres (03) ambientes No cumple con las dimensiones mínimas establecidas en la NTS N° 113-MINSA/DGIEM. Su estado de conservación es Malo, los elementos estructurales: columnas y muros presentan grietas, humedad y los techos presentan fisuras y humedad que generan filtraciones cuando llueve. Los acabados e instalaciones eléctricas y sanitarias presentan deterioro visible
H96: Equipamiento (biomédicos, complementarios, instrumental, informático, electromecánico, mobiliario clínico y administrativo, vehículos) | M96: NTS 113-MINSA/DGIEM | N96: 30 | O96: 5 | P96: 10 | Q96: 15 | R96: Los ambientes no cumplen con el listado de equipos establecido en la NTS N° 113-MINSA/DGIEM. Los equipos biomédicos se encuentran en condiciones deficientes sin cumplir los parámetros técnicos), 15 de ellos ya culmino su vida útil El mobiliario clínico y/o administrativo es suficiente y su estado de conservación es Regular
H97: Recursos Humanos | M97: R.M. N°176-2014/MINSA | N97: 5 | R97: Existe una brecha de recursos humanos, respecto a la cantidad, así como de la calidad.
C98: UPSS Centro de Rehabilitación Psicosocial | H98: Infraestructura | M98: NTS 113-MINSA/DGIEM | N98: 7 | O98: 1 | P98: 5 | Q98: 1
H99: Equipamiento (biomédicos, complementarios, instrumental, informático, electromecánico, mobiliario clínico y administrativo, vehículos) | M99: NTS 113-MINSA/DGIEM | N99: 10 | P99: 10
H100: Recursos Humanos | M100: R.M. N°176-2014/MINSA | N100: 3
C101: Atención de Urgencia y Emergencia | H101: Infraestructura | M101: NTS 113-MINSA/DGIEM | N101: 1 | P101: 1 | R101: Las áreas del ambiente limitan el adecuado funcionamiento, por lo que no cumple con las NTS. Y presenta daño estructural
H102: Equipamiento (biomédicos, complementarios, instrumental, informático, electromecánico, mobiliario clínico y administrativo, vehículos) | M102: NTS 113-MINSA/DGIEM | N102: 10 | P102: 3 | Q102: 7 | R102: Los equipos ya cumplieron su periodo de vida útil, así mismo por vigencia tecnológica se consideran no recuperables, del mismo modo, el estado de conservación es de regular a malo.
H103: Recursos Humanos | M103: R.M. N°176-2014/MINSA | N103: 1 | R103: Existe una brecha de recursos humanos, respecto a la cantidad, así como de la calidad.
C104: Actividad de prubas rápidas y toma de muestra | H104: Infraestructura | M104: NTS 113-MINSA/DGIEM | N104: NA | O104: NA | P104: NA | Q104: NA
H105: Equipamiento (biomédicos, complementarios, instrumental, informático, electromecánico, mobiliario clínico y administrativo, vehículos) | M105: NTS 113-MINSA/DGIEM | N105: NA | O105: NA | P105: NA | Q105: NA
H106: Recursos Humanos | M106: R.M. N°176-2014/MINSA | N106: NA | O106: NA | P106: NA | Q106: NA
C107: UPSS Farmacia | H107: Infraestructura | M107: NTS 113-MINSA/DGIEM | N107: 1 | Q107: 1 | R107: Las áreas del ambiente limitan el adecuado funcionamiento, por lo que no cumple con las NTS. Y presenta daño estructural
H108: Equipamiento (biomédicos, complementarios, instrumental, informático, electromecánico, mobiliario clínico y administrativo, vehículos) | M108: NTS 113 y 110-MINSA/DGIEM | N108: 10 | Q108: 10 | R108: Los equipos ya cumplieron su periodo de vida útil, así mismo por vigencia tecnológica se consideran no recuperables, del mismo modo, el estado de conservación es de regular a malo.
H109: Recursos Humanos | M109: R.M. N°176-2014/MINSA | N109: 1 | R109: Existe una brecha de recursos humanos, respecto a la cantidad, así como de la calidad.
C110: Desinfección y Esterilización | H110: Infraestructura | M110: NTS 113-MINSA/DGIEM | N110: NA | O110: NA | P110: NA | Q110: NA
H111: Equipamiento (biomédicos, complementarios, instrumental, informático, electromecánico, mobiliario clínico y administrativo, vehículos) | M111: NTS 113 y 110-MINSA/DGIEM | N111: NA | O111: NA | P111: NA | Q111: NA
H112: Recursos Humanos | M112: R.M. N°176-2014/MINSA | N112: NA | O112: NA | P112: NA | Q112: NA
C113: Actividad de Salud Familiar y Comunitaria | H113: Infraestructura | M113: NTS 113-MINSA/DGIEM | N113: NA | O113: NA | P113: NA | Q113: NA
H114: Equipamiento (biomédicos, complementarios, instrumental, informático, electromecánico, mobiliario clínico y administrativo, vehículos) | M114: NTS 113 y 110-MINSA/DGIEM | N114: NA | O114: NA | P114: NA | Q114: NA
H115: Recursos Humanos | M115: R.M. N°176-2014/MINSA | N115: NA | O115: NA | P115: NA | Q115: NA
C117: E1.1.3.4 Determinación de la Oferta
D118: Factor Productivo que se está optimizando
D119: La optimización se enfoca en identificar aquellos factores productivos que restringen una adecuada prestación del servicio, debido a que están siendo subutilizados o mal empleados. Considerando la oferta sin proyecto: i) Para Psiquitaria el factor limitante es Recurso Humano por lo que podremos optimizar el servicio contratando nuevo personal. ii)Para el servicio de Acogida y Valoración inicial si podríamos optimizar contratando un nuevo recursos humano. iii) Tópico de urgencia y emergencia también se puede optimizar, contratando un recurso humano.
C121: UPSS/UPS/Servicio/Actividad | K121: Unidad de Medida | M121: Oferta sin Proyecto | N121: H1 | O121: H2 | P121: H3 | Q121: H4 | R121: H5 | S121: OH | T121: I1 | U121: I2 | V121: I3 | W121: I4 | X121: I5 | Y121: OI | Z121: E1 | AA121: E2 | AB121: E3 | AC121: E4 | AD121: OE | AF121: O. Optimizada
C122: Consultorio de Psiquiatría-niñas, niños y adolesncentes | K122: Atenciones | M122: 624 | N122: 1 | O122: 1560 | P122: 0.8 | Q122: =+O122*P122 -> 1248 | R122: 2 | S122: =+N122*Q122*R122 -> 2496 | T122: 0.5 | U122: 12 | V122: =+T122*U122*25*12 -> 1800 | W122: 2 | X122: ='Sección H'!M8 -> 0.55 | Y122: =+V122*W122*X122 -> 1980 | Z122: 0.5 | AA122: 12 | AB122: =+Z122*AA122*25*12 -> 1800 | AC122: 2 | AD122: =+AB122*AC122 -> 3600 | AF122: =MIN(S122,Y122,AD122) -> 1980
C123: Consultorio de Psiquiatría -adulto y adulto mayor | K123: Atenciones | M123: 624 | N123: 1 | O123: =+O122 -> 1560 | P123: 0.8 | Q123: =+O123*P123 -> 1248 | R123: 2 | S123: =+N123*Q123*R123 -> 2496 | T123: 1 | U123: 12 | V123: =+T123*U123*25*12 -> 3600 | W123: 2 | X123: ='Sección H'!M9 -> 0.55 | Y123: =+V123*W123*X123 -> 3960 | Z123: 1 | AA123: 12 | AB123: =+Z123*AA123*25*12 -> 3600 | AC123: 2 | AD123: =+AB123*AC123 -> 7200 | AF123: =MIN(S123,Y123,AD123) -> 2496
C124: Consultorio de Psiquiatría- adicciones | K124: Atenciones | M124: 624 | N124: 1 | O124: =+O123 -> 1560 | P124: 0.8 | Q124: =+O124*P124 -> 1248 | R124: 2 | S124: 2496 | T124: 0.33 | U124: 12 | V124: =+T124*U124*25*12 -> 1188 | W124: 2 | X124: ='Sección H'!M10 -> 0.55 | Y124: 1306.8 | Z124: 0.33 | AA124: 12 | AB124: =+Z124*AA124*25*12 -> 1188 | AC124: 2 | AD124: =+AB124*AC124 -> 2376 | AF124: 1306.8
C125: Consultorio de niñas, niños y adolesncentes | K125: Atenciones | M125: 1980 | N125: 1 | O125: 1560 | P125: 0.8 | Q125: 1248 | R125: 2 | S125: 2496 | T125: 0.5 | U125: 12 | V125: 1800 | W125: 2 | X125: ='Sección H'!M11 -> 0.55 | Y125: 1980 | Z125: 0.5 | AA125: 12 | AB125: 1800 | AC125: 2 | AD125: =+AB125*AC125 -> 3600 | AF125: 1980
C126: Consultorio de adulto y adulto mayor | K126: Atenciones | M126: 1248 | N126: 0.5 | O126: 1560 | P126: 0.8 | Q126: 1248 | R126: 2 | S126: 1248 | T126: 1 | U126: 12 | V126: 3600 | W126: 2 | X126: ='Sección H'!M12 -> 0.55 | Y126: 3960 | Z126: 1 | AA126: 12 | AB126: 3600 | AC126: 2 | AD126: 7200 | AF126: 1248
C127: Consultorio de-adicciones | K127: Atenciones | M127: 990 | N127: 0.5 | O127: =O126 -> 1560 | P127: 0.8 | Q127: 1248 | R127: 2 | S127: 1248 | T127: 0.25 | U127: 12 | V127: 900 | W127: 2 | X127: ='Sección H'!M13 -> 0.55 | Y127: 990 | Z127: 0.25 | AA127: 12 | AB127: 900 | AC127: 2 | AD127: 1800 | AF127: 990
C128: Teleconsultorio | K128: Atenciones | M128: 1306.8 | N128: 1 | O128: =+O127 -> 1560 | P128: 0.8 | Q128: 1248 | R128: 2 | S128: 2496 | T128: 0.33 | U128: 12 | V128: 1188 | W128: 2 | X128: ='Sección H'!M14 -> 0.55 | Y128: 1306.8 | Z128: 0.33 | AA128: 12 | AB128: 1188 | AC128: 2 | AD128: 2376 | AF128: 1306.8
C129: Consultorio de Psicología-niñas, niños y adolescentes | K129: Atenciones | M129: 980.1 | N129: 2 | O129: 1560 | P129: 0.8 | Q129: 1248 | R129: 1.5 | S129: =+N129*Q129*R129 -> 3744 | T129: 0.33 | U129: 12 | V129: 1188 | W129: 1.5 | X129: ='Sección H'!M15 -> 0.55 | Y129: 980.1 | Z129: 0.33 | AA129: 12 | AB129: 1188 | AC129: 1.5 | AD129: 1782 | AF129: 980.1
C130: Consultorio de Psicología-adulto y adulto mayor | K130: Atenciones | M130: 980.1 | N130: 1 | O130: 1560 | P130: 0.8 | Q130: 1248 | R130: 1.5 | S130: 1872 | T130: 0.33 | U130: 12 | V130: =+T130*U130*25*12 -> 1188 | W130: 1.5 | X130: ='Sección H'!M16 -> 0.55 | Y130: 980.1 | Z130: 0.33 | AA130: 12 | AB130: 1188 | AC130: 1.5 | AD130: =+AB130*AC130 -> 1782 | AF130: 980.1
C131: Consultorio de Psicología-adicciones | K131: Atenciones | M131: 990 | N131: 1 | O131: 1560 | P131: 0.8 | Q131: 1248 | R131: 1.5 | S131: 1872 | T131: 0.3333333333 | U131: 12 | V131: 1200 | W131: 1.5 | X131: ='Sección H'!M17 -> 0.55 | Y131: 990 | Z131: 0.3333333333 | AA131: 12 | AB131: 1200 | AC131: 1.5 | AD131: 1800 | AF131: 990
C132: Sala de acogida y de valoración inicial | K132: Atenciones | M132: 535.392 | N132: 1 | O132: 1560 | P132: 0.8 | Q132: 1248 | R132: 1.3 | S132: 1622.4 | T132: 0.5 | U132: 12 | V132: 1800 | W132: 1.3 | X132: ='Sección H'!M18 -> 0.285 | Y132: 666.9 | Z132: 0.5 | AA132: 12 | AB132: 1800 | AC132: 1.3 | AD132: =+AB132*AC132 -> 2340 | AF132: 666.9
C133: Sala de Seguimiento y continuidad de cuidados | K133: Atenciones | M133: 823.68 | N133: 1 | O133: =+O131 -> 1560 | P133: 0.8 | Q133: 1248 | R133: 2 | S133: =+N133*Q133*R133 -> 2496 | T133: 0.5 | U133: 12 | V133: 1800 | W133: 2 | X133: ='Sección H'!M19 -> 0.285 | Y133: 1026 | Z133: 0.5 | AA133: 12 | AB133: 1800 | AC133: 2 | AD133: 3600 | AF133: 1026
C134: Sala evaluación integral en salud mental | K134: Atenciones | M134: 256.5 | N134: 1 | O134: =+O132 -> 1560 | P134: 0.8 | Q134: 1248 | R134: 1 | S134: =+N134*Q134*R134 -> 1248 | T134: 0.25 | U134: 12 | V134: 900 | W134: 1 | X134: ='Sección H'!M20 -> 0.285 | Y134: 256.5 | Z134: 0.25 | AA134: 12 | AB134: 900 | AC134: 1 | AD134: =+AB134*AC134 -> 900 | AF134: 256.5
C135: Sala de terapia del Lenguaje | K135: Atenciones | M135: 513 | N135: 1 | O135: =+O133 -> 1560 | P135: 0.8 | Q135: 1248 | R135: 2 | S135: 2496 | T135: 0.25 | U135: 12 | V135: 900 | W135: 2 | X135: ='Sección H'!M21 -> 0.285 | Y135: 513 | Z135: 0.25 | AA135: 12 | AB135: 900 | AC135: 2 | AD135: =+AB135*AC135 -> 1800 | AF135: 513
C136: Sala de rehabilitación psicosocial | K136: Atenciones | M136: 513 | N136: 1 | O136: =+O135 -> 1560 | P136: 0.8 | Q136: 1248 | R136: 2 | S136: 2496 | T136: 0.25 | U136: 12 | V136: 900 | W136: 2 | X136: ='Sección H'!M22 -> 0.285 | Y136: 513 | Z136: 0.25 | AA136: 12 | AB136: 900 | AC136: 2 | AD136: =+AB136*AC136 -> 1800 | AF136: 513
C137: Sala de rehabilitación laboral | K137: Atenciones | M137: 513 | N137: 1 | O137: 1560 | P137: 0.8 | Q137: 1248 | R137: 2 | S137: 2496 | T137: 0.25 | U137: 12 | V137: 900 | W137: 2 | X137: ='Sección H'!M23 -> 0.285 | Y137: 513 | Z137: 0.25 | AA137: 12 | AB137: 900 | AC137: 2 | AD137: =+AB137*AC137 -> 1800 | AF137: 513
C138: Actividad Atenciòn de Urgencia y Emergencia | K138: Atenciones | M138: 624 | N138: 1 | O138: 1560 | P138: 0.8 | Q138: 1248 | R138: 2 | S138: 2496 | T138: 0.33 | U138: 12 | V138: 1188 | W138: 2 | X138: ='Sección H'!M24 -> 0.55 | Y138: 1306.8 | Z138: 0.33 | AA138: 12 | AB138: 1188 | AC138: 2 | AD138: =+AB138*AC138 -> 2376 | AF138: 1306.8
C139: Actividad de prubas rápidas y toma de muestra | K139: Atenciones | M139: 2052 | N139: 1 | O139: 1560 | P139: 0.8 | Q139: 1248 | R139: 8 | S139: 9984 | T139: 0.25 | U139: 12 | V139: 900 | W139: 8 | X139: ='Sección H'!M25 -> 0.285 | Y139: 2052 | Z139: 0.25 | AA139: 12 | AB139: 900 | AC139: 8 | AD139: =+AB139*AC139 -> 7200 | AF139: 2052
C140: UPSS Farmacia | K140: Atenciones | M140: 4992 | N140: 1 | O140: =O139 -> 1560 | P140: 0.8 | Q140: =+O140*P140 -> 1248 | R140: 4 | S140: =+N140*Q140*R140 -> 4992 | T140: 1 | U140: 12 | V140: 3600 | W140: 4 | X140: ='Sección H'!M26 -> 0.55 | Y140: 7920 | Z140: 1 | AA140: 12 | AB140: =+Z140*AA140*25*12 -> 3600 | AC140: 4 | AD140: =+AB140*AC140 -> 14400 | AF140: 4992
C141: Desinfección y Esterilización | K141: Atenciones | M141: 411.84 | N141: 0.33 | O141: =O140 -> 1560 | P141: 0.8 | Q141: =+O141*P141 -> 1248 | R141: 1 | S141: =+N141*Q141*R141 -> 411.84 | T141: 0.33 | U141: 12 | V141: 1188 | W141: 1 | X141: ='Sección H'!M27 -> 0.55 | Y141: 653.4 | Z141: 0.33 | AA141: 12 | AB141: =+Z141*AA141*25*12 -> 1188 | AC141: 1 | AD141: =+AB141*AC141 -> 1188 | AF141: 411.84
C142: Actividad de Salud Familiar y Comunitaria | K142: Atenciones | M142: 1026 | N142: 2 | O142: =O140 -> 1560 | P142: 0.8 | Q142: 1248 | R142: 1 | S142: 2496 | T142: 1 | U142: 12 | V142: 3600 | W142: 1 | X142: ='Sección H'!M28 -> 0.285 | Y142: 1026 | Z142: 1 | AA142: 12 | AB142: 3600 | AC142: 1 | AD142: =+AB142*AC142 -> 3600 | AF142: 1026
C143: Se coloca NA cuando no se tiene el servicio
C144: E1.1.4 Analisis de Involucrados
C146: E1.1.4.1 Descripción de la población afectada
C147: Total de la población afectada | F147: Tipo de población* | I147: Unidad de medida | L147: Fuente de información
C148: =+'Sección G'!E34 -> 72890 | F148: Población de referencia | I148: Persona | L148: REUNIS-MINSA/DIRESA/GERESA/DIRIS
C150: Características de la población afectada
C151: Estructura de la población
C152: Variables /indicadores | F152: Categorías | I152: Valor | L152: Fuente de información
C153: Edad | F153: 0-14 años | I153: =+SUM('Sección G'!I29:W29) -> 16940 | L153: REUNIS-MINSA/DIRESA/GERESA/DIRIS
F154: 15-19 años | I154: =+SUM('Sección G'!X29:AB29) -> 5648 | L154: REUNIS-MINSA/DIRESA/GERESA/DIRIS
F155: 20-59 años | I155: =+SUM('Sección G'!AC29:AJ29) -> 41775 | L155: REUNIS-MINSA/DIRESA/GERESA/DIRIS
F156: Mayor a 60 años | I156: =+SUM('Sección G'!AK29:AO29) -> 8527 | L156: REUNIS-MINSA/DIRESA/GERESA/DIRIS
C157: *Define en función a la tipología del proyecto
C159: E1.1.4.2 Matriz de involucrados
C160: Agente involucrado | F160: Posición (Cooperante, Beneficiario, Oponente, Perjudicado) | I160: Problemas percibidos | L160: Intereses o expectativas | O160: Contribución
C161: Población afectada | F161: Beneficiario | I161: Insatisfacion frente a la prestacion de servicios de salud en especial para la atención de salud mental | L161: Contar con servicio de salud mental que resuleva sus problemas de salud para los diferentes grupos etarios y evite trasladarse a un establecimiento con mayor capacidad resolutiva. | O161: Apoyar a la decisión de implementación e inversión del establecimiento de salud que garantizan el buen uso y cuidado de los ambientes y equipamiento de los servicios de salud mental cumplimiento de las indicaciones impartidas del personal de salud.
C162: Personal de salud | F162: Beneficiario | I162: Limitado espacio de trabajo para la atención de la población usuaria. Insuficientes equipos para la atención de salud. | L162: Mejorar la oferta de prestación de servicios de salud, reducir tiempos de espera para la programacion de citas. Gestionar con DIRIS para la dotación de RR. HH, acorde a la nueva infraestructura. | O162: Participación durante el proceso de la elaboracion del proyecto, ejecución y funcionamiento. Usar adecuadamente los equipos e instrumentos biomédicos
C163: DIRIS Lima Este | F163: Cooperante | I163: Altas tasas de morbilidad de la poblacion del ámbito en enfermedades mentales | L163: Que la población cuente con un Centro de Salud Mental Comunitaria moderno que responda a las demandas de servicios de salud mentales | O163: Compromiso de la DIRIS para el acompañamiento en la ejecución del proyecto.
C164: Centro de Salud Mental Comunitaria El Agustino | F164: Beneficiario | I164: Usuarios insatisfechos por la atención prestada, inadecuado sistema de referencias y contra referencias, limitadas capacitaciones. | L164: Mejorar las condiciones de infraestructura y equipamiento, insumos y otros para brindar servicios de salud mental, adecuados oportunos y de calidad, lograr satisfacción de los usuarios, mejorar las medidas de bioseguridad. | O164: Brindar facilidades para la entrega de informacion de producción del E.S., cuidado de equipamiento e infraestructura para garantizar una mejor calidad de atencion a los usuarios de salud.
C165: Municipalidad Distrital de El Agustino | F165: Cooperante | I165: Usuarios insatisfechos, la población no encuentra las especialidades que demanda con mayor frecuencia. | L165: Satisafecer los requerimientos de la población en plazos concordados. | O165: Identificación y compromiso para llevar adelante y garantizar los permisos y habilitación de la via urbana para el desarrollo del proyecto.
C167: E1.2 DEFINICIÓN DEL PROBLEMA Y SUS CAUSAS
X170: E1.2.3 Causas Indirectas
N171: E1.2.2 Causas Directas | X171: Causa Indirecta 1.1 | Z171: Limitada e inadecuada Infraestructura física para la prestación de servicios de salud
D172: E1.2.1 Problema Central | N172: Causa Directa 1 | P172: Inadecuada e insuficiente capacidad operativa y funcional en los servicios de salud | X172: Causa Indirecta 1.2 | Z172: Equipamiento inadecuado e insuficiente para brindar los servicios de Salud
D173: Población del área de influencia del Centro de Salud Mental Comunitario EL Agustino accede a inadecuados y limitados servicios de salud mental | X173: Causa Indirecta 1.3 | Z173: Inadecuado mantenimiento preventivo y correctivo de infraestructura y equipamiento.
N176: Causa Directa 2 | P176: Existencia de barreras socioeconómicas y culturales que limitan el acceso a los servicios de salud | X176: Causa Indirecta 2.1 | Z176: Inadecuada y limitada promocion de la cartera de servicios de salud a la comunidad
C179: E1.3 PLANTEAMIENTO DEL PROYECTO
C181: E1.3.1. Definición del objetivo del proyecto de inversión
C182: Objetivo Central del PI | J182: Población del área de influencia del Centro de Salud Mental Comunitario EL Agustino accede a adecuados servicios de salud mental
C184: Indicadores del Objetivo Central | K184: Línea Base | M184: Valor al Final del Proyecto | O184: Fuente de Verificación | R184: Beneficiarios Directos (atendidos)
C185: Nombre del Indicador | I185: Unidad de Medida | R185: Último año del Horizonte de Eval. | T185: Sumatoria beneficiarios del HE | V185: Promedio de Beneficiarios
C186: Población atendida | I186: =IFERROR(VLOOKUP(C186,BD!$B$54:$C$55,2,FALSE),"") -> Atenciones | K186: 2025 | M186: 2038 | O186: Registro HIS | R186: =+PDE!R37 -> 6102.327084 | T186: =+PDE!R38 -> 63284.09016 | V186: =+PDE!R39 -> 5753.099105
C189: E1.3. 2. Definición de acciones para el proyecto
C190: Medios fundamentales | I190: ALTERNATIVA 1 | T190: ALTERNATIVA 2
I191: ACCIONES | Q191: Clasificación de Acciones | T191: ACCIONES | AA191: Clasificación de Acciones
C192: A. Adecuada infraestructura física para la prestación de servicios de salud | I192: A1 | J192: Construcción de infraestructura en terreno nuevo | Q192: mutuamente excluyente" | T192: A1 | U192: Construcción de infraestructura en terreno actual | AA192: mutuamente excluyente"
I193: A2 | J193: Construcción de cerco perimétrico | Q193: Complementaria | T193: A2 | U193: Construcción de cerco perimétrico | AA193: Complementaria
I194: A3 | T194: A3 | U194: Construcción de edificación temporal en terreno actual (contingencia) | AA194: Complementaria
I195: A4 | T195: A4
I196: A5 | T196: A5
C197: B. Equipamiento adecuado para brindar los servicios de Salud | I197: B1 | J197: Adquisición de mobiliario clínico | Q197: Complementaria | T197: B1 | U197: Adquisición de mobiliario clínico | AA197: Complementaria
I198: B2 | J198: Adquisición de mobiliario administrativo | Q198: Complementaria | T198: B2 | U198: Adquisición de mobiliario administrativo | AA198: Complementaria
I199: B3 | J199: Adquisición de instrumental | Q199: Complementaria | T199: B3 | U199: Adquisición de instrumental | AA199: Complementaria
I200: B4 | J200: Adquisición de equipos biomédicos | Q200: Complementaria | T200: B4 | U200: Adquisición de equipos biomédicos | AA200: Complementaria
I201: B5 | J201: Adquisición de equipos complementarios | Q201: Complementaria | T201: B5 | U201: Adquisición de equipos complementarios | AA201: Complementaria
I202: B6 | J202: Adquisición de equipos electromecánicos | Q202: Complementaria | T202: B6 | U202: Adquisición de equipos electromecánicos | AA202: Complementaria
I203: B7 | J203: Adquisición de equipos informáticos | Q203: Complementaria | T203: B7 | U203: Adquisición de equipos informáticos | AA203: Complementaria
I204: B8 | J204: Adquisición de vehículos | Q204: Complementaria | T204: B8 | U204: Adquisición de vehículos | AA204: Complementaria
C205: C. Adecuado mantenimiento preventivo y correctivo de infraestructura y equipamiento | I205: C1 | J205: Elaboración del Plan mantenimiento preventivo y correctivo de infraestructura y equipamiento | Q205: Independiente | T205: C1 | U205: Elaboración del Plan mantenimiento preventivo y correctivo de infraestructura y equipamiento | AA205: Independiente
C206: D. Adecuada promoción de la cartera de servicios a la comunidad. | I206: D1 | J206: Campañas de difusión sobre la cartera de servicios que brinda el Establecimiento de salud | Q206: Independiente | T206: D1 | U206: Campañas de difusión sobre la cartera de servicios que brinda el Establecimiento de salud | AA206: Independiente
C208: E1.3.3 Descripción de las alternativas de solución
D209: ALTERNATIVAS DE SOLUCIÓN | K209: ALTERNATIVA 1 | T209: ALTERNATIVA 2
K210: Construcción de infraestructura en terreno Nuevo+ Construcción de cerco perimétrico + Adquisición de equipamiento electromecánico +Adquisición de equipamiento informático +Asquisición de equipamiento biomédico+Adquisición de instrumental + Adquisición de mobiliario clínico y administrativo+ Instalación de sistema de información + Adquisición de ambulancia+ Elaboración del Plan mantenimiento preventivo y correctivo de infraestructura y equipamiento + Campañas de difusión sobre la cartera de servicios que brinda el Establecimiento de salud | T210: Construcción de infraestructura en terreno actual+ Construcción de cerco perimétrico + Construcción de edificación temporal en otro terreno (contingencia)+ Adquisición de equipamiento electromecánico +Adquisición de equipamiento informático +Adquisición de equipamiento biomedico+ Adquisición de instrumental + Adquisición de mobiliario clínico y administrativo+ Instalación de sistema de información + Adquisición de ambulancia+ Elaboración del Plan mantenimiento preventivo y correctivo de infraestructura y equipamiento + Campañas de difusión sobre la cartera de servicios que brinda el Establecimiento de salud
C212: E2 FORMULACIÓN
C214: E2.1 HORIZONTE DE EVALUACIÓN
C215: FASES DEL PIP | N215: ALTERNATIVA 1 | S215: ALTERNATIVA 2
N216: N° Meses | P216: Acumulado | R216: Años | S216: N° Meses | U216: Acumulado | W216: Años
C217: FASE DE EJECUCIÓN | P217: =+P219+P224 -> 36 | R217: =+P217/12 -> 3 | U217: =+U219+U224 -> 36 | W217: =+U217/12 -> 3
C218: Elaboración y aprobación de Expediente Técnico | R218: =+P219/12 -> 0.8333333333 | W218: =+U219/12 -> 0.8333333333
D219: Contratación del Expediente Técnico | N219: 2 | P219: =+SUM(N219:O222) -> 10 | S219: 2 | U219: =+SUM(S219:T222) -> 10
D220: Elaboración del Expediente Técnico | N220: 5 | S220: 5
D221: Revisión y aprobación del Expediente Técnico | N221: 2 | S221: 2
D222: Otro (especificar) | N222: 1 | S222: 1
C223: Ejecución y liquidación del proyecto de inversión | R223: =+P224/12 -> 2.166666667 | W223: =+U224/12 -> 2.166666667
D224: Contratación de la ejecución del proyecto | N224: 5 | P224: =+SUM(N224:O227) -> 26 | S224: 5 | U224: =+SUM(S224:T227) -> 26
D225: Ejecución del proyecto | N225: 16 | S225: 16
D226: Recepción y liquidación del proyecto | N226: 3 | S226: 3
D227: Otros (especificar) | N227: 2 | S227: 2
C228: FASE DE FUNCIONAMIENTO | N228: 10 años | S228: 10 años
C229: HORIZONTE DE EVALUACIÓN | N229: 13 años | S229: 13 años
C230: Siempre debe ser años enteros
C232: E2.2 DEMANDA DE LOS SERVICIOS DE SALUD
C233: Servicio / Actividad | I233: UM | J233: Año 1 | K233: Año 2 | L233: Año 3 | M233: Año 4 | N233: Año 5 | O233: Año 6 | P233: Año 7 | Q233: Año 8 | R233: Año 9 | S233: Año 10 | T233: Año 11 | U233: Año 12 | V233: Año 13
C234: UPSS CONSULTA EXTERNA
C235: Consultorio de psiquiatría para niña niño y adolescente | I235: Atenciones | J235: ='Dem 1'!H177 -> 4621.968204 | K235: ='Dem 1'!I177 -> 4677.431822 | L235: ='Dem 1'!J177 -> 4733.561004 | M235: ='Dem 1'!K177 -> 4790.363736 | N235: ='Dem 1'!L177 -> 4847.848101 | O235: ='Dem 1'!M177 -> 4906.022278 | P235: ='Dem 1'!N177 -> 4964.894546 | Q235: ='Dem 1'!O177 -> 5024.47328 | R235: ='Dem 1'!P177 -> 5084.76696 | S235: ='Dem 1'!Q177 -> 5145.784163 | T235: ='Dem 1'!R177 -> 5207.533573 | U235: ='Dem 1'!S177 -> 5270.023976 | V235: ='Dem 1'!T177 -> 5333.264264
C236: Consultorio de psiquiatría para adulto y adulto mayor | I236: Atenciones | J236: ='Dem 1'!H178 -> 7560.029091 | K236: ='Dem 1'!I178 -> 7565.783204 | L236: ='Dem 1'!J178 -> 7571.537317 | M236: ='Dem 1'!K178 -> 7577.291431 | N236: ='Dem 1'!L178 -> 7583.045544 | O236: ='Dem 1'!M178 -> 7588.799657 | P236: ='Dem 1'!N178 -> 7594.553771 | Q236: ='Dem 1'!O178 -> 7600.307884 | R236: ='Dem 1'!P178 -> 7606.061997 | S236: ='Dem 1'!Q178 -> 7611.816111 | T236: ='Dem 1'!R178 -> 7617.570224 | U236: ='Dem 1'!S178 -> 7623.324338 | V236: ='Dem 1'!T178 -> 7629.078451
C237: Consultorio de psiquiatría de pacientes con adicciones | I237: Atenciones | J237: ='Dem 1'!H179 -> 172.1364779 | K237: ='Dem 1'!I179 -> 172.267495 | L237: ='Dem 1'!J179 -> 172.3985121 | M237: ='Dem 1'!K179 -> 172.5295291 | N237: ='Dem 1'!L179 -> 172.6605462 | O237: ='Dem 1'!M179 -> 172.7915632 | P237: ='Dem 1'!N179 -> 172.9225803 | Q237: ='Dem 1'!O179 -> 173.0535974 | R237: ='Dem 1'!P179 -> 173.1846144 | S237: ='Dem 1'!Q179 -> 173.3156315 | T237: ='Dem 1'!R179 -> 173.4466486 | U237: ='Dem 1'!S179 -> 173.5776656 | V237: ='Dem 1'!T179 -> 173.7086827
C238: Consultorio niña niño y adolescente | I238: Atenciones | J238: ='Dem 1'!H180 -> 1304.553356 | K238: ='Dem 1'!I180 -> 1320.207996 | L238: ='Dem 1'!J180 -> 1336.050492 | M238: ='Dem 1'!K180 -> 1352.083098 | N238: ='Dem 1'!L180 -> 1368.308095 | O238: ='Dem 1'!M180 -> 1384.727792 | P238: ='Dem 1'!N180 -> 1401.344526 | Q238: ='Dem 1'!O180 -> 1418.16066 | R238: ='Dem 1'!P180 -> 1435.178588 | S238: ='Dem 1'!Q180 -> 1452.400731 | T238: ='Dem 1'!R180 -> 1469.82954 | U238: ='Dem 1'!S180 -> 1487.467494 | V238: ='Dem 1'!T180 -> 1505.317104
C239: Consultorio adulto y adulto mayor | I239: Atenciones | J239: ='Dem 1'!H181 -> 2444.605954 | K239: ='Dem 1'!I181 -> 2446.4666 | L239: ='Dem 1'!J181 -> 2448.327247 | M239: ='Dem 1'!K181 -> 2450.187893 | N239: ='Dem 1'!L181 -> 2452.048539 | O239: ='Dem 1'!M181 -> 2453.909185 | P239: ='Dem 1'!N181 -> 2455.769831 | Q239: ='Dem 1'!O181 -> 2457.630478 | R239: ='Dem 1'!P181 -> 2459.491124 | S239: ='Dem 1'!Q181 -> 2461.35177 | T239: ='Dem 1'!R181 -> 2463.212416 | U239: ='Dem 1'!S181 -> 2465.073063 | V239: ='Dem 1'!T181 -> 2466.933709
C240: Consultorio adicciones | I240: Atenciones | J240: ='Dem 1'!H182 -> 53.32768906 | K240: ='Dem 1'!I182 -> 53.368278 | L240: ='Dem 1'!J182 -> 53.40886694 | M240: ='Dem 1'!K182 -> 53.44945588 | N240: ='Dem 1'!L182 -> 53.49004482 | O240: ='Dem 1'!M182 -> 53.53063376 | P240: ='Dem 1'!N182 -> 53.5712227 | Q240: ='Dem 1'!O182 -> 53.61181164 | R240: ='Dem 1'!P182 -> 53.65240058 | S240: ='Dem 1'!Q182 -> 53.69298952 | T240: ='Dem 1'!R182 -> 53.73357846 | U240: ='Dem 1'!S182 -> 53.7741674 | V240: ='Dem 1'!T182 -> 53.81475634
C241: Teleconsultorio | I241: Atenciones | J241: ='Dem 1'!H183 -> 2370.598797 | K241: ='Dem 1'!I183 -> 2381.698587 | L241: ='Dem 1'!J183 -> 2392.917477 | M241: ='Dem 1'!K183 -> 2404.256896 | N241: ='Dem 1'!L183 -> 2415.71829 | O241: ='Dem 1'!M183 -> 2427.303123 | P241: ='Dem 1'!N183 -> 2439.012876 | Q241: ='Dem 1'!O183 -> 2450.849049 | R241: ='Dem 1'!P183 -> 2462.813159 | S241: ='Dem 1'!Q183 -> 2474.906739 | T241: ='Dem 1'!R183 -> 2487.131346 | U241: ='Dem 1'!S183 -> 2499.488549 | V241: ='Dem 1'!T183 -> 2511.979942
C242: Consultorio de psicología niña niño y adolescente | I242: Atenciones | J242: ='Dem 1'!H184 -> 6994.61338 | K242: ='Dem 1'!I184 -> 7078.54874 | L242: ='Dem 1'!J184 -> 7163.491325 | M242: ='Dem 1'!K184 -> 7249.453221 | N242: ='Dem 1'!L184 -> 7336.44666 | O242: ='Dem 1'!M184 -> 7424.48402 | P242: ='Dem 1'!N184 -> 7513.577828 | Q242: ='Dem 1'!O184 -> 7603.740762 | R242: ='Dem 1'!P184 -> 7694.985651 | S242: ='Dem 1'!Q184 -> 7787.325479 | T242: ='Dem 1'!R184 -> 7880.773384 | U242: ='Dem 1'!S184 -> 7975.342665 | V242: ='Dem 1'!T184 -> 8071.046777
C243: Consultorio de psicología adulto y adulto mayor | I243: Atenciones | J243: ='Dem 1'!H185 -> 13296.1396 | K243: ='Dem 1'!I185 -> 13306.2596 | L243: ='Dem 1'!J185 -> 13316.3796 | M243: ='Dem 1'!K185 -> 13326.4996 | N243: ='Dem 1'!L185 -> 13336.6196 | O243: ='Dem 1'!M185 -> 13346.7396 | P243: ='Dem 1'!N185 -> 13356.8596 | Q243: ='Dem 1'!O185 -> 13366.9796 | R243: ='Dem 1'!P185 -> 13377.0996 | S243: ='Dem 1'!Q185 -> 13387.2196 | T243: ='Dem 1'!R185 -> 13397.3396 | U243: ='Dem 1'!S185 -> 13407.4596 | V243: ='Dem 1'!T185 -> 13417.5796
C244: Consultorio de psicología adicciones | I244: Atenciones | J244: ='Dem 1'!H186 -> 491.9571652 | K244: ='Dem 1'!I186 -> 492.3316052 | L244: ='Dem 1'!J186 -> 492.7060452 | M244: ='Dem 1'!K186 -> 493.0804852 | N244: ='Dem 1'!L186 -> 493.4549252 | O244: ='Dem 1'!M186 -> 493.8293652 | P244: ='Dem 1'!N186 -> 494.2038052 | Q244: ='Dem 1'!O186 -> 494.5782452 | R244: ='Dem 1'!P186 -> 494.9526852 | S244: ='Dem 1'!Q186 -> 495.3271252 | T244: ='Dem 1'!R186 -> 495.7015652 | U244: ='Dem 1'!S186 -> 496.0760052 | V244: ='Dem 1'!T186 -> 496.4504452
C245: Sala de acogida y de valoración inicial | I245: Atenciones | J245: ='Dem 1'!H187 -> 2078.271014 | K245: ='Dem 1'!I187 -> 2087.713995 | L245: ='Dem 1'!J187 -> 2097.257697 | M245: ='Dem 1'!K187 -> 2106.903331 | N245: ='Dem 1'!L187 -> 2116.652118 | O245: ='Dem 1'!M187 -> 2126.505298 | P245: ='Dem 1'!N187 -> 2136.464123 | Q245: ='Dem 1'!O187 -> 2146.529861 | R245: ='Dem 1'!P187 -> 2156.703794 | S245: ='Dem 1'!Q187 -> 2166.98722 | T245: ='Dem 1'!R187 -> 2177.381455 | U245: ='Dem 1'!S187 -> 2187.887827 | V245: ='Dem 1'!T187 -> 2198.507682
C246: Sala de seguimiento y continuidad de cuidados | I246: Atenciones | J246: ='Dem 1'!H188 -> 10516.94998 | K246: ='Dem 1'!I188 -> 10567.33633 | L246: ='Dem 1'!J188 -> 10618.2657 | M246: ='Dem 1'!K188 -> 10669.7446 | N246: ='Dem 1'!L188 -> 10721.77964 | O246: ='Dem 1'!M188 -> 10774.37749 | P246: ='Dem 1'!N188 -> 10827.54489 | Q246: ='Dem 1'!O188 -> 10881.28869 | R246: ='Dem 1'!P188 -> 10935.61581 | S246: ='Dem 1'!Q188 -> 10990.53323 | T246: ='Dem 1'!R188 -> 11046.04805 | U246: ='Dem 1'!S188 -> 11102.16743 | V246: ='Dem 1'!T188 -> 11158.89863
C247: Sala evaluación integral en salud mental | I247: Atenciones | J247: ='Dem 1'!H189 -> 2078.271014 | K247: ='Dem 1'!I189 -> 2087.713995 | L247: ='Dem 1'!J189 -> 2097.257697 | M247: ='Dem 1'!K189 -> 2106.903331 | N247: ='Dem 1'!L189 -> 2116.652118 | O247: ='Dem 1'!M189 -> 2126.505298 | P247: ='Dem 1'!N189 -> 2136.464123 | Q247: ='Dem 1'!O189 -> 2146.529861 | R247: ='Dem 1'!P189 -> 2156.703794 | S247: ='Dem 1'!Q189 -> 2166.98722 | T247: ='Dem 1'!R189 -> 2177.381455 | U247: ='Dem 1'!S189 -> 2187.887827 | V247: ='Dem 1'!T189 -> 2198.507682
C248: UPSS CENTRO DE REHABILITACIÓN PSICOSOCIAL
C249: Sala de terapia de lenguaje | I249: Atenciones | J249: ='Dem 1'!H191 -> 4444.887122 | K249: ='Dem 1'!I191 -> 4487.564275 | L249: ='Dem 1'!J191 -> 4530.744888 | M249: ='Dem 1'!K191 -> 4574.435005 | N249: ='Dem 1'!L191 -> 4618.640739 | O249: ='Dem 1'!M191 -> 4663.368278 | P249: ='Dem 1'!N191 -> 4708.623883 | Q249: ='Dem 1'!O191 -> 4754.413891 | R249: ='Dem 1'!P191 -> 4800.744714 | S249: =+'Dem 1'!Q191 -> 4847.622844 | T249: =+'Dem 1'!R191 -> 4895.054846 | U249: =+'Dem 1'!S191 -> 4943.047369 | V249: =+'Dem 1'!T191 -> 4991.607137
... 383 more rows

Sheet Alt 2
B2: ALTERNATIVA 2 DE SOLUCIÓN
C4: b. Localización (Alternativa 2)
D5: Terreno Actual
D7: Descripción y caracteristicas del Terreno o de la alternativa Planteada
D8: El terreno actual que ocupa el Centro de Salud Mental Comunitaria se ubica en la intersección de dos vías correspondientes a la Calle Lirios y la calle San José Distrito de El Agustino departamento de Lima. La ubicación geográfica del terreno corresponde con las coordenadas UTM: E-77.00244761 / N-12.03286184 y una altitud de 1959.00 msnm. Se encuentra inscrito en la Partida Registral N° xxxxxxx de la Oficina Registral de la Zona Registral N° xxxxxxxx con un área total de 1000m2
C15: c. Tecnología (Alternativa 2)
I16: SISTEMA CONSTRUCTIVO
I17: Sistema Constructivo | M17: CONVENCIONAL
D19: Para efectos del desarrollo de estudios de preinversión, el alcance de la profundidad de información recomendable es la Ingeniería Conceptual, toda vez que, con esta ingeniería se permite una profundización de los datos e información relevante para lograr una aproximación de la magnitud de las inversiones, los costos y los beneficios
C25: d. Impacto Ambiental (Alternativa 2)
D26: Etapa | J26: Impacto ambiental | N26: Marcar | O26: Tipo de Impacto | P26: Medidas de mitigación | Q26: Precisiones
D27: Fase de Ejecución | J27: Deterioro del suelo | N27: X | O27: Negativo | P27: Si | Q27: El Expediente Técnico debe contener las medidas de mitigación
J28: Contaminación del aire por gases de combustión, polvo y otros | N28: X | O28: Negativo | P28: Si | Q28: El Expediente Técnico debe contener las medidas de mitigación
J29: Molestía por ruido por acondicionamiento del terreno, empleo de maquinarias, trabajos de albañilería, transito de vehiculos | N29: X | O29: Negativo | P29: Si | Q29: El Expediente Técnico debe contener las medidas de mitigación
J30: Generación de nuevos puestos de trabajo | N30: X | O30: Positivo | P30: No
J31: Perdida de calidad de agua por obras civiles | N31: X | O31: Negativo | P31: Si | Q31: El Expediente Técnico debe contener las medidas de mitigación
J32: Alteración del paisaje por la presencia de equipos y maquinarias | N32: X | O32: Negativo | P32: Si | Q32: El Expediente Técnico debe contener las medidas de mitigación
D33: Fase de Operación y Mantenimiento | J33: Generación de Residuos Sólidos | N33: X | O33: Negativo | P33: Si | Q33: El Expediente Técnico debe contener los espacios físicos para el manejo de los residuos sólidos, y en coordinación con la DIGESA, como ente rector, deberá realizar capacitaciones sobre la materia al menos 2 veces al año
J34: Generación de Residuos Líquidos | N34: X | O34: Negativo | P34: Si | Q34: El Expediente Técnico debe contener los espacios físicos y/o instalaciones requeridas para el manejo de los residuos líquidos, y la Dirección del establecimiento deberá supervisar periódicamente el adecuado funcionamiento de los mismos
C36: E2.4.2 GESTIÓN INTEGRAL DEL RIESGO (Alternativa 2)
C37: Tipo de Reisgo | G37: Descripción del Riesgo | M37: Posibilidad de ocurrencia (baja, media, alta) | P37: Impacto (bajo, medio, alto) | S37: Medidas de mitigación
C38: Construcción | G38: Se relaciona con todos los eventos que generan sobrecostos y/o sobreplazos durante el periodo de construcción | M38: Media | P38: Alto | S38: Adecuada supervisión (tanto en el aspecto presupuestal como en el de ingeniería) y velar por el cumplimiento de los estudios técnicos (Expediente técnico, Estudios de Impacto Ambiental, entre otros) aprobados por la autoridad competente
C39: Lluvias | G39: Lluvias intensas de enero a marzo | M39: Media | P39: Medio | S39: Drenaje fluvial, en todos los ambientes del Establecimiento de salud
C45: E2.4.3 METAS FISICAS (Alternativa 2)
C46: PRODUCTO/COMPONENTE | H46: Acción Sobre los Activos | P46: Tipo de Factor Productivo | R46: Unidad Física (Unidad de Producción) | V46: Dimensión Física (Tamaño)
R47: Unidad de medida | T47: Cantidad | V47: Unidad de medida | X47: Cantidad
C48: A. Infraestructura adecuada para la demanda de atención del ES | H48: Construcción Consulta Externa | P48: Infraestructura | R48: Consultorio | T48: 7 | V48: m2 | X48: 369.775
H49: Construcción de Centro de Rehabilitación Psicosocial | P49: Infraestructura | R49: Ambiente | T49: 2 | V49: m2 | X49: 48.23
H50: Construcción de Urgencias y emergencias | P50: Infraestructura | R50: Ambiente | T50: 2 | V50: m2 | X50: 76.86
H51: Construcción Farmacia | P51: Infraestructura | R51: Ambiente | T51: 1 | V51: m2 | X51: 23.1
H52: Construcción de Salud Familiar y Comunitaria | P52: Infraestructura | R52: Ambiente | T52: 1 | V52: m2 | X52: 48.3
H53: Construcción de ambientes administrativos y Gestión de la información | P53: Infraestructura | R53: Ambiente | T53: 5 | V53: m2 | X53: 56.084
H54: Construcción de ambientes servicios generales (transporte, casa de fuerza, almacen) Ver Anexo N° 05 del instructivo | P54: Infraestructura | R54: Ambiente | T54: 11 | V54: m2 | X54: 189.98
H55: Servicios Complementarios (Residencia personal) | P55: Infraestructura | R55: Ambiente | T55: 6 | V55: m2 | X55: 95.76
H56: Total PA | X56: =SUM(X48:Y55) -> 908.089
H57: Obras complementarias (cerco perimetrico, veredas, estacionamiento, entre otros) | P57: Infraestructura | R57: Ambiente | V57: m2 | X57: 198
H58: Plan de Contingencia | P58: Infraestructura | R58: Ambiente | V58: m2 | X58: 750
C59: B. Equipamiento adecuado para brindar los servicios de Salud | H59: Adquisición de equipos complementarios | P59: Equipamiento | R59: N° Equipamiento | T59: 70
H60: Adquisición de equipos electromecánicos | P60: Equipamiento | R60: N° Equipamiento | T60: 45
H61: Adquisición de instrumental | P61: Equipamiento | R61: N° Equipamiento | T61: 60
H62: Adquisición de mobiliario clínico | P62: Mobiliario | R62: N° Mobiliario | T62: 120
H63: Adquisición de mobiliario administrativo | P63: Mobiliario | R63: N° Mobiliario | T63: 110
H64: Adquisición de equipos informáticos | P64: Equipamiento | R64: N° Equipamiento | T64: 20
H65: Adquisición de vehículos | P65: Equipamiento | R65: N° Equipamiento | T65: 1
H66: Adqisición de equipos biomédicos | P66: Equipamiento | R66: N° Equipamiento
H67: TOTAL PE | T67: =SUM(T59:U66) -> 426
C68: C. Adecuado mantenimiento preventivo y correctivo de infraestructura y equipamiento | H68: Elaboración del Plan mantenimiento de infraestructura y equipamiento | P68: Intangible | R68: Nro Documento | T68: 1
C69: D. Adecuada promoción de la cartera de servicios a la comunidad. | H69: Campañas de difusión sobre la cartera de servicios que brinda el Establecimiento de salud | P69: Intangible | R69: Nro Informe | T69: 2
C71: E2.4.4 COSTOS DEL PROYECTO A PRECIOS DE MERCADO (Alternativa 2)
C73: E2.4.4.2 Estimación de los Costos de Inversión (Alternativa 2) | X73: 0.78125
C74: PRODUCTO/COMPONENTE | J74: Acción Sobre los Activos | S74: Tipo de Factor Productivo | U74: COSTO A PRECIO DE MERCADO | W74: COSTO A PRECIO SOCIAL | Y74: Expediente Técnico o Documento Equivalente | AC74: Ejecución Física
Y75: Fecha inicio | AA75: Fecha término | AC75: Fecha inicio | AE75: Fecha término
C76: A. Infraestructura adecuada para la demanda de atención del ES | J76: Construcción Consulta Externa | S76: Infraestructura | U76: 1102524.103 | W76: 861346.9553 | Y76: 2025-09-15 | AA76: 2026-03-15 | AC76: 2026-08-02 | AE76: 2028-01-30
J77: Construcción de Cengtro de Rehabilitación Psicosocial | S77: Infraestructura | U77: 1068804.433 | W77: 835003.4631
J78: Construcción de urgencias y emergencias | S78: Infraestructura | U78: 536759.8995 | W78: 419343.6715
J79: Construcción de UPSS Farmacia | S79: Infraestructura | U79: 173343.1392 | W79: 135424.3275
J80: Construcción de Salud Familiar y Comunitaria | S80: Infraestructura | U80: 362444.7456 | W80: 283159.9575
J81: Construcción de ambientes administrativos y Gestión de la información | S81: Infraestructura | U81: 220856.1307 | W81: 172543.8521
J82: Construcción de ambientes servicios generales (transporte, casa de fuerza, almacen) | S82: Infraestructura | U82: 925615.9994 | W82: 723137.4995
J83: Servicios Complementarios (Residencia personal) | S83: Infraestructura | U83: 518586.1043 | W83: 405145.394
J84: Costo Construcción ES | U84: =SUM(U76:V83) -> 4908934.554 | W84: =SUM(W76:X83) -> 3835105.121
J85: Obras complementarias (cerco perimetrico,veredas, estacionamiento, entre otros) | S85: Infraestructura | U85: =750000*1.25 -> 937500 | W85: =585937.5*1.25 -> 732421.875
J86: Plan de contingencia (habilitación, acondicionamiento, construcción) | S86: Infraestructura | U86: =865000*1.1 -> 951500 | W86: =675781.25*1.1 -> 743359.375 | Y86: 2025-09-15 | AA86: 2025-10-15 | AC86: 2026-01-15 | AE86: 2026-04-15
C87: B. Equipamiento adecuado para brindar los servicios de Salud | J87: Adquisición de equipos complementarios | S87: Equipamiento | U87: 350000 | W87: 273437.5 | Y87: 2025-09-15 | AA87: 2026-02-15 | AC87: 2027-03-20 | AE87: 2028-01-20
J88: Adquisición de equipos electromecánicos | S88: Equipamiento | U88: 150000 | W88: 117187.5
J89: Adquisición de instrumental | S89: Equipamiento | U89: 25000 | W89: 19531.25
J90: Adquisición de mobiliario clínico | S90: Mobiliario | U90: 100000 | W90: 78125
J91: Adquisición de mobiliario administrativo | S91: Mobiliario | U91: 123000 | W91: 96093.75
J92: Adquisición de equipos informáticos | S92: Equipamiento | U92: 50000 | W92: 39062.5
J93: Adquisición de vehículos | S93: Equipamiento | U93: 500000 | W93: 390625
J94: Adquisicion de equipos biomédicos | S94: Equipamiento
J95: Costo Equipamiento | U95: =SUM(U87:V93) -> 1298000 | W95: =SUM(W87:X93) -> 1014062.5
C96: C. Adecuado mantenimiento preventivo y correctivo de infraestructura y equipamiento | J96: Elaboración del Plan mantenimiento de infraestructura y equipamiento | S96: Intangible | U96: 189568 | W96: 160650.8475 | Y96: 2027-04-15 | AA96: 2027-06-15 | AC96: 2027-08-15 | AE96: 2027-10-15
C97: D. Adecuada promoción de la cartera de servicios a la comunidad. | J97: Campañas de difusión sobre la cartera de servicios que brinda el Establecimiento de salud | S97: Intangible | U97: 142569 | W97: 120821.1864 | Y97: 2027-04-15 | AA97: 2027-06-15 | AC97: 2027-06-15 | AE97: 2027-09-15
J98: Costo Sub Total 1 | U98: =+U84+U85+U86+U95+U96+U97 -> 8428071.554 | W98: =+W84+W85+W86+W95+W96+W97 -> 6606420.904
J99: Expediente Técnico | S99: Exp. Tecnico | U99: 459016.6807 | W99: 388997.187 | AC99: 2025-09-15 | AE99: 2026-03-15
J100: Expediente Técnico de Plan de Contingencia | S100: Exp. Tecnico | U100: 116500 | W100: 98728.81356 | AC100: 2025-09-15 | AE100: 2025-10-15
J101: Supervisión | S101: Informe | U101: 723770.8509 | W101: 613365.1278 | AC101: 2026-08-02 | AE101: 30/02/2028
J102: Supervisión del Plan de Contingencia | S102: Informe | U102: 166000 | W102: 140677.9661 | AC102: 2026-01-15 | AE102: 2026-04-15
J103: Liquidación | S103: Informe | U103: 85000 | W103: 72033.89831 | AC103: 2028-02-02 | AE103: 2028-03-30
J104: Costo Total | U104: =+U98+U99+U100+U101+U102+U103 -> 9978359.086 | W104: =+W98+W99+W100+W101+W102+W103 -> 7920223.897
J105: =+(U99/(U84+U85+U95)) -> 0.06424814689 | K105: =+IF(J105>=4%,"Adjuntar el detalle del Expediente Técnico-Anexo 2.5 del item E4.3 de la FTE","") -> Adjuntar el detalle del Expediente Técnico-Anexo 2.5 del item E4.3 de la FTE
J106: Control Concurrente | U106: =+U104*0.6% -> 59870.15451
J107: 1.Las inversiones a las cuales les aplica el registro del CCC, deben incorporar el CCC hasta por el 0.6% o el porcentaje establecido por la Ley 31358 y sus modificatorios, del costo total de inversión viable/aprobado, en el Formato N.° 7-A. 2. Liquidación dependera de la modalidad de ejecución que indique la UF en la FTE.
C109: E2.4.4.3 Cronograma de Ejecución (Alternativa 2)
C110: Fecha prevista de inicio de ejecución: | I110: 2025-01-02 | L110: (día, mes y año)
C111: Tipo de periodo | I111: meses | L111: (meses / trimestres)
C112: Número de periodos | I112: 12 | L112: (valor)
C114: Cronograma de Ejecución Física (Alternativa 2)
C115: ÍTEM | J115: U.M. Representativa | L115: PERIODOS | X115: TOTAL META
L116: 1 | M116: 2 | N116: 3 | O116: 4 | P116: 5 | Q116: 6 | R116: 7 | S116: 8 | T116: 9 | U116: 10 | V116: 11 | W116: 12
C117: A. Infraestructura | J117: m2 | Q117: 150 | R117: 150.18 | S117: 164 | T117: 164 | U117: 164 | V117: 192 | X117: =SUM(L117:W117) -> 984.18
C118: A.1 Plan de Contingencia | J118: m2 | M118: 300 | N118: 450 | X118: 750
C119: B.1 Equipamiento | J119: Nro Equipamiento | T119: 96 | U119: 96 | V119: 129 | X119: 321
C120: B.2 Mobiliario | J120: Nro Mobiliairo | T120: 69 | U120: 69 | V120: 92 | X120: 230
C121: C. Elaboración del Plan mantenimiento de infraestructura y equipamiento | J121: Nro Documento | U121: 0.5 | V121: 0.5 | X121: 1
C122: D. Campañas de difusión sobre la cartera de servicios que brinda el Establecimiento de salud | J122: Nro Informe | U122: 0.5 | V122: 0.5 | X122: 1
C123: Expediente técnico | J123: Nro Documento | M123: 0.5 | N123: 0.5 | X123: 1
C124: Expediente Técnico de Plan de Contingencia | J124: Nro Documento | L124: 1 | X124: 1
C125: Supervisión | J125: Nro Informe | Q125: 1 | R125: 1 | S125: 1 | T125: 1 | U125: 1 | V125: 1 | X125: 6
C126: Supervisión del Plan de Contingencia | J126: Nro Informe | M126: 1 | N126: 1 | X126: 2
C127: Liquidación | J127: Nro Informe | W127: 1 | X127: 1
C129: Cronograma de Ejecución Financiera (Alternativa 2):
C130: ÍTEM | I130: Costo Estimado de Inversión a Precios de Mercado (Soles) | AC130: INVERSIÓN TOTAL Precio Mercado
I131: 1 | J131: 2 | L131: 3 | M131: 4 | N131: 5 | P131: 6 | R131: 7 | T131: 8 | V131: 9 | X131: 10 | Z131: 11 | AB131: 12
C132: A. Infraestructura | P132: =(U84+U85)*0.1 -> 584643.4554 | R132: =(U84+U85)*0.1 -> 584643.4554 | T132: =(U84+U85)*0.2 -> 1169286.911 | V132: =(U84+U85)*0.2 -> 1169286.911 | X132: =(U84+U85)*0.2 -> 1169286.911 | Z132: =(U84+U85)*0.2 -> 1169286.911 | AC132: =SUM(I132:AB132) -> 5846434.554 | AE132: =+(U84+U85)-AC132 -> 0
C133: Plan de Contingencia | J133: =+U86*0.4 -> 380600 | L133: =+U86*0.6 -> 570900 | AC133: 951500 | AE133: =+U86-AC133 -> 0
C134: B.1 Equipamiento | V134: =+(U87+U88+U89+U90+U93)*0.3 -> 337500 | X134: =+(U87+U88+U89+U90+U93)*0.3 -> 337500 | Z134: =+(U87+U88+U89+U90+U93)*0.4 -> 450000 | AC134: 1125000 | AE134: =+(U87+U88+U89+U90+U93)-AC134 -> 0
C135: B.2 Mobiliairio | V135: =+(U91+U92)*0.3 -> 51900 | X135: =+(U91+U92)*0.3 -> 51900 | Z135: =+(U91+U92)*0.4 -> 69200 | AC135: 173000 | AE135: =+(U91+U92)-AC135 -> 0
C136: C. Elaboración del Plan mantenimiento de infraestructura y equipamiento | X136: =+U96*0.4 -> 75827.2 | Z136: =+U96*0.6 -> 113740.8 | AC136: 189568 | AE136: =+U96-AC136 -> 0
C137: D. Campañas de difusión sobre la cartera de servicios que brinda el Establecimiento de salud | X137: =+U97*0.4 -> 57027.6 | Z137: =+U97*0.6 -> 85541.4 | AC137: 142569 | AE137: =+U97-AC137 -> 0
C138: Expediente técnico | J138: =+U99*0.4 -> 183606.6723 | L138: =+U99*0.6 -> 275410.0084 | AC138: 459016.6807 | AE138: =+U99-AC138 -> 0
C139: Expediente Técnico de Plan de Contingencia | I139: =+U100 -> 116500 | AC139: 116500 | AE139: =+U100-AC139 -> 0
C140: Supervisión | P140: =+U101*0.1 -> 72377.08509 | R140: =+U101*0.1 -> 72377.08509 | T140: =+U101*0.2 -> 144754.1702 | V140: =+U101*0.2 -> 144754.1702 | X140: =+U101*0.2 -> 144754.1702 | Z140: =+U101*0.2 -> 144754.1702 | AC140: 723770.8509 | AE140: =+U101-AC140 -> 0
C141: Supervisión del Plan de Contingencia | J141: =+U102*0.4 -> 66400 | L141: =+U102*0.6 -> 99600 | AC141: 166000 | AE141: =+U102-AC141 -> 0
C142: Liquidación | AB142: 85000 | AC142: 85000 | AE142: =+U103-AC142 -> 0
C143: COSTO DE INVERSIÓN PRECIO MERCADO | I143: =SUM(I132:I142) -> 116500 | J143: =SUM(J132:K142) -> 630606.6723 | L143: =SUM(L132:L142) -> 945910.0084 | M143: =SUM(M132:M142) -> 0 | N143: =SUM(N132:O142) -> 0 | P143: =SUM(P132:Q142) -> 657020.5405 | R143: =SUM(R132:S142) -> 657020.5405 | T143: =SUM(T132:U142) -> 1314041.081 | V143: =SUM(V132:W142) -> 1703441.081 | X143: =SUM(X132:Y142) -> 1836295.881 | Z143: =SUM(Z132:AA142) -> 2032523.281 | AB143: =SUM(AB132:AB142) -> 85000 | AC143: 9978359.086 | AE143: =+AC143-U104 -> 0
I144: =+I143/AC143 -> 0.01167526634 | J144: =+J143/AC143 -> 0.06319743225 | L144: =+L143/AC143 -> 0.09479614837 | M144: =+M143/AC143 -> 0 | N144: =+N143/AC143 -> 0 | P144: =+P143/AC143 -> 0.06584454767 | R144: =+R143/$AC$143 -> 0.06584454767 | T144: =+T143/$AC$143 -> 0.1316890953 | V144: =+V143/$AC$143 -> 0.1707135478 | X144: =+X143/$AC$143 -> 0.1840278412 | Z144: =+Z143/$AC$143 -> 0.2036931387 | AB144: =+AB143/$AC$143 -> 0.008518434671 | AC144: 1
C145: COSTO DE INVERSIÓN PRECIO SOCIAL | I145: =+I144*$W$104 -> 92470.7235 | J145: =+J144*W104 -> 500537.8131 | L145: =+L144*W104 -> 750806.7197 | M145: =+M144*$W$104 -> 0 | N145: =+N144*$W$104 -> 0 | P145: =+P144*$W$104 -> 521503.56 | R145: =+R144*$W$104 -> 521503.56 | T145: =+T144*$W$104 -> 1043007.12 | V145: =+V144*$W$104 -> 1352089.521 | X145: =+X144*$W$104 -> 1457541.705 | Z145: =+Z144*$W$104 -> 1613295.265 | AB145: =+AB144*$W$104 -> 67467.90985 | AC145: =+SUM(I145:AB145) -> 7920223.897 | AE145: =+AC145-W104 -> 0
C146: * Los costos de estos componentes incluyen gastos generales, utilidad e IGV.
C147: ** Incluye IGV.
C149: E2.4.4.4 Estimación de los Costos de inversión en la fase de Funcionamiento (Alternativa 2)
C150: COMPONENTE | I150: Año 1 | K150: Año 2 | M150: Año 3 | O150: Año 4 | Q150: Año 5 | S150: Año 6 | U150: Año 7 | W150: Año 8 | Y150: Año 9 | AA150: Año 10 | AC150: Año 11 | AD150: Año 12 | AF150: Año 13
C151: EQUIPAMIENTO | Y151: =+SUM(U87:W93)*0.2 -> 462412.5 | AD151: =+SUM(U87:W93)*0.3 -> 693618.75
C152: Total a precios de mercado | U152: =+U151 -> 0 | W152: =+W151 -> 0 | Y152: =+Y151 -> 462412.5 | AA152: =+AA151 -> 0 | AC152: =+AC151 -> 0 | AD152: =+AD151 -> 693618.75
C153: Total a precios sociales | U153: =+U152*0.847 -> 0 | W153: =+W152*0.847 -> 0 | Y153: =+Y152*0.847 -> 391663.3875 | AA153: =+AA152*0.847 -> 0 | AC153: =+AC152*0.847 -> 0 | AD153: =+AD152*0.847 -> 587495.0812
C155: E2.4.4.5 Estimación de los costos de Operación y Mantenimiento incrementales (Alternativa 2)
C157: Costos de operación y mantenimiento sin proyecto
C158: Costos de operación | I158: Año 1 | K158: Año 2 | M158: Año 3 | O158: Año 4 | Q158: Año 5 | S158: Año 6 | U158: Año 7 | W158: Año 8 | Y158: Año 9 | AA158: Año 10 | AC158: Año 11 | AD158: Año 12 | AF158: Año 13
C159: Remuneraciones | I159: =+I174/2 -> 1238478 | K159: =+I159 -> 1238478 | M159: =+K159 -> 1238478 | O159: =+M159 -> 1238478 | Q159: =+O159 -> 1238478 | S159: =+Q159 -> 1238478 | U159: =+S159 -> 1238478 | W159: =+U159 -> 1238478 | Y159: =+W159 -> 1238478 | AA159: =+Y159 -> 1238478 | AC159: =+AA159 -> 1238478 | AD159: =+AC159 -> 1238478 | AF159: =+AD159 -> 1238478
C160: Servicios (luz, agua, etc.) | I160: =+I159*0.1 -> 123847.8 | K160: =+I160 -> 123847.8 | M160: 123847.8 | O160: 123847.8 | Q160: 123847.8 | S160: 123847.8 | U160: 123847.8 | W160: 123847.8 | Y160: 123847.8 | AA160: 123847.8 | AC160: =+AA160 -> 123847.8 | AD160: =+AC160 -> 123847.8 | AF160: 123847.8
C161: Insumos | I161: =+I159*0.15 -> 185771.7 | K161: =+I161 -> 185771.7 | M161: 185771.7 | O161: 185771.7 | Q161: 185771.7 | S161: 185771.7 | U161: 185771.7 | W161: 185771.7 | Y161: 185771.7 | AA161: 185771.7 | AC161: =+AA161 -> 185771.7 | AD161: =+AC161 -> 185771.7 | AF161: 185771.7
C162: Otros | I162: =+I159*0.1 -> 123847.8 | K162: 123847.8 | M162: 123847.8 | O162: 123847.8 | Q162: 123847.8 | S162: 123847.8 | U162: 123847.8 | W162: 123847.8 | Y162: 123847.8 | AA162: 123847.8 | AC162: =+AA162 -> 123847.8 | AD162: =+AC162 -> 123847.8 | AF162: 123847.8
C163: Total a precios de mercado | I163: =SUM(I159:J162) -> 1671945.3 | K163: =SUM(K159:L162) -> 1671945.3 | M163: =SUM(M159:N162) -> 1671945.3 | O163: =SUM(O159:P162) -> 1671945.3 | Q163: =SUM(Q159:R162) -> 1671945.3 | S163: =SUM(S159:T162) -> 1671945.3 | U163: =SUM(U159:V162) -> 1671945.3 | W163: 1671945.3 | Y163: =SUM(Y159:Z162) -> 1671945.3 | AA163: 1671945.3 | AC163: =SUM(AC159:AC162) -> 1671945.3 | AD163: 1671945.3 | AF163: =SUM(AF159:AG162) -> 1671945.3
C164: Total a precios sociales | I164: =I159*0.926+SUM(I160:J162)*0.847 -> 1513977.431 | K164: =K159*0.926+SUM(K160:L162)*0.847 -> 1513977.431 | M164: =M159*0.926+SUM(M160:N162)*0.847 -> 1513977.431 | O164: =O159*0.926+SUM(O160:P162)*0.847 -> 1513977.431 | Q164: =Q159*0.926+SUM(Q160:R162)*0.847 -> 1513977.431 | S164: =S159*0.926+SUM(S160:T162)*0.847 -> 1513977.431 | U164: =U159*0.926+SUM(U160:V162)*0.847 -> 1513977.431 | W164: =W159*0.926+SUM(W160:X162)*0.847 -> 1513977.431 | Y164: =Y159*0.926+SUM(Y160:Z162)*0.847 -> 1513977.431 | AA164: =AA159*0.926+SUM(AA160:AB162)*0.847 -> 1513977.431 | AC164: =AC159*0.926+SUM(AC160:AC162)*0.847 -> 1513977.431 | AD164: =AD159*0.926+SUM(AD160:AE162)*0.847 -> 1513977.431 | AF164: =AF159*0.926+SUM(AF160:AG162)*0.847 -> 1513977.431
C166: Costos de mantenimiento | I166: 1 | K166: 2 | M166: 3 | O166: 4 | Q166: 5 | S166: 6 | U166: 7 | W166: 8 | Y166: 9 | AA166: 10 | AC166: 11 | AD166: 12 | AF166: 13
C167: Infraestructura
C168: Equipamiento
C169: Total a precios de mercado | I169: =I167+I168 -> 0 | K169: =K167+K168 -> 0 | M169: =M167+M168 -> 0 | O169: =O167+O168 -> 0 | Q169: =Q167+Q168 -> 0 | S169: =S167+S168 -> 0 | U169: =U167+U168 -> 0 | W169: 0 | Y169: 0 | AA169: 0 | AC169: 0 | AD169: 0 | AF169: =AF167+AF168 -> 0
C170: Total a precios sociales | I170: =I169*0.847 -> 0 | K170: =K169*0.847 -> 0 | M170: =M169*0.847 -> 0 | O170: =O169*0.847 -> 0 | Q170: =Q169*0.847 -> 0 | S170: =S169*0.847 -> 0 | U170: =U169*0.847 -> 0 | W170: 0 | Y170: 0 | AA170: 0 | AC170: 0 | AD170: 0 | AF170: =AF169*0.847 -> 0
C172: Costos de operación y mantenimiento con proyecto (Alternativa 2)
C173: C. de operación con proyecto | I173: 1 | K173: 2 | M173: 3 | O173: 4 | Q173: 5 | S173: 6 | U173: 7 | W173: 8 | Y173: 9 | AA173: 10 | AC173: 11 | AD173: 12 | AF173: 13
C174: Remuneraciones | I174: ='Sección J'!C125 -> 2476956 | K174: ='Sección J'!D125 -> 3072666 | M174: ='Sección J'!E125 -> 3401721 | O174: ='Sección J'!F125 -> 3664434 | Q174: ='Sección J'!G125 -> 3764376 | S174: ='Sección J'!H125 -> 3831147 | U174: ='Sección J'!I125 -> 3897918 | W174: ='Sección J'!J125 -> 3897918 | Y174: ='Sección J'!K125 -> 3897918 | AA174: ='Sección J'!L125 -> 3897918 | AC174: ='Sección J'!M125 -> 3964689 | AD174: ='Sección J'!N125 -> 3964689 | AF174: ='Sección J'!O125 -> 4193802
C175: Servicios (luz, agua, etc.) | I175: =I174*0.13 -> 322004.28 | K175: =K174*0.13 -> 399446.58 | M175: =M174*0.13 -> 442223.73 | O175: =O174*0.13 -> 476376.42 | Q175: =Q174*0.13 -> 489368.88 | S175: =S174*0.13 -> 498049.11 | U175: =U174*0.13 -> 506729.34 | W175: =W174*0.13 -> 506729.34 | Y175: =Y174*0.13 -> 506729.34 | AA175: =AA174*0.13 -> 506729.34 | AC175: =AC174*0.13 -> 515409.57 | AD175: 515409.57 | AF175: =AF174*0.13 -> 545194.26
C176: Insumos | I176: =I174*0.18 -> 445852.08 | K176: =K174*0.18 -> 553079.88 | M176: =M174*0.18 -> 612309.78 | O176: =O174*0.18 -> 659598.12 | Q176: =Q174*0.18 -> 677587.68 | S176: =S174*0.18 -> 689606.46 | U176: =U174*0.18 -> 701625.24 | W176: =W174*0.18 -> 701625.24 | Y176: =Y174*0.18 -> 701625.24 | AA176: =AA174*0.18 -> 701625.24 | AC176: =AC174*0.18 -> 713644.02 | AD176: 713644.02 | AF176: =AF174*0.18 -> 754884.36
C177: Otros | I177: =SUM(I174:J176)*0.02 -> 64896.2472 | K177: =SUM(K174:L176)*0.02 -> 80503.8492 | M177: =SUM(M174:N176)*0.02 -> 89125.0902 | O177: =SUM(O174:P176)*0.02 -> 96008.1708 | Q177: =SUM(Q174:R176)*0.02 -> 98626.6512 | S177: =SUM(S174:T176)*0.02 -> 100376.0514 | U177: =SUM(U174:V176)*0.02 -> 102125.4516 | W177: =SUM(W174:X176)*0.02 -> 102125.4516 | Y177: =SUM(Y174:Z176)*0.02 -> 102125.4516 | AA177: =SUM(AA174:AB176)*0.02 -> 102125.4516 | AC177: =SUM(AC174:AC176)*0.02 -> 103874.8518 | AD177: =SUM(AD174:AE176)*0.02 -> 103874.8518 | AF177: =SUM(AF174:AG176)*0.02 -> 109877.6124
C178: Total a precios de mercado | I178: =SUM(I174:J177) -> 3309708.607 | K178: =SUM(K174:L177) -> 4105696.309 | M178: =SUM(M174:N177) -> 4545379.6 | O178: =SUM(O174:P177) -> 4896416.711 | Q178: =SUM(Q174:R177) -> 5029959.211 | S178: =SUM(S174:T177) -> 5119178.621 | U178: =SUM(U174:V177) -> 5208398.032 | W178: =SUM(W174:X177) -> 5208398.032 | Y178: =SUM(Y174:Z177) -> 5208398.032 | AA178: =SUM(AA174:AB177) -> 5208398.032 | AC178: =SUM(AC174:AC177) -> 5297617.442 | AD178: =SUM(AD174:AE177) -> 5297617.442 | AF178: =SUM(AF174:AG177) -> 5603758.232
C179: Total a precios sociales | I179: =I174*0.926+SUM(I175:J177)*0.847 -> 2999002.714 | K179: =K174*0.926+SUM(K175:L177)*0.847 -> 3720265.388 | M179: =M174*0.926+SUM(M175:N177)*0.847 -> 4118672.48 | O179: =O174*0.926+SUM(O175:P177)*0.847 -> 4436755.24 | Q179: =Q174*0.926+SUM(Q175:R177)*0.847 -> 4557761.156 | S179: =S174*0.926+SUM(S175:T177)*0.847 -> 4638604.905 | U179: =U174*0.926+SUM(U175:V177)*0.847 -> 4719448.655 | W179: 4719448.655 | Y179: =Y174*0.926+SUM(Y175:Z177)*0.847 -> 4719448.655 | AA179: 4719448.655 | AC179: =AC174*0.926+SUM(AC175:AC177)*0.847 -> 4800292.404 | AD179: 4800292.404 | AF179: =AF174*0.926+SUM(AF175:AG177)*0.847 -> 5077693.581
C181: Costos de mantenimiento | I181: 1 | K181: 2 | M181: 3 | O181: 4 | Q181: 5 | S181: 6 | U181: 7 | W181: 8 | Y181: 9 | AA181: 10 | AC181: 11 | AD181: 12 | AF181: 13
C182: M. de infraestructura | O182: =AC143*0.008 -> 79826.87269 | Q182: =+O182 -> 79826.87269 | S182: =+Q182 -> 79826.87269 | U182: =+S182 -> 79826.87269 | W182: =+U182 -> 79826.87269 | Y182: =+W182 -> 79826.87269 | AA182: =+Y182 -> 79826.87269 | AC182: =+AA182 -> 79826.87269 | AD182: =+AC182 -> 79826.87269 | AF182: =+AD182 -> 79826.87269
C183: M. de equipamiento | O183: =AC143*0.01 -> 99783.59086 | Q183: =+O183 -> 99783.59086 | S183: =+Q183 -> 99783.59086 | U183: =+S183 -> 99783.59086 | W183: =+U183 -> 99783.59086 | Y183: =+W183 -> 99783.59086 | AA183: =+Y183 -> 99783.59086 | AC183: =+AA183 -> 99783.59086 | AD183: =+AC183 -> 99783.59086 | AF183: =+AD183 -> 99783.59086
C184: Total a precios de mercado | I184: =I182+I183 -> 0 | K184: =K182+K183 -> 0 | M184: =M182+M183 -> 0 | O184: =O182+O183 -> 179610.4635 | Q184: =Q182+Q183 -> 179610.4635 | S184: =S182+S183 -> 179610.4635 | U184: =U182+U183 -> 179610.4635 | W184: =W182+W183 -> 179610.4635 | Y184: =Y182+Y183 -> 179610.4635 | AA184: =AA182+AA183 -> 179610.4635 | AC184: =AC182+AC183 -> 179610.4635 | AD184: =AD182+AD183 -> 179610.4635 | AF184: =AF182+AF183 -> 179610.4635
C185: Total a precios sociales | I185: =I184*0.847 -> 0 | K185: =K184*0.847 -> 0 | M185: =M184*0.847 -> 0 | O185: =O184*0.847 -> 152130.0626 | Q185: =Q184*0.847 -> 152130.0626 | S185: =S184*0.847 -> 152130.0626 | U185: =U184*0.847 -> 152130.0626 | W185: 152130.0626 | Y185: 152130.0626 | AA185: 152130.0626 | AC185: 152130.0626 | AD185: 152130.0626 | AF185: =AF184*0.847 -> 152130.0626
C187: Costos Incrementales (Alternativa 2)
C188: COSTOS INCREMENTALES | I188: 1 | K188: 2 | M188: 3 | O188: 4 | Q188: 5 | S188: 6 | U188: 7 | W188: 8 | Y188: 9 | AA188: 10 | AC188: 11 | AD188: 12 | AF188: 13
C189: OPERACIÓN | I189: =I178-I163 -> 1637763.307 | K189: =K178-K163 -> 2433751.009 | M189: =M178-M163 -> 2873434.3 | O189: =O178-O163 -> 3224471.411 | Q189: =Q178-Q163 -> 3358013.911 | S189: =S178-S163 -> 3447233.321 | U189: =U178-U163 -> 3536452.732 | W189: =W178-W163 -> 3536452.732 | Y189: =Y178-Y163 -> 3536452.732 | AA189: =AA178-AA163 -> 3536452.732 | AC189: =AC178-AC163 -> 3625672.142 | AD189: =AD178-AD163 -> 3625672.142 | AF189: =AF178-AF163 -> 3931812.932
C190: MANTENIMIENTO | I190: =I184-I169 -> 0 | K190: =K184-K169 -> 0 | M190: =M184-M169 -> 0 | O190: =O184-O169 -> 179610.4635 | Q190: =Q184-Q169 -> 179610.4635 | S190: =S184-S169 -> 179610.4635 | U190: =U184-U169 -> 179610.4635 | W190: =W184-W169 -> 179610.4635 | Y190: =Y184-Y169 -> 179610.4635 | AA190: =AA184-AA169 -> 179610.4635 | AC190: =AC184-AC169 -> 179610.4635 | AD190: =AD184-AD169 -> 179610.4635 | AF190: =AF184-AF169 -> 179610.4635
C191: Total a precios de mercado | I191: =SUM(I189:J190) -> 1637763.307 | K191: =SUM(K189:L190) -> 2433751.009 | M191: =SUM(M189:N190) -> 2873434.3 | O191: =SUM(O189:P190) -> 3404081.874 | Q191: =SUM(Q189:R190) -> 3537624.375 | S191: =SUM(S189:T190) -> 3626843.785 | U191: =SUM(U189:V190) -> 3716063.195 | W191: =SUM(W189:X190) -> 3716063.195 | Y191: =SUM(Y189:Z190) -> 3716063.195 | AA191: =SUM(AA189:AB190) -> 3716063.195 | AC191: =SUM(AC189:AC190) -> 3805282.605 | AD191: =SUM(AD189:AE190) -> 3805282.605 | AF191: =SUM(AF189:AG190) -> 4111423.396
C192: Total a precios de Social | I192: =+(I185+I179)-(I170+I164) -> 1485025.283 | K192: =+(K185+K179)-(K170+K164) -> 2206287.957 | M192: =+(M185+M179)-(M170+M164) -> 2604695.049 | O192: =+(O185+O179)-(O170+O164) -> 3074907.872 | Q192: =+(Q185+Q179)-(Q170+Q164) -> 3195913.787 | S192: =+(S185+S179)-(S170+S164) -> 3276757.537 | U192: =+(U185+U179)-(U170+U164) -> 3357601.286 | W192: =+(W185+W179)-(W170+W164) -> 3357601.286 | Y192: =+(Y185+Y179)-(Y170+Y164) -> 3357601.286 | AA192: =+(AA185+AA179)-(AA170+AA164) -> 3357601.286 | AC192: =+(AC185+AC179)-(AC170+AC164) -> 3438445.036 | AD192: =+(AD185+AD179)-(AD170+AD164) -> 3438445.036 | AF192: =+(AF185+AF179)-(AF170+AF164) -> 3715846.212
C194: Costos Total Precio Social (Alternativa 2)
C195: COSTO TOTAL INCREMENTALES PRECIO SOCIAL | I195: 1 | K195: 2 | M195: 3 | O195: 4 | Q195: 5 | S195: 6 | U195: 7 | W195: 8 | Y195: 9 | AA195: 10 | AC195: 11 | AD195: 12 | AF195: 13
C196: Costo de Inversión precio social | I196: =+SUM(I145:M145) -> 1343815.256 | K196: =+SUM(N145:U145) -> 2086014.24 | M196: =+SUM(V145:AB145) -> 4490394.401
C197: Costo de reinversión a precio social | K197: =+K153 -> 0 | M197: =+M153 -> 0 | O197: =+O153 -> 0 | Q197: =+Q153 -> 0 | S197: =+S153 -> 0 | U197: =+U153 -> 0 | W197: =+W153 -> 0 | Y197: =+Y153 -> 391663.3875 | AA197: =+AA153 -> 0 | AC197: =+AC153 -> 0 | AD197: =+AD153 -> 587495.0812 | AF197: =+AF153 -> 0
C198: Costo de Operación y Mantenimiento precios sociales | O198: =+O192 -> 3074907.872 | Q198: =+Q192 -> 3195913.787 | S198: =+S192 -> 3276757.537 | U198: =+U192 -> 3357601.286 | W198: =+W192 -> 3357601.286 | Y198: =+Y192 -> 3357601.286 | AA198: =+AA192 -> 3357601.286 | AC198: =+AC192 -> 3438445.036 | AD198: =+AD192 -> 3438445.036 | AF198: =+AF192 -> 3715846.212
C199: Costo Total Precio de Social | I199: =SUM(I196:J198) -> 1343815.256 | K199: =SUM(K196:L198) -> 2086014.24 | M199: =+SUM(M196:N198) -> 4490394.401 | O199: =+SUM(O196:P198) -> 3074907.872 | Q199: =+SUM(Q196:R198) -> 3195913.787 | S199: =+SUM(S196:T198) -> 3276757.537 | U199: =+SUM(U196:V198) -> 3357601.286 | W199: =+SUM(W196:X198) -> 3357601.286 | Y199: =+SUM(Y196:Z198) -> 3749264.674 | AA199: =+SUM(AA196:AB198) -> 3357601.286 | AC199: =+SUM(AC196:AC198) -> 3438445.036 | AD199: =+SUM(AD196:AE198) -> 4025940.117 | AF199: =+SUM(AF196:AG198) -> 3715846.212
M200: =+SUM(I196:N196)-W104 -> 0 | O200: =+IF(M200<>0,"error en el dato debe ser igual a la celda AE-AF 610","") -> 
C202: E3 EVALUACIÓN (Alternativa 2)
C204: E3.1 SOSTENIBILIDAD (Alternativa 2)
C206: E3.1.1 Unidad Ejecutora Presupuestal - Responsable de la Operación y Mantenimiento del PI: | P206: DIRESA AYACUCHO
C208: E3.1.2 Documento de compromiso de Operación y Mantenimiento - incluye disponibilidad de Recursos Humanos para la operación del ES: | T208: OFICIO N° 520- 2024 DIRESA AYACUCHO
C210: E3.1.3. Índice de cobertura de los costos de operación y mantenimiento incrementales: | S210: 0.1 | W210: =IF(S210=100%,"SOSTENIBILIDAD FINANCIERA DEL PROYECTO DE INVERSIÓN ASEGURADA",IF(S210<=40%,"EL PROYECTO DE INVERSIÓN NO ES SOSTENIBLE FINANCIERAMENTE","LA ENTIDAD GESTIONARÁ LA ASIGNACIÓN DE RECURSOS PARA CUBRIR LOS COSTOS DE O y M")) -> EL PROYECTO DE INVERSIÓN NO ES SOSTENIBLE FINANCIERAMENTE
C212: E3.2 MITIGACIÓN DE RIESGOS (Alternativa 2)
C213: Tipo de riesgo | I213: Descripción del riesgo | U213: Impacto (bajo, medio, alto) | X213: Medidas consideradas en el proyecto para mitigar el riesgo | AB213: Costo
C214: Cambio Climático | I214: proyecto se encuentre expuesta a fenómenos de erosión | U214: Alto | X214: Siembra de arboles | AB214: 15200
C215: Cambio Climático | I215: proyecto se encuentre expuesta a fenómenos de erosión | U215: Alto | X215: Muro de contención | AB215: 36200
AB216: 36200
AB217: 36200
AB218: 36200
C220: E3.3 CRITERIOS DE DECISIÓN DE INVERSIÓN (Alternativa 2)
C221: Tipo | I221: Alternativa 2
C222: Costo de Inversión a precios sociales | I222: =+W104 -> 7920223.897
C223: Tasa Social de Descuento | I223: 0.08
C224: VACST | I224: =NPV(8%,K199:AG199)+I199 -> 26720428.31
C225: IE (ATENCIONES) | I225: =SUM('FTE Sección B-F'!M235:V247)+SUM('FTE Sección B-F'!M249:V251)+SUM('FTE Sección B-F'!M253:V253)+SUM('FTE Sección B-F'!M255:V255)+SUM('FTE Sección B-F'!M257:V257)+SUM('FTE Sección B-F'!M259:V259)+SUM('FTE Sección B-F'!M261:V261) -> 920947.2206
C226: CE | I226: =+I224/I225 -> 29.01407129
C227: Beneficiarios | I227: =+'FTE Sección B-F'!T186 -> 63284.09016
C228: Costo por Beneficirio | I228: =+I224/I227 -> 422.2297934

Sheet Sección G
A2: Sección G: ANALISIS DE SERVICIOS DE SALUD
A4: G1. DETERMINACIÓN DE LA RIS, ZONA SANITARIA Y SECTOR SANITARIO DEL AMBITO DE INFLUENCIA DEL PROYECTO DE INVERSIÓN
B5: G1.1. Determinación de la RIS, Sector Sanitario= Área de Influencia
B6: Descripción | D6: Situación | E6: Nombre
B7: RIS | D7: Conformada | E7: Santa Anita-El Agustino | F7: =CONCATENATE(E7,D9,"- ",E19) -> Santa Anita-El AgustinoES de Primavera- CENTRO DE SALUD MENTAL COMUNITARIO EL AGUSTINO
B8: Documento conformación de la RIS | F8: UBIGEO | H8: DEPARTAMENTO | J8: PROVINCIA | L8: DISTRITO
B9: ZONA SANITARIA | D9: ES de Primavera | F9: 150111 | H9: =+IFERROR(VLOOKUP(F9,UBIGEO!$A$2:$D$2090,2,FALSE),"") -> LIMA | J9: =IFERROR(VLOOKUP(F9,UBIGEO!$A$2:$D$2090,3,FALSE),"") -> LIMA | L9: =IFERROR(VLOOKUP(F9,UBIGEO!$A$2:$D$2090,4,FALSE),"") -> EL AGUSTINO
B10: SECTOR SANITARIO | D10: 1, 2, 3, 4, 5, 6, 7, 10 | F10: 150111 | H10: =+IFERROR(VLOOKUP(F10,UBIGEO!$A$2:$D$2090,2,FALSE),"") -> LIMA | J10: =IFERROR(VLOOKUP(F10,UBIGEO!$A$2:$D$2090,3,FALSE),"") -> LIMA | L10: =IFERROR(VLOOKUP(F10,UBIGEO!$A$2:$D$2090,4,FALSE),"") -> EL AGUSTINO
B11: https://geominsa.minsa.gob.pe/geominsaportal/apps/webappviewer/index.html?id=7358ce1c142846e2bc5df45964303bcd | F11: 150111 | H11: =+IFERROR(VLOOKUP(F11,UBIGEO!$A$2:$D$2090,2,FALSE),"") -> LIMA | J11: =IFERROR(VLOOKUP(F11,UBIGEO!$A$2:$D$2090,3,FALSE),"") -> LIMA | L11: =IFERROR(VLOOKUP(F11,UBIGEO!$A$2:$D$2090,4,FALSE),"") -> EL AGUSTINO
H12: =+IFERROR(VLOOKUP(F12,UBIGEO!$A$2:$D$2090,2,FALSE),"") ->  | J12: =IFERROR(VLOOKUP(F12,UBIGEO!$A$2:$D$2090,3,FALSE),"") ->  | L12: =IFERROR(VLOOKUP(F12,UBIGEO!$A$2:$D$2090,4,FALSE),"") -> 
H13: =+IFERROR(VLOOKUP(F13,UBIGEO!$A$2:$D$2090,2,FALSE),"") ->  | J13: =IFERROR(VLOOKUP(F13,UBIGEO!$A$2:$D$2090,3,FALSE),"") ->  | L13: =IFERROR(VLOOKUP(F13,UBIGEO!$A$2:$D$2090,4,FALSE),"") -> 
H14: =+IFERROR(VLOOKUP(F14,UBIGEO!$A$2:$D$2090,2,FALSE),"") ->  | J14: =IFERROR(VLOOKUP(F14,UBIGEO!$A$2:$D$2090,3,FALSE),"") ->  | L14: =IFERROR(VLOOKUP(F14,UBIGEO!$A$2:$D$2090,4,FALSE),"") -> 
J15: =IFERROR(VLOOKUP(F15,[173]UBIGEO!$A$3:$D$2090,3,FALSE),"") ->  | L15: =IFERROR(VLOOKUP(F15,[173]UBIGEO!$A$3:$D$2090,4,FALSE),"") -> 
B16: G1.2.Centro de Salud Mental Comunitaria
B17: N° | C17: Código RENIPRESS | D17: Categoría | E17: Establecimito de Salud
B19: 1 | C19: 00027290 | D19: =IFERROR(VLOOKUP(C19,ES!$A$2:$I$9050,7,FALSE),"") -> I-2 | E19: =IFERROR(VLOOKUP(C19,ES!$A$2:$I$9050,3,FALSE),"") -> CENTRO DE SALUD MENTAL COMUNITARIO EL AGUSTINO
B22: G1.3. Establecimiento de Salud que refieren (vinculados, rol puerta entrada o zona sanitaria) al Centro de Salud Mental Comunitaria
B23: N° | C23: Código RENIPRESS | D23: Categoría | E23: ES Origen de la Referencia | H23: Población Asignada | I23: 0 | J23: 1 | K23: 2 | L23: 3 | M23: 4 | N23: 5 | O23: 6 | P23: 7 | Q23: 8 | R23: 9 | S23: 10 | T23: 11 | U23: 12 | V23: 13 | W23: 14 | X23: 15 | Y23: 16 | Z23: 17 | AA23: 18 | AB23: 19 | AC23: 20-24 | AD23: 25-29 | AE23: 30-34 | AF23: 35-39 | AG23: 40-44 | AH23: 45-49 | AI23: 50-54 | AJ23: 55-59 | AK23: 60-64 | AL23: 65-69 | AM23: 70-74 | AN23: 75-79 | AO23: 80 y + | AP23: 28 DÍAS | AQ23: 0-5 MESES | AR23: 6-11 MESES | AS23: NACIMIENTOS | AT23: POBLACION FEMENINA | AU23: TOTAL | AV23: 10 - 14 | AW23: 15- 19 | AX23: 20- 49 | AY23: GESTANTES ESPERADAS
B24: 2 | C24: 00005921 | D24: =IFERROR(VLOOKUP(C24,ES!$A$2:$I$9050,7,FALSE),"") -> I-3 | E24: =IFERROR(VLOOKUP(C24,ES!$A$2:$I$9050,3,FALSE),"") -> ANCIETA BAJA | H24: =+SUM(I24:AO24) -> 11258 | I24: 140 | J24: 151 | K24: 140 | L24: 151 | M24: 155 | N24: 172 | O24: 199 | P24: 197 | Q24: 189 | R24: 193 | S24: 187 | T24: 185 | U24: 196 | V24: 189 | W24: 172 | X24: 177 | Y24: 181 | Z24: 181 | AA24: 169 | AB24: 164 | AC24: 871 | AD24: 1022 | AE24: 974 | AF24: 909 | AG24: 805 | AH24: 724 | AI24: 611 | AJ24: 536 | AK24: 433 | AL24: 333 | AM24: 223 | AN24: 144 | AO24: 185 | AP24: 9 | AQ24: 63 | AR24: 76 | AS24: 175 | AT24: 5822 | AU24: =SUM(AV24:AX24) -> 3662 | AV24: 481 | AW24: 451 | AX24: 2730 | AY24: 275
B25: 3 | C25: 00005922 | D25: =IFERROR(VLOOKUP(C25,ES!$A$2:$I$9050,7,FALSE),"") -> I-3 | E25: =IFERROR(VLOOKUP(C25,ES!$A$2:$I$9050,3,FALSE),"") -> PRIMAVERA | H25: =+SUM(I25:AO25) -> 61632 | I25: 765 | J25: 826 | K25: 765 | L25: 826 | M25: 851 | N25: 943 | O25: 1087 | P25: 1078 | Q25: 1035 | R25: 1057 | S25: 1026 | T25: 1013 | U25: 1072 | V25: 1037 | W25: 943 | X25: 967 | Y25: 992 | Z25: 992 | AA25: 925 | AB25: 900 | AC25: 4771 | AD25: 5594 | AE25: 5332 | AF25: 4975 | AG25: 4407 | AH25: 3965 | AI25: 3343 | AJ25: 2936 | AK25: 2369 | AL25: 1821 | AM25: 1221 | AN25: 789 | AO25: 1009 | AP25: 47 | AQ25: 347 | AR25: 418 | AS25: 956 | AT25: 31872 | AU25: 20052 | AV25: 2636 | AW25: 2471 | AX25: 14945 | AY25: 1503
B26: =+B25+1 -> 4 | D26: =IFERROR(VLOOKUP(C26,ES!$A$2:$I$9050,7,FALSE),"") ->  | E26: =IFERROR(VLOOKUP(C26,ES!$A$2:$I$9050,3,FALSE),"") ->  | H26: =+SUM(I26:AO26) -> 0 | AU26: 0
B27: 5 | D27: =IFERROR(VLOOKUP(C27,ES!$A$2:$I$9050,7,FALSE),"") ->  | E27: =IFERROR(VLOOKUP(C27,ES!$A$2:$I$9050,3,FALSE),"") ->  | H27: =+SUM(I27:AO27) -> 0 | AU27: 0
B28: 6 | D28: =IFERROR(VLOOKUP(C28,[174]ES!$A$2:$G$8990,7,FALSE),"") ->  | E28: =IFERROR(VLOOKUP(C28,[174]ES!$A$2:$G$8990,3,FALSE),"") ->  | H28: =+SUM(I28:AO28) -> 0 | AU28: 0
H29: =SUM(H24:H28) -> 72890 | I29: =SUM(I24:I28) -> 905 | J29: =SUM(J24:J28) -> 977 | K29: 905 | L29: 977 | M29: 1006 | N29: 1115 | O29: 1286 | P29: 1275 | Q29: 1224 | R29: 1250 | S29: 1213 | T29: 1198 | U29: 1268 | V29: 1226 | W29: 1115 | X29: 1144 | Y29: 1173 | Z29: 1173 | AA29: 1094 | AB29: 1064 | AC29: 5642 | AD29: 6616 | AE29: 6306 | AF29: 5884 | AG29: 5212 | AH29: 4689 | AI29: 3954 | AJ29: 3472 | AK29: 2802 | AL29: 2154 | AM29: 1444 | AN29: 933 | AO29: 1194 | AP29: =SUM(AP24:AP26) -> 56 | AQ29: 410 | AR29: 494 | AS29: =SUM(AS24:AS27) -> 1131 | AT29: 37694 | AU29: 23714 | AV29: 3117 | AW29: 2922 | AX29: 17675 | AY29: 1778
H30: % POB ID | I30: =IFERROR(I29/$H$29,0) -> 0.01241596927 | J30: =IFERROR(J29/$H$29,0) -> 0.01340375909 | K30: 0.01241596927 | L30: 0.01340375909 | M30: 0.01380161888 | N30: 0.01529702291 | O30: 0.01764302373 | P30: 0.0174921114 | Q30: 0.01679242694 | R30: 0.01714912882 | S30: 0.01664151461 | T30: 0.01643572507 | U30: 0.01739607628 | V30: 0.01681986555 | W30: 0.01529702291 | X30: 0.0156948827 | Y30: 0.01609274249 | Z30: 0.01609274249 | AA30: 0.01500891755 | AB30: 0.01459733846 | AC30: 0.07740430786 | AD30: 0.09076690904 | AE30: 0.08651392509 | AF30: 0.0807243792 | AG30: 0.07150500755 | AH30: 0.06432981205 | AI30: 0.0542461243 | AJ30: 0.04763342022 | AK30: 0.03844148717 | AL30: 0.02955137879 | AM30: 0.01981067362 | AN30: 0.01280010975 | AO30: 0.01638084785 | AP30: 0.0007682809713 | AQ30: 0.005624914254 | AR30: 0.006777335711 | AS30: 0.01551653176 | AT30: 0.5171354095 | AU30: 0.3253395528 | AV30: 0.04276306764 | AW30: 0.04008780354 | AX30: 0.2424886816 | AY30: 0.02439292084
B32: G1.4. Población del área de influencia
B33: Población del Ambito de Influencia del ES | E33: =+H29 -> 72890
B34: Población Total | E34: =+H29+H19 -> 72890
A37: G2. SITUACIÓN DE LA PRESTACIÓN DE SALUD
B39: G2.1. Referencia actual de los Establecimiento del ámbito de influencia
H40: Establecimiento de salud de referencia
H41: Tiempo | I41: Distancia | J41: 00005946 | K41: =IFERROR(VLOOKUP(J41,ES!$A$2:$G$9061,7,FALSE),"") -> III-1 | L41: =IFERROR(VLOOKUP(J41,ES!$A$2:$G$9061,3,FALSE),"") -> HOSPITAL NACIONAL HIPOLITO UNANUE | Q41: Tiempo | R41: Distancia | S41: 00005921 | T41: =IFERROR(VLOOKUP(S41,ES!$A$2:$I$9050,7,FALSE),"") -> I-3 | U41: =IFERROR(VLOOKUP(S41,ES!$A$2:$G$9061,3,FALSE),"") -> ANCIETA BAJA | Z41: Tiempo | AA41: Distancia | AB41: 00027290 | AC41: =IFERROR(VLOOKUP(AB41,ES!$A$2:$I$9050,7,FALSE),"") -> I-2 | AD41: =IFERROR(VLOOKUP(AB41,ES!$A$2:$G$9061,3,FALSE),"") -> CENTRO DE SALUD MENTAL COMUNITARIO EL AGUSTINO
B42: N° | C42: RENIPRESS | D42: Categoría | E42: Establecimiento de Salud | J42: Consulta Medicina General | K42: Consulta de Psqiuitria | L42: Psicologia | M42: Laboratorio | N42: Hospitalización Psiquiatrica | O42: Emergencia | P42: Consulta por otras especialidades | S42: Consulta Medicina General | T42: Consulta de Psqiuitria | U42: Psicologia | V42: Laboratorio | W42: Hospitalización Psiquiatrica | X42: Emergencia | AB42: Consulta de Psqiuitria | AD42: Psicologia | AE42: Laboratorio | AF42: Hospitalización Psiquiatrica | AG42: Emergencia | AH42: Otros
B43: 1 | C43: 00027290 | D43: =IFERROR(VLOOKUP(C43,ES!$A$2:$G$9061,7,FALSE),"") -> I-2 | E43: =IFERROR(VLOOKUP(C43,ES!$A$2:$G$9061,3,FALSE),"") -> CENTRO DE SALUD MENTAL COMUNITARIO EL AGUSTINO | H43: 40 min | I43: 45 km | N43: X | O43: X | P43: X | Q43: 20 min | R43: 30 km | V43: X
B44: =+B43+1 -> 2 | C44: 00005921 | D44: =IFERROR(VLOOKUP(C44,ES!$A$2:$G$9061,7,FALSE),"") -> I-3 | E44: =IFERROR(VLOOKUP(C44,ES!$A$2:$G$9061,3,FALSE),"") -> ANCIETA BAJA | H44: 60 min | I44: 100 km | O44: X | P44: X | Z44: 20 min | AA44: 30 km | AB44: X
B45: =+B44+1 -> 3 | C45: 00005920 | D45: =IFERROR(VLOOKUP(C45,ES!$A$2:$G$9061,7,FALSE),"") -> I-3 | E45: =IFERROR(VLOOKUP(C45,ES!$A$2:$G$9061,3,FALSE),"") -> BETHANIA | H45: 60 min | I45: 100 km | O45: X | P45: X | Q45: 50 min | R45: 90 km | Z45: 40 min | AA45: 45 km | AB45: X
B46: =+B45+1 -> 4 | C46: 00005918 | D46: =IFERROR(VLOOKUP(C46,ES!$A$2:$G$9061,7,FALSE),"") -> I-3 | E46: =IFERROR(VLOOKUP(C46,ES!$A$2:$G$9061,3,FALSE),"") -> MADRE TERESA CALCUTA | H46: 61 min | I46: 101 km | O46: X | P46: X | Q46: 51 min | R46: 91 km | V46: X | Z46: 61 min | AA46: 101 km | AB46: X
B47: =+B46+1 -> 5 | C47: 00005922 | D47: =IFERROR(VLOOKUP(C47,ES!$A$2:$G$9061,7,FALSE),"") -> I-3 | E47: =IFERROR(VLOOKUP(C47,ES!$A$2:$G$9061,3,FALSE),"") -> PRIMAVERA | H47: 40 min | I47: 45 km | Q47: 15 min | R47: 28 km | Z47: 15 min | AA47: 28 km | AB47: X
H48: Vías de acceso | J48: Pista | L48: Otros: | Q48: Vías de acceso | S48: Pista | U48: Otros: | Z48: Vías de acceso | AC48: Pista | AF48: Otros:
H49: Medios de comunicación | J49: Telefono fijo del ES | L49: Modalidad de traslado | N49: Ambulancia Samu | Q49: Medios de comunicación | S49: Telefono fijo del ES | U49: Modalidad de traslado | W49: Transporte Publico | Z49: Medios de comunicación | AC49: Telefono fijo del ES | AF49: Modalidad de traslado | AH49: Transporte Publico
B52: G2.2. Referencia Proyectada de los Establecimiento del ámbito de influencia
H53: Establecimiento de salud de referencia
H54: Tiempo | I54: Distancia | J54: 00027290 | K54: =IFERROR(VLOOKUP(J54,ES!$A$2:$G$9061,7,FALSE),"") -> I-2 | L54: =IFERROR(VLOOKUP(J54,ES!$A$2:$G$9061,3,FALSE),"") -> CENTRO DE SALUD MENTAL COMUNITARIO EL AGUSTINO | Q54: Tiempo | R54: Distancia | S54: 00005921 | T54: =IFERROR(VLOOKUP(S54,ES!$A$2:$I$9050,7,FALSE),"") -> I-3 | U54: =IFERROR(VLOOKUP(S54,ES!$A$2:$G$9061,3,FALSE),"") -> ANCIETA BAJA | Z54: Tiempo | AA54: Distancia | AB54: 00005946 | AC54: =IFERROR(VLOOKUP(AB54,ES!$A$2:$I$9050,7,FALSE),"") -> III-1 | AD54: =IFERROR(VLOOKUP(AB54,ES!$A$2:$G$9061,3,FALSE),"") -> HOSPITAL NACIONAL HIPOLITO UNANUE
B55: N° | C55: RENIPRESS | D55: Categoría | E55: Establecimiento de Salud | J55: Consulta Medicina General | K55: Consulta de Psqiuitria | L55: Psicologia | M55: Laboratorio | N55: Hospitalización Psiquiatrica | O55: Emergencia | S55: Consulta Medicina General | T55: Consulta de Psqiuitria | U55: Psicologia | V55: Laboratorio | W55: Hospitalización Psiquiatrica | X55: Emergencia | AB55: Consulta de Psqiuitria | AC55: Consulta por otras especialidades | AD55: Psicologia | AE55: Laboratorio | AF55: Hospitalización Psiquiatrica | AG55: Emergencia | AH55: Otros
B56: 1 | C56: 00027290 | D56: =IFERROR(VLOOKUP(C56,ES!$A$2:$G$9061,7,FALSE),"") -> I-2 | E56: =IFERROR(VLOOKUP(C56,ES!$A$2:$G$9061,3,FALSE),"") -> CENTRO DE SALUD MENTAL COMUNITARIO EL AGUSTINO | Q56: 20 min | R56: 30 km | V56: X | Z56: 40 min | AA56: 45 km | AC56: X | AF56: X | AG56: X
B57: =+B56+1 -> 2 | C57: 00005921 | D57: =IFERROR(VLOOKUP(C57,ES!$A$2:$G$9061,7,FALSE),"") -> I-3 | E57: =IFERROR(VLOOKUP(C57,ES!$A$2:$G$9061,3,FALSE),"") -> ANCIETA BAJA | H57: 20 min | I57: 30 km | K57: X | Z57: 60 min | AA57: 100 km | AC57: X | AG57: X
B58: =+B57+1 -> 3 | C58: 00005922 | D58: =IFERROR(VLOOKUP(C58,ES!$A$2:$G$9061,7,FALSE),"") -> I-3 | E58: =IFERROR(VLOOKUP(C58,ES!$A$2:$G$9061,3,FALSE),"") -> PRIMAVERA | H58: 15 min | I58: 28 km | K58: X | Q58: 15 min | R58: 28 km | V58: X | Z58: 40 min | AA58: 45 km | AC58: X | AG58: X
B59: =+B58+1 -> 4 | D59: =IFERROR(VLOOKUP(C59,ES!$A$2:$G$9061,7,FALSE),"") ->  | E59: =IFERROR(VLOOKUP(C59,ES!$A$2:$G$9061,3,FALSE),"") -> 
B60: =+B59+1 -> 5 | D60: =IFERROR(VLOOKUP(C60,ES!$A$2:$G$9061,7,FALSE),"") ->  | E60: =IFERROR(VLOOKUP(C60,ES!$A$2:$G$9061,3,FALSE),"") -> 
H61: Vías de acceso | J61: Pista | L61: Otros: | Q61: Vías de acceso | S61: Pista | U61: Otros: | Z61: Vías de acceso | AC61: Pista | AF61: Otros:
H62: Medios de comunicación | J62: Telefono fijo del ES | L62: Modalidad de traslado | N62: Transporte Publico | Q62: Medios de comunicación | S62: Telefono fijo del ES | U62: Modalidad de traslado | W62: Transporte Publico | Z62: Medios de comunicación | AC62: Telefono fijo del ES | AF62: Modalidad de traslado | AH62: Ambulancia Samu
B65: G2.1.1 Mapa de Flujo actual | J65: G2.2.1 Mapa de Flujo Proyectado
B88: G2.1.2 Principales causas de referencia
B89: N° | C89: Principales referencias | E89: Cantidad
B90: 01 | C90: Atención de Emergencias de Salud Mental | E90: 60
B91: 02 | C91: Consulta Externa de Psiquiatria | E91: 160
B92: 03 | C92: Hospitalización | E92: 90
B93: 04 | C93: Laboratio | E93: 200
B94: 05 | C94: Emergencias | E94: 100
B98: Total | C98: Total | E98: =+SUM(E90:E97) -> 610
B100: G2.3 Cartera de servicios del área de influencia del Proyecto
B101: Servicio | E101: =+L41 -> HOSPITAL NACIONAL HIPOLITO UNANUE | F101: =+E56 -> CENTRO DE SALUD MENTAL COMUNITARIO EL AGUSTINO | G101: =+E57 -> ANCIETA BAJA | H101: =+E58 -> PRIMAVERA | I101: =+E59 ->  | J101: =+E60 -> 
B102: MEDICINA GENERAL | G102: X | H102: X
B103: MEDICINA FAMILIAR | E103: X | F103: X
B104: PSIQUIATRIA | E104: X | F104: X
B105: PEDIATRÍA | E105: X
B106: GINECO-OBSTETRICIA | E106: X
B107: ENDOCRINOLOGÍA | E107: X
B108: MEDICINA INTERNA | E108: X
B109: CARDIOLOGÍA | E109: X
B110: NEUMOLOGIA | E110: X
B111: PEDIATRIA | E111: X
B112: TELECONSULTORIO | E112: X | G112: X
B113: TOPICO DE PROCEDIMIENTOS DE CONSULTA EXTERNA | E113: X | H113: X
B114: CRECIMIENTO Y DESARROLLO | G114: X | H114: X
B115: INMUNIZACIONES | E115: X | G115: X | H115: X
B116: ESTIMULACIÓN TEMPRANA | G116: X | H116: X
B117: CONTROL PRENATAL | E117: X | G117: X | H117: X
B118: PLANIFICACIÓN FAMILIAR | G118: X | H118: X
B119: PSICOPROFILAXIS | G119: X
B120: ATENCIÓN INTEGRAL Y CONSEJERIA DEL ADOLESCENTE | G120: X | H120: X
B121: ATENCIÓN INTEGRAL DEL ADULTO MAYOR | G121: X | H121: X
B122: CONSEJERÍA Y PREVENCIÓN DE ENFERMEDADES NO TRANSMISIBLES | G122: X
B123: CONSEJERÍA Y PREVENCIÓIN DEL CÁNCER
B124: CONSEJERÍA Y PREVENCIÓN DE ITS/VIH/SIDA | G124: X
B125: PREVENCIÓN Y CONTROL DE TBC
B126: CONSEJERIA EN SALUD MENTAL | G126: X | H126: X
B127: NUTRICIÓN | E127: X
B128: PSICOLOGIA | F128: X | H128: X
B129: ODONTOLOGIA CON SOPORTE RADIOLÓGICO | E129: X | G129: X | H129: X
B130: TOPICO DE EMERGENCIA Y URGENCIA | F130: X | G130: X | H130: X
B131: SALA DE OBSERVACIÓN | E131: X
B132: PARTOS | E132: X
B133: INTERNAMIENTO
B134: HOSPITALIZACIÓN | E134: X
B135: ECOGRAFIA | E135: X
B136: RADIOGRAFIA CONVENCIONAL SIMPLE | E136: X
B137: MAMOGRAFIA | E137: X
B138: LABORATORIO I-3 | G138: X | H138: X
B139: LABORATORIO I-4
B140: PATOLOGIA CLINICA | E140: X
B141: BOTIQUIN
B142: TERAPIA DE REHABILITACIÓN | E142: X | F142: X
B143: FARMACIA | E143: X | F143: X
B144: DISPENSACIÓN Y EXPENDIO EN UPSS CONSULTA EXTERNA | G144: X | H144: X
B145: Nota: debe considerarse la Cartera de Servicios del ES de referencia (establecimientos de salud de mayor capacidad resolutiva de referencia) Ejemplo el ES con rol puerta de Entre debe referir al ES con rol Zona sanitaria de acuerdo al flujo establecido en su RIS
B148: G2.4 Otros servicios existentes en un radio menor o igual a 2 horas
B149: Descripción | E149: RENIPRESS | F149: Categoría | G149: Establecimiento de Salud | J149: Tiempo
B150: Centro de salud mental comunitario | E150: 00026996 | F150: =IFERROR(VLOOKUP(E150,ES!$A$2:$G$9061,7,FALSE),"") -> I-2 | G150: =IFERROR(VLOOKUP(E150,ES!$A$2:$G$9061,3,FALSE),"") -> CENTRO DE SALUD MENTAL COMUNITARIO DAVID TEJADA DE RIVERO | J150: 40 min
B151: Centro de salud mental comunitario
B153: G2.5 Perfil Epidemiologico
B154: 10 principales causas Morbilidad | F154: Cantidad | G154: % | I154: Principales indicadores en salud | L154: ‰
B155: 1 | C155: Trastornos Neuroticos relacionados al Estrés (F40 al F48) | F155: 300 | G155: =+F155/$F$166 -> 0.4178272981 | I155: Prevalencia de trastornos mentales y del comportamiento en niños y adolescentes | L155: 0.179
B156: 2 | C156: Síndrome de Violencia (T74; Y04 al Y08) | F156: 199 | G156: =+F156/$F$166 -> 0.2771587744 | I156: Prevalencia de trastornos mentales y del comportamiento en adultos | L156: 0.134
B157: 3 | C157: Trastornos Mentales y del Comportamiento debido al uso de Sustancias (F10 al F19) | F157: 76 | G157: 0.1058495822 | I157: Prevalencia de trastornos mentales y del comportamiento en consumo del alcohol | L157: 0.037
B158: 4 | C158: Trastornos del Humor (F30 al F39) | F158: 63 | G158: 0.08774373259
B159: 5 | C159: Trastornos de la Personalidad y del Comportamiento (F60 al F69) | F159: 38 | G159: 0.05292479109
B160: 6 | C160: Esquizofrenia y Trastornos Esquizotipicos (F20 al F29) | F160: 13 | G160: 0.01810584958
B161: 7 | C161: Retraso Mental (F70 al F79) | F161: 11 | G161: 0.01532033426
B162: 8 | C162: Síndrome al Comportamiento asociados a alteraciones Fisiológicas (F50 al F59) | F162: 7 | G162: 0.009749303621
B163: 9 | C163: Trastornos Mentales Orgánicos (F00 al F09) | F163: 5 | G163: 0.006963788301
B164: 10 | C164: Trastornos de Desarrollo Psicológico (F80 al F89) | F164: 4 | G164: 0.005571030641
B165: Otras causas | F165: 2 | G165: 0.00278551532
B166: Total | F166: =SUM(F155:F165) -> 718 | G166: =SUM(G155:G165) -> 1
A168: G3 | B168: Datos para el calculo de la demanda de servicios médicos
B169: G3.1. Producción de los servicios medicos del ES o del ES de referencia
B170: Servicios | E170: Unidad Medida | F170: Año -5 | G170: Año -4 | H170: Año -3 | I170: Año -2 | J170: Año -1 | K170: Promedio | L170: Porcentaje
B171: UPSS CONSULTA EXTERNA
B172: CONSULTA EXTERNA DE PSIQUIATRIA | E172: Atenciones | F172: 5349 | G172: 5640 | H172: 4635 | I172: 4606 | J172: 4686 | K172: =+AVERAGE(F172:J172) -> 4983.2 | L172: =+K172/$K$174 -> 0.7064761257
B173: CONSULTA EXTERNA DE MEDICINA FAMILIAR | E173: Atenciones | F173: 2530 | G173: 2156 | H173: 1932 | I173: 1822 | J173: 1912 | K173: 2070.4 | L173: =+K173/$K$174 -> 0.2935238743
I174: Total | K174: =+K172+K173 -> 7053.6 | L174: =SUM(L172:L173) -> 1

Sheet Sección H
A2: Sección H: EVALUACIÓN DE LA INFRAESTRUCTURA -UP ………………………….
A4: CONSULTA EXTERNA | B4: AMBIENTE | E4: CRITERIO DE CANTIDAD | J4: CRITERIO DE CALIDAD
E5: CANTIDAD | F5: CAPACIDAD ACTUAL M2 | G5: CAPACIDAD MÍNIMA REQUERIDA M2- NTS 113 Y 110 | H5: BRECHA M2 | I5: CANTIDAD AMBIENTES FISICOS (A) | J5: Bajo | K5: Medio | L5: Alto | M5: GRADO DE SEGURIDAD DE AMBIENTE
B6: Ambientes | C6: Exclusivo/Funcional | J6: VARIABLES EVAL. = 9
C7: Descrip. | D7: Funcional con: | J7: 0 | K7: > 0 - 0.5 | L7: >0.5 - 1
A8: CONSULTA EXTERNA | B8: CONSULTORIO DE PSIQUIATRÍA PARA NIÑA NIÑO Y ADOLESCENTE | C8: Exclusivo | D8: CONSULTORIO NIÑA NIÑO Y ADOLESCENTE | E8: 1 | F8: 9 | G8: 13.5 | H8: =+F8-G8 -> -4.5 | I8: =IF(G8/H8>-0.1,1,0) -> 0 | J8: =+J48 -> 0 | K8: =+K48 -> 0.45 | L8: =+L48 -> 0.1 | M8: =SUM(J8:L8) -> 0.55
B9: CONSULTORIO DE PSIQUIATRÍA PARA ADULTO Y ADULTO MAYOR | C9: Funcional | D9: CONSULTORIO DE PSIQUIATRÍA DE PACIENTES CON ADICCIONES | E9: 1 | F9: 9 | G9: 13.5 | H9: =+F9-G9 -> -4.5 | I9: =IF(G9/H9>-0.1,1,0) -> 0 | J9: =+J48 -> 0 | K9: =+K48 -> 0.45 | L9: 0.1 | M9: =SUM(J9:L9) -> 0.55
B10: CONSULTORIO DE PSIQUIATRÍA DE PACIENTES CON ADICCIONES | C10: Funcional | E10: 0 | F10: 0 | G10: 13.5 | H10: =+F10-G10 -> -13.5 | I10: 0 | J10: =+J48 -> 0 | K10: =+K48 -> 0.45 | L10: =+L48 -> 0.1 | M10: 0.55
B11: CONSULTORIO NIÑA NIÑO Y ADOLESCENTE | C11: Exclusivo | E11: 1 | F11: 9 | G11: 13.5 | H11: -4.5 | I11: 0 | J11: =+J48 -> 0 | K11: =+K48 -> 0.45 | L11: =+L48 -> 0.1 | M11: 0.55
B12: CONSULTORIO ADULTO Y ADULTO MAYOR | C12: Funcional | E12: 1 | F12: 9 | G12: 13.5 | H12: -4.5 | I12: 0 | J12: =+J48 -> 0 | K12: =+K48 -> 0.45 | L12: =+L48 -> 0.1 | M12: 0.55
B13: CONSULTORIO ADICCIONES | C13: Funcional | E13: 0 | F13: 0 | G13: 13.5 | H13: -13.5 | I13: 0 | J13: =+J48 -> 0 | K13: =+K48 -> 0.45 | L13: =+L48 -> 0.1 | M13: 0.55
B14: TELECONSULTORIO | C14: Funcional | E14: 0 | F14: 0 | G14: 13.5 | H14: -13.5 | I14: 0 | J14: =+J48 -> 0 | K14: =+K48 -> 0.45 | L14: =+L48 -> 0.1 | M14: 0.55
B15: CONSULTORIO DE PSICOLOGÍA NIÑA NIÑO Y ADOLESCENTE | C15: Exclusivo | E15: 1 | F15: 9 | G15: 13.5 | H15: -4.5 | I15: 0 | J15: =+J48 -> 0 | K15: =+K48 -> 0.45 | L15: =+L48 -> 0.1 | M15: 0.55
B16: CONSULTORIO DE PSICOLOGÍA ADULTO Y ADULTO MAYOR | C16: Funcional | E16: 0 | F16: 0 | G16: 13.5 | H16: -13.5 | I16: 0 | J16: =+J48 -> 0 | K16: =+K48 -> 0.45 | L16: =+L48 -> 0.1 | M16: 0.55
B17: CONSULTORIO ADICCIONES | C17: Funcional | E17: 0 | F17: 0 | G17: 13.5 | H17: =+F17-G17 -> -13.5 | I17: =IF(G17/H17>-1,1,0) -> 0 | J17: =+J48 -> 0 | K17: =+K48 -> 0.45 | L17: =+L48 -> 0.1 | M17: 0.55
B18: SALA DE ACOGIDA Y DE VALORACÍON INICIAL | C18: Funcional | E18: 0 | F18: 0 | G18: 13.5 | H18: -13.5 | I18: =IF(G18/H18>-0.1,1,0) -> 0 | J18: =+J65 -> 0 | K18: =+K65 -> 0.185 | L18: =+L65 -> 0.1 | M18: 0.285
B19: SALA DE SEGUIMIENTO Y CONTINUIDAD DE CUIDADOS | C19: Exclusivo | E19: 1 | F19: 6 | G19: 13.5 | H19: -7.5 | I19: 0 | J19: =+J65 -> 0 | K19: =+K65 -> 0.185 | L19: =+L65 -> 0.1 | M19: 0.285
B20: SALA EVALUACIÓN INTEGRAL EN SALUD MENTAL | C20: Funcional | E20: 1 | F20: 15 | G20: 13.5 | H20: 1.5 | I20: 1 | J20: =+J65 -> 0 | K20: =+K65 -> 0.185 | L20: =+L65 -> 0.1 | M20: 0.285
A21: CENTRO DE REHABILITACIÓN PSICOSOCIAL | B21: SALA DE TERAPIA DE LENGUAJE | C21: Exclusivo | E21: 1 | F21: 12 | G21: 17 | H21: -5 | I21: 0 | J21: =W48 -> 0 | K21: =X48 -> 0.185 | L21: 0.1 | M21: 0.285
B22: SALA DE REHABILITACIÓN PSICOSOCIAL | C22: Funcional | E22: 1 | F22: 15 | G22: 17 | H22: -2 | I22: 0 | J22: =W48 -> 0 | K22: =X48 -> 0.185 | L22: 0.1 | M22: 0.285
B23: SALA DE REHABILITACIÓN LABORAL | C23: Funcional | E23: 0 | F23: 0 | G23: 13.5 | H23: -13.5 | I23: 0 | J23: =W48 -> 0 | K23: =X48 -> 0.185 | L23: 0.1 | M23: 0.285
A24: ATENCIÓN DE URGENCIA Y EMERGENCIA | B24: TÓPICO DE URGENCIAS Y EMERGENCIAS | C24: Funcional | E24: 1 | F24: 19 | G24: 18 | H24: 1 | I24: 1 | J24: =+J84 -> 0 | K24: =+K84 -> 0.45 | L24: =+L84 -> 0.1 | M24: 0.55
A25: ACTIVIDAD DE PRUEBAS RÁPIDAS Y TOMA DE MUESTRA | B25: TOMA DE MUESTRAS | C25: Funcional | E25: 0 | F25: 0 | G25: 5 | H25: =+F25-G25 -> -5 | I25: 0 | J25: =J102 -> 0 | K25: =K102 -> 0.185 | L25: 0.1 | M25: 0.285
A26: FARMACIA | B26: DISPENSACIÓN Y EXPENDIO EN UPSS CONSULTA EXTERNA | C26: Exclusivo | E26: 1 | F26: 12 | G26: 15 | H26: -3 | I26: 0 | J26: =+W65 -> 0 | K26: =+X65 -> 0.45 | L26: 0.1 | M26: 0.55
A27: DESINFECCIÓN Y ESTERILIZACIÓN | B27: DESINFECCIÓN Y ESTERILIZACIÓN | C27: NA | E27: 0 | F27: 0 | G27: 8.5 | H27: =+F27-G27 -> -8.5 | I27: =IF(G27/H27>-0.1,1,0) -> 0 | J27: =W102 -> 0 | K27: =X102 -> 0.45 | L27: 0.1 | M27: 0.55
A28: ACTIVIDAD DE SALUD FAMILIAR Y COMUNITARIA | B28: SALA DE SALUD FAMILIAR Y COMUNITARIA | C28: NA | E28: 0 | F28: 0 | G28: 18 | H28: =+F28-G28 -> -18 | I28: =IF(G28/H28>-0.1,1,0) -> 0 | J28: =+W84 -> 0 | K28: =+X84 -> 0.185 | L28: =+Y84 -> 0.1 | M28: 0.285
A30: Nota: No Aplica (NA)
A31: Brecha- aparece en rojo siempre que se llene la información cantidad y capacidad actual
A33: Consulta Externa | N33: Centro de Rehabilitación Psicosocial
A34: N° | B34: DESCRIPCIÓN | F34: PESO DE LA VARIABLE | G34: GRADO DE SEGURIDAD | J34: RESULTANTE | N34: N° | O34: DESCRIPCIÓN | S34: PESO DE LA VARIABLE | T34: GRADO DE SEGURIDAD | W34: RESULTANTE
G35: Bajo | H35: Medio | I35: Alto | J35: Bajo | K35: Medio | L35: Alto | T35: Bajo | U35: Medio | V35: Alto | W35: Bajo | X35: Medio | Y35: Alto
G36: 0 | H36: 0.5 | I36: 1 | J36: 0 | K36: 0.5 | L36: 1 | T36: 0 | U36: 0.5 | V36: 1 | W36: 0 | X36: 0.5 | Y36: 1
A37: 1 | B37: Materiales constructivos: Nivel de seguridad alto, si está construido con material convencional tipo ladrillo o concreto; Nivel de seguridad Medio, si está contruido con material prefabricado no convencional; Nivel de seguridad bajo,si está construido con material ligero tipo adobe sin estabilizar, quincha y similares. | F37: 0.15 | G37: 0 | H37: 0.5 | J37: vv | K37: =+H37*F37 -> 0.075 | L37: =+I37*F37 -> 0 | N37: 1 | O37: Materiales constructivos: Nivel de seguridad alto, si está construido con material convencional tipo ladrillo, concreto o madera; Nivel de seguridad Medio, si está contruido con material prefabricado no convencional; Nivel de seguridad bajo,si está construido con material ligero tipo adobe sin estabilizar, quincha y similares. | S37: 0.15 | T37: 0 | W37: =+T37*S37 -> 0 | X37: =+U37*S37 -> 0 | Y37: =+V37*S37 -> 0
A38: 2 | B38: Zonificación Sismica: Nivel de seguridad alto, Si se encuentra en la zona 1; Nivel de seguridad Medio, Si se encuentra en la zona 2; Nivel de seguridad bajo, Si se encuentra en la zona 3 y 4. | F38: 0.1 | G38: 0 | I38: 1 | J38: =+G38*F38 -> 0 | K38: =+H38*F38 -> 0 | L38: =+I38*F38 -> 0.1 | N38: 2 | O38: Zonificación Sismica: Nivel de seguridad alto, Si se encuentra en la zona 1; Nivel de seguridad Medio, Si se encuentra en la zona 2; Nivel de seguridad bajo, Si se encuentra en la zona 3 y 4. | S38: 0.1 | T38: 0 | V38: 1 | W38: =+T38*S38 -> 0 | X38: =+U38*S38 -> 0 | Y38: =+V38*S38 -> 0.1
A39: 3 | B39: Antigüedad: Nivel de seguridad alto, de 8 a 15 años; Nivel de seguridad Medio, de 16 a 30 años; Nivel de seguridad bajo, mayor a 31 años de antigüedad | F39: 0.1333333333 | G39: 0 | H39: 0.5 | J39: 0 | K39: 0.06666666667 | L39: 0 | N39: 3 | O39: Antigüedad: Nivel de seguridad alto, de 8 a 15 años; Nivel de seguridad Medio, de 16 a 30 años; Nivel de seguridad bajo, mayor a 31 años de antigüedad | S39: 0.1333333333 | T39: 0 | W39: 0 | X39: 0 | Y39: 0
A40: 4 | B40: Tipo de Cimentación: Cimentación Alto, Platea de cimentación/zapatas; Cimentación Medio, cimento corrido; Cimentación bajo, otros. | F40: 0.15 | G40: 0 | H40: 0.5 | J40: 0 | K40: 0.075 | L40: 0 | N40: 4 | O40: Tipo de Cimentación: Cimentación Alto, Platea de cimentación/zapatas ; Cimentación Medio, cimento corrido ; Cimentación bajo, otros. | S40: 0.15 | T40: 0 | U40: 0.5 | W40: 0 | X40: 0.075 | Y40: 0
A41: 5 | B41: Bioseguridad: Nivel de seguridad alto, si cuenta con barrera sanitaria; Nivel de seguridad Medio, si es factible de proponer su remodelación con el uso de barrera sanitaria; Nivel de seguridad bajo,si no es posible la inclusión de una barrera sanitaria. | F41: 0.1 | G41: 0 | H41: 0.5 | J41: 0 | K41: 0.05 | L41: 0 | N41: 5 | O41: Bioseguridad: Nivel de seguridad alto, si cuenta con barrera sanitaria; Nivel de seguridad Medio, si es factible de proponer su remodelación con el uso de barrera sanitaria; Nivel de seguridad bajo,si no es posible la inclusión de una barrera sanitaria. | S41: 0.1 | T41: 0 | W41: 0 | X41: 0 | Y41: 0
A42: 6 | B42: Pertinencia/Ubicación: Nivel de seguridad alto, si el ambiente corresponde a la UPSS normativa; Nivel de seguridad Medio, si el ambiente no cumplen con los criterios de dimensión y ubicación normativos. Nivel de seguridad bajo,si el ambiente no corresponde a la UPSS normativa. | F42: 0.08 | G42: 0 | H42: 0.5 | J42: 0 | K42: 0.04 | L42: 0 | N42: 6 | O42: Pertinencia/Ubicación: Nivel de seguridad alto, si el ambiente corresponde a la UPSS normativa; Nivel de seguridad Medio, si el ambiente no cumplen con los criterios de dimensión y ubicación normativos. Nivel de seguridad bajo,si el ambiente no corresponde a la UPSS normativa. | S42: 0.08 | T42: 0 | U42: 0.5 | W42: 0 | X42: 0.04 | Y42: 0
A43: 7 | B43: Zonificación: Nivel de seguridad alto, si cuenta con las zonas y las dimensiones normativas; Nivel de seguridad Medio, si cuenta con las zonas pero las dimensiones no son normativas; Nivel de seguridad bajo,si no cuenta con las zonas normativas. | F43: 0.07333333333 | G43: 0 | H43: 0.5 | J43: 0 | K43: 0.03666666667 | L43: 0 | N43: 7 | O43: Zonificación: Nivel de seguridad alto, si cuenta con las zonas y las dimensiones normativas; Nivel de seguridad Medio, si cuenta con las zonas pero las dimensiones no son normativas; Nivel de seguridad bajo,si no cuenta con las zonas normativas. | S43: 0.07333333333 | T43: 0 | U43: 0.5 | W43: 0 | X43: 0.03666666667 | Y43: 0
A44: 8 | B44: Estado de Conservación: Nivel de seguridad alto, si recibió mantenimiento correctivo consecutivo en los últimos 5 años en puertas y ventanas, mobiliario fijo, pisos, muros, techos, lavatorios y/o artefactos eléctricos; Nivel de seguridad Medio, si recibió eventualmente el mantenimiento correctivo en los últimos 10 años en puertas y ventanas, mobiliario fijo, pisos, muros, mobiliario fijo, techos, lavatorios y/o artefactos eléctricos; Nivel de seguridad bajo, si no recibió mantenimiento correctivo en los últimos 10 años. | F44: 0.06666666667 | G44: 0 | H44: 0.5 | J44: 0 | K44: 0.03333333333 | L44: 0 | N44: 8 | O44: Estado de Conservación: Nivel de seguridad alto, si recibió mantenimiento correctivo consecutivo en los últimos 5 años en puertas y ventanas, mobiliario fijo, pisos, muros, techos, lavatorios y/o artefactos eléctricos; Nivel de seguridad Medio, si recibió eventualmente el mantenimiento correctivo en los últimos 10 años en puertas y ventanas, mobiliario fijo, pisos, muros, mobiliario fijo, techos, lavatorios y/o artefactos eléctricos; Nivel de seguridad bajo, si no recibió mantenimiento correctivo en los últimos 10 años. | S44: 0.06666666667 | T44: 0 | W44: 0 | X44: 0 | Y44: 0
A45: 9 | B45: Confort: Nivel de seguridad alto, si las ventanas cumplen con los criterios de dimensión y ubicación normativos; Nivel de seguridad Medio, si tiene ventilación forzada; Nivel de seguridad bajo, si las ventanas no cumplen con los criterios de dimensión y ubicación normativos. | F45: 0.04666666667 | G45: 0 | H45: 0.5 | J45: 0 | K45: 0.02333333333 | L45: 0 | N45: 9 | O45: Confort: Nivel de seguridad alto, si las ventanas cumplen con los criterios de dimensión y ubicación normativos; Nivel de seguridad Medio, si tiene ventilación forzada; Nivel de seguridad bajo, si las ventanas no cumplen con los criterios de dimensión y ubicación normativos. | S45: 0.04666666667 | T45: 0 | W45: 0 | X45: 0 | Y45: 0
A46: 10 | B46: Espacios para personas con discapacidad: Cuenta con rampa de acceso y circulación peatonal, cuenta con SH diferenciados, cuenta con espacios para sillas de ruedas en consultorios, cuenta con barandas de apoyo; Nivel de seguridad alto, si cumple los 4 aspectos; Nivel de seguridad Medio, si cumple 3 aspectos; Nivel de seguridad bajo, si cumple al menos 2 aspectos. | F46: 0.03333333333 | G46: 0 | H46: 0.5 | J46: 0 | K46: 0.01666666667 | L46: 0 | N46: 10 | O46: Espacios para personas con discapacidad: Cuenta con rampa de acceso y circulación peatonal, cuenta con SH diferenciados, cuenta con espacios para sillas de ruedas en consultorios, cuenta con barandas de apoyo; Nivel de seguridad alto, si cumple los 4 aspectos; Nivel de seguridad Medio, si cumple 3 aspectos; Nivel de seguridad bajo, si cumple al menos 2 aspectos. | S46: 0.03333333333 | T46: 0 | W46: 0 | X46: 0 | Y46: 0
A47: 11 | B47: Servicios generales: Tratamiento acústico en casa de fuerza, equipos mecánicos ubicados en exteriores protegidos, cuenta con cisternas diferenciadas, cuenta con sistema de evacuación pluvial (canaletas, montante y cunetas), cuenta con almacenes y/o talleres apropiados, cuenta con almacenamiento sin tratmiento de residuos sólidos; Nivel de seguridad alto, si cumple los 6 aspectos; Nivel de seguridad Medio, si cumple 4 ó 5 aspectos; Nivel de seguridad bajo, si cumple con 3 o menos. | F47: 0.06666666667 | G47: 0 | H47: 0.5 | J47: 0 | K47: 0.03333333333 | L47: 0 | N47: 11 | O47: Servicios generales: Tratamiento acústico en casa de fuerza, equipos mecánicos ubicados en exteriores protegidos, cuenta con cisternas diferenciadas, cuenta con sistema de evacuación pluvial (canaletas, montante y cunetas), cuenta con almacenes y/o talleres apropiados, cuenta con almacenamiento sin tratmiento de residuos sólidos; Nivel de seguridad alto, si cumple los 6 aspectos; Nivel de seguridad Medio, si cumple 4 ó 5 aspectos; Nivel de seguridad bajo, si cumple con 3 o menos. | S47: 0.06666666667 | T47: 0 | U47: 0.5 | W47: 0 | X47: 0.03333333333 | Y47: 0
F48: 1 | J48: =SUM(J37:J47) -> 0 | K48: =SUM(K37:K47) -> 0.45 | L48: 0.1 | S48: 1 | W48: =SUM(W37:W47) -> 0 | X48: =SUM(X37:X47) -> 0.185 | Y48: =SUM(Y37:Y47) -> 0.1
A50: Consulta Externa | N50: Farmacia- Modulo IV
A51: N° | B51: DESCRIPCIÓN | F51: PESO DE LA VARIABLE | G51: GRADO DE SEGURIDAD | J51: RESULTANTE | N51: N° | O51: DESCRIPCIÓN | S51: PESO DE LA VARIABLE | T51: GRADO DE SEGURIDAD | W51: RESULTANTE
G52: Bajo | H52: Medio | I52: Alto | J52: Bajo | K52: Medio | L52: Alto | T52: Bajo | U52: Medio | V52: Alto | W52: Bajo | X52: Medio | Y52: Alto
G53: 0 | H53: 0.5 | I53: 1 | J53: 0 | K53: 0.5 | L53: 1 | T53: 0 | U53: 0.5 | V53: 1 | W53: 0 | X53: 0.5 | Y53: 1
A54: 1 | B54: Materiales constructivos: Nivel de seguridad alto, si está construido con material convencional tipo ladrillo, concreto o madera; Nivel de seguridad Medio, si está contruido con material prefabricado no convencional; Nivel de seguridad bajo,si está construido con material ligero tipo adobe sin estabilizar, quincha y similares. | F54: 0.15 | G54: 0 | J54: =+G54*F54 -> 0 | K54: =+H54*F54 -> 0 | L54: =+I54*F54 -> 0 | N54: 1 | O54: Materiales constructivos: Nivel de seguridad alto, si está construido con material convencional tipo ladrillo, concreto o madera; Nivel de seguridad Medio, si está contruido con material prefabricado no convencional; Nivel de seguridad bajo,si está construido con material ligero tipo adobe sin estabilizar, quincha y similares. | S54: 0.15 | T54: 0 | U54: 0.5 | W54: =+T54*S54 -> 0 | X54: =+U54*S54 -> 0.075 | Y54: =+V54*S54 -> 0
A55: 2 | B55: Zonificación Sismica: Nivel de seguridad alto, Si se encuentra en la zona 1; Nivel de seguridad Medio, Si se encuentra en la zona 2; Nivel de seguridad bajo, Si se encuentra en la zona 3 y 4. | F55: 0.1 | G55: 0 | I55: 1 | J55: =+G55*F55 -> 0 | K55: =+H55*F55 -> 0 | L55: =+I55*F55 -> 0.1 | N55: 2 | O55: Zonificación Sismica: Nivel de seguridad alto, Si se encuentra en la zona 1; Nivel de seguridad Medio, Si se encuentra en la zona 2; Nivel de seguridad bajo, Si se encuentra en la zona 3 y 4. | S55: 0.1 | T55: 0 | V55: 1 | W55: 0 | X55: 0 | Y55: 0.1
A56: 3 | B56: Antigüedad: Nivel de seguridad alto, de 8 a 15 años; Nivel de seguridad Medio, de 16 a 30 años; Nivel de seguridad bajo, mayor a 31 años de antigüedad | F56: 0.1333333333 | G56: 0 | J56: 0 | K56: 0 | L56: 0 | N56: 3 | O56: Antigüedad: Nivel de seguridad alto, de 8 a 15 años; Nivel de seguridad Medio, de 16 a 30 años; Nivel de seguridad bajo, mayor a 31 años de antigüedad | S56: 0.1333333333 | T56: 0 | U56: 0.5 | W56: 0 | X56: 0.06666666667 | Y56: 0
A57: 4 | B57: Tipo de Cimentación: Cimentación Alto, Platea de cimentación/zapatas ; Cimentación Medio, cimento corrido ; Cimentación bajo, otros. | F57: 0.15 | G57: 0 | H57: 0.5 | J57: 0 | K57: 0.075 | L57: 0 | N57: 4 | O57: Tipo de Cimentación: Cimentación Alto, Platea de cimentación/zapatas ; Cimentación Medio, cimento corrido ; Cimentación bajo, otros. | S57: 0.15 | T57: 0 | U57: 0.5 | W57: 0 | X57: 0.075 | Y57: 0
A58: 5 | B58: Bioseguridad: Nivel de seguridad alto, si cuenta con barrera sanitaria; Nivel de seguridad Medio, si es factible de proponer su remodelación con el uso de barrera sanitaria; Nivel de seguridad bajo,si no es posible la inclusión de una barrera sanitaria. | F58: 0.1 | G58: 0 | J58: 0 | K58: 0 | L58: 0 | N58: 5 | O58: Bioseguridad: Nivel de seguridad alto, si cuenta con barrera sanitaria; Nivel de seguridad Medio, si es factible de proponer su remodelación con el uso de barrera sanitaria; Nivel de seguridad bajo,si no es posible la inclusión de una barrera sanitaria. | S58: 0.1 | T58: 0 | U58: 0.5 | W58: 0 | X58: 0.05 | Y58: 0
A59: 6 | B59: Pertinencia/Ubicación: Nivel de seguridad alto, si el ambiente corresponde a la UPSS normativa; Nivel de seguridad Medio, si el ambiente no cumplen con los criterios de dimensión y ubicación normativos. Nivel de seguridad bajo,si el ambiente no corresponde a la UPSS normativa. | F59: 0.08 | G59: 0 | H59: 0.5 | J59: 0 | K59: 0.04 | L59: 0 | N59: 6 | O59: Pertinencia/Ubicación: Nivel de seguridad alto, si el ambiente corresponde a la UPSS normativa; Nivel de seguridad Medio, si el ambiente no cumplen con los criterios de dimensión y ubicación normativos. Nivel de seguridad bajo,si el ambiente no corresponde a la UPSS normativa. | S59: 0.08 | T59: 0 | U59: 0.5 | W59: 0 | X59: 0.04 | Y59: 0
A60: 7 | B60: Zonificación: Nivel de seguridad alto, si cuenta con las zonas y las dimensiones normativas; Nivel de seguridad Medio, si cuenta con las zonas pero las dimensiones no son normativas; Nivel de seguridad bajo,si no cuenta con las zonas normativas. | F60: 0.07333333333 | G60: 0 | H60: 0.5 | J60: 0 | K60: 0.03666666667 | L60: 0 | N60: 7 | O60: Zonificación: Nivel de seguridad alto, si cuenta con las zonas y las dimensiones normativas; Nivel de seguridad Medio, si cuenta con las zonas pero las dimensiones no son normativas; Nivel de seguridad bajo,si no cuenta con las zonas normativas. | S60: 0.07333333333 | T60: 0 | U60: 0.5 | W60: 0 | X60: 0.03666666667 | Y60: 0
A61: 8 | B61: Estado de Conservación: Nivel de seguridad alto, si recibió mantenimiento correctivo consecutivo en los últimos 5 años en puertas y ventanas, mobiliario fijo, pisos, muros, techos, lavatorios y/o artefactos eléctricos; Nivel de seguridad Medio, si recibió eventualmente el mantenimiento correctivo en los últimos 10 años en puertas y ventanas, mobiliario fijo, pisos, muros, mobiliario fijo, techos, lavatorios y/o artefactos eléctricos; Nivel de seguridad bajo, si no recibió mantenimiento correctivo en los últimos 10 años. | F61: 0.06666666667 | G61: 0 | J61: 0 | K61: 0 | L61: 0 | N61: 8 | O61: Estado de Conservación: Nivel de seguridad alto, si recibió mantenimiento correctivo consecutivo en los últimos 5 años en puertas y ventanas, mobiliario fijo, pisos, muros, techos, lavatorios y/o artefactos eléctricos; Nivel de seguridad Medio, si recibió eventualmente el mantenimiento correctivo en los últimos 10 años en puertas y ventanas, mobiliario fijo, pisos, muros, mobiliario fijo, techos, lavatorios y/o artefactos eléctricos; Nivel de seguridad bajo, si no recibió mantenimiento correctivo en los últimos 10 años. | S61: 0.06666666667 | T61: 0 | U61: 0.5 | W61: 0 | X61: 0.03333333333 | Y61: 0
A62: 9 | B62: Confort: Nivel de seguridad alto, si las ventanas cumplen con los criterios de dimensión y ubicación normativos; Nivel de seguridad Medio, si tiene ventilación forzada; Nivel de seguridad bajo, si las ventanas no cumplen con los criterios de dimensión y ubicación normativos. | F62: 0.04666666667 | G62: 0 | J62: 0 | K62: 0 | L62: 0 | N62: 9 | O62: Confort: Nivel de seguridad alto, si las ventanas cumplen con los criterios de dimensión y ubicación normativos; Nivel de seguridad Medio, si tiene ventilación forzada; Nivel de seguridad bajo, si las ventanas no cumplen con los criterios de dimensión y ubicación normativos. | S62: 0.04666666667 | T62: 0 | U62: 0.5 | W62: 0 | X62: 0.02333333333 | Y62: 0
A63: 10 | B63: Espacios para personas con discapacidad: Cuenta con rampa de acceso y circulación peatonal, cuenta con SH diferenciados, cuenta con espacios para sillas de ruedas en consultorios, cuenta con barandas de apoyo; Nivel de seguridad alto, si cumple los 4 aspectos; Nivel de seguridad Medio, si cumple 3 aspectos; Nivel de seguridad bajo, si cumple al menos 2 aspectos. | F63: 0.03333333333 | G63: 0 | J63: 0 | K63: 0 | L63: 0 | N63: 10 | O63: Espacios para personas con discapacidad: Cuenta con rampa de acceso y circulación peatonal, cuenta con SH diferenciados, cuenta con espacios para sillas de ruedas en consultorios, cuenta con barandas de apoyo; Nivel de seguridad alto, si cumple los 4 aspectos; Nivel de seguridad Medio, si cumple 3 aspectos; Nivel de seguridad bajo, si cumple al menos 2 aspectos. | S63: 0.03333333333 | T63: 0 | U63: 0.5 | W63: 0 | X63: 0.01666666667 | Y63: 0
A64: 11 | B64: Servicios generales: Tratamiento acústico en casa de fuerza, equipos mecánicos ubicados en exteriores protegidos, cuenta con cisternas diferenciadas, cuenta con sistema de evacuación pluvial (canaletas, montante y cunetas), cuenta con almacenes y/o talleres apropiados, cuenta con almacenamiento sin tratmiento de residuos sólidos; Nivel de seguridad alto, si cumple los 6 aspectos; Nivel de seguridad Medio, si cumple 4 ó 5 aspectos; Nivel de seguridad bajo, si cumple con 3 o menos. | F64: 0.06666666667 | G64: 0 | H64: 0.5 | J64: 0 | K64: 0.03333333333 | L64: 0 | N64: 11 | O64: Servicios generales: Tratamiento acústico en casa de fuerza, equipos mecánicos ubicados en exteriores protegidos, cuenta con cisternas diferenciadas, cuenta con sistema de evacuación pluvial (canaletas, montante y cunetas), cuenta con almacenes y/o talleres apropiados, cuenta con almacenamiento sin tratmiento de residuos sólidos; Nivel de seguridad alto, si cumple los 6 aspectos; Nivel de seguridad Medio, si cumple 4 ó 5 aspectos; Nivel de seguridad bajo, si cumple con 3 o menos. | S64: 0.06666666667 | T64: 0 | U64: 0.5 | W64: 0 | X64: 0.03333333333 | Y64: 0
F65: 1 | J65: =SUM(J54:J64) -> 0 | K65: =SUM(K54:K64) -> 0.185 | L65: 0.1 | S65: 1 | W65: =SUM(W54:W64) -> 0 | X65: =SUM(X54:X64) -> 0.45 | Y65: =SUM(Y54:Y64) -> 0.1
A69: Urgencias - Emergencias | N69: Salud Familiar y Comunitaria
A70: N° | B70: DESCRIPCIÓN | F70: PESO DE LA VARIABLE | G70: GRADO DE SEGURIDAD | J70: RESULTANTE | N70: N° | O70: DESCRIPCIÓN | S70: PESO DE LA VARIABLE | T70: GRADO DE SEGURIDAD | W70: RESULTANTE
G71: Bajo | H71: Medio | I71: Alto | J71: Bajo | K71: Medio | L71: Alto | T71: Bajo | U71: Medio | V71: Alto | W71: Bajo | X71: Medio | Y71: Alto
G72: 0 | H72: 0.5 | I72: 1 | J72: 0 | K72: 0.5 | L72: 1 | T72: 0 | U72: 0.5 | V72: 1 | W72: 0 | X72: 0.5 | Y72: 1
A73: 1 | B73: Materiales constructivos: Nivel de seguridad alto, si está construido con material convencional tipo ladrillo, concreto o madera; Nivel de seguridad Medio, si está contruido con material prefabricado no convencional; Nivel de seguridad bajo,si está construido con material ligero tipo adobe sin estabilizar, quincha y similares. | F73: 0.15 | G73: 0 | H73: 0.5 | J73: =+F73*G73 -> 0 | K73: =+H73*F73 -> 0.075 | L73: =+I73*F73 -> 0 | N73: 1 | O73: Materiales constructivos: Nivel de seguridad alto, si está construido con material convencional tipo ladrillo, concreto o madera; Nivel de seguridad Medio, si está contruido con material prefabricado no convencional; Nivel de seguridad bajo,si está construido con material ligero tipo adobe sin estabilizar, quincha y similares. | S73: 0.15 | T73: 0 | W73: =+T73*S73 -> 0 | X73: =+U73*S73 -> 0 | Y73: =+V73*S73 -> 0
A74: 2 | B74: Zonificación Sismica: Nivel de seguridad alto, Si se encuentra en la zona 1; Nivel de seguridad Medio, Si se encuentra en la zona 2; Nivel de seguridad bajo, Si se encuentra en la zona 3 y 4. | F74: 0.1 | G74: 0 | I74: 1 | J74: =+F74*G74 -> 0 | K74: =+H74*F74 -> 0 | L74: =+I74*F74 -> 0.1 | N74: 2 | O74: Zonificación Sismica: Nivel de seguridad alto, Si se encuentra en la zona 1; Nivel de seguridad Medio, Si se encuentra en la zona 2; Nivel de seguridad bajo, Si se encuentra en la zona 3 y 4. | S74: 0.1 | T74: 0 | V74: 1 | W74: 0 | X74: 0 | Y74: 0.1
A75: 3 | B75: Antigüedad: Nivel de seguridad alto, de 8 a 15 años; Nivel de seguridad Medio, de 16 a 30 años; Nivel de seguridad bajo, mayor a 31 años de antigüedad | F75: 0.1333333333 | G75: 0 | H75: 0.5 | J75: 0 | K75: 0.06666666667 | L75: 0 | N75: 3 | O75: Antigüedad: Nivel de seguridad alto, de 8 a 15 años; Nivel de seguridad Medio, de 16 a 30 años; Nivel de seguridad bajo, mayor a 31 años de antigüedad | S75: 0.1333333333 | T75: 0 | W75: 0 | X75: 0 | Y75: 0
A76: 4 | B76: Tipo de Cimentación: Cimentación Alto, Platea de cimentación/zapatas ; Cimentación Medio, cimento corrido ; Cimentación bajo, otros. | F76: 0.15 | G76: 0 | H76: 0.5 | J76: 0 | K76: 0.075 | L76: 0 | N76: 4 | O76: Tipo de Cimentación: Cimentación Alto, Platea de cimentación/zapatas ; Cimentación Medio, cimento corrido ; Cimentación bajo, otros. | S76: 0.15 | T76: 0 | U76: 0.5 | W76: 0 | X76: 0.075 | Y76: 0
A77: 5 | B77: Bioseguridad: Nivel de seguridad alto, si cuenta con barrera sanitaria; Nivel de seguridad Medio, si es factible de proponer su remodelación con el uso de barrera sanitaria; Nivel de seguridad bajo,si no es posible la inclusión de una barrera sanitaria. | F77: 0.1 | G77: 0 | H77: 0.5 | J77: 0 | K77: 0.05 | L77: 0 | N77: 5 | O77: Bioseguridad: Nivel de seguridad alto, si cuenta con barrera sanitaria; Nivel de seguridad Medio, si es factible de proponer su remodelación con el uso de barrera sanitaria; Nivel de seguridad bajo,si no es posible la inclusión de una barrera sanitaria. | S77: 0.1 | T77: 0 | W77: 0 | X77: 0 | Y77: 0
A78: 6 | B78: Pertinencia/Ubicación: Nivel de seguridad alto, si el ambiente corresponde a la UPSS normativa; Nivel de seguridad Medio, si el ambiente no cumplen con los criterios de dimensión y ubicación normativos. Nivel de seguridad bajo,si el ambiente no corresponde a la UPSS normativa. | F78: 0.08 | G78: 0 | H78: 0.5 | J78: 0 | K78: 0.04 | L78: 0 | N78: 6 | O78: Pertinencia/Ubicación: Nivel de seguridad alto, si el ambiente corresponde a la UPSS normativa; Nivel de seguridad Medio, si el ambiente no cumplen con los criterios de dimensión y ubicación normativos. Nivel de seguridad bajo,si el ambiente no corresponde a la UPSS normativa. | S78: 0.08 | T78: 0 | U78: 0.5 | W78: 0 | X78: 0.04 | Y78: 0
A79: 7 | B79: Zonificación: Nivel de seguridad alto, si cuenta con las zonas y las dimensiones normativas; Nivel de seguridad Medio, si cuenta con las zonas pero las dimensiones no son normativas; Nivel de seguridad bajo,si no cuenta con las zonas normativas. | F79: 0.07333333333 | G79: 0 | H79: 0.5 | J79: 0 | K79: 0.03666666667 | L79: 0 | N79: 7 | O79: Zonificación: Nivel de seguridad alto, si cuenta con las zonas y las dimensiones normativas; Nivel de seguridad Medio, si cuenta con las zonas pero las dimensiones no son normativas; Nivel de seguridad bajo,si no cuenta con las zonas normativas. | S79: 0.07333333333 | T79: 0 | U79: 0.5 | W79: 0 | X79: 0.03666666667 | Y79: 0
A80: 8 | B80: Estado de Conservación: Nivel de seguridad alto, si recibió mantenimiento correctivo consecutivo en los últimos 5 años en puertas y ventanas, mobiliario fijo, pisos, muros, techos, lavatorios y/o artefactos eléctricos; Nivel de seguridad Medio, si recibió eventualmente el mantenimiento correctivo en los últimos 10 años en puertas y ventanas, mobiliario fijo, pisos, muros, mobiliario fijo, techos, lavatorios y/o artefactos eléctricos; Nivel de seguridad bajo, si no recibió mantenimiento correctivo en los últimos 10 años. | F80: 0.06666666667 | G80: 0 | H80: 0.5 | J80: 0 | K80: 0.03333333333 | L80: 0 | N80: 8 | O80: Estado de Conservación: Nivel de seguridad alto, si recibió mantenimiento correctivo consecutivo en los últimos 5 años en puertas y ventanas, mobiliario fijo, pisos, muros, techos, lavatorios y/o artefactos eléctricos; Nivel de seguridad Medio, si recibió eventualmente el mantenimiento correctivo en los últimos 10 años en puertas y ventanas, mobiliario fijo, pisos, muros, mobiliario fijo, techos, lavatorios y/o artefactos eléctricos; Nivel de seguridad bajo, si no recibió mantenimiento correctivo en los últimos 10 años. | S80: 0.06666666667 | T80: 0 | W80: 0 | X80: 0 | Y80: 0
A81: 9 | B81: Confort: Nivel de seguridad alto, si las ventanas cumplen con los criterios de dimensión y ubicación normativos; Nivel de seguridad Medio, si tiene ventilación forzada; Nivel de seguridad bajo, si las ventanas no cumplen con los criterios de dimensión y ubicación normativos. | F81: 0.04666666667 | G81: 0 | H81: 0.5 | J81: 0 | K81: 0.02333333333 | L81: 0 | N81: 9 | O81: Confort: Nivel de seguridad alto, si las ventanas cumplen con los criterios de dimensión y ubicación normativos; Nivel de seguridad Medio, si tiene ventilación forzada; Nivel de seguridad bajo, si las ventanas no cumplen con los criterios de dimensión y ubicación normativos. | S81: 0.04666666667 | T81: 0 | W81: 0 | X81: 0 | Y81: 0
A82: 10 | B82: Espacios para personas con discapacidad: Cuenta con rampa de acceso y circulación peatonal, cuenta con SH diferenciados, cuenta con espacios para sillas de ruedas en consultorios, cuenta con barandas de apoyo; Nivel de seguridad alto, si cumple los 4 aspectos; Nivel de seguridad Medio, si cumple 3 aspectos; Nivel de seguridad bajo, si cumple al menos 2 aspectos. | F82: 0.03333333333 | G82: 0 | H82: 0.5 | J82: 0 | K82: 0.01666666667 | L82: 0 | N82: 10 | O82: Espacios para personas con discapacidad: Cuenta con rampa de acceso y circulación peatonal, cuenta con SH diferenciados, cuenta con espacios para sillas de ruedas en consultorios, cuenta con barandas de apoyo; Nivel de seguridad alto, si cumple los 4 aspectos; Nivel de seguridad Medio, si cumple 3 aspectos; Nivel de seguridad bajo, si cumple al menos 2 aspectos. | S82: 0.03333333333 | T82: 0 | W82: =+T82*S82 -> 0 | X82: 0 | Y82: 0
A83: 11 | B83: Servicios generales: Tratamiento acústico en casa de fuerza, equipos mecánicos ubicados en exteriores protegidos, cuenta con cisternas diferenciadas, cuenta con sistema de evacuación pluvial (canaletas, montante y cunetas), cuenta con almacenes y/o talleres apropiados, cuenta con almacenamiento sin tratmiento de residuos sólidos; Nivel de seguridad alto, si cumple los 6 aspectos; Nivel de seguridad Medio, si cumple 4 ó 5 aspectos; Nivel de seguridad bajo, si cumple con 3 o menos. | F83: 0.06666666667 | G83: 0 | H83: 0.5 | J83: 0 | K83: 0.03333333333 | L83: 0 | N83: 11 | O83: Servicios generales: Tratamiento acústico en casa de fuerza, equipos mecánicos ubicados en exteriores protegidos, cuenta con cisternas diferenciadas, cuenta con sistema de evacuación pluvial (canaletas, montante y cunetas), cuenta con almacenes y/o talleres apropiados, cuenta con almacenamiento sin tratmiento de residuos sólidos; Nivel de seguridad alto, si cumple los 6 aspectos; Nivel de seguridad Medio, si cumple 4 ó 5 aspectos; Nivel de seguridad bajo, si cumple con 3 o menos. | S83: 0.06666666667 | T83: 0 | U83: 0.5 | W83: 0 | X83: 0.03333333333 | Y83: 0
F84: 1 | J84: =SUM(J73:J83) -> 0 | K84: =SUM(K73:K83) -> 0.45 | L84: 0.1 | S84: 1 | W84: =SUM(W73:W83) -> 0 | X84: =SUM(X73:X83) -> 0.185 | Y84: =SUM(Y73:Y83) -> 0.1
A87: Toma de Muestras | N87: Desinfección y Esterilizacion
A88: N° | B88: DESCRIPCIÓN | F88: PESO DE LA VARIABLE | G88: GRADO DE SEGURIDAD | J88: RESULTANTE | N88: N° | O88: DESCRIPCIÓN | S88: PESO DE LA VARIABLE | T88: GRADO DE SEGURIDAD | W88: RESULTANTE
G89: Bajo | H89: Medio | I89: Alto | J89: Bajo | K89: Medio | L89: Alto | T89: Bajo | U89: Medio | V89: Alto | W89: Bajo | X89: Medio | Y89: Alto
G90: 0 | H90: 0.5 | I90: 1 | J90: 0 | K90: 0.5 | L90: 1 | T90: 0 | U90: 0.5 | V90: 1 | W90: 0 | X90: 0.5 | Y90: 1
A91: 1 | B91: Materiales constructivos: Nivel de seguridad alto, si está construido con material convencional tipo ladrillo, concreto o madera; Nivel de seguridad Medio, si está contruido con material prefabricado no convencional; Nivel de seguridad bajo,si está construido con material ligero tipo adobe sin estabilizar, quincha y similares. | F91: 0.15 | G91: 0 | J91: =+F91*G91 -> 0 | K91: =+H91*F91 -> 0 | L91: =+I91*F91 -> 0 | N91: 1 | O91: Materiales constructivos: Nivel de seguridad alto, si está construido con material convencional tipo ladrillo, concreto o madera; Nivel de seguridad Medio, si está contruido con material prefabricado no convencional; Nivel de seguridad bajo,si está construido con material ligero tipo adobe sin estabilizar, quincha y similares. | S91: 0.15 | T91: 0 | U91: 0.5 | W91: =+T91*S91 -> 0 | X91: =+U91*S91 -> 0.075 | Y91: =+V91*S91 -> 0
A92: 2 | B92: Zonificación Sismica: Nivel de seguridad alto, Si se encuentra en la zona 1; Nivel de seguridad Medio, Si se encuentra en la zona 2; Nivel de seguridad bajo, Si se encuentra en la zona 3 y 4. | F92: 0.1 | G92: 0 | I92: 1 | J92: 0 | K92: 0 | L92: 0.1 | N92: 2 | O92: Zonificación Sismica: Nivel de seguridad alto, Si se encuentra en la zona 1; Nivel de seguridad Medio, Si se encuentra en la zona 2; Nivel de seguridad bajo, Si se encuentra en la zona 3 y 4. | S92: 0.1 | T92: 0 | V92: 1 | W92: 0 | X92: 0 | Y92: 0.1
A93: 3 | B93: Antigüedad: Nivel de seguridad alto, de 8 a 15 años; Nivel de seguridad Medio, de 16 a 30 años; Nivel de seguridad bajo, mayor a 31 años de antigüedad | F93: 0.1333333333 | G93: 0 | J93: 0 | K93: 0 | L93: 0 | N93: 3 | O93: Antigüedad: Nivel de seguridad alto, de 8 a 15 años; Nivel de seguridad Medio, de 16 a 30 años; Nivel de seguridad bajo, mayor a 31 años de antigüedad | S93: 0.1333333333 | T93: 0 | U93: 0.5 | W93: 0 | X93: 0.06666666667 | Y93: 0
A94: 4 | B94: Tipo de Cimentación: Cimentación Alto, Platea de cimentación/zapatas ; Cimentación Medio, cimento corrido ; Cimentación bajo, otros. | F94: 0.15 | G94: 0 | H94: 0.5 | J94: 0 | K94: 0.075 | L94: 0 | N94: 4 | O94: Tipo de Cimentación: Cimentación Alto, Platea de cimentación/zapatas ; Cimentación Medio, cimento corrido ; Cimentación bajo, otros. | S94: 0.15 | T94: 0 | U94: 0.5 | W94: 0 | X94: 0.075 | Y94: 0
A95: 5 | B95: Bioseguridad: Nivel de seguridad alto, si cuenta con barrera sanitaria; Nivel de seguridad Medio, si es factible de proponer su remodelación con el uso de barrera sanitaria; Nivel de seguridad bajo,si no es posible la inclusión de una barrera sanitaria. | F95: 0.1 | G95: 0 | J95: 0 | K95: 0 | L95: 0 | N95: 5 | O95: Bioseguridad: Nivel de seguridad alto, si cuenta con barrera sanitaria; Nivel de seguridad Medio, si es factible de proponer su remodelación con el uso de barrera sanitaria; Nivel de seguridad bajo,si no es posible la inclusión de una barrera sanitaria. | S95: 0.1 | T95: 0 | U95: 0.5 | W95: 0 | X95: 0.05 | Y95: 0
A96: 6 | B96: Pertinencia/Ubicación: Nivel de seguridad alto, si el ambiente corresponde a la UPSS normativa; Nivel de seguridad Medio, si el ambiente no cumplen con los criterios de dimensión y ubicación normativos. Nivel de seguridad bajo,si el ambiente no corresponde a la UPSS normativa. | F96: 0.08 | G96: 0 | H96: 0.5 | J96: 0 | K96: 0.04 | L96: 0 | N96: 6 | O96: Pertinencia/Ubicación: Nivel de seguridad alto, si el ambiente corresponde a la UPSS normativa; Nivel de seguridad Medio, si el ambiente no cumplen con los criterios de dimensión y ubicación normativos. Nivel de seguridad bajo,si el ambiente no corresponde a la UPSS normativa. | S96: 0.08 | T96: 0 | U96: 0.5 | W96: 0 | X96: 0.04 | Y96: 0
A97: 7 | B97: Zonificación: Nivel de seguridad alto, si cuenta con las zonas y las dimensiones normativas; Nivel de seguridad Medio, si cuenta con las zonas pero las dimensiones no son normativas; Nivel de seguridad bajo,si no cuenta con las zonas normativas. | F97: 0.07333333333 | G97: 0 | H97: 0.5 | J97: 0 | K97: 0.03666666667 | L97: 0 | N97: 7 | O97: Zonificación: Nivel de seguridad alto, si cuenta con las zonas y las dimensiones normativas; Nivel de seguridad Medio, si cuenta con las zonas pero las dimensiones no son normativas; Nivel de seguridad bajo,si no cuenta con las zonas normativas. | S97: 0.07333333333 | T97: 0 | U97: 0.5 | W97: 0 | X97: 0.03666666667 | Y97: 0
A98: 8 | B98: Estado de Conservación: Nivel de seguridad alto, si recibió mantenimiento correctivo consecutivo en los últimos 5 años en puertas y ventanas, mobiliario fijo, pisos, muros, techos, lavatorios y/o artefactos eléctricos; Nivel de seguridad Medio, si recibió eventualmente el mantenimiento correctivo en los últimos 10 años en puertas y ventanas, mobiliario fijo, pisos, muros, mobiliario fijo, techos, lavatorios y/o artefactos eléctricos; Nivel de seguridad bajo, si no recibió mantenimiento correctivo en los últimos 10 años. | F98: 0.06666666667 | G98: 0 | J98: 0 | K98: 0 | L98: 0 | N98: 8 | O98: Estado de Conservación: Nivel de seguridad alto, si recibió mantenimiento correctivo consecutivo en los últimos 5 años en puertas y ventanas, mobiliario fijo, pisos, muros, techos, lavatorios y/o artefactos eléctricos; Nivel de seguridad Medio, si recibió eventualmente el mantenimiento correctivo en los últimos 10 años en puertas y ventanas, mobiliario fijo, pisos, muros, mobiliario fijo, techos, lavatorios y/o artefactos eléctricos; Nivel de seguridad bajo, si no recibió mantenimiento correctivo en los últimos 10 años. | S98: 0.06666666667 | T98: 0 | U98: 0.5 | W98: 0 | X98: 0.03333333333 | Y98: 0
A99: 9 | B99: Confort: Nivel de seguridad alto, si las ventanas cumplen con los criterios de dimensión y ubicación normativos; Nivel de seguridad Medio, si tiene ventilación forzada; Nivel de seguridad bajo, si las ventanas no cumplen con los criterios de dimensión y ubicación normativos. | F99: 0.04666666667 | G99: 0 | J99: 0 | K99: 0 | L99: 0 | N99: 9 | O99: Confort: Nivel de seguridad alto, si las ventanas cumplen con los criterios de dimensión y ubicación normativos; Nivel de seguridad Medio, si tiene ventilación forzada; Nivel de seguridad bajo, si las ventanas no cumplen con los criterios de dimensión y ubicación normativos. | S99: 0.04666666667 | T99: 0 | U99: 0.5 | W99: 0 | X99: 0.02333333333 | Y99: 0
A100: 10 | B100: Espacios para personas con discapacidad: Cuenta con rampa de acceso y circulación peatonal, cuenta con SH diferenciados, cuenta con espacios para sillas de ruedas en consultorios, cuenta con barandas de apoyo; Nivel de seguridad alto, si cumple los 4 aspectos; Nivel de seguridad Medio, si cumple 3 aspectos; Nivel de seguridad bajo, si cumple al menos 2 aspectos. | F100: 0.03333333333 | G100: 0 | J100: 0 | K100: 0 | L100: =+I100*F100 -> 0 | N100: 10 | O100: Espacios para personas con discapacidad: Cuenta con rampa de acceso y circulación peatonal, cuenta con SH diferenciados, cuenta con espacios para sillas de ruedas en consultorios, cuenta con barandas de apoyo; Nivel de seguridad alto, si cumple los 4 aspectos; Nivel de seguridad Medio, si cumple 3 aspectos; Nivel de seguridad bajo, si cumple al menos 2 aspectos. | S100: 0.03333333333 | T100: 0 | U100: 0.5 | W100: 0 | X100: 0.01666666667 | Y100: 0
A101: 11 | B101: Servicios generales: Tratamiento acústico en casa de fuerza, equipos mecánicos ubicados en exteriores protegidos, cuenta con cisternas diferenciadas, cuenta con sistema de evacuación pluvial (canaletas, montante y cunetas), cuenta con almacenes y/o talleres apropiados, cuenta con almacenamiento sin tratmiento de residuos sólidos; Nivel de seguridad alto, si cumple los 6 aspectos; Nivel de seguridad Medio, si cumple 4 ó 5 aspectos; Nivel de seguridad bajo, si cumple con 3 o menos. | F101: 0.06666666667 | G101: 0 | H101: 0.5 | J101: 0 | K101: 0.03333333333 | L101: 0 | N101: 11 | O101: Servicios generales: Tratamiento acústico en casa de fuerza, equipos mecánicos ubicados en exteriores protegidos, cuenta con cisternas diferenciadas, cuenta con sistema de evacuación pluvial (canaletas, montante y cunetas), cuenta con almacenes y/o talleres apropiados, cuenta con almacenamiento sin tratmiento de residuos sólidos; Nivel de seguridad alto, si cumple los 6 aspectos; Nivel de seguridad Medio, si cumple 4 ó 5 aspectos; Nivel de seguridad bajo, si cumple con 3 o menos. | S101: 0.06666666667 | T101: 0 | U101: 0.5 | W101: 0 | X101: 0.03333333333 | Y101: 0
F102: 1 | J102: =SUM(J91:J101) -> 0 | K102: =SUM(K91:K101) -> 0.185 | L102: 0.1 | S102: 1 | W102: =SUM(W91:W101) -> 0 | X102: =SUM(X91:X101) -> 0.45 | Y102: 0.1

Sheet Sección I
B3: Sección I: PROGRAMA MÉDICO FUNCIONAL
C4: CENTRO DE SALUD MENTAL COMUNITARIA
C6: NOMBRE UP (ES): | I6: CODIGO RENIPRESS:
C7: Distrito, Provincia, Departamento:
C8: Fecha:
C9: CARTERA DE SERVICIOS | G9: ATENCIONES AÑO 13 | H9: PROD. OP. | I9: GDU | J9: AMBIENTES DEL SERVICIO | N9: CANT. | O9: PRECISIONES
C11: UPSS CONSULTA EXTERNA
C12: Consulta ambulatoría por médico especialista en psiquiatría | G12: ='FTE Sección B-F'!K346 -> 5333.264264 | H12: ='FTE Sección B-F'!M346 -> 5400 | I12: =G12/H12 -> 0.9876415303 | J12: CONSULTORIO DE PSIQUIATRÍA PARA NIÑA NIÑO Y ADOLESCENTE | N12: 1 | O12: Considerar equipamiento para telemedicina (TIC) en caso no justifique la implementación de un teleconsultorio.
G14: ='FTE Sección B-F'!K348 -> 7629.078451 | H14: ='FTE Sección B-F'!M348 -> 5400 | I14: 1.412792306 | J14: CONSULTORIO DE PSIQUIATRÍA PARA ADULTO Y ADULTO MAYOR | N14: 2
C15: Atención de procedimientos ambulatorios en la especialidad de psiquiatría
G16: ='FTE Sección B-F'!K350 -> 173.7086827 | H16: ='FTE Sección B-F'!M350 -> 5400 | I16: 0.03216827457 | J16: CONSULTORIO DE PSIQUIATRÍA DE PACIENTES CON ADICCIONES
C18: Consulta ambulatoria por médico especialista en medicina familiar y comunitaria | G18: ='FTE Sección B-F'!K352 -> 1505.317104 | H18: ='FTE Sección B-F'!M352 -> 5400 | I18: =G18/H18 -> 0.2787624267 | J18: CONSULTORIO NIÑA NIÑO Y ADOLESCENTE | N18: 1 | O18: Considerar equipamiento para telemedicina (TIC). De acuerdo con oferta de recurso humano en salud podría corresponder la prestación de Consulta ambulatoria por médico general capacitado en salud mental.
G20: ='FTE Sección B-F'!K354 -> 2466.933709 | H20: ='FTE Sección B-F'!M354 -> 5400 | I20: 0.4568395757 | J20: CONSULTORIO ADULTO Y ADULTO MAYOR | N20: 1
C21: Atención de procedimientos ambulatorios en la especialidad de medicina familiar y comunitaria
G22: ='FTE Sección B-F'!K356 -> 53.81475634 | H22: ='FTE Sección B-F'!M356 -> 5400 | I22: 0.009965695618 | J22: CONSULTORIO ADICCIONES
C24: Teleconsulta por médico especialista en psiquiatría | G24: ='FTE Sección B-F'!K358 -> 2511.979942 | H24: ='FTE Sección B-F'!M358 -> 7200 | I24: 0.348886103 | J24: TELECONSULTORIO | N24: 0 | O24: Estas prestaciones se realizaran en los ambientes de la consulta ambulatoria. Garantizando el equipamiento correspondiente cuando la demanda no justifique tener un ambiente exclusivo. Por lo que los servicios tendrán que ser equipados con TICs.
C25: Teleconsulta por médico especialista en medicina familiar y comunitaria
C26: Teleconsulta por profesional de salud psicólogo (a)
C27: Teleconsulta por profesional de salud enfermera (o)
C28: Teleinterconsulta por médico especialista en psiquiatría
C29: Teleinterconsulta por médico especialista en medicina familiar y comunitaria
C30: Teleinterconsulta por profesional de salud psicólogo (a)
C31: Teleinterconsulta por profesional de salud enfermera (o)
C32: Teleinterconsulta por profesional de salud trabajador (a) social
C33: Teleorientación por médico especialista en psiquiatría
C34: Teleorientación por médico especialista en medicina familiar y comunitaria
C35: Teleorientación por profesional de salud psicólogo (a)
C36: Teleorientación por profesional de salud enfermera (o)
C37: Teleorientación por profesional de salud trabajador (a) social
C38: Teleseguimiento por médico especialista en psiquiatría
C39: Teleseguimiento por médico especialista en medicina familiar y comunitaria
C40: Teleseguimiento por profesional de salud psicólogo (a)
C41: Teleseguimiento por profesional de salud enfermera (o)
C42: Teleseguimiento por profesional de salud trabajador (a) social
C43: Atención ambulatoria por psicologo(a) | G43: ='FTE Sección B-F'!K377 -> 8071.046777 | H43: ='FTE Sección B-F'!M377 -> 5400 | I43: 1.494638292 | J43: CONSULTORIO DE PSICOLOGÍA NIÑA NIÑO Y ADOLESCENTE | N43: 2
G44: ='FTE Sección B-F'!K378 -> 13417.5796 | H44: ='FTE Sección B-F'!M378 -> 5400 | I44: 2.484736963 | J44: CONSULTORIO DE PSICOLOGÍA ADULTO Y ADULTO MAYOR | N44: 3
G45: ='FTE Sección B-F'!K379 -> 496.4504452 | H45: ='FTE Sección B-F'!M379 -> 5400 | I45: 0.09193526763 | J45: CONSULTORIO DE PSICOLOGÍA ADICCONES
C46: Atención ambulatoria por enfermero(a) | G46: ='FTE Sección B-F'!K380 -> 2198.507682 | H46: ='FTE Sección B-F'!M380 -> 4800 | I46: 0.4580224338 | J46: SALA DE ACOGIDA Y DE VALORACÍON INICIAL | N46: 1
G47: ='FTE Sección B-F'!K381 -> 11158.89863 | H47: ='FTE Sección B-F'!M381 -> 7200 | I47: 1.549847032 | J47: SALA DE SEGUIMIENTO Y CONTINUIDAD DE CUIDADOS | N47: 2
C48: Atención ambulatoria diferenciada por profesional de la salud | G48: ='FTE Sección B-F'!K382 -> 2198.507682 | H48: ='FTE Sección B-F'!M382 -> 3600 | I48: =G48/H48 -> 0.6106965784 | J48: SALA EVALUACIÓN INTEGRAL EN SALUD MENTAL | N48: 1 | O48: Incluye trabajador (a) social.
C49: UPSS CENTRO DE REHABILITACIÓN PSICOSOCIAL
C50: Atención de centro de rehabilitación psicosocial mediante terapia de lenguaje | G50: ='FTE Sección B-F'!K384 -> 4991.607137 | H50: ='FTE Sección B-F'!M384 -> 7200 | I50: 0.693278769 | J50: SALA DE TERAPIA DE LENGUAJE | N50: 1 | O50: Bajo la responsabilidad del profesional tecnólogo(a) médico en terapia de lenguaje con apoyo de equipo multidisciplinario en un ambiente específico. Las terapias son indicadas y supervisadas por médico especialista en psiquiatría o médico especialista en medicina familiar y comunitaria o médico general capacitado en salud mental.
C51: Atención de centro de rehabilitación psicosocial por profesional de la salud enfermero (a) | G51: ='FTE Sección B-F'!K385 -> 5426.274192 | H51: ='FTE Sección B-F'!M385 -> 7200 | I51: =G51/H51 -> 0.7536491933 | J51: SALA DE REHABILITACIÓN PSICOSOCIAL | N51: 1 | O51: Bajo la responsabilidad del médico especialista en psiquiatría o médico especialista en medicina familiar y comunitaria o médico general capacitado en salud mental con apoyo de equipo multidisciplinario en un ambiente específico.
C52: Atención de centro de rehabilitación psicosocial por profesional de la salud psicólogo (a)
C53: Atención de centro de rehabilitación psicosocial por profesional de la salud trabajador (a) social
C54: Atención de centro de rehabilitación psicosocial por técnologo (a) médico en terapia ocupacional | G54: ='FTE Sección B-F'!K388 -> 410.8086188 | H54: ='FTE Sección B-F'!M388 -> 7200 | I54: 0.05705675261 | J54: SALA DE REHABILITACIÓN LABORAL | O54: Bajo la responsabilidad del profesional tecnólogo(a) médico en terapia ocupacional con apoyo de equipo multidisciplinario en un ambiente específico. Las terapias son indicadas y supervisadas por médico especialista en psiquiatría o médico especialista en medicina familiar y comunitaria o médico general capacitado en salud mental.
C55: ATENCIÓN DE URGENCIA Y EMERGENCIA
C56: Atención de urgencias y emergencias por médico especialista en psiquiatria | G56: ='FTE Sección B-F'!K390 -> 1733.373814 | H56: ='FTE Sección B-F'!M390 -> 7200 | I56: =G56/H56 -> 0.240746363 | J56: TÓPICO DE URGENCIAS Y EMERGENCIAS | N56: 1 | O56: Incluye área y equipamiento de reposo u observación y área de procedimientos de enfermería..
C57: Atención de urgencias y emergencias por médico especialista en medicina familiar y comunitaria
C58: Atención inicial de urgencias y emergencias por personal de la salud
C59: ACTIVIDAD PRUEBAS RÁPIDAS Y TOMA DE MUESTRAS
C60: Pruebas rápidas y toma de muestras biológicas | G60: ='FTE Sección B-F'!K394 -> 1341.75796 | H60: ='FTE Sección B-F'!M394 -> 27000 | I60: =G60/H60 -> 0.04969473926 | J60: TOMA DE MUESTRAS | N60: 1 | O60: Si la demanda no justifica un ambiente exclusivo para toma de muestras, la actividad debe implementarse en el área del tópico de urgencia y emergencia. Sino se cuenta con un establecimiento de salud del I NAS con UPSS Patología Clínica a menos de 2 horas, se deberá incluir un área y equipamiento para procesamiento de muestras para UPSS Patología Clínica en los servicios de Hematología/Bioquímica
J61: HEMATOLOGÍA/BIOQUÍMICA
C62: ACTIVIDAD DE ATENCIÓN CON MEDICAMENTOS
C63: Dispensación de productos farmaceùticas, dispositivos médicos y productos sanitarios | G63: ='FTE Sección B-F'!K397 -> 16586.41457 | H63: ='FTE Sección B-F'!M397 -> N.A. | I63: 1 | J63: DISPENSACIÓN Y EXPENDIO EN UPSS CONSULTA EXTERNA | N63: 1 | O63: Considerar equipamiento para telemedicina (TIC) en los mismos ambientes de la UPSS Farmacia.
C64: Atenciòn en Farmacia Clìnica
C65: Atención en Farmacotecnia
C66: Teledispensación de productos farmacéuticos, dispositivos médicos y productos sanitarios
C67: Telefarmacia Clínica
C68: Teleasesoría en Farmacotecnia
C69: ACTIVIDAD DE DESINFECCIÓN Y ESTERILIZACIÓN
C70: Desinfección y Esterilización | G70: ='FTE Sección B-F'!K404 -> 17.16211697 | H70: N.A. | I70: 1 | J70: ZONA ROJA | N70: 0 | O70: La actividad se brindará en un área del tópico de urgencia y emergencia. Considerar equipamiento
J71: ZONA AZUL
J72: ZONA VERDE
C73: ACTIVIDAD DE SALUD FAMILIAR Y COMUNITARIA
C74: Intervenciones educativas y comunicacionales por personal de salud | G74: ='FTE Sección B-F'!K408 -> 6595.523047 | H74: ='FTE Sección B-F'!M408 -> N.A. | I74: 1 | J74: SALA DE SALUD FAMILIAR Y COMUNITARIA | N74: 1 | O74: Incluye materiales para las actividades intra y extramurales
C75: Visita domiciliaria por médico especialista en psiquiatria
C76: Visita domiciliaria por médico especialista en medicina familiar y comunitaria
C77: Visita domiciliaria por profesional de enfermero (a)
C78: Visita domiciliaria por profesional de psicólogo (a)
C79: Visita domiciliaria por trabajardor (a) social
C82: UNIDAD PRODUCTORA DE SERVICIOS (**)
C83: UPS ADMINISTRACIÓN (***)
C84: UPS GESTIÓN DE LA INFORMACIÓN
C85: UPS ALMACEN
C86: RESIDENCIA PERSONAL DE SALUD
C87: Se debe optimizar los ambientes según organización, de acuerdo a lo señalado en Anexo N° 05 del instructivo. Considerar UPS transporte asistido siempre que tenga ambulancia

Sheet Sección J
A2: Seccion J: PROGRAMA DE RECURSOS HUMANOS EN SALUD -RHUS
B4: J1. Estimación exacta de las necesidades de RHUS por grupo ocupacional del E.S. con el Proyecto
B6: Grupo ocupacional | C6: 1 | D6: 2 | E6: 3 | F6: 4 | G6: 5 | H6: 6 | I6: 7 | J6: 8 | K6: 9 | L6: 10 | M6: 11 | N6: 12 | O6: 13
B7: =+'Paso 1.3.2'!B5 -> Médico especialista en psiquiatría | C7: =+'Paso 1.3.2'!C5 -> 8 | D7: =+'Paso 1.3.2'!D5 -> 8 | E7: =+'Paso 1.3.2'!E5 -> 9 | F7: =+'Paso 1.3.2'!F5 -> 9 | G7: =+'Paso 1.3.2'!G5 -> 9 | H7: =+'Paso 1.3.2'!H5 -> 9 | I7: =+'Paso 1.3.2'!I5 -> 9 | J7: =+'Paso 1.3.2'!J5 -> 9 | K7: =+'Paso 1.3.2'!K5 -> 9 | L7: =+'Paso 1.3.2'!L5 -> 9 | M7: =+'Paso 1.3.2'!M5 -> 9 | N7: =+'Paso 1.3.2'!N5 -> 9 | O7: =+'Paso 1.3.2'!O5 -> 9
B8: =+'Paso 1.3.2'!B6 -> Médico especialista en medicina familiar y comunitaria | C8: =+'Paso 1.3.2'!C6 -> 3 | D8: =+'Paso 1.3.2'!D6 -> 3 | E8: =+'Paso 1.3.2'!E6 -> 3 | F8: =+'Paso 1.3.2'!F6 -> 3 | G8: =+'Paso 1.3.2'!G6 -> 3 | H8: =+'Paso 1.3.2'!H6 -> 4 | I8: =+'Paso 1.3.2'!I6 -> 4 | J8: =+'Paso 1.3.2'!J6 -> 4 | K8: =+'Paso 1.3.2'!K6 -> 4 | L8: =+'Paso 1.3.2'!L6 -> 4 | M8: =+'Paso 1.3.2'!M6 -> 4 | N8: =+'Paso 1.3.2'!N6 -> 4 | O8: =+'Paso 1.3.2'!O6 -> 4
B9: Total de Médicos | C9: =SUM(C7:C8) -> 11 | D9: 11 | E9: 12 | F9: 12 | G9: 12 | H9: 13 | I9: 13 | J9: 13 | K9: 13 | L9: 13 | M9: 13 | N9: 13 | O9: 13
B10: =+'Paso 1.3.2'!B8 -> Enfermera (o) | C10: =+'Paso 1.3.2'!C8 -> 9 | D10: =+'Paso 1.3.2'!D8 -> 9 | E10: =+'Paso 1.3.2'!E8 -> 9 | F10: =+'Paso 1.3.2'!F8 -> 9 | G10: =+'Paso 1.3.2'!G8 -> 9 | H10: =+'Paso 1.3.2'!H8 -> 9 | I10: =+'Paso 1.3.2'!I8 -> 9 | J10: =+'Paso 1.3.2'!J8 -> 10 | K10: =+'Paso 1.3.2'!K8 -> 10 | L10: =+'Paso 1.3.2'!L8 -> 10 | M10: =+'Paso 1.3.2'!M8 -> 10 | N10: =+'Paso 1.3.2'!N8 -> 10 | O10: =+'Paso 1.3.2'!O8 -> 10
B11: =+'Paso 1.3.2'!B9 -> Psicólogo | C11: =+'Paso 1.3.2'!C9 -> 13 | D11: =+'Paso 1.3.2'!D9 -> 13 | E11: =+'Paso 1.3.2'!E9 -> 13 | F11: =+'Paso 1.3.2'!F9 -> 13 | G11: =+'Paso 1.3.2'!G9 -> 13 | H11: =+'Paso 1.3.2'!H9 -> 13 | I11: =+'Paso 1.3.2'!I9 -> 13 | J11: =+'Paso 1.3.2'!J9 -> 13 | K11: =+'Paso 1.3.2'!K9 -> 13 | L11: =+'Paso 1.3.2'!L9 -> 13 | M11: =+'Paso 1.3.2'!M9 -> 13 | N11: =+'Paso 1.3.2'!N9 -> 13 | O11: =+'Paso 1.3.2'!O9 -> 13
B12: =+'Paso 1.3.2'!B10 -> Químico Farmacéutico | C12: =+'Paso 1.3.2'!C10 -> 2 | D12: =+'Paso 1.3.2'!D10 -> 2 | E12: =+'Paso 1.3.2'!E10 -> 2 | F12: =+'Paso 1.3.2'!F10 -> 2 | G12: =+'Paso 1.3.2'!G10 -> 2 | H12: =+'Paso 1.3.2'!H10 -> 2 | I12: =+'Paso 1.3.2'!I10 -> 2 | J12: =+'Paso 1.3.2'!J10 -> 2 | K12: =+'Paso 1.3.2'!K10 -> 2 | L12: =+'Paso 1.3.2'!L10 -> 2 | M12: =+'Paso 1.3.2'!M10 -> 2 | N12: =+'Paso 1.3.2'!N10 -> 2 | O12: =+'Paso 1.3.2'!O10 -> 2
B13: =+'Paso 1.3.2'!B11 -> Tecnólogo(a) médico en terapia de lenguaje | C13: =+'Paso 1.3.2'!C11 -> 2 | D13: =+'Paso 1.3.2'!D11 -> 2 | E13: =+'Paso 1.3.2'!E11 -> 2 | F13: =+'Paso 1.3.2'!F11 -> 2 | G13: =+'Paso 1.3.2'!G11 -> 2 | H13: =+'Paso 1.3.2'!H11 -> 2 | I13: =+'Paso 1.3.2'!I11 -> 3 | J13: =+'Paso 1.3.2'!J11 -> 3 | K13: =+'Paso 1.3.2'!K11 -> 3 | L13: =+'Paso 1.3.2'!L11 -> 3 | M13: =+'Paso 1.3.2'!M11 -> 3 | N13: =+'Paso 1.3.2'!N11 -> 3 | O13: =+'Paso 1.3.2'!O11 -> 3
B14: =+'Paso 1.3.2'!B12 -> Técnologo (a) médico en terapia ocupacional | C14: =+'Paso 1.3.2'!C12 -> 1 | D14: =+'Paso 1.3.2'!D12 -> 1 | E14: =+'Paso 1.3.2'!E12 -> 1 | F14: =+'Paso 1.3.2'!F12 -> 1 | G14: =+'Paso 1.3.2'!G12 -> 1 | H14: =+'Paso 1.3.2'!H12 -> 1 | I14: =+'Paso 1.3.2'!I12 -> 1 | J14: =+'Paso 1.3.2'!J12 -> 1 | K14: =+'Paso 1.3.2'!K12 -> 1 | L14: =+'Paso 1.3.2'!L12 -> 1 | M14: =+'Paso 1.3.2'!M12 -> 1 | N14: =+'Paso 1.3.2'!N12 -> 1 | O14: =+'Paso 1.3.2'!O12 -> 1
B15: =+'Paso 1.3.2'!B13 -> Tecnólogo Medico en Laboratorio Clinico y Anatomia Patologica | C15: =+'Paso 1.3.2'!C13 -> 1 | D15: =+'Paso 1.3.2'!D13 -> 1 | E15: =+'Paso 1.3.2'!E13 -> 1 | F15: =+'Paso 1.3.2'!F13 -> 1 | G15: =+'Paso 1.3.2'!G13 -> 1 | H15: =+'Paso 1.3.2'!H13 -> 1 | I15: =+'Paso 1.3.2'!I13 -> 1 | J15: =+'Paso 1.3.2'!J13 -> 1 | K15: =+'Paso 1.3.2'!K13 -> 1 | L15: =+'Paso 1.3.2'!L13 -> 1 | M15: =+'Paso 1.3.2'!M13 -> 1 | N15: =+'Paso 1.3.2'!N13 -> 1 | O15: =+'Paso 1.3.2'!O13 -> 1
B16: =+'Paso 1.3.2'!B14 -> Técnico en Enfermería | C16: =+'Paso 1.3.2'!C14 -> 5 | D16: =+'Paso 1.3.2'!D14 -> 5 | E16: =+'Paso 1.3.2'!E14 -> 5 | F16: =+'Paso 1.3.2'!F14 -> 5 | G16: =+'Paso 1.3.2'!G14 -> 5 | H16: =+'Paso 1.3.2'!H14 -> 5 | I16: =+'Paso 1.3.2'!I14 -> 6 | J16: =+'Paso 1.3.2'!J14 -> 6 | K16: =+'Paso 1.3.2'!K14 -> 6 | L16: =+'Paso 1.3.2'!L14 -> 6 | M16: =+'Paso 1.3.2'!M14 -> 6 | N16: =+'Paso 1.3.2'!N14 -> 6 | O16: =+'Paso 1.3.2'!O14 -> 6
B17: =+'Paso 1.3.2'!B15 -> Técnico en Farmacia | C17: =+'Paso 1.3.2'!C15 -> 2 | D17: =+'Paso 1.3.2'!D15 -> 2 | E17: =+'Paso 1.3.2'!E15 -> 2 | F17: =+'Paso 1.3.2'!F15 -> 2 | G17: =+'Paso 1.3.2'!G15 -> 2 | H17: =+'Paso 1.3.2'!H15 -> 2 | I17: =+'Paso 1.3.2'!I15 -> 2 | J17: =+'Paso 1.3.2'!J15 -> 2 | K17: =+'Paso 1.3.2'!K15 -> 2 | L17: =+'Paso 1.3.2'!L15 -> 2 | M17: =+'Paso 1.3.2'!M15 -> 2 | N17: =+'Paso 1.3.2'!N15 -> 2 | O17: =+'Paso 1.3.2'!O15 -> 2
B18: =+'Paso 1.3.2'!B16 -> Técnico en Laboratorio | C18: =+'Paso 1.3.2'!C16 -> 1 | D18: =+'Paso 1.3.2'!D16 -> 1 | E18: =+'Paso 1.3.2'!E16 -> 1 | F18: =+'Paso 1.3.2'!F16 -> 1 | G18: =+'Paso 1.3.2'!G16 -> 1 | H18: =+'Paso 1.3.2'!H16 -> 1 | I18: =+'Paso 1.3.2'!I16 -> 1 | J18: =+'Paso 1.3.2'!J16 -> 1 | K18: =+'Paso 1.3.2'!K16 -> 1 | L18: =+'Paso 1.3.2'!L16 -> 1 | M18: =+'Paso 1.3.2'!M16 -> 1 | N18: =+'Paso 1.3.2'!N16 -> 1 | O18: =+'Paso 1.3.2'!O16 -> 1
B19: =+'Paso 1.3.2'!B17 -> Trabajador (a) social | C19: =+'Paso 1.3.2'!C17 -> 3 | D19: =+'Paso 1.3.2'!D17 -> 3 | E19: =+'Paso 1.3.2'!E17 -> 3 | F19: =+'Paso 1.3.2'!F17 -> 3 | G19: =+'Paso 1.3.2'!G17 -> 3 | H19: =+'Paso 1.3.2'!H17 -> 3 | I19: =+'Paso 1.3.2'!I17 -> 3 | J19: =+'Paso 1.3.2'!J17 -> 3 | K19: =+'Paso 1.3.2'!K17 -> 3 | L19: =+'Paso 1.3.2'!L17 -> 3 | M19: =+'Paso 1.3.2'!M17 -> 3 | N19: =+'Paso 1.3.2'!N17 -> 3 | O19: =+'Paso 1.3.2'!O17 -> 3
B20: Otros Profesionales de la Salud (No Medicos ) | C20: =SUM(C10:C19) -> 39 | D20: 39 | E20: 39 | F20: 39 | G20: 39 | H20: 39 | I20: 41 | J20: 42 | K20: 42 | L20: 42 | M20: 42 | N20: 42 | O20: 42
B21: TOTAL ASISTENCIAL | C21: =+C20+C9 -> 50 | D21: 50 | E21: 51 | F21: 51 | G21: 51 | H21: 52 | I21: 54 | J21: 55 | K21: 55 | L21: 55 | M21: 55 | N21: 55 | O21: 55
B22: Administrativos | C22: =+'Paso 1.3.2'!C20 -> 9.375 | D22: =+'Paso 1.3.2'!D20 -> 9.375 | E22: =+'Paso 1.3.2'!E20 -> 9.5625 | F22: =+'Paso 1.3.2'!F20 -> 9.5625 | G22: =+'Paso 1.3.2'!G20 -> 9.5625 | H22: =+'Paso 1.3.2'!H20 -> 9.75 | I22: =+'Paso 1.3.2'!I20 -> 10.125 | J22: =+'Paso 1.3.2'!J20 -> 10.3125 | K22: =+'Paso 1.3.2'!K20 -> 10.3125 | L22: =+'Paso 1.3.2'!L20 -> 10.3125 | M22: =+'Paso 1.3.2'!M20 -> 10.3125 | N22: =+'Paso 1.3.2'!N20 -> 10.3125 | O22: =+'Paso 1.3.2'!O20 -> 10.3125
B23: Elaboración propia teniendo en cuenta la "Guía técnica para la metodología de cálculo de las brechas de recursos humanos en salud para los servicios asistenciales del primer nivel de atención”, aprobada por la Resolución Ministerial N° 176- 2014/MINSA.
B25: J2. Disponibilidad de RHUS por grupo ocupacional
B27: Grupo ocupacional | C27: 1 | D27: =+C27+1 -> 2 | E27: =+D27+1 -> 3 | F27: 4 | G27: 5 | H27: 6 | I27: 7 | J27: 8 | K27: 9 | L27: 10 | M27: 11 | N27: 12 | O27: 13
B28: =+B7 -> Médico especialista en psiquiatría | C28: 5 | D28: =+C28 -> 5 | E28: =+D28 -> 5 | F28: 5 | G28: 5 | H28: 5 | I28: 5 | J28: 5 | K28: 5 | L28: 5 | M28: 5 | N28: 5 | O28: 5
B29: =+B8 -> Médico especialista en medicina familiar y comunitaria | C29: 3 | D29: =+C29 -> 3 | E29: 3 | F29: 3 | G29: 3 | H29: 3 | I29: 3 | J29: 3 | K29: 3 | L29: 3 | M29: 3 | N29: 3 | O29: 3
B30: Total de Médicos | C30: =SUM(C28:C29) -> 8 | D30: 8 | E30: 8 | F30: 8 | G30: 8 | H30: 8 | I30: 8 | J30: 8 | K30: 8 | L30: 8 | M30: 8 | N30: 8 | O30: 8
B31: =+B10 -> Enfermera (o) | C31: 6 | D31: =+C31 -> 6 | E31: =+D31 -> 6 | F31: 6 | G31: 6 | H31: 6 | I31: 6 | J31: 6 | K31: 6 | L31: 6 | M31: 6 | N31: 6 | O31: 6
B32: Psicólogo | C32: 6 | D32: =+C32 -> 6 | E32: 6 | F32: 6 | G32: 6 | H32: 6 | I32: 6 | J32: 6 | K32: 6 | L32: 6 | M32: 6 | N32: 6 | O32: 6
B33: Químico Farmacéutico | C33: 1 | D33: 1 | E33: 1 | F33: 1 | G33: 1 | H33: 1 | I33: 1 | J33: 1 | K33: 1 | L33: 1 | M33: 1 | N33: 1 | O33: 1
B34: Tecnólogo(a) médico en terapia de lenguaje | C34: 1 | D34: 1 | E34: 1 | F34: 1 | G34: 1 | H34: 1 | I34: 1 | J34: 1 | K34: 1 | L34: 1 | M34: 1 | N34: 1 | O34: 1
B35: Técnologo (a) médico en terapia ocupacional | C35: 0 | D35: 0 | E35: 0 | F35: 0 | G35: 0 | H35: 0 | I35: 0 | J35: 0 | K35: 0 | L35: 0 | M35: 0 | N35: 0 | O35: 0
B36: Tecnólogo Medico en Laboratorio Clinico y Anatomia Patologica | C36: 0 | D36: 0 | E36: 0 | F36: 0 | G36: 0 | H36: 0 | I36: 0 | J36: 0 | K36: 0 | L36: 0 | M36: 0 | N36: 0 | O36: 0
B37: Técnico en Enfermería | C37: 3 | D37: 3 | E37: 3 | F37: 3 | G37: 3 | H37: 3 | I37: 3 | J37: 3 | K37: 3 | L37: 3 | M37: 3 | N37: 3 | O37: 3
B38: Técnico en Farmacia | C38: 1 | D38: 1 | E38: 1 | F38: 1 | G38: 1 | H38: 1 | I38: 1 | J38: 1 | K38: 1 | L38: 1 | M38: 1 | N38: 1 | O38: 1
B39: Técnico en Laboratorio | C39: 0 | D39: 0 | E39: 0 | F39: 0 | G39: 0 | H39: 0 | I39: 0 | J39: 0 | K39: 0 | L39: 0 | M39: 0 | N39: 0 | O39: 0
B40: Trabajador (a) social | C40: 2 | D40: 2 | E40: 2 | F40: 2 | G40: 2 | H40: 2 | I40: 2 | J40: 2 | K40: 2 | L40: 2 | M40: 2 | N40: 2 | O40: 2
B41: Otros Profesionales de la Salud (No Medicos ) | C41: =SUM(C31:C40) -> 20 | D41: 20 | E41: 20 | F41: 20 | G41: 20 | H41: 20 | I41: 20 | J41: 20 | K41: 20 | L41: 20 | M41: 20 | N41: 20 | O41: 20
B42: TOTAL ASISTENCIAL | C42: =+C41+C30 -> 28 | D42: 28 | E42: 28 | F42: 28 | G42: 28 | H42: 28 | I42: 28 | J42: 28 | K42: 28 | L42: 28 | M42: 28 | N42: 28 | O42: 28
B43: Administrativos | C43: 5 | D43: =+C43 -> 5 | E43: =+D43 -> 5 | F43: 5 | G43: 5 | H43: 5 | I43: 5 | J43: 5 | K43: 5 | L43: 5 | M43: 5 | N43: 5 | O43: 5
B44: Fuente: Oficina de Personal del E.S. "…..."
B46: J3. Brecha de RHUS por grupo ocupacional
B48: Grupo ocupacional | C48: 1 | D48: =+C48+1 -> 2 | E48: =+D48+1 -> 3 | F48: 4 | G48: 5 | H48: 6 | I48: 7 | J48: 8 | K48: 9 | L48: 10 | M48: 11 | N48: 12 | O48: 13
B49: =+B28 -> Médico especialista en psiquiatría | C49: =+C7-C28 -> 3 | D49: =+D7-D28 -> 3 | E49: 4 | F49: 4 | G49: 4 | H49: 4 | I49: 4 | J49: 4 | K49: 4 | L49: 4 | M49: 4 | N49: 4 | O49: 4
B50: =+B29 -> Médico especialista en medicina familiar y comunitaria | C50: 0 | D50: 0 | E50: 0 | F50: 0 | G50: 0 | H50: 1 | I50: 1 | J50: 1 | K50: 1 | L50: 1 | M50: 1 | N50: 1 | O50: =+O8-O29 -> 1
B51: Total de Médicos | C51: =+SUMIF(C49:C50,">0",C49:C50) -> 3 | D51: 3 | E51: 4 | F51: 4 | G51: 4 | H51: 5 | I51: 5 | J51: 5 | K51: 5 | L51: 5 | M51: 5 | N51: 5 | O51: 5
B52: =+B31 -> Enfermera (o) | C52: =+C10-C31 -> 3 | D52: =+D10-D31 -> 3 | E52: 3 | F52: 3 | G52: 3 | H52: 3 | I52: 3 | J52: 4 | K52: 4 | L52: 4 | M52: 4 | N52: 4 | O52: 4
B53: Psicólogo | C53: =+C11-C32 -> 7 | D53: 7 | E53: 7 | F53: 7 | G53: 7 | H53: 7 | I53: 7 | J53: 7 | K53: 7 | L53: 7 | M53: 7 | N53: 7 | O53: 7
B54: Químico Farmacéutico | C54: =+C12-C33 -> 1 | D54: 1 | E54: 1 | F54: 1 | G54: 1 | H54: 1 | I54: 1 | J54: 1 | K54: 1 | L54: 1 | M54: 1 | N54: 1 | O54: 1
B55: Tecnólogo(a) médico en terapia de lenguaje | C55: =+C13-C34 -> 1 | D55: 1 | E55: 1 | F55: 1 | G55: 1 | H55: 1 | I55: 2 | J55: 2 | K55: 2 | L55: 2 | M55: 2 | N55: 2 | O55: 2
B56: Técnologo (a) médico en terapia ocupacional | C56: =+C14-C35 -> 1 | D56: 1 | E56: 1 | F56: 1 | G56: 1 | H56: 1 | I56: 1 | J56: 1 | K56: 1 | L56: 1 | M56: 1 | N56: 1 | O56: 1
B57: Tecnólogo Medico en Laboratorio Clinico y Anatomia Patologica | C57: =+C15-C36 -> 1 | D57: 1 | E57: 1 | F57: 1 | G57: 1 | H57: 1 | I57: 1 | J57: 1 | K57: 1 | L57: 1 | M57: 1 | N57: 1 | O57: 1
B58: Técnico en Enfermería | C58: =+C16-C37 -> 2 | D58: 2 | E58: 2 | F58: 2 | G58: 2 | H58: 2 | I58: 3 | J58: 3 | K58: 3 | L58: 3 | M58: 3 | N58: 3 | O58: 3
B59: Técnico en Farmacia | C59: =+C17-C38 -> 1 | D59: 1 | E59: 1 | F59: 1 | G59: 1 | H59: 1 | I59: 1 | J59: 1 | K59: 1 | L59: 1 | M59: 1 | N59: 1 | O59: 1
B60: Técnico en Laboratorio | C60: =+C18-C39 -> 1 | D60: 1 | E60: 1 | F60: 1 | G60: 1 | H60: 1 | I60: 1 | J60: 1 | K60: 1 | L60: 1 | M60: 1 | N60: 1 | O60: 1
B61: Trabajador (a) social | C61: =+C19-C40 -> 1 | D61: 1 | E61: 1 | F61: 1 | G61: 1 | H61: 1 | I61: 1 | J61: 1 | K61: 1 | L61: 1 | M61: 1 | N61: 1 | O61: 1
B62: Otros Profesionales de la Salud (No Medicos ) | C62: =+SUMIF(C52:C61,">0",C52:C61) -> 19 | D62: 19 | E62: 19 | F62: 19 | G62: 19 | H62: 19 | I62: 21 | J62: 22 | K62: 22 | L62: 22 | M62: 22 | N62: 22 | O62: 22
B63: TOTAL ASISTENCIAL | C63: =+C62+C51 -> 22 | D63: 22 | E63: 23 | F63: 23 | G63: 23 | H63: 24 | I63: 26 | J63: 27 | K63: 27 | L63: 27 | M63: 27 | N63: 27 | O63: 27
B64: Administrativos | C64: =+C22-C43 -> 4.375 | D64: =+D22-D43 -> 4.375 | E64: 4.5625 | F64: 4.5625 | G64: 4.5625 | H64: 4.75 | I64: 5.125 | J64: 5.3125 | K64: 5.3125 | L64: 5.3125 | M64: 5.3125 | N64: 5.3125 | O64: 5.3125
B67: J4. Programación para el cierre de brecha de RHUS por grupo ocupacional
B69: Grupo ocupacional | C69: 1 | D69: =+C69+1 -> 2 | E69: =+D69+1 -> 3 | F69: 4 | G69: 5 | H69: 6 | I69: 7 | J69: 8 | K69: 9 | L69: 10 | M69: 11 | N69: 12 | O69: 13
B70: =+B49 -> Médico especialista en psiquiatría | C70: 5 | D70: 6 | E70: 7 | F70: 8 | G70: 8 | H70: 8 | I70: 8 | J70: 8 | K70: 8 | L70: 8 | M70: 8 | N70: 8 | O70: 9
B71: =+B50 -> Médico especialista en medicina familiar y comunitaria | C71: 3 | D71: 3 | E71: 3 | F71: 3 | G71: 3 | H71: 3 | I71: 3 | J71: 3 | K71: 3 | L71: 3 | M71: 3 | N71: 3 | O71: 3
B72: Total de Médicos | C72: =SUM(C70:C71) -> 8 | D72: 9 | E72: 10 | F72: 11 | G72: 11 | H72: 11 | I72: 11 | J72: 11 | K72: 11 | L72: 11 | M72: 11 | N72: 11 | O72: 12
B73: =+B52 -> Enfermera (o) | C73: 6 | D73: 7 | E73: 8 | F73: 9 | G73: 9 | H73: 9 | I73: 9 | J73: 9 | K73: 9 | L73: 9 | M73: 9 | N73: 9 | O73: 9
B74: Psicólogo | C74: 6 | D74: 7 | E74: 8 | F74: 9 | G74: 10 | H74: 11 | I74: 12 | J74: 12 | K74: 12 | L74: 12 | M74: 13 | N74: 13 | O74: 13
B75: Químico Farmacéutico | C75: 1 | D75: 2 | E75: 2 | F75: 2 | G75: 2 | H75: 2 | I75: 2 | J75: 2 | K75: 2 | L75: 2 | M75: 2 | N75: 2 | O75: 2
B76: Tecnólogo(a) médico en terapia de lenguaje | C76: 1 | D76: 2 | E76: 2 | F76: 2 | G76: 2 | H76: 2 | I76: 2 | J76: 2 | K76: 2 | L76: 2 | M76: 2 | N76: 2 | O76: 3
B77: Técnologo (a) médico en terapia ocupacional | C77: 1 | D77: 1 | E77: 1 | F77: 1 | G77: 1 | H77: 1 | I77: 1 | J77: 1 | K77: 1 | L77: 1 | M77: 1 | N77: 1 | O77: 1
B78: Tecnólogo Medico en Laboratorio Clinico y Anatomia Patologica | C78: 1 | D78: 1 | E78: 1 | F78: 1 | G78: 1 | H78: 1 | I78: 1 | J78: 1 | K78: 1 | L78: 1 | M78: 1 | N78: 1 | O78: 1
B79: Técnico en Enfermería | C79: 3 | D79: 4 | E79: 5 | F79: 5 | G79: 5 | H79: 5 | I79: 5 | J79: 5 | K79: 5 | L79: 5 | M79: 5 | N79: 5 | O79: 5
B80: Técnico en Farmacia | C80: 1 | D80: 2 | E80: 2 | F80: 2 | G80: 2 | H80: 2 | I80: 2 | J80: 2 | K80: 2 | L80: 2 | M80: 2 | N80: 2 | O80: 2
B81: Técnico en Laboratorio | C81: 1 | D81: 1 | E81: 1 | F81: 1 | G81: 1 | H81: 1 | I81: 1 | J81: 1 | K81: 1 | L81: 1 | M81: 1 | N81: 1 | O81: 1
B82: Trabajador (a) social | C82: 2 | D82: 3 | E82: 3 | F82: 3 | G82: 3 | H82: 3 | I82: 3 | J82: 3 | K82: 3 | L82: 3 | M82: 3 | N82: 3 | O82: 3
B83: Otros Profesionales de la Salud (No Medicos ) | C83: =SUM(C73:C82) -> 23 | D83: =SUM(D73:D82) -> 30 | E83: =SUM(E73:E82) -> 33 | F83: 35 | G83: 36 | H83: 37 | I83: 38 | J83: 38 | K83: 38 | L83: 38 | M83: 39 | N83: 39 | O83: 40
B84: TOTAL ASISTENCIAL | C84: =+C83+C72 -> 31 | D84: =+D83+D72 -> 39 | E84: =+E83+E72 -> 43 | F84: 46 | G84: 47 | H84: 48 | I84: 49 | J84: 49 | K84: 49 | L84: 49 | M84: 50 | N84: 50 | O84: 52
B85: =+B64 -> Administrativos | C85: 5 | D85: 7 | E85: 8 | F85: =+E85 -> 8 | G85: 9 | H85: 9 | I85: 9 | J85: 9 | K85: 9 | L85: 9 | M85: 9 | N85: 9 | O85: 10
B88: J5. Costos de RHUS por grupo ocupacional
B90: Grupo ocupacional | C90: Costo Unitario Mensual | D90: Meses | E90: Costo Anual
B91: =+B70 -> Médico especialista en psiquiatría | C91: 10764.19 | D91: 12 | E91: =+ROUNDUP(C91*D91,0) -> 129171
B92: =+B71 -> Médico especialista en medicina familiar y comunitaria | C92: 8264.19 | D92: 12 | E92: =+ROUNDUP(C92*D92,0) -> 99171
B93: =+B73 -> Enfermera (o) | C93: 5564.19 | D93: 12 | E93: 66771
B94: Psicólogo | C94: 5564.19 | D94: 12 | E94: 66771
B95: Químico Farmacéutico | C95: 5564.19 | D95: 12 | E95: 66771
B96: Tecnólogo(a) médico en terapia de lenguaje | C96: 5564.19 | D96: 12 | E96: 66771
B97: Técnologo (a) médico en terapia ocupacional | C97: 5564.19 | D97: 12 | E97: 66771
B98: Tecnólogo Medico en Laboratorio Clinico y Anatomia Patologica | C98: 5564.19 | D98: 12 | E98: 66771
B99: Técnico en Enfermería | C99: 2764.19 | D99: 12 | E99: 33171
B100: Técnico en Farmacia | C100: 2764.19 | D100: 12 | E100: 33171
B101: Técnico en Laboratorio | C101: 2764.19 | D101: 12 | E101: 33171
B102: Trabajador (a) social | C102: 5564.19 | D102: 12 | E102: 66771
B103: Administrativo | C103: 2764.19 | D103: 12 | E103: =+ROUNDUP(C103*D103,0) -> 33171
B106: J6. Programación de costos anual de RHUS por grupo ocupacional
B108: Grupo ocupacional | C108: 1 | D108: =+C108+1 -> 2 | E108: =+D108+1 -> 3 | F108: =+E108+1 -> 4 | G108: =+F108+1 -> 5 | H108: =+G108+1 -> 6 | I108: =+H108+1 -> 7 | J108: =+I108+1 -> 8 | K108: =+J108+1 -> 9 | L108: =+K108+1 -> 10 | M108: =+L108+1 -> 11 | N108: =+M108+1 -> 12 | O108: =+N108+1 -> 13
B109: =+B91 -> Médico especialista en psiquiatría | C109: =+C$70*$E$91 -> 645855 | D109: =+D$70*$E$91 -> 775026 | E109: 904197 | F109: 1033368 | G109: 1033368 | H109: 1033368 | I109: 1033368 | J109: 1033368 | K109: 1033368 | L109: 1033368 | M109: 1033368 | N109: 1033368 | O109: =+O$70*$E$91 -> 1162539
B110: =+B92 -> Médico especialista en medicina familiar y comunitaria | C110: =+C$71*$E$92 -> 297513 | D110: =+D$71*$E$92 -> 297513 | E110: 297513 | F110: 297513 | G110: 297513 | H110: 297513 | I110: 297513 | J110: 297513 | K110: 297513 | L110: 297513 | M110: 297513 | N110: 297513 | O110: 297513
B111: Total de Médicos | C111: =SUM(C109:C110) -> 943368 | D111: 1072539 | E111: 1201710 | F111: 1330881 | G111: 1330881 | H111: 1330881 | I111: 1330881 | J111: 1330881 | K111: 1330881 | L111: 1330881 | M111: 1330881 | N111: 1330881 | O111: 1460052
B112: =+B93 -> Enfermera (o) | C112: =+C$73*$E$93 -> 400626 | D112: =+D$73*$E$93 -> 467397 | E112: 534168 | F112: 600939 | G112: 600939 | H112: 600939 | I112: 600939 | J112: 600939 | K112: 600939 | L112: 600939 | M112: 600939 | N112: 600939 | O112: 600939
B113: =+B94 -> Psicólogo | C113: =+C$74*$E$94 -> 400626 | D113: =+D$74*$E$94 -> 467397 | E113: 534168 | F113: 600939 | G113: 667710 | H113: 734481 | I113: 801252 | J113: 801252 | K113: 801252 | L113: 801252 | M113: 868023 | N113: 868023 | O113: 868023
B114: Químico Farmacéutico | C114: =+C$75*$E$95 -> 66771 | D114: =+D$75*$E$95 -> 133542 | E114: 133542 | F114: 133542 | G114: 133542 | H114: 133542 | I114: 133542 | J114: 133542 | K114: 133542 | L114: 133542 | M114: 133542 | N114: 133542 | O114: 133542
B115: Tecnólogo(a) médico en terapia de lenguaje | C115: =+C$76*$E$96 -> 66771 | D115: =+D$76*$E$96 -> 133542 | E115: 133542 | F115: 133542 | G115: 133542 | H115: 133542 | I115: 133542 | J115: 133542 | K115: 133542 | L115: 133542 | M115: 133542 | N115: 133542 | O115: 200313
B116: Técnologo (a) médico en terapia ocupacional | C116: =+C$77*$E$97 -> 66771 | D116: =+D$77*$E$97 -> 66771 | E116: 66771 | F116: 66771 | G116: 66771 | H116: 66771 | I116: 66771 | J116: 66771 | K116: 66771 | L116: 66771 | M116: 66771 | N116: 66771 | O116: 66771
B117: Tecnólogo Medico en Laboratorio Clinico y Anatomia Patologica | C117: =+C$78*$E$98 -> 66771 | D117: =+D$78*$E$98 -> 66771 | E117: 66771 | F117: 66771 | G117: 66771 | H117: 66771 | I117: 66771 | J117: 66771 | K117: 66771 | L117: 66771 | M117: 66771 | N117: 66771 | O117: 66771
B118: Técnico en Enfermería | C118: =+C$79*$E$99 -> 99513 | D118: =+D$79*$E$99 -> 132684 | E118: 165855 | F118: 165855 | G118: 165855 | H118: 165855 | I118: 165855 | J118: 165855 | K118: 165855 | L118: 165855 | M118: 165855 | N118: 165855 | O118: 165855
B119: Técnico en Farmacia | C119: =+C$80*$E$100 -> 33171 | D119: =+D$80*$E$100 -> 66342 | E119: 66342 | F119: 66342 | G119: 66342 | H119: 66342 | I119: 66342 | J119: 66342 | K119: 66342 | L119: 66342 | M119: 66342 | N119: 66342 | O119: 66342
B120: Técnico en Laboratorio | C120: =+C$81*$E$101 -> 33171 | D120: =+D$81*$E$101 -> 33171 | E120: 33171 | F120: 33171 | G120: 33171 | H120: 33171 | I120: 33171 | J120: 33171 | K120: 33171 | L120: 33171 | M120: 33171 | N120: 33171 | O120: 33171
B121: Trabajador (a) social | C121: =+C$82*$E$102 -> 133542 | D121: =+D$82*$E$102 -> 200313 | E121: 200313 | F121: 200313 | G121: 200313 | H121: 200313 | I121: 200313 | J121: 200313 | K121: 200313 | L121: 200313 | M121: 200313 | N121: 200313 | O121: 200313
B122: Otros Profesionales de la Salud (No Medicos ) | C122: =SUM(C112:C121) -> 1367733 | D122: =SUM(D112:D121) -> 1767930 | E122: =SUM(E112:E121) -> 1934643 | F122: 2068185 | G122: 2134956 | H122: 2201727 | I122: 2268498 | J122: 2268498 | K122: 2268498 | L122: 2268498 | M122: 2335269 | N122: 2335269 | O122: 2402040
B123: TOTAL ASISTENCIAL | C123: =+C122+C111 -> 2311101 | D123: =+D122+D111 -> 2840469 | E123: =+E122+E111 -> 3136353 | F123: 3399066 | G123: 3465837 | H123: 3532608 | I123: 3599379 | J123: 3599379 | K123: 3599379 | L123: 3599379 | M123: 3666150 | N123: 3666150 | O123: 3862092
B124: =+B85 -> Administrativos | C124: =+C$85*$E$103 -> 165855 | D124: =+D$85*$E$103 -> 232197 | E124: 265368 | F124: 265368 | G124: 298539 | H124: 298539 | I124: 298539 | J124: 298539 | K124: 298539 | L124: 298539 | M124: 298539 | N124: 298539 | O124: 331710
B125: TOTAL | C125: =+C123+C124 -> 2476956 | D125: =+D123+D124 -> 3072666 | E125: 3401721 | F125: 3664434 | G125: 3764376 | H125: 3831147 | I125: 3897918 | J125: 3897918 | K125: 3897918 | L125: 3897918 | M125: 3964689 | N125: 3964689 | O125: 4193802

Sheet Sección K
A2: Seccion K: DEL TERRENO ALTERNATIVA SELECCIONADA
A3: Se debe desarrollar del Informe Técnico Legal de ubicación del Terreno - ITL, cumplimiento del numeral 6.1 de la NTS 113-MINSA/DGIEM y sus modificaciones aprobadas R.M. N°637-2024/MINSA
B4: K1 Terreno donde se realizará la intervención
B5: TERRENO
B7: Descripción y caracteristicas del Terreno, o de la alternativa planteada y Principales argumentos que impidan intervenir en el mismo terreno
B8: El terreno actual que ocupa el Centro de Salud Mental Comunitario se ubica en la intersección de dos vías coorespondientes a la calle San José y Los Lirios, Distrito de El Agustino, Provincia de Lima, Departamento de Lima. La ubicación geográfica del terreno corresponde con las coordenadas UTM: E-12.03286184/ N-77.00244761.
B12: K2 Tenencia legal del terreno donde se ejecutaría el PI
B13: TERRENO TIENE LIBRE DISPONIBILIDAD | E13: X | F13: Marcar X de corresponde
B14: PARTIDA REGISTRAL
B15: DOCUMENTO DE ARREGLO INSTITUCIONAL (1)
B16: Pasos a seguir, cronograma (plazo) nombre del responsable del lograr el saneamiento físico legal del predio
B20: (1) Ver Anexo N 07 del Instructivo FTE
B22: K3 Caracteristicas Básicas del Terreno
B23: Dimensionamiento | F23: m2 | G23: Perimetro concordante con el estudio topografico
H24: Metraje por el Norte:
H25: Metraje por el Sur:
H26: Metraje por el Este:
H27: Metraje por el Oeste:
B29: K4 Disponibilidad de Servicios Públicos Esenciales
B30: Agua | E30: Comunicaciones | H30: Energia Electrica | K30: Desague
B32: Propuesta de altervativas de solución factible para la disponibilidad de los servicios publicos esenciales (de no existir)
B37: K5 Localización y Accesibilidad
B38: Descripción | H38: Si | I38: No | J38: Precisiones
B39: Accesibilidad, Localizacion y Ubicación del terreno
B40: Zonificación compatible para salud, de acuerdo a lo establecido en el numeral 6.1.1.2 de la R.M. N°637-2024/MINSA
B41: Terreno accesible acorde a la infraestructura vial y/o medio existente para el efectivo y fluido tránsito de los pacientes, personal y público en general
B42: Terreno elegido prevee áreas de amortiguamiento y mitigación, que son medidas que se aplican para reducir el impacto de las amenazas sobre el suelo.
B44: K6 Vulnerabilidad Terreno
B45: Terrenos Vulnerables
B46: Peligros Naturales Potenciales | D46: ¿Existe este peligro en la zona? | E46: ¿Cuál es Nivel de peligro? | F46: ¿Existen Antecedentes de ocurrencia? | G46: ¿cuántas veces y cuándo han ocurrido la ultima vez? | H46: ¿Se puede mitigar el riesgo? | I46: Medidas de Mitigación de riesgo
D47: (Sí - No) | E47: (Bajo, Medio, Alto, Muy Alto) | F47: (Sí - No) | G47: N° de veces/año del ultimo evento. | H47: (Sí - No) | I47: Caracteristicas* | K47: Tendencias** | M47: Fuentes de Informacion | O47: Medidas de Reduccion del Riesgo
B48: Sismos
B49: Tsunamis
B50: Heladas
B51: Friajes
B52: Erupciones volcánicas
B53: Sequías
B54: Granizadas
B55: Lluvias intensas
B56: Avalanchas
B57: Flujos de lodo (huaycos)
B58: Deslizamientos
B59: Erosión
B60: Inundaciones
B61: Desborde por corrientes
B62: Desbordes por fuerzas erosivas
B63: Vientos fuertes
B64: Incendios Urbanos
B65: Incendios Forestales
B66: Radiación Solar
B67: Peligros antropicos | H67: (Sí - No)
B68: Contaminacion Ambiental
B69: Otros peligros antropicos
B70: * | C70: Intensidad, magnitud, frecuencia, periodo de recurrencia, área de impacto, entre otros. Los parámetros
C71: para caracterizar los peligros se pueden consultar en CENEPRED 2019.
B72: ** | C72: Considerar la influencia de las manifestaciones del cambio climático en las características de los peligros,
C73: o de los procesos de uso y ocupación del territorio que pueden generar peligros socio naturales
B74: K7 Otras Variables del terreno
B75: otras variables
B76: Descripción | H76: Si | I76: No | J76: Precisiones
B77: Se evidencian restos arqueologicos (CIRA)
B78: El suelo es proveniente del relleno sanitario basurales o plantas de tratamiento de aguas residuales.
B79: Existen Fallas geologicas
B80: Suelos que presentan fenómenos de licuefaccion
B81: Ubicados proximos a un volcan
B82: Menos de 50 metros de estaciones de servicios y puesto de venta de combustibles
B83: Menos de 100 metros envasadoras de GAS Licuado de pretoleo
B84: Cerca de grandes edificaciones que concentración de personas (supermercados o similares) o edificaciones como instituciones educativas, centros culturales, campos deportivos, centros religiosos u otros.
B85: Esta cercano a borde de rios, lagos, laguna, litoral (si la respuesta es si, debe elaborarse el estudio de analisis de riesgo a detalle)
B86: Terrenos próximos a líneas de alta tensión, aeropuertos, plantas químicas, refinerías, centros de procesamiento de productos mineros, instalaciones militares, rutas para el transporte de materiales peligrosos e industrias (de encontrarse proximos se requerirán estudios ambientales específicos según lo establezca la autoridad competente).
B87: Suelo del terreno
B88: Capacidad Portante buena (para el caso, será considerado unterreno estable)
B89: Capacidad Portante baja (para el caso el diseño de la cimentación dependerá del estudio geológico)
B91: K8 Mapa de Peligro del territorio por el o los eventos potencialmente predominantes

Sheet PDE (hidden)
A2: 1. POBLACIÓN DEMANDANTE EFECTIVA
C4: Tasa de crecimiento | D4: ='FTE Sección B-F'!AE62 -> 0.012
E6: Población demandante potencial | I6: Población demandante efectiva | K6: Busqueda de atención MINSA (ENAHO)
C7: Año | D7: Población del ambito de influencia del CSMC | E7: Población Pediatrica | F7: Población Adulta | G7: Baja Complejidad | I7: Moderada a Severa Complejidad
E8: ='Sección G'!L155 -> 0.179 | F8: ='Sección G'!L156 -> 0.134 | G8: Población Pediatrica | H8: Población Adulta | I8: Población Pediatrica | J8: Población Adulta | K8: Población Pediatrica | L8: Población Adulta
E9: =SUM('Sección G'!I30:Z30) -> 0.2802853615 | F9: =SUM('Sección G'!AA30:AO30) -> 0.7197146385 | G9: 0.7 | H9: 0.7 | I9: 0.3 | J9: 0.3 | K9: 0.63 | L9: 0.63
C10: 2024 | D10: ='Sección G'!H29 -> 72890 | E10: =$D$10*E8*E9 -> 3656.97 | F10: =$D$10*F8*F9 -> 7029.64 | G10: =E10*G9 -> 2559.879 | H10: =F10*H9 -> 4920.748 | I10: =E10*I9 -> 1097.091 | J10: =F10*J9 -> 2108.892 | K10: =+I10*K9 -> 691.16733 | L10: =+J10*L9 -> 1328.60196
B14: P2 | C14: Población Indirecta | D14: ='FTE Sección B-F'!Y60 -> 72890 | G14: Población Total | H14: =D14+E20 -> 72890
C15: Población Femenina Indirecta | D15: =D14*D16 -> 37694 | G15: Población Femenina Total | H15: =H14*H16 -> 37694
C16: % | D16: =+'Sección G'!AT30 -> 0.5171354095 | G16: % | H16: =+'Sección G'!AT30 -> 0.5171354095
B20: P1 | D20: Población asignada al ES ( población directa) | E20: ='FTE Sección B-F'!AE60 -> 0
D21: Población femenina asignada | E21: =E20*E22 -> 0
D22: % | E22: =+'Sección G'!AT20 -> 0
K23: P1 | L23: P2 | M23: niñas niños adolescentes | N23: Adulto
L24: =+K10+L10 -> 2019.76929 | M24: =I10 -> 1097.091 | N24: =J10 -> 2108.892
L25: =+L24*(1+$D$4) -> 2044.006521 | M25: =+M24*(1+$D$4) -> 1110.256092 | N25: =+N24*(1+$D$4) -> 2134.198704
L26: =+L25*(1+$D$4) -> 2068.5346 | M26: 1123.579165 | N26: 2159.809088
L27: 2093.357015 | M27: 1137.062115 | N27: 2185.726798
L28: 2118.477299 | M28: 1150.70686 | N28: 2211.955519
L29: 2143.899027 | M29: 1164.515343 | N29: 2238.498985
L30: 2169.625815 | M30: 1178.489527 | N30: 2265.360973
L31: 2195.661325 | M31: 1192.631401 | N31: 2292.545305
L32: 2222.009261 | M32: 1206.942978 | N32: 2320.055848
L33: 2248.673372 | M33: 1221.426294 | N33: 2347.896519
L34: 2275.657452 | M34: 1236.083409 | N34: 2376.071277
L35: 2302.965342 | M35: 1250.91641 | N35: 2404.584132
L36: 2330.600926 | M36: 1265.927407 | N36: 2433.439142
L37: 2358.568137 | M37: 1281.118536 | N37: 2462.640411 | R37: =+SUM(K37:Q37) -> 6102.327084
I38: Total | L38: =SUM(L27:L37) -> 24459.49497 | M38: =SUM(M27:M37) -> 13285.82028 | N38: 25538.77491 | O38: =SUM(O27:O37) -> 0 | P38: =SUM(P27:P37) -> 0 | Q38: =SUM(Q27:Q37) -> 0 | R38: =+SUM(K38:Q38) -> 63284.09016
I39: Promedio | L39: =+AVERAGE(L27:L37) -> 2223.590452 | M39: 1207.801844 | N39: 2321.70681 | R39: =+SUM(K39:Q39) -> 5753.099105

Sheet DEM (hidden)
B2: RESUMEN DE LA DEMANDA EFECTIVA
B4: ATENCIONES | C4: 0 | D4: 1 | E4: 2 | F4: 3 | G4: 4 | H4: 5 | I4: 6 | J4: 7 | K4: 8 | L4: 9 | M4: 10 | N4: 11 | O4: 12 | P4: 13 | Q4: 14
B5: SERVICIO | C5: =+PDE!C10 -> 2024 | D5: =+C5+1 -> 2025 | E5: =+D5+1 -> 2026 | F5: 2027 | G5: 2028 | H5: 2029 | I5: 2030 | J5: 2031 | K5: 2032 | L5: 2033 | M5: 2034 | N5: 2035 | O5: 2036 | P5: 2037 | Q5: 2038
B6: UPSS CONSULTA EXTERNA
B7: MEDICINA GENERAL | C7: =+TRANSPOSE('DE1'!J11:J24) ->  | T7: =SUM(G7:P7) -> 
B8: Consulta ambulatoria por médico(a) general capacitado en salud mental | C8: =TRANSPOSE('DE1'!X11:X24) ->  | T8: =SUM(G8:P8) -> 
B9: Consulta ambulatoria por médico(a) especialista en medicina familiar y comunitaria | C9: =+TRANSPOSE('DE1'!J32:J45) -> 
B10: Consulta ambulatoria por médico(a) especialista en Pediatría | C10: =+TRANSPOSE('DE1'!T32:T45) -> 0 | D10: 0 | E10: 0 | F10: 0 | G10: 0 | H10: 0 | I10: 0 | J10: 0 | K10: 0 | L10: 0 | M10: 0 | N10: 0 | O10: 0 | P10: 0 | T10: 0
B11: Consulta ambulatoria por médico(a) especialista en Ginecología | C11: =+TRANSPOSE('DE1'!AD32:AD45) -> 0 | D11: 0 | E11: 0 | F11: 0 | G11: 0 | H11: 0 | I11: 0 | J11: 0 | K11: 0 | L11: 0 | M11: 0 | N11: 0 | O11: 0 | P11: 0 | T11: 0
B12: Consulta ambulatoria por médico(a) especialista en Endocrinología | C12: =+TRANSPOSE('DE1'!AN32:AN45) -> 0 | D12: 0 | E12: 0 | F12: 0 | G12: 0 | H12: 0 | I12: 0 | J12: 0 | K12: 0 | L12: 0 | M12: 0 | N12: 0 | O12: 0 | P12: 0 | T12: 0
B13: Consulta ambulatoria por médico(a) especialista en Medicina Interna | C13: =+TRANSPOSE('DE1'!AX32:AX45) -> 0 | D13: 0 | E13: 0 | F13: 0 | G13: 0 | H13: 0 | I13: 0 | J13: 0 | K13: 0 | L13: 0 | M13: 0 | N13: 0 | O13: 0 | P13: 0 | T13: 0
B14: Consulta ambulatoria por médico(a) especialista en Cardiología | C14: =+TRANSPOSE('DE1'!BH32:BH45) -> 0 | D14: 0 | E14: 0 | F14: 0 | G14: 0 | H14: 0 | I14: 0 | J14: 0 | K14: 0 | L14: 0 | M14: 0 | N14: 0 | O14: 0 | P14: 0 | T14: 0
B15: Consulta ambulatoria por médico(a) especialista en Neumología | C15: =+TRANSPOSE('DE1'!BR32:BR45) -> 0 | D15: 0 | E15: 0 | F15: 0 | G15: 0 | H15: 0 | I15: 0 | J15: 0 | K15: 0 | L15: 0 | M15: 0 | N15: 0 | O15: 0 | P15: 0 | T15: 0
B16: TELECONSULTA MÉDICA | C16: =TRANSPOSE('DE1'!N11:N24) ->  | T16: =SUM(G16:P16) -> 
B17: CONSULTORIO CRECIMIENTO Y DESARROLLO | C17: =+TRANSPOSE('DE1'!D67:D86) -> 0 | D17: 0 | E17: 0 | F17: 0 | G17: 0 | H17: 0 | I17: 0 | J17: 0 | K17: 0 | L17: 0 | M17: 0 | N17: 0 | O17: 0 | P17: 0 | Q17: 0 | R17: 0 | S17: 0 | T17: 0
B18: SALA DE INMUNIZACIONES | C18: =+TRANSPOSE('DE1'!E67:E86) -> 0 | D18: 0 | E18: 0 | F18: 0 | G18: 0 | H18: 0 | I18: 0 | J18: 0 | K18: 0 | L18: 0 | M18: 0 | N18: 0 | O18: 0 | P18: 0 | Q18: 0 | R18: 0 | S18: 0 | T18: 0
B19: SALA DE ESTIMULACIÓN TEMPRANA | C19: =+TRANSPOSE('DE1'!N67:N82) -> 0 | D19: 0 | E19: 0 | F19: 0 | G19: 0 | H19: 0 | I19: 0 | J19: 0 | K19: 0 | L19: 0 | M19: 0 | N19: 0 | O19: 0 | P19: 0 | Q19: 0 | R19: 0 | T19: 0
B20: PREVENCIÓN Y CONTROL DE TUBERCULOSIS | C20: =+TRANSPOSE('DE2'!BE38:BE51) -> 
B21: ATENCIÓN INTEGRAL DEL ADULTO MAYOR | C21: =TRANSPOSE('DE2'!S38:S53) ->  | Q21: 0 | R21: 0
B22: ATENCIÓN INTEGRAL Y CONSEJERÍA DEL ADOLESCENTE | C22: =TRANSPOSE('DE2'!J38:J53) -> 747.9454392 | D22: 756.9207845 | E22: 766.0038339 | F22: 775.1958799 | G22: 784.4982304 | H22: 793.9122092 | I22: 803.4391557 | J22: 813.0804256 | K22: 822.8373907 | L22: 832.7114394 | M22: 842.7039767 | N22: 852.8164244 | O22: 863.0502215 | P22: 873.4068241 | Q22: 0 | R22: 0 | T22: 8282.456298
B23: CONSEJERÍA Y PREVENCIÓN DE ENFERMEDADES NO TRANSMISIBLES | C23: =+TRANSPOSE('DE2'!Y38:Y53) ->  | Q23: 0 | R23: 0
B24: CONSEJERÍA Y PREVENCIÓN DEL CÁNCER | C24: =+TRANSPOSE('DE2'!AL38:AL53) -> 0 | D24: 0 | E24: 0 | F24: 0 | G24: 0 | H24: 0 | I24: 0 | J24: 0 | K24: 0 | L24: 0 | M24: 0 | N24: 0 | O24: 0 | P24: 0 | Q24: 0 | R24: 0 | T24: 0
B25: CONSEJERÍA Y PREVENCIÓN ITS, VIH Y SIDA | C25: =+TRANSPOSE('DE2'!AT38:AT53) ->  | Q25: 0 | R25: 0
B26: CONTROL PRENATAL (incluye Control Puerperal) | C26: =+TRANSPOSE('DE1'!G98:G113) -> 0 | D26: 0 | E26: 0 | F26: 0 | G26: 0 | H26: 0 | I26: 0 | J26: 0 | K26: 0 | L26: 0 | M26: 0 | N26: 0 | O26: 0 | P26: 0 | Q26: 0 | R26: 0 | T26: 0
B27: PLANIFICACIÓN FAMILIAR | C27: =+TRANSPOSE('DE1'!J98:J113) -> 0 | D27: 0 | E27: 0 | F27: 0 | G27: 0 | H27: 0 | I27: 0 | J27: 0 | K27: 0 | L27: 0 | M27: 0 | N27: 0 | O27: 0 | P27: 0 | Q27: 0 | R27: 0 | T27: 0
B28: PSICOPROFILAXIS | C28: =+TRANSPOSE('DE1'!O98:O111) -> 0 | D28: 0 | E28: 0 | F28: 0 | G28: 0 | H28: 0 | I28: 0 | J28: 0 | K28: 0 | L28: 0 | M28: 0 | N28: 0 | O28: 0 | P28: 0 | T28: 0
B29: CONSEJERIA DE SALUD MENTAL | C29: =+TRANSPOSE('DE1'!X11:X24) -> 
B30: PSICOLOGÍA | C30: =+TRANSPOSE('DE1'!AA11:AA24) -> 0 | D30: 0 | E30: 0 | F30: 0 | G30: 0 | H30: 0 | I30: 0 | J30: 0 | K30: 0 | L30: 0 | M30: 0 | N30: 0 | O30: 0 | P30: 0 | T30: 0
B31: NUTRICIÓN | C31: =+TRANSPOSE('DE1'!J123:J136) -> 
B32: ODONTOLOGÍA GENERAL | C32: =+TRANSPOSE('DE2'!H9:H22) -> 9765.6 | D32: 9882.7872 | E32: 10001.38065 | F32: 10121.39721 | G32: 10242.85398 | H32: 10365.76823 | I32: 10490.15745 | J32: 10616.03934 | K32: 10743.43181 | L32: 10872.35299 | M32: 11002.82123 | N32: 11134.85508 | O32: 11268.47334 | P32: 11403.69502 | T32: 108140.4485
B33: ODONTOLOGÍA GENERAL CON SOPORTE DE RX DENTAL | C33: =+TRANSPOSE('DE2'!K9:K22) -> 
B34: TÓPICO DE PROCEDIMIENTOS DE CONSULTA EXTERNA (Med. General, Familiar, Interna y Pediatria) | C34: =+TRANSPOSE('DE1'!F170:F183) -> 
B35: TÓPICO DE PROCEDIMIENTOS DE G- O. Sala Proced. Ginecológicos | C35: =+TRANSPOSE('DE1'!G170:G183) -> 0 | D35: 0 | E35: 0 | F35: 0 | G35: 0 | H35: 0 | I35: 0 | J35: 0 | K35: 0 | L35: 0 | M35: 0 | N35: 0 | O35: 0 | P35: 0 | T35: 0
B36: TÓPICO DE PROCEDIMIENTOS DE G- O. Sala de Colposcopia | C36: =+TRANSPOSE('DE1'!H170:H183) -> 0 | D36: 0 | E36: 0 | F36: 0 | G36: 0 | H36: 0 | I36: 0 | J36: 0 | K36: 0 | L36: 0 | M36: 0 | N36: 0 | O36: 0 | P36: 0 | T36: 0
B37: TÓPICO DE PROCEDIMIENTOS DE G- O. Sala de Monitoreo Fetal | C37: =+TRANSPOSE('DE1'!I170:I183) -> 0 | D37: 0 | E37: 0 | F37: 0 | G37: 0 | H37: 0 | I37: 0 | J37: 0 | K37: 0 | L37: 0 | M37: 0 | N37: 0 | O37: 0 | P37: 0 | T37: 0
B38: TÓPICO DE PROCED DE ENDOCRINOLOGÍA Sala Procedimiento Endocrinología | C38: =+TRANSPOSE('DE1'!J170:J183) -> 0 | D38: 0 | E38: 0 | F38: 0 | G38: 0 | H38: 0 | I38: 0 | J38: 0 | K38: 0 | L38: 0 | M38: 0 | N38: 0 | O38: 0 | P38: 0 | T38: 0
B39: TÓPICO DE PROCED DE CARDIOLOGÍA Sala de Electrocardiografía | C39: =+TRANSPOSE('DE1'!L170:L183) -> 0 | D39: 0 | E39: 0 | F39: 0 | G39: 0 | H39: 0 | I39: 0 | J39: 0 | K39: 0 | L39: 0 | M39: 0 | N39: 0 | O39: 0 | P39: 0 | T39: 0
B40: TÓPICO DE PROCED DE CARDIOLOGÍA Sala de Prueba de esfuerzo | C40: =+TRANSPOSE('DE1'!M170:M183) -> 0 | D40: 0 | E40: 0 | F40: 0 | G40: 0 | H40: 0 | I40: 0 | J40: 0 | K40: 0 | L40: 0 | M40: 0 | N40: 0 | O40: 0 | P40: 0 | T40: 0
B41: TÓPICO DE PROCED DE CARDIOLOGÍA Sala de Holter y Mapa | C41: =+TRANSPOSE('DE1'!N170:N183) -> 0 | D41: 0 | E41: 0 | F41: 0 | G41: 0 | H41: 0 | I41: 0 | J41: 0 | K41: 0 | L41: 0 | M41: 0 | N41: 0 | O41: 0 | P41: 0 | T41: 0
B42: TÓPICO DE PROCEDIMIENTOS DE NEUMOMOGÍA- Sala de Espirometria | C42: =+TRANSPOSE('DE1'!O170:O183) -> 0 | D42: 0 | E42: 0 | F42: 0 | G42: 0 | H42: 0 | I42: 0 | J42: 0 | K42: 0 | L42: 0 | M42: 0 | N42: 0 | O42: 0 | P42: 0 | T42: 0
B43: ATENCION DE URGENCIAS Y EMERGENCIAS | T43: 0
B44: SALA DE PROCEDIMIENTOS DE ENFERMERIA | C44: =+TRANSPOSE('DE2'!I59:I72) -> 
B45: TOPICO DE URGENCIAS Y EMERGENCIAS | C45: =+TRANSPOSE('DE2'!E59:E72) -> 
B46: SALA DE OBSERVACIÓN | C46: =+TRANSPOSE('DE2'!O59:O72) -> 
B47: ECOGRAFIA | T47: 0
B48: ECOGRAFIA GENERAL | C48: =+TRANSPOSE('DE3'!N8:N21) -> 
B49: UPSS PATOLOGIA CLINICA | T49: 0
B50: TOMA DE MUESTRAS | C50: =+TRANSPOSE('DE3'!E7:E20) -> 
B51: LABORATORIO DE HEMATOLOGÍA, BIOQUIMICA y MICROBIOLOGIA | C51: =+TRANSPOSE('DE3'!E7:E20) -> 
B52: ACTIVIDAD DE ANATOMÍA PATOLÓGICA | T52: 0
B53: TOMA DE MUESTRAS DE TEJIDOS O LÍQUIDOS CORPORALES | C53: =TRANSPOSE('DE3'!T8:T22) -> 0 | D53: 0 | E53: 0 | F53: 0 | G53: 0 | H53: 0 | I53: 0 | J53: 0 | K53: 0 | L53: 0 | M53: 0 | N53: 0 | O53: 0 | P53: 0 | Q53: 0 | T53: 0
B54: ATENCION CON MEDICAMENTOS (I-3) | T54: 0
B55: DISPENSACIÓN Y EXPENDIO EN UPSS CONSULTA EXTERNA | C55: =+TRANSPOSE('DE3'!E25:E38) ->  | U55: =+SUM(T7:T55) -> 
B56: DESINFECCION Y ESTERILIZACION
B57: DESINFECCIÓN Y ESTERILIZACIÓN | C57: =+TRANSPOSE('DE3'!C43:C56) -> 
B58: SALUD FAMILIAR | T58: 0
B59: SALUD FAMILIAR Y COMUNITARIA | C59: =+TRANSPOSE('DE1'!I147:I160) -> 

Sheet DE1 (hidden)
A2: ESTIMACIÓN DE LA DEMANDA EFECTIVA DE CONSULTA EXTERNA
P4: SALUD MENTAL | Y4: PSICOLOGÍA
B5: Consulta ambulatoria por médico | P5: Año | Q5: Atendidos P1 | R5: Preventivo* | Y5: Recuperativo | AB5: Total Atenciones Psicología Preventivos + Recuperativos
R6: Grupos de riesgo < 18 | S6: Violencia familiar < 18 | T6: Deterioro Cognitivo y demencia < 60 | U6: Detección problemas del neurodesarrollo en niñas y niños de 0 a 3 años | V6: Maltrato Infantil | W6: niños, niñas y adolescentes de 3 a 17 años | X6: Total Preventivo | Y6: Población demandante efectiva | Z6: P2 de Mediana Complejidad | AA6: Demanda Efectiva
B7: Medicina General
B8: Año | C8: Población Demandante Efectiva de Baja Complejidad P1 | D8: Atenciones de Baja Complejidad | F8: Población Demandante Efectiva de Mediana Complejidad P2 | G8: Atenciones de Mediana Conplejidad | I8: Atendidos Totales | J8: Atenciones Totales | L8: Consultorio de Teleconsultas
L9: AÑO | M9: TOTAL DE ATENCIONES MEDICAS | N9: % REFERENCIAS | R9: 0.7 | S9: 0.3 | T9: 0.7 | V9: 0.7 | W9: 0.2 | Z9: Histórico | AA9: Ratio =
D10: =+'Sección G'!L172 -> 0.7064761257 | E10: 3.5 | G10: =+D10*1.4 -> 0.9890665759 | H10: =+E10 -> 3.5 | N10: 0.13 | R10: =+SUM('Sección G'!AB20:AO20) -> 0 | S10: =+R10 -> 0 | T10: =+SUM('Sección G'!AK20:AO20) -> 0 | U10: 1 | V10: =+SUM('Sección G'!I20:Z20) -> 0 | W10: =+SUM('Sección G'!L20:Z20) -> 0 | Z10: 0.11 | AA10: 3
B11: =PDE!C10 -> 2024 | C11: =PDE!#REF! ->  | D11: =+C11*$D$10 ->  | E11: =+D11*$E$10 ->  | F11: =+PDE!G10 -> 2559.879 | G11: =+F11*$G$10 -> 2531.890757 | H11: =+G11*$H$10 -> 8861.617651 | I11: =+G11+D11 ->  | J11: =+E11+H11 ->  | L11: =B11 -> 2024 | M11: =+BW32 ->  | N11: =M11*$N$10 ->  | P11: =B11 -> 2024 | Q11: =+D11 ->  | R11: =Q11*$R$9*$R$10 ->  | S11: =Q11*$S$9*$S$10 ->  | T11: =Q11*$T$9*$T$10 ->  | U11: =+SUM(E52:E56)*$U$10 -> 0 | V11: =Q11*$V$9*$V$10 ->  | W11: =Q11*$W$9*$W$10 ->  | X11: =SUM(R11:W11) ->  | Y11: =+PDE!F5 -> 0 | Z11: =+Y11*$Z$10 -> 0 | AA11: =Z11*$AA$10 -> 0 | AB11: =+AA11+X11 -> 
B12: =+B11+1 -> 2025 | C12: =+C11*(1+PDE!$D$4) ->  | D12: =+C12*$D$10 ->  | E12: =+D12*$E$10 ->  | F12: =+F11*(1+PDE!$D$4) -> 2590.597548 | G12: =+F12*$G$10 -> 2562.273446 | H12: =+G12*$H$10 -> 8967.957062 | I12: =+G12+D12 ->  | J12: =+E12+H12 ->  | L12: 2025 | P12: 2025 | Q12: =+D12 ->  | U12: =+U11*(1+PDE!$D$4) -> 0 | Y12: =+Y11*(1+PDE!$D$4) -> 0 | Z12: 0 | AA12: 0
B13: 2026 | C13: =+C12*(1+PDE!$D$4) ->  | F13: =+F12*(1+PDE!$D$4) -> 2621.684719 | G13: 2593.020728 | H13: =+G13*$H$10 -> 9075.572547 | L13: 2026 | N13: =M13*$N$10 ->  | P13: 2026 | U13: =+U12*(1+PDE!$D$4) -> 0 | Y13: =+Y12*(1+PDE!$D$4) -> 0 | Z13: 0 | AA13: 0
B14: 2027 | C14: =+C13*(1+PDE!$D$4) ->  | F14: =+F13*(1+PDE!$D$4) -> 2653.144935 | G14: 2624.136977 | H14: 9184.479418 | L14: 2027 | P14: 2027 | U14: =+U13*(1+PDE!$D$4) -> 0 | Y14: =+Y13*(1+PDE!$D$4) -> 0 | Z14: 0 | AA14: 0
B15: 2028 | C15: =+C14*(1+PDE!$D$4) ->  | F15: =+F14*(1+PDE!$D$4) -> 2684.982674 | G15: 2655.62662 | H15: 9294.693171 | L15: 2028 | P15: 2028 | U15: =+U14*(1+PDE!$D$4) -> 0 | Y15: =+Y14*(1+PDE!$D$4) -> 0 | Z15: 0 | AA15: 0
B16: 2029 | C16: =+C15*(1+PDE!$D$4) ->  | F16: =+F15*(1+PDE!$D$4) -> 2717.202467 | G16: 2687.49414 | H16: 9406.229489 | L16: 2029 | P16: 2029 | U16: =+U15*(1+PDE!$D$4) -> 0 | Y16: =+Y15*(1+PDE!$D$4) -> 0 | Z16: 0 | AA16: 0
B17: 2030 | C17: =+C16*(1+PDE!$D$4) ->  | F17: =+F16*(1+PDE!$D$4) -> 2749.808896 | G17: 2719.744069 | H17: 9519.104243 | L17: 2030 | P17: 2030 | U17: =+U16*(1+PDE!$D$4) -> 0 | Y17: =+Y16*(1+PDE!$D$4) -> 0 | Z17: 0 | AA17: 0
B18: 2031 | C18: =+C17*(1+PDE!$D$4) ->  | F18: =+F17*(1+PDE!$D$4) -> 2782.806603 | G18: 2752.380998 | H18: 9633.333494 | L18: 2031 | P18: 2031 | U18: =+U17*(1+PDE!$D$4) -> 0 | Y18: =+Y17*(1+PDE!$D$4) -> 0 | Z18: 0 | AA18: 0
B19: 2032 | C19: =+C18*(1+PDE!$D$4) ->  | F19: =+F18*(1+PDE!$D$4) -> 2816.200282 | G19: 2785.40957 | H19: 9748.933496 | L19: 2032 | P19: 2032 | U19: =+U18*(1+PDE!$D$4) -> 0 | Y19: =+Y18*(1+PDE!$D$4) -> 0 | Z19: 0 | AA19: 0
B20: 2033 | C20: =+C19*(1+PDE!$D$4) ->  | E20: =+D20*$E$10 ->  | F20: =+F19*(1+PDE!$D$4) -> 2849.994685 | G20: 2818.834485 | H20: =+G20*$H$10 -> 9865.920697 | L20: 2033 | P20: 2033 | U20: =+U19*(1+PDE!$D$4) -> 0 | Y20: =+Y19*(1+PDE!$D$4) -> 0 | Z20: 0 | AA20: 0
B21: 2034 | C21: =+C20*(1+PDE!$D$4) ->  | F21: =+F20*(1+PDE!$D$4) -> 2884.194622 | G21: 2852.660499 | H21: 9984.311746 | L21: 2034 | P21: 2034 | U21: =+U20*(1+PDE!$D$4) -> 0 | Y21: =+Y20*(1+PDE!$D$4) -> 0 | Z21: 0 | AA21: 0
B22: 2035 | C22: =+C21*(1+PDE!$D$4) ->  | F22: =+F21*(1+PDE!$D$4) -> 2918.804957 | G22: 2886.892425 | H22: 10104.12349 | L22: 2035 | P22: 2035 | U22: =+U21*(1+PDE!$D$4) -> 0 | Y22: =+Y21*(1+PDE!$D$4) -> 0 | Z22: 0 | AA22: 0
B23: 2036 | C23: =+C22*(1+PDE!$D$4) ->  | F23: =+F22*(1+PDE!$D$4) -> 2953.830617 | G23: 2921.535134 | H23: 10225.37297 | L23: 2036 | P23: 2036 | U23: =+U22*(1+PDE!$D$4) -> 0 | Y23: =+Y22*(1+PDE!$D$4) -> 0 | Z23: 0 | AA23: 0
B24: 2037 | C24: =+C23*(1+PDE!$D$4) ->  | F24: =+F23*(1+PDE!$D$4) -> 2989.276584 | G24: 2956.593556 | H24: 10348.07744 | L24: 2037 | P24: 2037 | U24: =+U23*(1+PDE!$D$4) -> 0 | Y24: =+Y23*(1+PDE!$D$4) -> 0 | Z24: 0 | AA24: 0
P25: Fuente: PPR 131- Anexo 2; 2021 pag. 69 y 70
B29: Medicina Familiar | L29: Pediatría | V29: Gíneco Obstetricia | AF29: ENDOCRINOLOGÍA | AP29: MEDICINA INTERNA | AZ29: CARDIOLOGIA | BJ29: NEUMOLOGÍA
B30: Año | C30: Población Demandante Efectiva de Baja Complejidad P1 | D30: Atenciones de Baja Complejidad | F30: Población Demandante Efectiva de Mediana Complejidad P2 | G30: Atenciones de Mediana Conplejidad | I30: Atendidos Totales | J30: Atenciones Totales | L30: Año | M30: Población Demandante Efectiva de Baja Complejidad P1 | N30: Atendidos Baja Complejidad | P30: Población Demandante Efectiva de Mediana Complejidad P2 | Q30: Atenciones de Mediana Complejidad | S30: Atendidos Totales | T30: Atenciones Totales | V30: Año | W30: Población Demandante Efectiva de Baja Complejidad P1 | X30: Atenciones de Baja Complejidad | Z30: Población Demandante Efectiva de Mediana Complejidad P2 | AA30: Atenciones de Mediana Complejidad | AC30: AtendidosTotales | AD30: Atenciones Totales | AF30: Año | AG30: Población Demandante Efectiva de Baja Complejidad P1 | AH30: Atenciones de Baja Complejidad | AJ30: Población Demandante Efectiva de Mediana Complejidad P2 | AK30: Atenciones de Mediana Complejidad | AM30: AtendidosTotales | AN30: Atenciones Totales | AP30: Año | AQ30: Población Demandante Efectiva de Baja Complejidad P1 | AR30: Atenciones de Baja Complejidad | AT30: Población Demandante Efectiva de Mediana Complejidad P2 | AU30: Atenciones de Mediana Complejidad | AW30: AtendidosTotales | AX30: Atenciones Totales | AZ30: Año | BA30: Población Demandante Efectiva de Baja Complejidad P1 | BB30: Atenciones de Baja Complejidad | BD30: Población Demandante Efectiva de Mediana Complejidad P2 | BE30: Atenciones de Mediana Complejidad | BG30: AtendidosTotales | BH30: Atenciones Totales | BJ30: Año | BK30: Población Demandante Efectiva de Baja Complejidad P1 | BL30: Atenciones de Baja Complejidad | BN30: Población Demandante Efectiva de Mediana Complejidad P2 | BO30: Atenciones de Mediana Complejidad | BQ30: AtendidosTotales | BR30: Atenciones Totales | BU30: Año | BV30: Total de Atendidos Mèdicos | BW30: Total de Atenciones Mèdicas
D31: =+'Sección G'!L173 -> 0.2935238743 | E31: =+E10 -> 3.5 | G31: =+D31*1.4 -> 0.4109334241 | H31: =+E31 -> 3.5 | N31: =+'Sección G'!#REF! ->  | O31: =+E31 -> 3.5 | Q31: =+N31*1.4 ->  | R31: =+O31 -> 3.5 | X31: =+'Sección G'!#REF! ->  | Y31: =+O31 -> 3.5 | AA31: =+X31*1.4 ->  | AB31: =+Y31 -> 3.5 | AH31: =+'Sección G'!#REF! ->  | AI31: =+Y31 -> 3.5 | AK31: =+AH31*1.4 ->  | AL31: =+AI31 -> 3.5 | AR31: =+'Sección G'!#REF! ->  | AS31: =+AI31 -> 3.5 | AU31: =+AR31*1.4 ->  | AV31: =+AS31 -> 3.5 | BB31: =+'Sección G'!#REF! ->  | BC31: =+AS31 -> 3.5 | BE31: =+BB31*1.4 ->  | BF31: =+BC31 -> 3.5 | BL31: =+'Sección G'!#REF! ->  | BM31: =+BC31 -> 3.5 | BO31: =+BL31*1.4 ->  | BP31: =+BM31 -> 3.5
B32: =+P11 -> 2024 | C32: =+C11 ->  | D32: =+C32*$D$31 ->  | E32: =+D32*$E$31 ->  | F32: =+PDE!G10 -> 2559.879 | G32: =+F32*$G$31 -> 1051.939843 | H32: =G32*$H$31 -> 3681.789449 | I32: =D32+G32 ->  | J32: =E32+H32 ->  | L32: =+B32 -> 2024 | M32: =+C11 ->  | N32: =+M32*$N$31 ->  | O32: =IFERROR(N32*$O$31,0) -> 0 | P32: =+PDE!G10 -> 2559.879 | Q32: =+P32*$Q$31 ->  | R32: =IFERROR(Q32*$R$31,0) -> 0 | S32: =N32+Q32 ->  | T32: =O32+R32 -> 0 | V32: =L32 -> 2024 | W32: =C11 ->  | X32: =W32*$X$31 ->  | Y32: =IFERROR(X32*$Y$31,0) -> 0 | Z32: =PDE!G10 -> 2559.879 | AA32: =Z32*$AA$31 ->  | AB32: =IFERROR(AA32*$AB$31,0) -> 0 | AC32: =X32+AA32 ->  | AD32: =Y32+AB32 -> 0 | AF32: =V32 -> 2024 | AG32: =+W32 ->  | AH32: =+AG32*$AH$31 ->  | AI32: =IFERROR(AH32*$AI$31,0) -> 0 | AJ32: =PDE!G10 -> 2559.879 | AK32: =+AJ32*$AK$31 ->  | AL32: =IFERROR(AK32*$AL$31,0) -> 0 | AM32: =AH32+AK32 ->  | AN32: =AI32+AL32 -> 0 | AP32: =AF32 -> 2024 | AQ32: =+AG32 ->  | AR32: =+AQ32*$AR$31 ->  | AS32: =IFERROR(AR32*$AS$31,0) -> 0 | AT32: =PDE!G10 -> 2559.879 | AU32: =+AT32*$AU$31 ->  | AV32: =IFERROR(AU32*$AV$31,0) -> 0 | AW32: =AR32+AU32 ->  | AX32: =AS32+AV32 -> 0 | AZ32: =AP32 -> 2024 | BA32: =+AQ32 ->  | BB32: =+BA32*$BB$31 ->  | BC32: =IFERROR(BB32*$BC$31,0) -> 0 | BD32: =PDE!G10 -> 2559.879 | BE32: =+BD32*$BE$31 ->  | BF32: =IFERROR(BE32*$BF$31,0) -> 0 | BG32: =BB32+BE32 ->  | BH32: =BC32+BF32 -> 0 | BJ32: =AZ32 -> 2024 | BK32: =+BA32 ->  | BL32: =+BK32*$BL$31 ->  | BM32: =IFERROR(BL32*$BM$31,0) -> 0 | BN32: =PDE!G10 -> 2559.879 | BO32: =+BN32*$BO$31 ->  | BP32: =IFERROR(BO32*$BP$31,0) -> 0 | BQ32: =BL32+BO32 ->  | BR32: =BM32+BP32 -> 0 | BU32: =+V32 -> 2024 | BV32: =+AC32+I32+S32+I11+AM32+AW32+BG32+BQ32 ->  | BW32: =+AD32+J32+T32+J11+AN32+AX32+BH32+BR32 -> 
B33: =+B32+1 -> 2025 | C33: =+C12 ->  | E33: =+D33*$E$31 ->  | F33: =+F32*(1+PDE!$D$4) -> 2590.597548 | G33: 1064.563121 | H33: 3725.970923 | I33: =D33+G33 ->  | L33: =+L32+1 -> 2025 | M33: =+C12 ->  | O33: =IFERROR(N33*$O$31,0) -> 0 | P33: =+P32*(1+PDE!$D$4) -> 2590.597548 | R33: 0 | T33: 0 | V33: =+V32+1 -> 2025 | X33: =W33*$X$31 ->  | Y33: =IFERROR(X33*$Y$31,0) -> 0 | Z33: =+Z32*(1+PDE!$D$4) -> 2590.597548 | AA33: =Z33*$AA$31 ->  | AB33: =IFERROR(AA33*$AB$31,0) -> 0 | AC33: =X33+AA33 ->  | AD33: 0 | AF33: =+AF32+1 -> 2025 | AG33: =+W33 ->  | AH33: =+AG33*$AH$31 ->  | AI33: =IFERROR(AH33*$AI$31,0) -> 0 | AJ33: =+AJ32*(1+PDE!$D$4) -> 2590.597548 | AK33: =+AJ33*$AK$31 ->  | AL33: =IFERROR(AK33*$AL$31,0) -> 0 | AM33: =AH33+AK33 ->  | AN33: =AI33+AL33 -> 0 | AP33: =+AP32+1 -> 2025 | AQ33: =+AG33 ->  | AR33: =+AQ33*$AR$31 ->  | AS33: =IFERROR(AR33*$AS$31,0) -> 0 | AT33: =+AT32*(1+PDE!$D$4) -> 2590.597548 | AU33: =+AT33*$AU$31 ->  | AV33: =IFERROR(AU33*$AV$31,0) -> 0 | AW33: =AR33+AU33 ->  | AX33: =AS33+AV33 -> 0 | AZ33: =+AZ32+1 -> 2025 | BA33: =+AQ33 ->  | BB33: =+BA33*$BB$31 ->  | BC33: 0 | BD33: =+BD32*(1+PDE!$D$4) -> 2590.597548 | BE33: =+BD33*$BE$31 ->  | BF33: =IFERROR(BE33*$BF$31,0) -> 0 | BG33: =BB33+BE33 ->  | BH33: =BC33+BF33 -> 0 | BJ33: =+BJ32+1 -> 2025 | BK33: =+BA33 ->  | BL33: =+BK33*$BL$31 ->  | BM33: =IFERROR(BL33*$BM$31,0) -> 0 | BN33: =+BN32*(1+PDE!$D$4) -> 2590.597548 | BO33: =+BN33*$BO$31 ->  | BP33: =IFERROR(BO33*$BP$31,0) -> 0 | BQ33: =BL33+BO33 ->  | BR33: =BM33+BP33 -> 0 | BU33: =+BU32+1 -> 2025 | BV33: =+AC33+I33+S33+I12+AM33+AW33+BG33+BQ33 ->  | BW33: =+AD33+J33+T33+J12+AN33+AX33+BH33+BR33 -> 
B34: =+B33+1 -> 2026 | E34: =+D34*$E$31 ->  | F34: =+F33*(1+PDE!$D$4) -> 2621.684719 | G34: 1077.337878 | H34: 3770.682574 | L34: 2026 | O34: 0 | P34: =+P33*(1+PDE!$D$4) -> 2621.684719 | R34: 0 | T34: 0 | V34: =+V33+1 -> 2026 | Y34: =IFERROR(X34*$Y$31,0) -> 0 | Z34: =+Z33*(1+PDE!$D$4) -> 2621.684719 | AB34: =IFERROR(AA34*$AB$31,0) -> 0 | AD34: 0 | AF34: =+AF33+1 -> 2026 | AI34: 0 | AJ34: =+AJ33*(1+PDE!$D$4) -> 2621.684719 | AL34: 0 | AN34: 0 | AP34: =+AP33+1 -> 2026 | AS34: 0 | AT34: =+AT33*(1+PDE!$D$4) -> 2621.684719 | AV34: =IFERROR(AU34*$AV$31,0) -> 0 | AX34: 0 | AZ34: =+AZ33+1 -> 2026 | BC34: 0 | BD34: =+BD33*(1+PDE!$D$4) -> 2621.684719 | BF34: =IFERROR(BE34*$BF$31,0) -> 0 | BH34: 0 | BJ34: =+BJ33+1 -> 2026 | BM34: =IFERROR(BL34*$BM$31,0) -> 0 | BN34: =+BN33*(1+PDE!$D$4) -> 2621.684719 | BO34: =+BN34*$BO$31 ->  | BP34: =IFERROR(BO34*$BP$31,0) -> 0 | BR34: 0 | BU34: 2026
B35: =+B34+1 -> 2027 | E35: =+D35*$E$31 ->  | F35: =+F34*(1+PDE!$D$4) -> 2653.144935 | G35: 1090.265933 | H35: =G35*$H$31 -> 3815.930765 | L35: 2027 | O35: =IFERROR(N35*$O$31,0) -> 0 | P35: =+P34*(1+PDE!$D$4) -> 2653.144935 | R35: 0 | T35: 0 | V35: =+V34+1 -> 2027 | Y35: 0 | Z35: =+Z34*(1+PDE!$D$4) -> 2653.144935 | AB35: 0 | AD35: 0 | AF35: =+AF34+1 -> 2027 | AI35: 0 | AJ35: =+AJ34*(1+PDE!$D$4) -> 2653.144935 | AL35: 0 | AN35: 0 | AP35: =+AP34+1 -> 2027 | AS35: =IFERROR(AR35*$AS$31,0) -> 0 | AT35: =+AT34*(1+PDE!$D$4) -> 2653.144935 | AV35: =IFERROR(AU35*$AV$31,0) -> 0 | AX35: 0 | AZ35: =+AZ34+1 -> 2027 | BC35: 0 | BD35: =+BD34*(1+PDE!$D$4) -> 2653.144935 | BF35: =IFERROR(BE35*$BF$31,0) -> 0 | BH35: 0 | BJ35: =+BJ34+1 -> 2027 | BM35: =IFERROR(BL35*$BM$31,0) -> 0 | BN35: =+BN34*(1+PDE!$D$4) -> 2653.144935 | BO35: =+BN35*$BO$31 ->  | BP35: =IFERROR(BO35*$BP$31,0) -> 0 | BR35: 0 | BU35: 2027
B36: 2028 | F36: =+F35*(1+PDE!$D$4) -> 2684.982674 | G36: 1103.349124 | H36: =G36*$H$31 -> 3861.721934 | I36: =D36+G36 ->  | L36: 2028 | O36: =IFERROR(N36*$O$31,0) -> 0 | P36: =+P35*(1+PDE!$D$4) -> 2684.982674 | R36: 0 | T36: 0 | V36: 2028 | Y36: =IFERROR(X36*$Y$31,0) -> 0 | Z36: =+Z35*(1+PDE!$D$4) -> 2684.982674 | AB36: 0 | AD36: 0 | AF36: 2028 | AI36: 0 | AJ36: =+AJ35*(1+PDE!$D$4) -> 2684.982674 | AL36: =IFERROR(AK36*$AL$31,0) -> 0 | AN36: 0 | AP36: 2028 | AS36: =IFERROR(AR36*$AS$31,0) -> 0 | AT36: =+AT35*(1+PDE!$D$4) -> 2684.982674 | AV36: =IFERROR(AU36*$AV$31,0) -> 0 | AX36: 0 | AZ36: 2028 | BC36: 0 | BD36: =+BD35*(1+PDE!$D$4) -> 2684.982674 | BF36: =IFERROR(BE36*$BF$31,0) -> 0 | BH36: 0 | BJ36: 2028 | BM36: =IFERROR(BL36*$BM$31,0) -> 0 | BN36: =+BN35*(1+PDE!$D$4) -> 2684.982674 | BO36: =+BN36*$BO$31 ->  | BP36: =IFERROR(BO36*$BP$31,0) -> 0 | BR36: 0 | BU36: 2028
B37: 2029 | E37: =+D37*$E$31 ->  | F37: =+F36*(1+PDE!$D$4) -> 2717.202467 | G37: 1116.589313 | H37: 3908.062597 | L37: 2029 | O37: =IFERROR(N37*$O$31,0) -> 0 | P37: =+P36*(1+PDE!$D$4) -> 2717.202467 | R37: 0 | T37: 0 | V37: 2029 | Y37: =IFERROR(X37*$Y$31,0) -> 0 | Z37: =+Z36*(1+PDE!$D$4) -> 2717.202467 | AB37: 0 | AD37: 0 | AF37: 2029 | AI37: =IFERROR(AH37*$AI$31,0) -> 0 | AJ37: =+AJ36*(1+PDE!$D$4) -> 2717.202467 | AL37: =IFERROR(AK37*$AL$31,0) -> 0 | AN37: 0 | AP37: 2029 | AS37: =IFERROR(AR37*$AS$31,0) -> 0 | AT37: =+AT36*(1+PDE!$D$4) -> 2717.202467 | AV37: 0 | AX37: 0 | AZ37: 2029 | BC37: 0 | BD37: =+BD36*(1+PDE!$D$4) -> 2717.202467 | BF37: =IFERROR(BE37*$BF$31,0) -> 0 | BH37: 0 | BJ37: 2029 | BM37: 0 | BN37: =+BN36*(1+PDE!$D$4) -> 2717.202467 | BP37: =IFERROR(BO37*$BP$31,0) -> 0 | BR37: 0 | BU37: 2029
B38: 2030 | E38: =+D38*$E$31 ->  | F38: =+F37*(1+PDE!$D$4) -> 2749.808896 | G38: 1129.988385 | H38: =G38*$H$31 -> 3954.959348 | L38: 2030 | O38: =IFERROR(N38*$O$31,0) -> 0 | P38: =+P37*(1+PDE!$D$4) -> 2749.808896 | R38: 0 | T38: 0 | V38: 2030 | Y38: =IFERROR(X38*$Y$31,0) -> 0 | Z38: =+Z37*(1+PDE!$D$4) -> 2749.808896 | AB38: 0 | AD38: 0 | AF38: 2030 | AI38: 0 | AJ38: =+AJ37*(1+PDE!$D$4) -> 2749.808896 | AL38: 0 | AN38: 0 | AP38: 2030 | AS38: 0 | AT38: =+AT37*(1+PDE!$D$4) -> 2749.808896 | AV38: =IFERROR(AU38*$AV$31,0) -> 0 | AX38: 0 | AZ38: 2030 | BC38: 0 | BD38: =+BD37*(1+PDE!$D$4) -> 2749.808896 | BF38: =IFERROR(BE38*$BF$31,0) -> 0 | BH38: 0 | BJ38: 2030 | BM38: =IFERROR(BL38*$BM$31,0) -> 0 | BN38: =+BN37*(1+PDE!$D$4) -> 2749.808896 | BP38: =IFERROR(BO38*$BP$31,0) -> 0 | BR38: 0 | BU38: 2030
B39: 2031 | E39: =+D39*$E$31 ->  | F39: =+F38*(1+PDE!$D$4) -> 2782.806603 | G39: 1143.548246 | H39: 4002.41886 | L39: 2031 | O39: 0 | P39: =+P38*(1+PDE!$D$4) -> 2782.806603 | Q39: =+P39*$Q$31 ->  | R39: =IFERROR(Q39*$R$31,0) -> 0 | T39: 0 | V39: 2031 | Y39: =IFERROR(X39*$Y$31,0) -> 0 | Z39: =+Z38*(1+PDE!$D$4) -> 2782.806603 | AB39: 0 | AD39: 0 | AF39: 2031 | AI39: 0 | AJ39: =+AJ38*(1+PDE!$D$4) -> 2782.806603 | AL39: =IFERROR(AK39*$AL$31,0) -> 0 | AN39: 0 | AP39: 2031 | AS39: 0 | AT39: =+AT38*(1+PDE!$D$4) -> 2782.806603 | AV39: =IFERROR(AU39*$AV$31,0) -> 0 | AX39: 0 | AZ39: 2031 | BC39: =IFERROR(BB39*$BC$31,0) -> 0 | BD39: =+BD38*(1+PDE!$D$4) -> 2782.806603 | BF39: 0 | BH39: 0 | BJ39: 2031 | BM39: 0 | BN39: =+BN38*(1+PDE!$D$4) -> 2782.806603 | BP39: 0 | BR39: 0 | BU39: 2031
B40: 2032 | E40: =+D40*$E$31 ->  | F40: =+F39*(1+PDE!$D$4) -> 2816.200282 | G40: 1157.270825 | H40: 4050.447887 | L40: 2032 | O40: 0 | P40: =+P39*(1+PDE!$D$4) -> 2816.200282 | R40: 0 | T40: 0 | V40: 2032 | Y40: =IFERROR(X40*$Y$31,0) -> 0 | Z40: =+Z39*(1+PDE!$D$4) -> 2816.200282 | AB40: 0 | AD40: 0 | AF40: 2032 | AI40: 0 | AJ40: =+AJ39*(1+PDE!$D$4) -> 2816.200282 | AL40: =IFERROR(AK40*$AL$31,0) -> 0 | AN40: 0 | AP40: 2032 | AS40: 0 | AT40: =+AT39*(1+PDE!$D$4) -> 2816.200282 | AV40: 0 | AX40: 0 | AZ40: 2032 | BC40: =IFERROR(BB40*$BC$31,0) -> 0 | BD40: =+BD39*(1+PDE!$D$4) -> 2816.200282 | BF40: 0 | BH40: 0 | BJ40: 2032 | BM40: 0 | BN40: =+BN39*(1+PDE!$D$4) -> 2816.200282 | BP40: 0 | BR40: 0 | BU40: 2032
B41: 2033 | E41: =+D41*$E$31 ->  | F41: =+F40*(1+PDE!$D$4) -> 2849.994685 | G41: 1171.158075 | H41: 4099.053261 | L41: 2033 | O41: 0 | P41: =+P40*(1+PDE!$D$4) -> 2849.994685 | R41: 0 | T41: 0 | V41: 2033 | Y41: 0 | Z41: =+Z40*(1+PDE!$D$4) -> 2849.994685 | AB41: 0 | AD41: 0 | AF41: 2033 | AI41: 0 | AJ41: =+AJ40*(1+PDE!$D$4) -> 2849.994685 | AL41: 0 | AN41: 0 | AP41: 2033 | AS41: 0 | AT41: =+AT40*(1+PDE!$D$4) -> 2849.994685 | AV41: =IFERROR(AU41*$AV$31,0) -> 0 | AX41: 0 | AZ41: 2033 | BC41: =IFERROR(BB41*$BC$31,0) -> 0 | BD41: =+BD40*(1+PDE!$D$4) -> 2849.994685 | BF41: 0 | BH41: 0 | BJ41: 2033 | BM41: 0 | BN41: =+BN40*(1+PDE!$D$4) -> 2849.994685 | BP41: 0 | BR41: 0 | BU41: 2033
B42: 2034 | F42: =+F41*(1+PDE!$D$4) -> 2884.194622 | G42: 1185.211972 | H42: 4148.241901 | L42: 2034 | O42: 0 | P42: =+P41*(1+PDE!$D$4) -> 2884.194622 | R42: 0 | T42: 0 | V42: 2034 | Y42: 0 | Z42: =+Z41*(1+PDE!$D$4) -> 2884.194622 | AA42: =Z42*$AA$31 ->  | AB42: 0 | AD42: 0 | AF42: 2034 | AI42: 0 | AJ42: =+AJ41*(1+PDE!$D$4) -> 2884.194622 | AL42: =IFERROR(AK42*$AL$31,0) -> 0 | AN42: 0 | AP42: 2034 | AS42: 0 | AT42: =+AT41*(1+PDE!$D$4) -> 2884.194622 | AV42: 0 | AX42: 0 | AZ42: 2034 | BC42: 0 | BD42: =+BD41*(1+PDE!$D$4) -> 2884.194622 | BF42: 0 | BH42: 0 | BJ42: 2034 | BM42: 0 | BN42: =+BN41*(1+PDE!$D$4) -> 2884.194622 | BP42: 0 | BR42: 0 | BU42: 2034
B43: 2035 | F43: =+F42*(1+PDE!$D$4) -> 2918.804957 | G43: 1199.434515 | H43: 4198.020803 | L43: 2035 | O43: 0 | P43: =+P42*(1+PDE!$D$4) -> 2918.804957 | R43: 0 | T43: 0 | V43: 2035 | Y43: 0 | Z43: =+Z42*(1+PDE!$D$4) -> 2918.804957 | AB43: 0 | AD43: 0 | AF43: 2035 | AI43: 0 | AJ43: =+AJ42*(1+PDE!$D$4) -> 2918.804957 | AL43: 0 | AN43: 0 | AP43: 2035 | AS43: 0 | AT43: =+AT42*(1+PDE!$D$4) -> 2918.804957 | AV43: 0 | AX43: 0 | AZ43: 2035 | BC43: 0 | BD43: =+BD42*(1+PDE!$D$4) -> 2918.804957 | BF43: 0 | BH43: 0 | BJ43: 2035 | BM43: 0 | BN43: =+BN42*(1+PDE!$D$4) -> 2918.804957 | BP43: 0 | BR43: 0 | BU43: 2035
B44: 2036 | F44: =+F43*(1+PDE!$D$4) -> 2953.830617 | G44: 1213.827729 | H44: 4248.397053 | L44: 2036 | O44: 0 | P44: =+P43*(1+PDE!$D$4) -> 2953.830617 | R44: 0 | T44: 0 | V44: 2036 | Y44: 0 | Z44: =+Z43*(1+PDE!$D$4) -> 2953.830617 | AB44: 0 | AD44: 0 | AF44: 2036 | AI44: 0 | AJ44: =+AJ43*(1+PDE!$D$4) -> 2953.830617 | AK44: =+AJ44*$AK$31 ->  | AL44: 0 | AN44: 0 | AP44: 2036 | AS44: 0 | AT44: =+AT43*(1+PDE!$D$4) -> 2953.830617 | AV44: 0 | AX44: 0 | AZ44: 2036 | BC44: 0 | BD44: =+BD43*(1+PDE!$D$4) -> 2953.830617 | BF44: 0 | BH44: 0 | BJ44: 2036 | BM44: 0 | BN44: =+BN43*(1+PDE!$D$4) -> 2953.830617 | BP44: 0 | BR44: 0 | BU44: 2036
B45: 2037 | F45: =+F44*(1+PDE!$D$4) -> 2989.276584 | G45: 1228.393662 | H45: 4299.377818 | L45: 2037 | O45: 0 | P45: =+P44*(1+PDE!$D$4) -> 2989.276584 | R45: 0 | T45: 0 | V45: 2037 | Y45: 0 | Z45: =+Z44*(1+PDE!$D$4) -> 2989.276584 | AB45: 0 | AD45: 0 | AF45: 2037 | AI45: 0 | AJ45: =+AJ44*(1+PDE!$D$4) -> 2989.276584 | AL45: 0 | AN45: 0 | AP45: 2037 | AS45: 0 | AT45: =+AT44*(1+PDE!$D$4) -> 2989.276584 | AV45: 0 | AX45: 0 | AZ45: 2037 | BC45: 0 | BD45: =+BD44*(1+PDE!$D$4) -> 2989.276584 | BF45: 0 | BH45: 0 | BJ45: 2037 | BM45: =IFERROR(BL45*$BM$31,0) -> 0 | BN45: =+BN44*(1+PDE!$D$4) -> 2989.276584 | BP45: 0 | BR45: 0 | BU45: 2037
B48: Atención ambulatoria por Enfermero (a)
H49: INMUNIZACION
C50: CRED | H50: Descripción: Grupo Poblacional | I50: Sesión de Vacunación | J50: Población P1
C51: EDAD | D51: RATIO DE CONCENTRACIÓN | E51: POBLACIÓN MINSA | I51: N° Vacunas/año | M51: Grupo | N51: Sesión | O51: P1
C52: Recién Nacido | D52: 4 | E52: =+'Sección G'!AP19 -> 0 | H52: En < de 1 año | I52: 6 | J52: =+E52+E53 -> 0
C53: 01 a 11 meses | D53: 11 | E53: =+'Sección G'!AQ19+'Sección G'!AR19 -> 0 | H53: En niños de 1 año | I53: 4 | J53: =+E54 -> 0 | M53: < 28 días | N53: 1 | O53: =+E52 -> 0
C54: 01 año a < 02 años | D54: 6 | E54: =+'Sección G'!J19 -> 0 | H54: En niños de 2 años | I54: 1 | J54: =E55 -> 0 | M54: < 1 año | N54: 6 | O54: =+E53 -> 0
C55: 02 años a < 03 años | D55: 4 | E55: =+'Sección G'!K19 -> 0 | H55: En niños de 3 años | I55: 1 | J55: =E56 -> 0 | M55: 1 año | N55: 4 | O55: =+E54 -> 0
C56: 03 años a < 04 años | D56: 4 | E56: =+'Sección G'!L19 -> 0 | H56: En niños de 4 años | I56: 1 | J56: =+E57 -> 0 | M56: 2 años | N56: 2 | O56: =+E55 -> 0
C57: 04 años a < 05 años | D57: 4 | E57: =+'Sección G'!M19 -> 0 | H57: En niños de 4 años | I57: 1 | J57: =+J56 -> 0 | M57: 3 años | N57: 1 | O57: =+E56 -> 0
C58: FUENTE: NTS N° 137-MINSA/2017/DGIESP | E58: =SUM(E52:E57) -> 0 | F58: =+E58+J58 -> 0 | H58: Niñas 10 años | I58: 3 | J58: =+'Sección G'!S19*'Sección G'!AT20 -> 0 | M58: FUENTE: RM. 990- 2010/MINSA. 20/12/2010 NTS N° 087-MINSA /DGSP V.01 "Norma Técnica de Salud para el Control del Crecimiento y Desarrollo de la Niña y el Niño Menor de Cinco Años" (Anexo N° 14)
E59: =+E58/PDE!E20 ->  | H59: Gestantes | I59: 2 | J59: =+J89 -> 0
H60: Fuente: RM N° 510-2013/MINSA que aprueba la NTS N°080-MINSA/DGSP-V.03:"Norma Técnica de Salud que establece el Esquema Nacional de Vacunación".
L63: SERVICIO DE ESTIMULACIÓN TEMPRANA
C64: SERVICIO DE ENFERMERÍA | L64: Año | M64: Atenciones Estiimulación Temprana (P1) | N64: Atenciones Estimulación Temprana
C65: Año | D65: Atenciones CRED | E65: Atenciones Inmunizaciones | F65: Atenciones Enfermería
C67: =+PDE!C10 -> 2024 | D67: =SUMPRODUCT(D52:D57,E52:E57)*0.8 -> 0 | E67: =SUMPRODUCT(I52:I59,J52:J59)*0.8 -> 0 | F67: =+D67+E67 -> 0 | L67: =+C98 -> 2024 | M67: =+SUMPRODUCT(O53:O57,N53:N57)*0.8 -> 0 | N67: =+M67 -> 0
C68: =+C67+1 -> 2025 | D68: =+D67*(1+PDE!$D$4) -> 0 | E68: =+E67*(1+PDE!$D$4) -> 0 | F68: 0 | L68: =+L67+1 -> 2025 | M68: =+M67*(1+PDE!$D$4) -> 0 | N68: 0
C69: 2026 | D69: =+D68*(1+PDE!$D$4) -> 0 | E69: =+E68*(1+PDE!$D$4) -> 0 | F69: 0 | L69: 2026 | M69: =+M68*(1+PDE!$D$4) -> 0 | N69: 0
C70: 2027 | D70: =+D69*(1+PDE!$D$4) -> 0 | E70: =+E69*(1+PDE!$D$4) -> 0 | F70: 0 | L70: 2027 | M70: =+M69*(1+PDE!$D$4) -> 0 | N70: 0
C71: 2028 | D71: =+D70*(1+PDE!$D$4) -> 0 | E71: =+E70*(1+PDE!$D$4) -> 0 | F71: 0 | L71: 2028 | M71: =+M70*(1+PDE!$D$4) -> 0 | N71: 0
C72: 2029 | D72: =+D71*(1+PDE!$D$4) -> 0 | E72: =+E71*(1+PDE!$D$4) -> 0 | F72: 0 | L72: 2029 | M72: =+M71*(1+PDE!$D$4) -> 0 | N72: 0
C73: 2030 | D73: =+D72*(1+PDE!$D$4) -> 0 | E73: =+E72*(1+PDE!$D$4) -> 0 | F73: 0 | L73: 2030 | M73: =+M72*(1+PDE!$D$4) -> 0 | N73: 0
C74: 2031 | D74: =+D73*(1+PDE!$D$4) -> 0 | E74: =+E73*(1+PDE!$D$4) -> 0 | F74: 0 | L74: 2031 | M74: =+M73*(1+PDE!$D$4) -> 0 | N74: 0
C75: 2032 | D75: =+D74*(1+PDE!$D$4) -> 0 | E75: =+E74*(1+PDE!$D$4) -> 0 | F75: 0 | L75: 2032 | M75: =+M74*(1+PDE!$D$4) -> 0 | N75: 0
C76: 2033 | D76: =+D75*(1+PDE!$D$4) -> 0 | E76: =+E75*(1+PDE!$D$4) -> 0 | F76: 0 | L76: 2033 | M76: =+M75*(1+PDE!$D$4) -> 0 | N76: 0
C77: 2034 | D77: =+D76*(1+PDE!$D$4) -> 0 | E77: =+E76*(1+PDE!$D$4) -> 0 | F77: 0 | L77: 2034 | M77: =+M76*(1+PDE!$D$4) -> 0 | N77: 0
C78: 2035 | D78: =+D77*(1+PDE!$D$4) -> 0 | E78: =+E77*(1+PDE!$D$4) -> 0 | F78: 0 | L78: 2035 | M78: =+M77*(1+PDE!$D$4) -> 0 | N78: 0
C79: 2036 | D79: =+D78*(1+PDE!$D$4) -> 0 | E79: =+E78*(1+PDE!$D$4) -> 0 | F79: 0 | L79: 2036 | M79: =+M78*(1+PDE!$D$4) -> 0 | N79: 0
C80: 2037 | D80: =+D79*(1+PDE!$D$4) -> 0 | E80: =+E79*(1+PDE!$D$4) -> 0 | F80: 0 | L80: 2037 | M80: =+M79*(1+PDE!$D$4) -> 0 | N80: 0
B85: Atención ambulatoria por Obstetra
C86: ATENCIÓN AMBULATORIA POR OBSTETRA
C87: TIPO DE POBLACIÓN P1 MINSA/GR
C88: a) Control Prenatal | H88: Obstetricia | J88: Gestantes Esperadas | K88: Población femenina (15-49 años)
C89: b) Control de Puerperas | I89: Pob. asignada año base | J89: =+'Sección G'!AY19 -> 0 | K89: =+'Sección G'!AT19 -> 0
C90: c) Planificación Familiar
C91: d) Consejería
C92: e) Psicoprofilaxis
C94: CON TROL PRE NATAL | H94: PLANIFICACIÓN FAMILIAR | M94: PSICOPROFILAXIS
C95: Año | D95: Gestantes Programadas | E95: Atenciones en Control Prenatal | F95: Atenciones en Control de Puerperas | G95: Atenciones de CPN | H95: Planificación Familiar Población (15-49 años) MEF P1 | I95: Población accede a metodos de planificación familiar | J95: Aenciones de Planificación Familiar | M95: Año | N95: Gestantes Programadas | O95: Atenciones Psicoprofilaxis
E96: Ratio | F96: Ratio | I96: 0.508 | O96: Ratio
D97: 1 | E97: 6 | F97: 2 | I97: 4 | O97: 6
C98: =+C67 -> 2024 | D98: =+J89*D97 -> 0 | E98: =+D98*$E$97 -> 0 | F98: =+D98*$F$97 -> 0 | G98: =E98+F98 -> 0 | H98: =+K89*0.8 -> 0 | I98: =H98*$I$96*$I$97 -> 0 | J98: =+I98 -> 0 | M98: =+C98 -> 2024 | N98: =+D98 -> 0 | O98: =+N98*$O$97 -> 0
C99: =+C98+1 -> 2025 | D99: =+D98*(1+PDE!$D$4) -> 0 | E99: 0 | F99: 0 | G99: 0 | H99: =+H98*(1+PDE!$D$4) -> 0 | I99: =H99*$I$96*$I$97 -> 0 | J99: =+I99 -> 0 | M99: =+M98+1 -> 2025 | N99: =+D99 -> 0 | O99: 0
C100: 2026 | D100: =+D99*(1+PDE!$D$4) -> 0 | E100: 0 | F100: 0 | G100: 0 | H100: =+H99*(1+PDE!$D$4) -> 0 | I100: 0 | J100: 0 | M100: 2026 | N100: 0 | O100: 0
C101: 2027 | D101: =+D100*(1+PDE!$D$4) -> 0 | E101: 0 | F101: 0 | G101: 0 | H101: =+H100*(1+PDE!$D$4) -> 0 | I101: 0 | J101: 0 | M101: 2027 | N101: 0 | O101: 0
C102: 2028 | D102: =+D101*(1+PDE!$D$4) -> 0 | E102: 0 | F102: 0 | G102: 0 | H102: =+H101*(1+PDE!$D$4) -> 0 | I102: 0 | J102: 0 | M102: 2028 | N102: 0 | O102: 0
C103: 2029 | D103: =+D102*(1+PDE!$D$4) -> 0 | E103: 0 | F103: 0 | G103: 0 | H103: =+H102*(1+PDE!$D$4) -> 0 | I103: 0 | J103: 0 | M103: 2029 | N103: 0 | O103: 0
C104: 2030 | D104: =+D103*(1+PDE!$D$4) -> 0 | E104: 0 | F104: 0 | G104: 0 | H104: =+H103*(1+PDE!$D$4) -> 0 | I104: 0 | J104: 0 | M104: 2030 | N104: 0 | O104: 0
C105: 2031 | D105: =+D104*(1+PDE!$D$4) -> 0 | E105: 0 | F105: 0 | G105: 0 | H105: =+H104*(1+PDE!$D$4) -> 0 | I105: 0 | J105: 0 | M105: 2031 | N105: 0 | O105: 0
C106: 2032 | D106: =+D105*(1+PDE!$D$4) -> 0 | E106: 0 | F106: 0 | G106: 0 | H106: =+H105*(1+PDE!$D$4) -> 0 | I106: 0 | J106: 0 | M106: 2032 | N106: 0 | O106: 0
C107: 2033 | D107: =+D106*(1+PDE!$D$4) -> 0 | E107: 0 | F107: 0 | G107: 0 | H107: =+H106*(1+PDE!$D$4) -> 0 | I107: 0 | J107: 0 | M107: 2033 | N107: 0 | O107: 0
C108: 2034 | D108: =+D107*(1+PDE!$D$4) -> 0 | E108: 0 | F108: 0 | G108: 0 | H108: =+H107*(1+PDE!$D$4) -> 0 | I108: 0 | J108: 0 | M108: 2034 | N108: 0 | O108: 0
C109: 2035 | D109: =+D108*(1+PDE!$D$4) -> 0 | E109: 0 | F109: 0 | G109: 0 | H109: =+H108*(1+PDE!$D$4) -> 0 | I109: 0 | J109: 0 | M109: 2035 | N109: 0 | O109: 0
C110: 2036 | D110: =+D109*(1+PDE!$D$4) -> 0 | E110: 0 | F110: 0 | G110: 0 | H110: =+H109*(1+PDE!$D$4) -> 0 | I110: 0 | J110: 0 | M110: 2036 | N110: 0 | O110: 0
C111: 2037 | D111: =+D110*(1+PDE!$D$4) -> 0 | E111: 0 | F111: 0 | G111: 0 | H111: =+H110*(1+PDE!$D$4) -> 0 | I111: 0 | J111: 0 | M111: 2037 | N111: 0 | O111: 0
C112: Fuente: | M112: Fuente:
C113: NTS N° 105-MINSA-DGSP-V.01 | M113: NTS N° 105-MINSA-DGSP-V.01
C114: NTS N° 124-2016-MINSA-V.01
B117: Atención ambulatoria por nutrición
C119: NUT1 CONSULTORIO DE NUTRICION
C120: Año | D120: Consejería Nutricional CRED | E120: Consejería Nutricional Gestantes | F120: Consejería Nutricional Adolescentes | G120: Consejería Nutricional Adulto Mayor | H120: Atenciones de Nutrición Consejería | I120: Desnutrición Crónica | J120: Atenciones
I121: 0.157
D122: 1 | E122: 1 | F122: 1 | G122: 1 | I122: 3.5
C123: =B11 -> 2024 | D123: ='DE1'!E58 -> 0 | E123: ='DE1'!D98 -> 0 | F123: =C11*$T$10 ->  | G123: =C11*$W$10 ->  | H123: =+D123+E123+F123+G123 ->  | I123: =Q11*$I$121*$I$122 ->  | J123: =+H123+I123 -> 
C124: 2025 | D124: =+D123*(1+PDE!$D$4) -> 0 | E124: ='DE1'!D99 -> 0 | J124: =+H124+I124 -> 
C125: 2026 | D125: =+D124*(1+PDE!$D$4) -> 0 | E125: ='DE1'!D100 -> 0
C126: 2027 | D126: =+D125*(1+PDE!$D$4) -> 0 | E126: ='DE1'!D101 -> 0
C127: 2028 | D127: =+D126*(1+PDE!$D$4) -> 0 | E127: ='DE1'!D102 -> 0
C128: 2029 | D128: =+D127*(1+PDE!$D$4) -> 0 | E128: ='DE1'!D103 -> 0
C129: 2030 | D129: =+D128*(1+PDE!$D$4) -> 0 | E129: ='DE1'!D104 -> 0
C130: 2031 | D130: =+D129*(1+PDE!$D$4) -> 0 | E130: ='DE1'!D105 -> 0
C131: 2032 | D131: =+D130*(1+PDE!$D$4) -> 0 | E131: ='DE1'!D106 -> 0
C132: 2033 | D132: =+D131*(1+PDE!$D$4) -> 0 | E132: ='DE1'!D107 -> 0
C133: 2034 | D133: =+D132*(1+PDE!$D$4) -> 0 | E133: ='DE1'!D108 -> 0
C134: 2035 | D134: =+D133*(1+PDE!$D$4) -> 0 | E134: ='DE1'!D109 -> 0
C135: 2036 | D135: =+D134*(1+PDE!$D$4) -> 0 | E135: ='DE1'!D110 -> 0
C136: 2037 | D136: =+D135*(1+PDE!$D$4) -> 0 | E136: ='DE1'!D111 -> 0
C137: Fuente: NTS correspondientes
B139: SERVICIO DE ATENCIÓN EXTRAMURAL
C140: TIPO DE POBLACIÓN P1 MINSA/GR
C142: SERVICIO DE ATENCIÓN EXTRAMURAL
C143: Año | D143: Visitas Domiciliarias | I143: Atención Extramural
D144: TBC | E144: Gestantes Programadas | F144: Recién Nacido | G144: Niños menores 36 meses | H144: Adulto Mayor
D145: Ratio | E145: Ratio | F145: Ratio | G145: Ratio | H145: Ratio
D146: 1 | E146: 4 | F146: 2 | G146: 3 | H146: 1
C147: =+L67 -> 2024 | D147: ='DE2'!BA38 ->  | E147: =D98*$E$146 -> 0 | F147: =+'Sección G'!AS19 -> 0 | G147: =+F147*G146 -> 0 | H147: =+SUM('Sección G'!AK19:AO19) -> 0 | I147: =SUM(D147:H147) -> 
C148: =+C147+1 -> 2025 | D148: ='DE2'!BA39 ->  | E148: 0 | F148: =+F147*(1+PDE!$D$4) -> 0 | G148: =+G147*(1+PDE!$D$4) -> 0 | H148: =+H147*(1+PDE!$D$4) -> 0
C149: 2026 | D149: ='DE2'!BA40 ->  | E149: 0 | F149: =+F148*(1+PDE!$D$4) -> 0 | G149: =+G148*(1+PDE!$D$4) -> 0 | H149: =+H148*(1+PDE!$D$4) -> 0
C150: 2027 | D150: ='DE2'!BA41 ->  | E150: 0 | F150: =+F149*(1+PDE!$D$4) -> 0 | G150: =+G149*(1+PDE!$D$4) -> 0 | H150: =+H149*(1+PDE!$D$4) -> 0
C151: 2028 | D151: ='DE2'!BA42 ->  | E151: 0 | F151: =+F150*(1+PDE!$D$4) -> 0 | G151: =+G150*(1+PDE!$D$4) -> 0 | H151: =+H150*(1+PDE!$D$4) -> 0
C152: 2029 | D152: ='DE2'!BA43 ->  | E152: 0 | F152: =+F151*(1+PDE!$D$4) -> 0 | G152: =+G151*(1+PDE!$D$4) -> 0 | H152: =+H151*(1+PDE!$D$4) -> 0
C153: 2030 | D153: ='DE2'!BA44 ->  | E153: 0 | F153: =+F152*(1+PDE!$D$4) -> 0 | G153: =+G152*(1+PDE!$D$4) -> 0 | H153: =+H152*(1+PDE!$D$4) -> 0
C154: 2031 | D154: ='DE2'!BA45 ->  | E154: 0 | F154: =+F153*(1+PDE!$D$4) -> 0 | G154: =+G153*(1+PDE!$D$4) -> 0 | H154: =+H153*(1+PDE!$D$4) -> 0
C155: 2032 | D155: ='DE2'!BA46 ->  | E155: 0 | F155: =+F154*(1+PDE!$D$4) -> 0 | G155: =+G154*(1+PDE!$D$4) -> 0 | H155: =+H154*(1+PDE!$D$4) -> 0
C156: 2033 | D156: ='DE2'!BA47 ->  | E156: 0 | F156: =+F155*(1+PDE!$D$4) -> 0 | G156: =+G155*(1+PDE!$D$4) -> 0 | H156: =+H155*(1+PDE!$D$4) -> 0
C157: 2034 | D157: ='DE2'!BA48 ->  | E157: 0 | F157: =+F156*(1+PDE!$D$4) -> 0 | G157: =+G156*(1+PDE!$D$4) -> 0 | H157: =+H156*(1+PDE!$D$4) -> 0
C158: 2035 | D158: ='DE2'!BA49 ->  | E158: 0 | F158: =+F157*(1+PDE!$D$4) -> 0 | G158: =+G157*(1+PDE!$D$4) -> 0 | H158: =+H157*(1+PDE!$D$4) -> 0
C159: 2036 | D159: ='DE2'!BA50 ->  | E159: 0 | F159: =+F158*(1+PDE!$D$4) -> 0 | G159: =+G158*(1+PDE!$D$4) -> 0 | H159: =+H158*(1+PDE!$D$4) -> 0
C160: 2037 | D160: ='DE2'!BA51 ->  | E160: 0 | F160: =+F159*(1+PDE!$D$4) -> 0 | G160: =+G159*(1+PDE!$D$4) -> 0 | H160: =+H159*(1+PDE!$D$4) -> 0
C161: Fuente: Establecidas por cada Estrategia Sanitaria
B164: Topico de procedimientos
E166: Tópico de Procedimientos de Consulta Externa
C167: Año | D167: Total de Atendidos Médicas | E167: Total de Atenciones Médicas | F167: Topico de Procedimientos de Consulta Externa | G167: Ginecologia | J167: Endocrinología | L167: Cardiología | O167: Neumologia
G168: Topico de Procedimientos de Ginecologia | H168: Colposcopia | I168: Monitoreo Fetal | J168: Topico de Procedimientos Endocrinología | K168: Pie diabetico | L168: Sala de Electrocardiografía | M168: Sala de Prueba de esfuerzo | N168: Sala de Holter y Mapa | O168: Sala de Espirometria
F169: 0.2 | G169: 0.13 | H169: 0.04 | I169: 1.37 | J169: 0.09 | K169: 0.037 | L169: 0.72 | M169: 0.04 | N169: 0.07 | O169: 0.19
C170: =B32 -> 2024 | D170: =+BV32 ->  | E170: =+BW32 ->  | F170: =+$F$169*(J11+J32+T32+AX32) ->  | G170: =+$G$169*AD32 -> 0 | H170: =$H$169*AD32 -> 0 | I170: =+$I$169*D98 -> 0 | J170: =$J$169*AN32 -> 0 | K170: =$K$169*AN32 -> 0 | L170: =+$L$169*BH32 -> 0 | M170: =+$M$169*BH32 -> 0 | N170: =+$N$169*BH32 -> 0 | O170: =+$O$169*BR32 -> 0
C171: =+C170+1 -> 2025 | D171: =+BV33 ->  | F171: =+$F$169*(J12+J33+T33+AX33) ->  | G171: =+$G$169*AD33 -> 0 | H171: =$H$169*AD33 -> 0 | I171: =+$I$169*D99 -> 0 | J171: =$J$169*AN33 -> 0 | K171: =$K$169*AN33 -> 0 | L171: =+$L$169*BH33 -> 0 | M171: =+$M$169*BH33 -> 0 | N171: =+$N$169*BH33 -> 0 | O171: =+$O$169*BR33 -> 0
C172: 2026 | G172: 0 | H172: 0 | I172: 0 | J172: 0 | K172: 0 | L172: 0 | M172: 0 | N172: 0 | O172: 0
C173: 2027 | G173: 0 | H173: 0 | I173: 0 | J173: 0 | K173: 0 | L173: 0 | M173: 0 | N173: 0 | O173: 0
C174: 2028 | G174: 0 | H174: 0 | I174: 0 | J174: 0 | K174: 0 | L174: 0 | M174: 0 | N174: 0 | O174: 0
C175: 2029 | G175: 0 | H175: 0 | I175: 0 | J175: 0 | K175: 0 | L175: 0 | M175: 0 | N175: 0 | O175: 0
C176: 2030 | G176: 0 | H176: 0 | I176: 0 | J176: 0 | K176: 0 | L176: 0 | M176: 0 | N176: 0 | O176: 0
C177: 2031 | G177: 0 | H177: 0 | I177: 0 | J177: 0 | K177: 0 | L177: 0 | M177: 0 | N177: 0 | O177: 0
C178: 2032 | G178: 0 | H178: 0 | I178: 0 | J178: 0 | K178: 0 | L178: 0 | M178: 0 | N178: 0 | O178: 0
C179: 2033 | G179: 0 | H179: 0 | I179: 0 | J179: 0 | K179: 0 | L179: 0 | M179: 0 | N179: 0 | O179: 0
C180: 2034 | G180: 0 | H180: 0 | I180: 0 | J180: 0 | K180: 0 | L180: 0 | M180: 0 | N180: 0 | O180: 0
C181: 2035 | G181: 0 | H181: 0 | I181: 0 | J181: 0 | K181: 0 | L181: 0 | M181: 0 | N181: 0 | O181: 0
C182: 2036 | G182: 0 | H182: 0 | I182: 0 | J182: 0 | K182: 0 | L182: 0 | M182: 0 | N182: 0 | O182: 0
C183: 2037 | G183: 0 | H183: 0 | I183: 0 | J183: 0 | K183: 0 | L183: 0 | M183: 0 | N183: 0 | O183: 0

Sheet DE2 (hidden)
A2: ESTIMACIÓN DE LA DEMANDA EFECTIVA DE CONSULTA EXTERNA
B4: ATENCIÓN AMBULATORIA POR CIRUJANO DENTISTA GENERAL CON SOPORTE DE RADIOLOGÍA ORAL
C5: ODONTOLOGIA GENERAL | I5: ODONTOLOGÌA GENERAL CON RADIOLOGÌA ORAL
C6: Año | D6: CRED | E6: Gestantes | F6: Adolescentes | G6: Adulto Mayor | H6: Total Atenciones Odontología General | I6: Población Demandante Efectiva | J6: Atendidos | K6: Atenciones | L6: Total Atenciones Odontologícas
D7: 0.8 | E7: 0.6 | F7: 0.8 | G7: 0.8 | J7: Histórico | K7: Ratio
D8: 2 | E8: 2 | F8: 2 | G8: 2 | J8: 0.4519646102 | K8: 4
C9: =PDE!C10 -> 2024 | D9: =(SUM('Sección G'!I19:M19)+SUM('Sección G'!I29:M29))*$D$7*$D$8 -> 7632 | E9: =('Sección G'!AY19+SUM('Sección G'!AY29)*E7*E8) -> 2133.6 | F9: =+D38*$F$7*$F$8 -> 0 | G9: =SUM('Sección G'!AK19:AO19)*$G$7*$G$8 -> 0 | H9: =+D9+E9+F9+G9 -> 9765.6 | I9: =+PDE!#REF!+PDE!G10 ->  | J9: =+I9*$J$8 ->  | K9: =+J9*$K$8 ->  | L9: =+K9 -> 
C10: =+C9+1 -> 2025 | D10: =+D9*(1+PDE!$D$4) -> 7723.584 | E10: =+E9*(1+PDE!D4) -> 2159.2032 | F10: =+D39*$F$7*$F$8 -> 0 | G10: =+G9*(1+PDE!D4) -> 0 | H10: 9882.7872 | I10: =+I9*(1+PDE!$D$4) ->  | L10: =+K10 -> 
C11: 2026 | D11: =+D10*(1+PDE!$D$4) -> 7816.267008 | E11: =+E10*(1+PDE!$D$4) -> 2185.113638 | F11: 0 | G11: =+G10*(1+PDE!$D$4) -> 0 | H11: 10001.38065 | I11: =+I10*(1+PDE!$D$4) -> 
C12: 2027 | D12: =+D11*(1+PDE!$D$4) -> 7910.062212 | E12: =+E11*(1+PDE!$D$4) -> 2211.335002 | F12: 0 | G12: =+G11*(1+PDE!$D$4) -> 0 | H12: 10121.39721 | I12: =+I11*(1+PDE!$D$4) -> 
C13: 2028 | D13: =+D12*(1+PDE!$D$4) -> 8004.982959 | E13: =+E12*(1+PDE!$D$4) -> 2237.871022 | F13: 0 | G13: =+G12*(1+PDE!$D$4) -> 0 | H13: 10242.85398 | I13: =+I12*(1+PDE!$D$4) -> 
C14: 2029 | D14: =+D13*(1+PDE!$D$4) -> 8101.042754 | E14: =+E13*(1+PDE!$D$4) -> 2264.725474 | F14: 0 | G14: =+G13*(1+PDE!$D$4) -> 0 | H14: 10365.76823 | I14: =+I13*(1+PDE!$D$4) -> 
C15: 2030 | D15: =+D14*(1+PDE!$D$4) -> 8198.255267 | E15: =+E14*(1+PDE!$D$4) -> 2291.90218 | F15: 0 | G15: =+G14*(1+PDE!$D$4) -> 0 | H15: 10490.15745 | I15: =+I14*(1+PDE!$D$4) -> 
C16: 2031 | D16: =+D15*(1+PDE!$D$4) -> 8296.63433 | E16: =+E15*(1+PDE!$D$4) -> 2319.405006 | F16: 0 | G16: =+G15*(1+PDE!$D$4) -> 0 | H16: 10616.03934 | I16: =+I15*(1+PDE!$D$4) -> 
C17: 2032 | D17: =+D16*(1+PDE!$D$4) -> 8396.193942 | E17: =+E16*(1+PDE!$D$4) -> 2347.237866 | F17: 0 | G17: =+G16*(1+PDE!$D$4) -> 0 | H17: 10743.43181 | I17: =+I16*(1+PDE!$D$4) -> 
C18: 2033 | D18: =+D17*(1+PDE!$D$4) -> 8496.94827 | E18: =+E17*(1+PDE!$D$4) -> 2375.404721 | F18: 0 | G18: =+G17*(1+PDE!$D$4) -> 0 | H18: 10872.35299 | I18: =+I17*(1+PDE!$D$4) -> 
C19: 2034 | D19: =+D18*(1+PDE!$D$4) -> 8598.911649 | E19: =+E18*(1+PDE!$D$4) -> 2403.909577 | F19: 0 | G19: =+G18*(1+PDE!$D$4) -> 0 | H19: 11002.82123 | I19: =+I18*(1+PDE!$D$4) -> 
C20: 2035 | D20: =+D19*(1+PDE!$D$4) -> 8702.098589 | E20: =+E19*(1+PDE!$D$4) -> 2432.756492 | F20: 0 | G20: =+G19*(1+PDE!$D$4) -> 0 | H20: 11134.85508 | I20: =+I19*(1+PDE!$D$4) -> 
C21: 2036 | D21: =+D20*(1+PDE!$D$4) -> 8806.523772 | E21: =+E20*(1+PDE!$D$4) -> 2461.94957 | F21: 0 | G21: =+G20*(1+PDE!$D$4) -> 0 | H21: 11268.47334 | I21: =+I20*(1+PDE!$D$4) -> 
C22: 2037 | D22: =+D21*(1+PDE!$D$4) -> 8912.202057 | E22: =+E21*(1+PDE!$D$4) -> 2491.492965 | F22: 0 | G22: =+G21*(1+PDE!$D$4) -> 0 | H22: 11403.69502 | I22: =+I21*(1+PDE!$D$4) -> 
C23: Fuente: Directiva Sanitaria N° 138-MINSA/DGIESP-2021
A25: ESTIMACIÓN DE LA DEMANDA EFECTIVA DE LOS SERVICIOS DE ATENCION AMBULATORIA DIFERENCIADA
C26: POB ASIGNADA | E26: =+'Sección G'!H19 -> 0
C27: POB TOTAL | E27: =+'Sección G'!H19+'Sección G'!H29 -> 72890
C29: ATENCION INTEGRAL Y CONSEJERIA DEL ADOLESCENTE | L29: ATENCIÓN INTEGRAL DEL ADULTO MAYOR
L31: Año | M31: Población MINSA que no tiene necesidad sentida (P1) | N31: Adulto Saludable P1 | O31: Adulto Mayor Enfermo PDE Baja Complejidad P1 | P31: Adulto Mayor Frágil PDE Baja Complejidad P1 | Q31: Adulto Mayor Enfermo PDE de Mediana Complejidad P2 | R31: Adulto Mayor Frágil PDE de Mediana Complejidad P2 | S31: Atenciones. Adulto Mayor
AA32: CONSEJERIA Y PREVENCIÓN DEL CÁNCER | AV32: PREVENCIÓN Y CONTROL DE TBC
C33: Año | D33: Población Adolescente 12 a 17 años P1 | E33: Preventivo (P1) | H33: PDE 2 Adolescente 12 a 17 años | I33: Atención Integral | J33: Atenciones Adolescente (12 a 17 años) | U33: CONSEJERIA Y PREVENCIÓN DE ENFERMEDADES NO TRANSMISIBLES | AA33: Años | AB33: Poblacion de 18 - 75 años P1 | AC33: Persona informada con consejería en Cáncer | AD33: Mujeres de 25 a 64 años | AE33: Tamizaje Cancer al cuello Uterino | AF33: Poblacion de 50- 70 años P1 | AG33: Tamizaje de Cáncer Colon | AH33: poblacion de 40 - 75 años Varones P1 | AI33: Tamizaje Cáncer de Próstata | AJ33: Poblacion de 18 - 75 años P1 | AK33: Tamizaje de Cáncer a la piel | AL33: Total Atenciones Cáncer Preventivo Pi | AV33: Año | AW33: Total de Atenciones Medicas | AX33: Sintomáticos Respiratorios | AY33: Tratamiento Supervisado Población (P1) | BC33: Contactos del paciente (P1) | BE33: Atenciones TBC
E34: Prevención del embarazo en adolescentes | F34: ITS/VIH/SIDA | G34: Salud Mental | N34: % Pob. 60 a 79 años P1 | O34: % Pob. 60 a 79 años P1 | P34: % Pob. > 80 años P1 | Q34: % Pob. 60 a 79 años P2 | R34: % Pob. > 80 años P2 | U34: Años | V34: Recuperativos | Y34: Total Atenciones Preventivos + Recuperativos | AN34: CONSEJERÍA Y PREVENCION DE ITS/VIH/SIDA | AX34: Ratio | AY34: Tasa de Prevalencia TBC Pulmonar | AZ34: Tasa de Prevalencia TBC Extrapulmonar | BA34: Tasa de Incidencia TBC | BB34: Ratio *
E35: 0.3 | F35: 0.05 | G35: 0.1 | I35: 1 | N35: =+SUM('Sección G'!AK20:AN20) -> 0 | O35: =+N35 -> 0 | P35: =+SUM('Sección G'!AO20) -> 0 | Q35: =+SUM('Sección G'!AK30:AN30) -> 0.1006036493 | R35: =+'Sección G'!AO30 -> 0.01638084785 | V35: Atendidos | W35: Historico | X35: Total Atenciones Recuperativas | AC35: 0.1 | AE35: 0.2 | AG35: 0.15 | AI35: =+AG35 -> 0.15 | AK35: =+AI35 -> 0.15 | AN35: Año | AO35: Atendidos | AP35: Historico | AQ35: Tamizajes | AT35: Atenciones ITS/VIH/SIDA | AX35: 2 | AY35: =+BJ39 ->  | AZ35: =+BJ40 ->  | BA35: =+BI38 ->  | BG35: Tasa de Incidencia y Prevalencia de TBC Pulmonar y Extrapulmonar de la MR
E36: Ratio | F36: Ratio | G36: Ratio | H36: =+PDE!G10 -> 2559.879 | I36: Ratio | N36: Ratio | O36: Ratio | P36: Ratio | Q36: Ratio | R36: Ratio | W36: 0.3723735409 | AC36: Ratio | AE36: Ratio | AG36: Ratio | AI36: Ratio | AK36: Ratio | AP36: 0.15 | AQ36: Gestantes | AR36: Adolescentes | AS36: MEF | AX36: 0.7672018349 | AY36: Número de casos TBC Pulmonar | AZ36: Número de casos TBC Extrapulmonar | BA36: Número Total de Casos TBC | BC36: N° integrantes por familia | BD36: Ratio
E37: 3 | F37: 3 | G37: 3 | H37: =+SUM('Sección G'!U30:Z30) -> 0.09739333242 | I37: 3 | N37: 3 | O37: 2.972477064 | P37: 2.972477064 | Q37: 2.972477064 | R37: 2.972477064 | W37: 2 | AC37: 2 | AE37: 1 | AG37: 1 | AI37: 1 | AK37: 1 | AP37: 2 | AX37: 0.05 | BB37: 104 | BC37: 4 | BD37: 2 | BI37: Tasa de Incidencia | BJ37: Tasa de Prevalencia | BK37: P1
C38: =PDE!C10 -> 2024 | D38: =+SUM('Sección G'!U19:Z19) -> 0 | E38: =+D38*$E$35*$E$37 -> 0 | F38: =D38*$F$35*$F$37 -> 0 | G38: =+D38*$G$35*$G$37 -> 0 | H38: =+H36*H37 -> 249.3151464 | I38: =+H38*I35*I37 -> 747.9454392 | J38: =+E38+F38+G38+I38 -> 747.9454392 | L38: =PDE!C10 -> 2024 | M38: =PDE!E20*(100%-PDE!#REF!) ->  | N38: =+M38*$N$35*$N$37 ->  | O38: =PDE!#REF!*$O$35*$O$37 ->  | P38: =PDE!#REF!*$P$35*$P$37 ->  | Q38: =PDE!#REF!*$Q$35*$Q$37 ->  | R38: =+IFERROR(IF((PDE!G10*$R$35*$R$37)=0,0,PDE!G10*$R$35*$R$37),0) -> 124.6448463 | S38: =+N38+O38+P38+Q38+R38 ->  | U38: 2024 | V38: ='DE1'!D170 ->  | W38: =+V38*$W$36*$W$37 ->  | X38: =SUM(W38:W38) ->  | Y38: =+X38 ->  | AA38: =+U38 -> 2024 | AB38: =+SUM('Sección G'!AA19:AM19) -> 0 | AC38: =+AB38*$AC$35*$AC$37 -> 0 | AD38: =+(SUM('Sección G'!AD19:AK19))*'Sección G'!AT20 -> 0 | AE38: =+AD38*$AE$35*$AE$37 -> 0 | AF38: =+SUM('Sección G'!AI19:AL19) -> 0 | AG38: =+AF38*$AG$35*$AG$37 -> 0 | AH38: =+(SUM('Sección G'!AG19:AM19))*(1-'Sección G'!AT20) -> 0 | AI38: =+AH38*$AI$35*$AI$37 -> 0 | AJ38: =+AB38 -> 0 | AK38: =+AJ38*$AK$35*$AK$37 -> 0 | AL38: =AI38+AG38+AE38+AC38+AK38 -> 0 | AN38: =+AA38 -> 2024 | AO38: =+'DE1'!BV32 ->  | AP38: =+AO38*$AP$36*$AP$37 ->  | AQ38: =+'DE1'!J89*0.8 -> 0 | AR38: =D38*0.7 -> 0 | AS38: =('Sección G'!AX19+'Sección G'!AW19)*0.2 -> 0 | AT38: =+AP38+AQ38+AR38+AS38 ->  | AV38: =+AN38 -> 2024 | AW38: ='DE1'!E170 ->  | AX38: =+AW38*$AX$35*$AX$36*$AX$37 ->  | AY38: =+PDE!E20*AY35 ->  | AZ38: =PDE!E20*'DE2'!AZ35 ->  | BA38: =+AY38+AZ38 ->  | BB38: =+BA38*$BB$37 ->  | BC38: =PDE!E20*$BA$35*$BC$37 ->  | BD38: =+BC38*$BD$37 ->  | BE38: =AX38+BB38+BD38 ->  | BG38: TOTAL DE CASOS | BH38: =SUM(BH39:BH40) -> 7 | BI38: =BH38/BK38 ->  | BK38: =+PDE!E20 -> 0
C39: =+C38+1 -> 2025 | D39: =+D38*(1+PDE!$D$4) -> 0 | E39: 0 | F39: 0 | G39: 0 | H39: =+H38*(1+PDE!$D$4) -> 252.3069282 | I39: =+H39*$I$35*$I$37 -> 756.9207845 | J39: 756.9207845 | L39: =+L38+1 -> 2025 | M39: =+M38*(1+PDE!$D$4) ->  | O39: =+O38*(1+PDE!$D$4) ->  | P39: =+P38*(1+PDE!$D$4) ->  | Q39: =+Q38*(1+PDE!$D$4) ->  | R39: =+R38*(1+PDE!$D$4) -> 126.1405845 | S39: =+N39+O39+P39+Q39+R39 ->  | U39: 2025 | V39: ='DE1'!D171 ->  | AA39: =+AA38+1 -> 2025 | AB39: =+AB38*(1+PDE!$D$4) -> 0 | AC39: 0 | AD39: =+AD38*(1+PDE!$D$4) -> 0 | AE39: 0 | AF39: =+AF38*(1+PDE!$D$4) -> 0 | AG39: 0 | AH39: =+AH38*(1+PDE!$D$4) -> 0 | AI39: 0 | AJ39: =+AJ38*(1+PDE!$D$4) -> 0 | AK39: =+AJ39*$AI$35*$AI$37 -> 0 | AL39: 0 | AN39: =+AN38+1 -> 2025 | AO39: =+'DE1'!BV33 ->  | AQ39: =+AQ38*(1+PDE!$D$4) -> 0 | AR39: =+AR38*(1+PDE!$D$4) -> 0 | AS39: =+AS38*(1+PDE!$D$4) -> 0 | AV39: =+AV38+1 -> 2025 | AW39: ='DE1'!E171 ->  | AY39: =+AY38*(1+PDE!$D$4) ->  | AZ39: =+AZ38*(1+PDE!$D$4) ->  | BC39: =+BC38*(1+PDE!$D$4) ->  | BG39: PULMONAR | BH39: 6 | BJ39: =BH39/BK39 ->  | BK39: =+BK38 -> 0
C40: 2026 | D40: =+D39*(1+PDE!$D$4) -> 0 | E40: 0 | F40: 0 | G40: 0 | H40: =+H39*(1+PDE!$D$4) -> 255.3346113 | I40: =+H40*$I$35*$I$37 -> 766.0038339 | J40: 766.0038339 | L40: 2026 | M40: =+M39*(1+PDE!$D$4) ->  | O40: =+O39*(1+PDE!$D$4) ->  | P40: =+P39*(1+PDE!$D$4) ->  | Q40: =+Q39*(1+PDE!$D$4) ->  | R40: =+R39*(1+PDE!$D$4) -> 127.6542715 | U40: 2026 | V40: ='DE1'!D172 ->  | AA40: 2026 | AB40: =+AB39*(1+PDE!$D$4) -> 0 | AC40: 0 | AD40: =+AD39*(1+PDE!$D$4) -> 0 | AE40: 0 | AF40: =+AF39*(1+PDE!$D$4) -> 0 | AG40: 0 | AH40: =+AH39*(1+PDE!$D$4) -> 0 | AI40: 0 | AJ40: =+AJ39*(1+PDE!$D$4) -> 0 | AK40: 0 | AL40: 0 | AN40: 2026 | AO40: =+'DE1'!BV34 ->  | AQ40: =+AQ39*(1+PDE!$D$4) -> 0 | AR40: =+AR38*(1+PDE!$D$4) -> 0 | AS40: =+AS39*(1+PDE!$D$4) -> 0 | AV40: 2026 | AW40: ='DE1'!E172 ->  | AY40: =+AY39*(1+PDE!$D$4) ->  | AZ40: =+AZ39*(1+PDE!$D$4) ->  | BC40: =+BC39*(1+PDE!$D$4) ->  | BG40: EXTRAPULMONAR | BH40: 1 | BJ40: =BH40/BK40 ->  | BK40: =+BK38 -> 0
C41: 2027 | D41: =+D40*(1+PDE!$D$4) -> 0 | E41: 0 | F41: 0 | G41: 0 | H41: =+H40*(1+PDE!$D$4) -> 258.3986266 | I41: 775.1958799 | J41: 775.1958799 | L41: 2027 | M41: =+M40*(1+PDE!$D$4) ->  | O41: =+O40*(1+PDE!$D$4) ->  | P41: =+P40*(1+PDE!$D$4) ->  | Q41: =+Q40*(1+PDE!$D$4) ->  | R41: =+R40*(1+PDE!$D$4) -> 129.1861227 | U41: 2027 | V41: ='DE1'!D173 ->  | AA41: 2027 | AB41: =+AB40*(1+PDE!$D$4) -> 0 | AC41: 0 | AD41: =+AD40*(1+PDE!$D$4) -> 0 | AE41: 0 | AF41: =+AF40*(1+PDE!$D$4) -> 0 | AG41: 0 | AH41: =+AH40*(1+PDE!$D$4) -> 0 | AI41: 0 | AJ41: =+AJ40*(1+PDE!$D$4) -> 0 | AK41: 0 | AL41: 0 | AN41: 2027 | AO41: =+'DE1'!BV35 ->  | AQ41: =+AQ40*(1+PDE!$D$4) -> 0 | AR41: =+AR39*(1+PDE!$D$4) -> 0 | AS41: =+AS40*(1+PDE!$D$4) -> 0 | AV41: 2027 | AW41: ='DE1'!E173 ->  | AY41: =+AY40*(1+PDE!$D$4) ->  | AZ41: =+AZ40*(1+PDE!$D$4) ->  | BC41: =+BC40*(1+PDE!$D$4) ->  | BG41: Fuente: Estadística
C42: 2028 | D42: =+D41*(1+PDE!$D$4) -> 0 | E42: 0 | F42: 0 | G42: 0 | H42: =+H41*(1+PDE!$D$4) -> 261.4994101 | I42: 784.4982304 | J42: 784.4982304 | L42: 2028 | M42: =+M41*(1+PDE!$D$4) ->  | O42: =+O41*(1+PDE!$D$4) ->  | P42: =+P41*(1+PDE!$D$4) ->  | Q42: =+Q41*(1+PDE!$D$4) ->  | R42: =+R41*(1+PDE!$D$4) -> 130.7363562 | U42: 2028 | V42: ='DE1'!D174 ->  | AA42: 2028 | AB42: =+AB41*(1+PDE!$D$4) -> 0 | AC42: 0 | AD42: =+AD41*(1+PDE!$D$4) -> 0 | AE42: 0 | AF42: =+AF41*(1+PDE!$D$4) -> 0 | AG42: 0 | AH42: =+AH41*(1+PDE!$D$4) -> 0 | AI42: 0 | AJ42: =+AJ41*(1+PDE!$D$4) -> 0 | AK42: 0 | AL42: 0 | AN42: 2028 | AO42: =+'DE1'!BV36 ->  | AQ42: =+AQ41*(1+PDE!$D$4) -> 0 | AR42: =+AR40*(1+PDE!$D$4) -> 0 | AS42: =+AS41*(1+PDE!$D$4) -> 0 | AV42: 2028 | AW42: ='DE1'!E174 ->  | AY42: =+AY41*(1+PDE!$D$4) ->  | AZ42: =+AZ41*(1+PDE!$D$4) ->  | BC42: =+BC41*(1+PDE!$D$4) -> 
C43: 2029 | D43: =+D42*(1+PDE!$D$4) -> 0 | E43: 0 | F43: 0 | G43: 0 | H43: =+H42*(1+PDE!$D$4) -> 264.6374031 | I43: 793.9122092 | J43: 793.9122092 | L43: 2029 | M43: =+M42*(1+PDE!$D$4) ->  | O43: =+O42*(1+PDE!$D$4) ->  | P43: =+P42*(1+PDE!$D$4) ->  | Q43: =+Q42*(1+PDE!$D$4) ->  | R43: =+R42*(1+PDE!$D$4) -> 132.3051925 | U43: 2029 | V43: ='DE1'!D175 ->  | AA43: 2029 | AB43: =+AB42*(1+PDE!$D$4) -> 0 | AC43: 0 | AD43: =+AD42*(1+PDE!$D$4) -> 0 | AE43: 0 | AF43: =+AF42*(1+PDE!$D$4) -> 0 | AG43: 0 | AH43: =+AH42*(1+PDE!$D$4) -> 0 | AI43: 0 | AJ43: =+AJ42*(1+PDE!$D$4) -> 0 | AK43: 0 | AL43: 0 | AN43: 2029 | AO43: =+'DE1'!BV37 ->  | AQ43: =+AQ42*(1+PDE!$D$4) -> 0 | AR43: =+AR41*(1+PDE!$D$4) -> 0 | AS43: =+AS42*(1+PDE!$D$4) -> 0 | AV43: 2029 | AW43: ='DE1'!E175 ->  | AY43: =+AY42*(1+PDE!$D$4) ->  | AZ43: =+AZ42*(1+PDE!$D$4) ->  | BC43: =+BC42*(1+PDE!$D$4) -> 
C44: 2030 | D44: =+D43*(1+PDE!$D$4) -> 0 | E44: 0 | F44: 0 | G44: 0 | H44: =+H43*(1+PDE!$D$4) -> 267.8130519 | I44: 803.4391557 | J44: 803.4391557 | L44: 2030 | M44: =+M43*(1+PDE!$D$4) ->  | O44: =+O43*(1+PDE!$D$4) ->  | P44: =+P43*(1+PDE!$D$4) ->  | Q44: =+Q43*(1+PDE!$D$4) ->  | R44: =+R43*(1+PDE!$D$4) -> 133.8928548 | U44: 2030 | V44: ='DE1'!D176 ->  | AA44: 2030 | AB44: =+AB43*(1+PDE!$D$4) -> 0 | AC44: 0 | AD44: =+AD43*(1+PDE!$D$4) -> 0 | AE44: 0 | AF44: =+AF43*(1+PDE!$D$4) -> 0 | AG44: 0 | AH44: =+AH43*(1+PDE!$D$4) -> 0 | AI44: 0 | AJ44: =+AJ43*(1+PDE!$D$4) -> 0 | AK44: 0 | AL44: 0 | AN44: 2030 | AO44: =+'DE1'!BV38 ->  | AQ44: =+AQ43*(1+PDE!$D$4) -> 0 | AR44: =+AR42*(1+PDE!$D$4) -> 0 | AS44: =+AS43*(1+PDE!$D$4) -> 0 | AV44: 2030 | AW44: ='DE1'!E176 ->  | AY44: =+AY43*(1+PDE!$D$4) ->  | AZ44: =+AZ43*(1+PDE!$D$4) ->  | BC44: =+BC43*(1+PDE!$D$4) -> 
C45: 2031 | D45: =+D44*(1+PDE!$D$4) -> 0 | E45: 0 | F45: 0 | G45: 0 | H45: =+H44*(1+PDE!$D$4) -> 271.0268085 | I45: 813.0804256 | J45: 813.0804256 | L45: 2031 | M45: =+M44*(1+PDE!$D$4) ->  | O45: =+O44*(1+PDE!$D$4) ->  | P45: =+P44*(1+PDE!$D$4) ->  | Q45: =+Q44*(1+PDE!$D$4) ->  | R45: =+R44*(1+PDE!$D$4) -> 135.4995691 | U45: 2031 | V45: ='DE1'!D177 ->  | AA45: 2031 | AB45: =+AB44*(1+PDE!$D$4) -> 0 | AC45: 0 | AD45: =+AD44*(1+PDE!$D$4) -> 0 | AE45: 0 | AF45: =+AF44*(1+PDE!$D$4) -> 0 | AG45: 0 | AH45: =+AH44*(1+PDE!$D$4) -> 0 | AI45: 0 | AJ45: =+AJ44*(1+PDE!$D$4) -> 0 | AK45: 0 | AL45: 0 | AN45: 2031 | AO45: =+'DE1'!BV39 ->  | AQ45: =+AQ44*(1+PDE!$D$4) -> 0 | AR45: =+AR43*(1+PDE!$D$4) -> 0 | AS45: =+AS44*(1+PDE!$D$4) -> 0 | AV45: 2031 | AW45: ='DE1'!E177 ->  | AY45: =+AY44*(1+PDE!$D$4) ->  | AZ45: =+AZ44*(1+PDE!$D$4) ->  | BC45: =+BC44*(1+PDE!$D$4) -> 
C46: 2032 | D46: =+D45*(1+PDE!$D$4) -> 0 | E46: 0 | F46: 0 | G46: 0 | H46: =+H45*(1+PDE!$D$4) -> 274.2791302 | I46: 822.8373907 | J46: 822.8373907 | L46: 2032 | M46: =+M45*(1+PDE!$D$4) ->  | O46: =+O45*(1+PDE!$D$4) ->  | P46: =+P45*(1+PDE!$D$4) ->  | Q46: =+Q45*(1+PDE!$D$4) ->  | R46: =+R45*(1+PDE!$D$4) -> 137.1255639 | U46: 2032 | V46: ='DE1'!D178 ->  | AA46: 2032 | AB46: =+AB45*(1+PDE!$D$4) -> 0 | AC46: 0 | AD46: =+AD45*(1+PDE!$D$4) -> 0 | AE46: 0 | AF46: =+AF45*(1+PDE!$D$4) -> 0 | AG46: 0 | AH46: =+AH45*(1+PDE!$D$4) -> 0 | AI46: 0 | AJ46: =+AJ45*(1+PDE!$D$4) -> 0 | AK46: 0 | AL46: 0 | AN46: 2032 | AO46: =+'DE1'!BV40 ->  | AQ46: =+AQ45*(1+PDE!$D$4) -> 0 | AR46: =+AR44*(1+PDE!$D$4) -> 0 | AS46: =+AS45*(1+PDE!$D$4) -> 0 | AV46: 2032 | AW46: ='DE1'!E178 ->  | AY46: =+AY45*(1+PDE!$D$4) ->  | AZ46: =+AZ45*(1+PDE!$D$4) ->  | BC46: =+BC45*(1+PDE!$D$4) -> 
C47: 2033 | D47: =+D46*(1+PDE!$D$4) -> 0 | E47: 0 | F47: 0 | G47: 0 | H47: =+H46*(1+PDE!$D$4) -> 277.5704798 | I47: 832.7114394 | J47: 832.7114394 | L47: 2033 | M47: =+M46*(1+PDE!$D$4) ->  | O47: =+O46*(1+PDE!$D$4) ->  | P47: =+P46*(1+PDE!$D$4) ->  | Q47: =+Q46*(1+PDE!$D$4) ->  | R47: =+R46*(1+PDE!$D$4) -> 138.7710707 | U47: 2033 | V47: ='DE1'!D179 ->  | AA47: 2033 | AB47: =+AB46*(1+PDE!$D$4) -> 0 | AC47: 0 | AD47: =+AD46*(1+PDE!$D$4) -> 0 | AE47: 0 | AF47: =+AF46*(1+PDE!$D$4) -> 0 | AG47: 0 | AH47: =+AH46*(1+PDE!$D$4) -> 0 | AI47: 0 | AJ47: =+AJ46*(1+PDE!$D$4) -> 0 | AK47: 0 | AL47: 0 | AN47: 2033 | AO47: =+'DE1'!BV41 ->  | AQ47: =+AQ46*(1+PDE!$D$4) -> 0 | AR47: =+AR45*(1+PDE!$D$4) -> 0 | AS47: =+AS46*(1+PDE!$D$4) -> 0 | AV47: 2033 | AW47: ='DE1'!E179 ->  | AY47: =+AY46*(1+PDE!$D$4) ->  | AZ47: =+AZ46*(1+PDE!$D$4) ->  | BC47: =+BC46*(1+PDE!$D$4) -> 
C48: 2034 | D48: =+D47*(1+PDE!$D$4) -> 0 | E48: 0 | F48: 0 | G48: 0 | H48: =+H47*(1+PDE!$D$4) -> 280.9013256 | I48: 842.7039767 | J48: 842.7039767 | L48: 2034 | M48: =+M47*(1+PDE!$D$4) ->  | O48: =+O47*(1+PDE!$D$4) ->  | P48: =+P47*(1+PDE!$D$4) ->  | Q48: =+Q47*(1+PDE!$D$4) ->  | R48: =+R47*(1+PDE!$D$4) -> 140.4363235 | U48: 2034 | V48: ='DE1'!D180 ->  | AA48: 2034 | AB48: =+AB47*(1+PDE!$D$4) -> 0 | AC48: 0 | AD48: =+AD47*(1+PDE!$D$4) -> 0 | AE48: 0 | AF48: =+AF47*(1+PDE!$D$4) -> 0 | AG48: 0 | AH48: =+AH47*(1+PDE!$D$4) -> 0 | AI48: 0 | AJ48: =+AJ47*(1+PDE!$D$4) -> 0 | AK48: 0 | AL48: 0 | AN48: 2034 | AO48: =+'DE1'!BV42 ->  | AQ48: =+AQ47*(1+PDE!$D$4) -> 0 | AR48: =+AR46*(1+PDE!$D$4) -> 0 | AS48: =+AS47*(1+PDE!$D$4) -> 0 | AV48: 2034 | AW48: ='DE1'!E180 ->  | AY48: =+AY47*(1+PDE!$D$4) ->  | AZ48: =+AZ47*(1+PDE!$D$4) ->  | BC48: =+BC47*(1+PDE!$D$4) -> 
C49: 2035 | D49: =+D48*(1+PDE!$D$4) -> 0 | E49: 0 | F49: 0 | G49: 0 | H49: =+H48*(1+PDE!$D$4) -> 284.2721415 | I49: 852.8164244 | J49: 852.8164244 | L49: 2035 | M49: =+M48*(1+PDE!$D$4) ->  | O49: =+O48*(1+PDE!$D$4) ->  | P49: =+P48*(1+PDE!$D$4) ->  | Q49: =+Q48*(1+PDE!$D$4) ->  | R49: =+R48*(1+PDE!$D$4) -> 142.1215594 | U49: 2035 | V49: ='DE1'!D181 ->  | AA49: 2035 | AB49: =+AB48*(1+PDE!$D$4) -> 0 | AC49: 0 | AD49: =+AD48*(1+PDE!$D$4) -> 0 | AE49: 0 | AF49: =+AF48*(1+PDE!$D$4) -> 0 | AG49: 0 | AH49: =+AH48*(1+PDE!$D$4) -> 0 | AI49: 0 | AJ49: =+AJ48*(1+PDE!$D$4) -> 0 | AK49: 0 | AL49: 0 | AN49: 2035 | AO49: =+'DE1'!BV43 ->  | AQ49: =+AQ48*(1+PDE!$D$4) -> 0 | AR49: =+AR47*(1+PDE!$D$4) -> 0 | AS49: =+AS48*(1+PDE!$D$4) -> 0 | AV49: 2035 | AW49: ='DE1'!E181 ->  | AY49: =+AY48*(1+PDE!$D$4) ->  | AZ49: =+AZ48*(1+PDE!$D$4) ->  | BC49: =+BC48*(1+PDE!$D$4) -> 
C50: 2036 | D50: =+D49*(1+PDE!$D$4) -> 0 | E50: 0 | F50: 0 | G50: 0 | H50: =+H49*(1+PDE!$D$4) -> 287.6834072 | I50: 863.0502215 | J50: 863.0502215 | L50: 2036 | M50: =+M49*(1+PDE!$D$4) ->  | O50: =+O49*(1+PDE!$D$4) ->  | P50: =+P49*(1+PDE!$D$4) ->  | Q50: =+Q49*(1+PDE!$D$4) ->  | R50: =+R49*(1+PDE!$D$4) -> 143.8270181 | U50: 2036 | V50: ='DE1'!D182 ->  | AA50: 2036 | AB50: =+AB49*(1+PDE!$D$4) -> 0 | AC50: 0 | AD50: =+AD49*(1+PDE!$D$4) -> 0 | AE50: 0 | AF50: =+AF49*(1+PDE!$D$4) -> 0 | AG50: 0 | AH50: =+AH49*(1+PDE!$D$4) -> 0 | AI50: 0 | AJ50: =+AJ49*(1+PDE!$D$4) -> 0 | AK50: 0 | AL50: 0 | AN50: 2036 | AO50: =+'DE1'!BV44 ->  | AQ50: =+AQ49*(1+PDE!$D$4) -> 0 | AR50: =+AR48*(1+PDE!$D$4) -> 0 | AS50: =+AS49*(1+PDE!$D$4) -> 0 | AV50: 2036 | AW50: ='DE1'!E182 ->  | AY50: =+AY49*(1+PDE!$D$4) ->  | AZ50: =+AZ49*(1+PDE!$D$4) ->  | BC50: =+BC49*(1+PDE!$D$4) -> 
C51: 2037 | D51: =+D50*(1+PDE!$D$4) -> 0 | E51: 0 | F51: 0 | G51: 0 | H51: =+H50*(1+PDE!$D$4) -> 291.135608 | I51: 873.4068241 | J51: 873.4068241 | L51: 2037 | M51: =+M50*(1+PDE!$D$4) ->  | O51: =+O50*(1+PDE!$D$4) ->  | P51: =+P50*(1+PDE!$D$4) ->  | Q51: =+Q50*(1+PDE!$D$4) ->  | R51: =+R50*(1+PDE!$D$4) -> 145.5529423 | U51: 2037 | V51: ='DE1'!D183 ->  | AA51: 2037 | AB51: =+AB50*(1+PDE!$D$4) -> 0 | AC51: 0 | AD51: =+AD50*(1+PDE!$D$4) -> 0 | AE51: 0 | AF51: =+AF50*(1+PDE!$D$4) -> 0 | AG51: 0 | AH51: =+AH50*(1+PDE!$D$4) -> 0 | AI51: 0 | AJ51: =+AJ50*(1+PDE!$D$4) -> 0 | AK51: 0 | AL51: 0 | AN51: 2037 | AO51: =+'DE1'!BV45 ->  | AQ51: =+AQ50*(1+PDE!$D$4) -> 0 | AR51: =+AR49*(1+PDE!$D$4) -> 0 | AS51: =+AS50*(1+PDE!$D$4) -> 0 | AV51: 2037 | AW51: ='DE1'!E183 ->  | AY51: =+AY50*(1+PDE!$D$4) ->  | AZ51: =+AZ50*(1+PDE!$D$4) ->  | BC51: =+BC50*(1+PDE!$D$4) -> 
C52: Fuente: NTS N° 157-MINSA-2019-DGIESP | L52: Fuente: Norma Técnica Adulto Mayor N° 043-MINSA/DGSP-v.1. pag 28 | AA52: Fuente: PPR 024- 2021 | AN52: Fuente: NTS correspondiente | AV52: Fuente: Norma Técnica de la ESNPCT - DGSP-MINSA 2013 | BE52: i
A54: ESTIMACIÓN DE LA DEMANDA EFECTIVA DE TOPICO DE URGENCIA Y EMERGENCIA
C55: TOPICO DE URGENCIAS Y EMERGENCIAS POR MÉDICO GENERAL | K55: OBSERVACIÓN DE EMERGENCIA
C56: Año | D56: Total de Atenciones Mèdicas | E56: Emergencia | F56: Procedimientos de Enfermería | I56: Total Sala de Procedimientos de Enfermería | K56: Año | L56: Total de Atenciones de Emergencia | M56: Adultos | N56: Niños | O56: Ambiente de Observaciòn
E57: Histórico | F57: Nebulización | G57: Rehidratación | H57: Inyectables
E58: =+'[175]INF EESS PISAC'!L223 -> 0.3046334437 | F58: =+'[175]INF EESS PISAC'!K227 -> 0.02423067604 | G58: =+'[175]INF EESS PISAC'!K228 -> 0.07942277145 | H58: =+'[175]INF EESS PISAC'!K229 -> 0.07942277145 | M58: =+'[175]INF EESS PISAC'!N218 -> 0.6290231508 | N58: =+'[175]INF EESS PISAC'!N219 -> 0.3709768492 | O58: 0.3
C59: =PDE!C10 -> 2024 | D59: =+'DE1'!BW32 ->  | E59: =+D59*$E$58 ->  | F59: =+D59*$F$58 ->  | G59: =+D59*$G$58 ->  | H59: =+D59*$H$58 ->  | I59: =SUM(F59:H59) ->  | K59: =PDE!C10 -> 2024 | L59: =+E59 ->  | M59: =+L59*$M$58 ->  | N59: =+L59*$N$58 ->  | O59: =+L59*$O$58 -> 
C60: =+C59+1 -> 2025 | D60: =+'DE1'!BW33 ->  | I60: =SUM(F60:H60) ->  | K60: =+K59+1 -> 2025 | L60: =+E60 -> 
C61: 2026 | D61: =+'DE1'!BW34 ->  | K61: 2026
C62: 2027 | D62: =+'DE1'!BW35 ->  | K62: 2027
C63: 2028 | D63: =+'DE1'!BW36 ->  | K63: 2028
C64: 2029 | D64: =+'DE1'!BW37 ->  | K64: 2029
C65: 2030 | D65: =+'DE1'!BW38 ->  | K65: 2030
C66: 2031 | D66: =+'DE1'!BW39 ->  | K66: 2031
C67: 2032 | D67: =+'DE1'!BW40 ->  | K67: 2032
C68: 2033 | D68: =+'DE1'!BW41 ->  | K68: 2033
C69: 2034 | D69: =+'DE1'!BW42 ->  | K69: 2034
C70: 2035 | D70: =+'DE1'!BW43 ->  | K70: 2035
C71: 2036 | D71: =+'DE1'!BW44 ->  | K71: 2036
C72: 2037 | D72: =+'DE1'!BW45 ->  | K72: 2037

Sheet DE3 (hidden)
A2: ESTIMACIÓN DE LA DEMANDA EFECTIVA PARA SERVICIOS DE APOYO
B4: Servicio de Laboratorio | H4: SERVICIO ECOGRAFIA OBSTETRICA
B5: Año | C5: Atenciones Medicina General | D5: N° de Atenciones de Emergencia | E5: Demanda Efectiva Laboratorio | H5: Año | I5: Gestantes Esperadas | J5: Ecografía Obstétrica | M5: C.E.+Emergencia | N5: Total
C6: 0.7 | D6: 0.5 | J6: Gestantes Programadas | K6: Cobertura | L6: Ecografía Obstètrica | R6: ACTIVIDAD DE ANATOMÍA PATOLÓGICA
B7: 2024 | C7: ='DE1'!E170*$C$6 ->  | D7: ='DE2'!E59*$D$6 ->  | E7: =SUM(C7:D7) ->  | J7: 1 | K7: 1 | L7: 3 | M7: 0.07 | R7: AÑO | S7: PAP | T7: TOTAL
B8: =+B7+1 -> 2025 | C8: ='DE1'!E171*$C$6 ->  | D8: ='DE2'!E60*$D$6 ->  | E8: =SUM(C8:D8) ->  | H8: =+'DE1'!C123 -> 2024 | I8: ='DE1'!E123 -> 0 | J8: =I8*$J$7 -> 0 | K8: =J8*$K$7 -> 0 | L8: =K8*$L$7 -> 0 | M8: =('DE1'!E170+'DE2'!E59)*$M$7 ->  | N8: =L8+M8 ->  | R8: 2024 | S8: =Z22 -> 0 | T8: =SUM(S8:S8) -> 0
B9: =+B8+1 -> 2026 | C9: ='DE1'!E172*$C$6 ->  | D9: ='DE2'!E61*$D$6 ->  | H9: =+H8+1 -> 2025 | I9: ='DE1'!E124 -> 0 | J9: 0 | K9: 0 | L9: 0 | M9: =('DE1'!E171+'DE2'!E60)*$M$7 ->  | R9: 2025 | S9: =S8*(1+PDE!$D$4) -> 0 | T9: 0
B10: 2027 | C10: ='DE1'!E173*$C$6 ->  | D10: ='DE2'!E62*$D$6 ->  | H10: 2026 | I10: ='DE1'!E125 -> 0 | J10: 0 | K10: 0 | L10: 0 | M10: =('DE1'!E172+'DE2'!E61)*$M$7 ->  | R10: 2026 | S10: =S9*(1+PDE!$D$4) -> 0 | T10: 0
B11: 2028 | C11: ='DE1'!E174*$C$6 ->  | D11: ='DE2'!E63*$D$6 ->  | H11: 2027 | I11: ='DE1'!E126 -> 0 | J11: 0 | K11: 0 | L11: 0 | M11: =('DE1'!E173+'DE2'!E62)*$M$7 ->  | R11: 2027 | S11: =S10*(1+PDE!$D$4) -> 0 | T11: 0
B12: 2029 | C12: ='DE1'!E175*$C$6 ->  | D12: ='DE2'!E64*$D$6 ->  | H12: 2028 | I12: ='DE1'!E127 -> 0 | J12: 0 | K12: 0 | L12: 0 | M12: =('DE1'!E174+'DE2'!E63)*$M$7 ->  | R12: 2028 | S12: =S11*(1+PDE!$D$4) -> 0 | T12: 0
B13: 2030 | C13: ='DE1'!E176*$C$6 ->  | D13: ='DE2'!E65*$D$6 ->  | H13: 2029 | I13: ='DE1'!E128 -> 0 | J13: 0 | K13: 0 | L13: 0 | M13: =('DE1'!E175+'DE2'!E64)*$M$7 ->  | R13: 2029 | S13: =S12*(1+PDE!$D$4) -> 0 | T13: 0
B14: 2031 | C14: ='DE1'!E177*$C$6 ->  | D14: ='DE2'!E66*$D$6 ->  | H14: 2030 | I14: ='DE1'!E129 -> 0 | J14: 0 | K14: 0 | L14: 0 | M14: =('DE1'!E176+'DE2'!E65)*$M$7 ->  | R14: 2030 | S14: =S13*(1+PDE!$D$4) -> 0 | T14: 0
B15: 2032 | C15: ='DE1'!E178*$C$6 ->  | D15: ='DE2'!E67*$D$6 ->  | H15: 2031 | I15: ='DE1'!E130 -> 0 | J15: 0 | K15: 0 | L15: 0 | M15: =('DE1'!E177+'DE2'!E66)*$M$7 ->  | R15: 2031 | S15: =S14*(1+PDE!$D$4) -> 0 | T15: 0
B16: 2033 | C16: ='DE1'!E179*$C$6 ->  | D16: ='DE2'!E68*$D$6 ->  | H16: 2032 | I16: ='DE1'!E131 -> 0 | J16: 0 | K16: 0 | L16: 0 | M16: =('DE1'!E178+'DE2'!E67)*$M$7 ->  | R16: 2032 | S16: =S15*(1+PDE!$D$4) -> 0 | T16: 0 | V16: ENDES 2012 | W16: % inicio de actividad sexual | X16: % edades | Y16: Poblacion Femenina | Z16: =+'Sección G'!E34 -> 72890
B17: 2034 | C17: ='DE1'!E180*$C$6 ->  | D17: ='DE2'!E69*$D$6 ->  | H17: 2033 | I17: ='DE1'!E132 -> 0 | J17: 0 | K17: 0 | L17: 0 | M17: =('DE1'!E179+'DE2'!E68)*$M$7 ->  | R17: 2033 | S17: =S16*(1+PDE!$D$4) -> 0 | T17: 0
B18: 2035 | C18: ='DE1'!E181*$C$6 ->  | D18: ='DE2'!E70*$D$6 ->  | H18: 2034 | I18: ='DE1'!E133 -> 0 | J18: 0 | K18: 0 | L18: 0 | M18: =('DE1'!E180+'DE2'!E69)*$M$7 ->  | R18: 2034 | S18: =S17*(1+PDE!$D$4) -> 0 | T18: 0 | V18: 15-17 años | W18: 0.325 | X18: =+SUM('Sección G'!X20:Z20) -> 0 | Y18: =+'Sección G'!AT20 -> 0 | Z18: =+W18*X18*$Z$16 -> 0
B19: 2036 | C19: ='DE1'!E182*$C$6 ->  | D19: ='DE2'!E71*$D$6 ->  | H19: 2035 | I19: ='DE1'!E134 -> 0 | J19: 0 | K19: 0 | L19: 0 | M19: =('DE1'!E181+'DE2'!E70)*$M$7 ->  | R19: 2035 | S19: =S18*(1+PDE!$D$4) -> 0 | T19: 0 | V19: 18-19 años | W19: 0.222 | X19: =+SUM('Sección G'!AA20:AB20) -> 0 | Y19: =+Y18 -> 0 | Z19: =+W19*X19*$Z$16 -> 0
B20: 2037 | C20: ='DE1'!E183*$C$6 ->  | D20: ='DE2'!E72*$D$6 ->  | H20: 2036 | I20: ='DE1'!E135 -> 0 | J20: 0 | K20: 0 | L20: 0 | M20: =('DE1'!E182+'DE2'!E71)*$M$7 ->  | R20: 2036 | S20: =S19*(1+PDE!$D$4) -> 0 | T20: 0 | V20: 20-24 años | W20: 0.246 | X20: =+'Sección G'!AC20 -> 0 | Y20: =+Y19 -> 0 | Z20: =+W20*X20*$Z$16 -> 0
H21: 2037 | I21: ='DE1'!E136 -> 0 | J21: 0 | K21: 0 | L21: 0 | M21: =('DE1'!E183+'DE2'!E72)*$M$7 ->  | R21: 2037 | S21: =S20*(1+PDE!$D$4) -> 0 | T21: 0 | V21: 25-49 años | W21: 0.085 | X21: =+SUM('Sección G'!AD20:AH20) -> 0 | Y21: 0 | Z21: =+W21*X21*$Z$16 -> 0
B22: Servicio de Farmacia | H22: Fuente: https://www.gob.pe/institucion/minsa/noticias/5841-minsa-gestantes-deben-realizarse-al-menos-tres-ecografias-durante-todo-el-embarazo | R22: 2038 | S22: =S21*(1+PDE!$D$4) -> 0 | T22: 0 | Z22: =SUM(Z18:Z21) -> 0
B23: Año | C23: Atenciones Medicina General | D23: N° de Atenciones de Emergencia | E23: Demanda Efectiva Farmacia
C24: 1 | D24: 1
B25: 2024 | C25: ='DE1'!E170 ->  | D25: ='DE2'!E59 ->  | E25: =SUM(C25:D25) -> 
B26: =+B25+1 -> 2025 | C26: ='DE1'!E171 ->  | D26: ='DE2'!E60 ->  | E26: =SUM(C26:D26) -> 
B27: =+B26+1 -> 2026 | C27: ='DE1'!E172 ->  | D27: ='DE2'!E61 -> 
B28: 2027 | C28: ='DE1'!E173 ->  | D28: ='DE2'!E62 -> 
B29: 2028 | C29: ='DE1'!E174 ->  | D29: ='DE2'!E63 -> 
B30: 2029 | C30: ='DE1'!E175 ->  | D30: ='DE2'!E64 -> 
B31: 2030 | C31: ='DE1'!E176 ->  | D31: ='DE2'!E65 -> 
B32: 2031 | C32: ='DE1'!E177 ->  | D32: ='DE2'!E66 -> 
B33: 2032 | C33: ='DE1'!E178 ->  | D33: ='DE2'!E67 -> 
B34: 2033 | C34: ='DE1'!E179 ->  | D34: ='DE2'!E68 -> 
B35: 2034 | C35: ='DE1'!E180 ->  | D35: ='DE2'!E69 -> 
B36: 2035 | C36: ='DE1'!E181 ->  | D36: ='DE2'!E70 -> 
B37: 2036 | C37: ='DE1'!E182 ->  | D37: ='DE2'!E71 -> 
B38: 2037 | C38: ='DE1'!E183 ->  | D38: ='DE2'!E72 -> 
B40: Desinfección y esterilización
B41: Año | C41: Atenciones Emergencia
C42: 1
B43: =+B25 -> 2024 | C43: =+'DE2'!E59 -> 
B44: 2025 | C44: =+'DE2'!E60 -> 
B45: 2026 | C45: =+'DE2'!E61 -> 
B46: 2027 | C46: =+'DE2'!E62 -> 
B47: 2028 | C47: =+'DE2'!E63 -> 
B48: 2029 | C48: =+'DE2'!E64 -> 
B49: 2030 | C49: =+'DE2'!E65 -> 
B50: 2031 | C50: =+'DE2'!E66 -> 
B51: 2032 | C51: =+'DE2'!E67 -> 
B52: 2033 | C52: =+'DE2'!E68 -> 
B53: 2034 | C53: =+'DE2'!E69 -> 
B54: 2035 | C54: =+'DE2'!E70 -> 
B55: 2036 | C55: =+'DE2'!E71 -> 
B56: 2037 | C56: =+'DE2'!E72 -> 

Sheet ES (hidden)
A1: Código Único | B1: UBIGEO | C1: Nombre del establecimiento | D1: Departamento | E1: Provincia | F1: Distrito | G1: Categoria | H1: NORTE | I1: ESTE
A2: 00005460 | B2: 250101 | C2: NUEVA BETANIA | D2: UCAYALI | E2: CORONEL PORTILLO | F2: CALLERIA | G2: I-1 | H2: -8.39836581 | I2: -74.29653113
A3: 00002201 | B3: 200408 | C3: E.S. MOSSA | D3: PIURA | E3: MORROPON | F3: SANTA CATALINA DE MOSSA | G3: I-1 | H3: -5.08612 | I3: -79.85742
A4: 00005758 | B4: 150110 | C4: PUESTO DE SALUD PRIMAVERA | D4: LIMA | E4: LIMA | F4: COMAS | G4: I-2 | H4: -11.92321026 | I4: -77.05634961
A5: 00010422 | B5: 200601 | C5: LABORATORIO REFERENCIAL DE SALUD LUCIANO CASTILLO COLONNA | D5: PIURA | E5: SULLANA | F5: SULLANA | G5: Sin Categoría | H5: -4.894905 | I5: -80.69445
A6: 00003389 | B6: 110109 | C6: PUESTO SALUD HUAMANI | D6: ICA | E6: ICA | F6: SAN JOSE DE LOS MOLINOS | G6: I-1 | H6: -13.84061465 | I6: -75.60665576
A7: 00006562 | B7: 220204 | C7: LEDOY | D7: SAN MARTIN | E7: BELLAVISTA | F7: HUALLAGA | G7: I-1 | H7: -7.13140333 | I7: -76.64908
A8: 00001329 | B8: 040108 | C8: PUESTO DE SALUD BENITO LAZO | D8: AREQUIPA | E8: AREQUIPA | F8: LA JOYA | G8: I-1 | H8: -16.42200395 | I8: -71.85719181
A9: 00006576 | B9: 220602 | C9: BALZAYACU | D9: SAN MARTIN | E9: MARISCAL CACERES | F9: CAMPANILLA | G9: I-1 | H9: -7.45035723 | I9: -76.67098783
A10: 00006094 | B10: 150123 | C10: PUESTO DE SALUD PAMPA GRANDE | D10: LIMA | E10: LIMA | F10: PACHACAMAC | G10: I-2 | H10: -12.239797 | I10: -76.870792
A11: 00006365 | B11: 220909 | C11: PUESTO DE SALUD BELLO HORIZONTE | D11: SAN MARTIN | E11: SAN MARTIN | F11: LA BANDA DE SHILCAYO | G11: I-1 | H11: -6.52985173 | I11: -76.30068551
A12: 00015422 | B12: 211101 | C12: GUADALUPE | D12: PUNO | E12: SAN ROMAN | F12: JULIACA | G12: I-3 | H12: -15.47607025 | I12: -70.10929357
A13: 00007215 | B13: 030506 | C13: ANTA ANTA | D13: APURIMAC | E13: COTABAMBAS | F13: CHALLHUAHUACHO | G13: I-1 | H13: -14.22314213 | I13: -72.28474891
A14: 00003419 | B14: 110207 | C14: PUEBLO NUEVO | D14: ICA | E14: CHINCHA | F14: PUEBLO NUEVO | G14: I-4 | H14: -13.40463767 | I14: -76.1276716
A15: 00001488 | B15: 021705 | C15: PUESTO DE SALUD CHAUCAYAN | D15: ANCASH | E15: RECUAY | F15: LLACLLIN | G15: I-1 | H15: -10.18545013 | I15: -77.5551312
A16: 00002566 | B16: 030402 | C16: CAPAYA | D16: APURIMAC | E16: AYMARAES | F16: CAPAYA | G16: I-1 | H16: -14.11778934 | I16: -73.32051409
A17: 00003366 | B17: 110102 | C17: LA TINGUIÑA | D17: ICA | E17: ICA | F17: LA TINGUIÑA | G17: I-3 | H17: -14.04007966 | I17: -75.7068845
A18: 00001615 | B18: 021207 | C18: PUESTO DE SALUD HUAMANCAYAN | D18: ANCASH | E18: HUAYLAS | F18: PUEBLO LIBRE | G18: I-1 | H18: -9.12403483 | I18: -77.82165054
A19: 00006088 | B19: 150129 | C19: CENTRO DE SALUD SAN BARTOLO | D19: LIMA | E19: LIMA | F19: SAN BARTOLO | G19: I-3 | H19: -12.3873605 | I19: -76.7770243
A20: 00006159 | B20: 150143 | C20: PUESTO DE SALUD VALLE ALTO | D20: LIMA | E20: LIMA | F20: VILLA MARIA DEL TRIUNFO | G20: I-2
A21: 00005874 | B21: 150720 | C21: CARHUAPAMPA | D21: LIMA | E21: HUAROCHIRI | F21: SAN JUAN DE TANTARANCHE | G21: I-1 | H21: -12.03821217 | I21: -76.12016573
A22: 00006638 | B22: 021001 | C22: PUESTO DE SALUD II DE HUAMPARAN | D22: ANCASH | E22: HUARI | F22: HUARI | G22: I-1 | H22: -9.25956025 | I22: -77.17255344
A23: 00005857 | B23: 150137 | C23: VIÑA SAN FRANCISCO | D23: LIMA | E23: LIMA | F23: SANTA ANITA | G23: I-2 | H23: -12.033188 | I23: -76.951488
A24: 00004427 | B24: 140306 | C24: CRUZ DE PAREDONES | D24: LAMBAYEQUE | E24: LAMBAYEQUE | F24: MORROPE | G24: I-1 | H24: -6.62899856 | I24: -79.95654133
A25: 00001713 | B25: 021807 | C25: PUESTO DE SALUD HUAMBACHO | D25: ANCASH | E25: SANTA | F25: SAMANCO | G25: I-1 | H25: -9.25819043 | I25: -78.43538633
A26: 00015140 | B26: 160705 | C26: BARRANQUILLO - CHAPURI | D26: LORETO | E26: DATEM DEL MARAÑON | F26: PASTAZA | G26: I-1 | H26: -4.190975 | I26: -76.95198167
A27: 00007267 | B27: 020601 | C27: PUESTO DE SALUD HUALCAN | D27: ANCASH | E27: CARHUAZ | F27: CARHUAZ | G27: I-2 | H27: -9.25783667 | I27: -77.61465333
A28: 00005891 | B28: 150716 | C28: SAN ANTONIO CHACLLA | D28: LIMA | E28: HUAROCHIRI | F28: SAN ANTONIO | G28: I-2 | H28: -11.74342779 | I28: -76.64922721
A29: 00017935 | B29: 030501 | C29: QQUELLO | D29: APURIMAC | E29: COTABAMBAS | F29: TAMBOBAMBA | G29: I-1 | H29: -14.00620465 | I29: -72.27601113
A30: 00000795 | B30: 100110 | C30: CHULLAY | D30: HUANUCO | E30: HUANUCO | F30: YARUMAYO | G30: I-1 | H30: -9.97242585 | I30: -76.43393717
A31: 00004767 | B31: 060411 | C31: POTRERILLO | D31: CAJAMARCA | E31: CHOTA | F31: LLAMA | G31: I-1 | H31: -6.54311915 | I31: -79.20689796
A32: 00017079 | B32: 230101 | C32: UNIDAD PREVENTIVO PROMOCIONAL DE LA MUNICIPALIDAD PROVINCIAL DE TACNA | D32: TACNA | E32: TACNA | F32: TACNA | G32: I-3
A33: 00001667 | B33: 021801 | C33: PUESTO DE SALUD LUPAHUARI | D33: ANCASH | E33: SANTA | F33: CHIMBOTE | G33: I-1 | H33: -8.87030508 | I33: -78.26796167
A34: 00005571 | B34: 250101 | C34: SANTA ELENA | D34: UCAYALI | E34: CORONEL PORTILLO | F34: CALLERIA | G34: I-1 | H34: -8.292655 | I34: -74.44432333
A35: 00028701 | B35: 020105 | C35: CENTRO DE SALUD MENTAL COMUNITARIO "ALLY WARAQ" | D35: ANCASH | E35: HUARAZ | F35: INDEPENDENCIA | G35: I-3 | H35: -9.496709 | I35: -77.538073
A36: 00000982 | B36: 190109 | C36: RANCAS | D36: PASCO | E36: PASCO | F36: SIMON BOLIVAR | G36: I-3 | H36: -10.68891589 | I36: -76.3168591
A37: 00005673 | B37: 150812 | C37: CENTRO SALUD VÉGUETA | D37: LIMA | E37: HUAURA | F37: VEGUETA | G37: I-3 | H37: -11.0218462 | I37: -77.6382615
A38: 00001809 | B38: 021909 | C38: PUESTO DE SALUD ANDAYMAYO | D38: ANCASH | E38: SIHUAS | F38: SAN JUAN | G38: I-2 | H38: -8.66170667 | I38: -77.63030333
A39: 00001790 | B39: 021307 | C39: PUESTO DE SALUD LUCMA | D39: ANCASH | E39: MARISCAL LUZURIAGA | F39: LUCMA | G39: I-2 | H39: -8.91551321 | I39: -77.4128389
A40: 00010367 | B40: 050410 | C40: PUESTO DE SALUD HUAYNACANCHA | D40: AYACUCHO | E40: HUANTA | F40: UCHURACCAY | G40: I-1 | H40: -12.7590439 | I40: -74.14695235
A41: 00006727 | B41: 160103 | C41: PANGUANA II ZONA | D41: LORETO | E41: MAYNAS | F41: FERNANDO LORES | G41: I-1
A42: 00000247 | B42: 160703 | C42: BORJA | D42: LORETO | E42: DATEM DEL MARAÑON | F42: MANSERICHE | G42: I-1 | H42: -4.47032333 | I42: -77.53982167
A43: 00011586 | B43: 100104 | C43: MANANTIAL DE VIDA DE QUECHUALOMA | D43: HUANUCO | E43: HUANUCO | F43: CHURUBAMBA | G43: I-1 | H43: -9.79729067 | I43: -76.18574857
A44: 00006529 | B44: 220401 | C44: RURAL SAPOSOA | D44: SAN MARTIN | E44: HUALLAGA | F44: SAPOSOA | G44: I-4 | H44: -6.94190667 | I44: -76.76902167
A45: 00006049 | B45: 151023 | C45: PUTINZA | D45: LIMA | E45: YAUYOS | F45: PUTINZA | G45: I-1 | H45: -12.669667 | I45: -75.94872978
A46: 00006459 | B46: 220701 | C46: BARRANQUITA PICOTA | D46: SAN MARTIN | E46: PICOTA | F46: PICOTA | G46: I-1 | H46: -6.89221656 | I46: -76.31183241
A47: 00006630 | B47: 090721 | C47: PUERTO SAN ANTONIO | D47: HUANCAVELICA | E47: TAYACAJA | F47: ROBLE | G47: I-2 | H47: -12.21734134 | I47: -74.49038414
A48: 00001514 | B48: 020204 | C48: PUESTO DE SALUD SANTA CRUZ | D48: ANCASH | E48: AIJA | F48: LA MERCED | G48: I-1 | H48: -9.698805 | I48: -77.59309667
A49: 00007101 | B49: 060607 | C49: EL GUAYO | D49: CAJAMARCA | E49: CUTERVO | F49: QUEROCOTILLO | G49: I-1 | H49: -6.25775843 | I49: -78.96128213
A50: 00002034 | B50: 200605 | C50: PUESTO DE SALUD LA GOLONDRINA | D50: PIURA | E50: SULLANA | F50: MARCAVELICA | G50: I-2 | H50: -4.84992921 | I50: -80.78411993
A51: 00003522 | B51: 050702 | C51: PUESTO DE SALUD CARHUANILLA | D51: AYACUCHO | E51: PARINACOCHAS | F51: CHUMPI | G51: I-1 | H51: -15.14470833 | I51: -73.73836
A52: 00002666 | B52: 030102 | C52: CHACOCHE | D52: APURIMAC | E52: ABANCAY | F52: CHACOCHE | G52: I-1 | H52: -13.94178231 | I52: -72.99025474
A53: 00003148 | B53: 210306 | C53: ORURO | D53: PUNO | E53: CARABAYA | F53: CRUCERO | G53: I-1 | H53: -14.36929 | I53: -69.930275
A54: 00005435 | B54: 250102 | C54: EL PORVENIR KM 25 | D54: UCAYALI | E54: CORONEL PORTILLO | F54: CAMPOVERDE | G54: I-1 | H54: -8.40938577 | I54: -74.76035415
A55: 00004756 | B55: 060404 | C55: MARAYHUACA | D55: CAJAMARCA | E55: CHOTA | F55: CHIGUIRIP | G55: I-1 | H55: -6.40391775 | I55: -78.70987422
A56: 00001577 | B56: 020105 | C56: PUESTO DE SALUD HUANJA | D56: ANCASH | E56: HUARAZ | F56: INDEPENDENCIA | G56: I-1 | H56: -9.43785757 | I56: -77.55759983
A57: 00002062 | B57: 200604 | C57: PUESTO DE SALUD JAHUAY NEGRO | D57: PIURA | E57: SULLANA | F57: LANCONES | G57: I-1 | H57: -4.44432855 | I57: -80.5035341
A58: 00005886 | B58: 150707 | C58: HUACHUPAMPA | D58: LIMA | E58: HUAROCHIRI | F58: HUACHUPAMPA | G58: I-1 | H58: -11.7198507 | I58: -76.58754497
A59: 00033427 | B59: 150105 | C59: CONCEBIR | D59: LIMA | E59: LIMA | F59: BREÑA | G59: I-2 | H59: -12.0694673 | I59: -77.0494714
A60: 00002415 | B60: 080804 | C60: OCCORURO | D60: CUSCO | E60: ESPINAR | F60: OCORURO | G60: I-2 | H60: -15.05369423 | I60: -71.12806676
A61: 00001317 | B61: 040112 | C61: CENTRO DE SALUD MIGUEL GRAU B | D61: AREQUIPA | E61: AREQUIPA | F61: PAUCARPATA | G61: I-2 | H61: -16.40950532 | I61: -71.48503702
A62: 00002336 | B62: 080306 | C62: LIMATAMBO | D62: CUSCO | E62: ANTA | F62: LIMATAMBO | G62: I-4 | H62: -13.47721288 | I62: -72.44248445
A63: 00004660 | B63: 060401 | C63: PATRONA DE CHOTA | D63: CAJAMARCA | E63: CHOTA | F63: CHOTA | G63: I-3 | H63: -6.56244532 | I63: -78.64738403
A64: 00010488 | B64: 160402 | C64: SAN JOSE DE COCHIQUINAS | D64: LORETO | E64: MARISCAL RAMON CASTILLA | F64: PEBAS | G64: I-1 | H64: -3.76017333 | I64: -71.62636333
A65: 00014548 | B65: 150128 | C65: SISTEMA METROPOLITANO DE LA SOLIDARIDAD METRO UNI | D65: LIMA | E65: LIMA | F65: RIMAC | G65: I-3 | H65: -12.01288243 | I65: -77.05216177
A66: 00006999 | B66: 150132 | C66: PUESTO DE SALUD SAGRADA FAMILIA | D66: LIMA | E66: LIMA | F66: SAN JUAN DE LURIGANCHO | G66: I-2 | H66: -11.9765576 | I66: -76.9888845
A67: 00002617 | B67: 030504 | C67: HAQUIRA | D67: APURIMAC | E67: COTABAMBAS | F67: HAQUIRA | G67: I-4 | H67: -14.21554744 | I67: -72.18892319
A68: 00004739 | B68: 060406 | C68: CHOROPAMPA | D68: CAJAMARCA | E68: CHOTA | F68: CHOROPAMPA | G68: I-2 | H68: -7.286469 | I68: -78.575389
A69: 00005012 | B69: 060606 | C69: PIMPINCOS | D69: CAJAMARCA | E69: CUTERVO | F69: PIMPINGOS | G69: I-3 | H69: -6.06070669 | I69: -78.75668917
A70: 00025210 | B70: 080105 | C70: TUPAC AMARU | D70: CUSCO | E70: CUSCO | F70: SAN SEBASTIAN | G70: II-E | H70: -13.53195 | I70: -71.9674626
A71: 00006756 | B71: 060312 | C71: RAMOSCUCHO | D71: CAJAMARCA | E71: CELENDIN | F71: LA LIBERTAD DE PALLAN | G71: I-1 | H71: -6.66412068 | I71: -78.33592421
A72: 00001678 | B72: 021808 | C72: PUESTO DE SALUD RINCONADA | D72: ANCASH | E72: SANTA | F72: SANTA | G72: I-1 | H72: -8.89325253 | I72: -78.56666266
A73: 00002749 | B73: 170103 | C73: LAGO VALENCIA | D73: MADRE DE DIOS | E73: TAMBOPATA | F73: LAS PIEDRAS | G73: I-1 | H73: -12.40614908 | I73: -68.80304323
A74: 00007309 | B74: 010702 | C74: EL ALISO | D74: AMAZONAS | E74: UTCUBAMBA | F74: CAJARURO | G74: I-1
A75: 00006497 | B75: 220304 | C75: SANTA ROSA | D75: SAN MARTIN | E75: EL DORADO | F75: SANTA ROSA | G75: I-1 | H75: -6.74667549 | I75: -76.62310311
A76: 00003652 | B76: 050403 | C76: PUESTO DE SALUD ICHUPATA | D76: AYACUCHO | E76: HUANTA | F76: HUAMANGUILLA | G76: I-1 | H76: -13.01266667 | I76: -74.20271333
A77: 00005523 | B77: 250202 | C77: SEPAHUA | D77: UCAYALI | E77: ATALAYA | F77: SEPAHUA | G77: I-3 | H77: -11.14412683 | I77: -73.04403767
A78: 00001229 | B78: 190201 | C78: ANDES YANAHUANCA | D78: PASCO | E78: DANIEL ALCIDES CARRION | F78: YANAHUANCA | G78: I-1 | H78: -10.70601537 | I78: -76.51529848
A79: 00006647 | B79: 022008 | C79: PUESTO DE SALUD LLANLLA | D79: ANCASH | E79: YUNGAY | F79: YANAMA | G79: I-1 | H79: -8.99696333 | I79: -77.42946667
A80: 00007381 | B80: 010521 | C80: TINTIN | D80: AMAZONAS | E80: LUYA | F80: SANTO TOMAS | G80: I-1 | H80: -6.60693833 | I80: -77.84872667
A81: 00005786 | B81: 150112 | C81: ERMITAÑO ALTO | D81: LIMA | E81: LIMA | F81: INDEPENDENCIA | G81: I-3 | H81: -11.9992218 | I81: -77.0449556
A82: 00005473 | B82: 250104 | C82: PUTAYA | D82: UCAYALI | E82: CORONEL PORTILLO | F82: MASISEA | G82: I-1 | H82: -8.97801669 | I82: -73.18353104
A83: 00027728 | B83: 150132 | C83: CENTRO DE SALUD MENTAL COMUNITARIO NUEVO PERU | D83: LIMA | E83: LIMA | F83: SAN JUAN DE LURIGANCHO | G83: I-3 | H83: -12.0027539 | I83: -77.0177604
A84: 00003581 | B84: 050106 | C84: PUESTO DE SALUD CCERAOCRO | D84: AYACUCHO | E84: HUAMANGA | F84: OCROS | G84: I-2 | H84: -13.34740621 | I84: -73.90147439
A85: 00002089 | B85: 200115 | C85: C.S NUEVA ESPERANZA | D85: PIURA | E85: PIURA | F85: VEINTISEIS DE OCTUBRE | G85: I-3 | H85: -5.19070333 | I85: -80.664085
A86: 00004837 | B86: 061311 | C86: YANAYACU ALTO | D86: CAJAMARCA | E86: SANTA CRUZ | F86: YAUYUCAN | G86: I-1 | H86: -6.66288251 | I86: -78.8627019
A87: 00006433 | B87: 220503 | C87: PUERTO PIZARRO | D87: SAN MARTIN | E87: LAMAS | F87: BARRANQUITA | G87: I-1 | H87: -6.16266833 | I87: -75.964485
A88: 00006907 | B88: 050101 | C88: PUESTO DE SALUD SANTA ANA | D88: AYACUCHO | E88: HUAMANGA | F88: AYACUCHO | G88: I-1 | H88: -13.17161152 | I88: -74.23165859
A89: 00006908 | B89: 050408 | C89: CHIHUILLO ALTO SAN ANTONIO | D89: AYACUCHO | E89: HUANTA | F89: LLOCHEGUA | G89: I-1 | H89: -12.43457 | I89: -73.96054167
A90: 00000903 | B90: 100511 | C90: TANTAMAYO | D90: HUANUCO | E90: HUAMALIES | F90: TANTAMAYO | G90: I-2 | H90: -9.38974188 | I90: -76.72074292
A91: 00010878 | B91: 060407 | C91: MAMARURIBAMBA BAJO | D91: CAJAMARCA | E91: CHOTA | F91: COCHABAMBA | G91: I-1 | H91: -6.51146094 | I91: -78.80913086
A92: 00007397 | B92: 040101 | C92: INSTITUTO REGIONAL DE ENFERMEDADES NEOPLASICAS DEL SUR | D92: AREQUIPA | E92: AREQUIPA | F92: AREQUIPA | G92: III-2 | H92: -16.414922 | I92: -71.530493
A93: 00006079 | B93: 150119 | C93: CENTRO MATERNO INFANTIL LURIN | D93: LIMA | E93: LIMA | F93: LURIN | G93: I-4 | H93: -12.2736699 | I93: -76.8695747
A94: 00006491 | B94: 220305 | C94: AMINIO | D94: SAN MARTIN | E94: EL DORADO | F94: SHATOJA | G94: I-1 | H94: -6.55415636 | I94: -76.68561063
A95: 00001775 | B95: 021603 | C95: CENTRO DE SALUD PAROBAMBA VIEJO | D95: ANCASH | E95: POMABAMBA | F95: PAROBAMBA | G95: I-4 | H95: -8.6969451 | I95: -77.42655666
A96: 00001154 | B96: 190304 | C96: PUERTO BELEN | D96: PASCO | E96: OXAPAMPA | F96: PALCAZU | G96: I-1 | H96: -10.13377224 | I96: -75.27756714
A97: 00000543 | B97: 120704 | C97: CASCA | D97: JUNIN | E97: TARMA | F97: HUASAHUASI | G97: I-1 | H97: -11.13820595 | I97: -75.6010631
A98: 00000473 | B98: 120608 | C98: SAN VICENTE DE CANAAN | D98: JUNIN | E98: SATIPO | F98: RIO TAMBO | G98: I-3 | H98: -11.08282082 | I98: -74.26644211
A99: 00005687 | B99: 150201 | C99: LAURIAMA | D99: LIMA | E99: BARRANCA | F99: BARRANCA | G99: I-3 | H99: -10.74654167 | I99: -77.7568
A100: 00006168 | B100: 151003 | C100: AUCAMPI | D100: LIMA | E100: YAUYOS | F100: ALLAUCA | G100: I-1 | H100: -12.58629461 | I100: -76.03096117
A101: 00002128 | B101: 200109 | C101: E.S RIO VIEJO | D101: PIURA | E101: PIURA | F101: LA ARENA | G101: I-1 | H101: -5.31839246 | I101: -80.72871997
A102: 00002898 | B102: 230107 | C102: PUESTO DE SALUD VILAVILANI | D102: TACNA | E102: TACNA | F102: PALCA | G102: I-2 | H102: -17.84968459 | I102: -69.90590847
A103: 00000448 | B103: 120606 | C103: NAYLAM DE SONOMORO | D103: JUNIN | E103: SATIPO | F103: PANGOA | G103: I-2 | H103: -11.4517342 | I103: -74.4375046
A104: 00000731 | B104: 120101 | C104: PALIAN | D104: JUNIN | E104: HUANCAYO | F104: HUANCAYO | G104: I-2 | H104: -12.03616685 | I104: -75.1940771
A105: 00006043 | B105: 151001 | C105: PUENTE AUCO | D105: LIMA | E105: YAUYOS | F105: YAUYOS | G105: I-2 | H105: -12.58618665 | I105: -75.95032235
A106: 00002919 | B106: 230101 | C106: CENTRO DE SALUD LEONCIO PRADO | D106: TACNA | E106: TACNA | F106: TACNA | G106: I-3 | H106: -18.0000716 | I106: -70.25003864
A107: 00000248 | B107: 160703 | C107: PUESTO DE SALUD I-1 FELIX FLORES | D107: LORETO | E107: DATEM DEL MARAÑON | F107: MANSERICHE | G107: I-1 | H107: -4.64201167 | I107: -77.50508833
A108: 00001367 | B108: 040309 | C108: PUESTO DE SALUD TOCOTA | D108: AREQUIPA | E108: CARAVELI | F108: HUANUHUANU | G108: I-2 | H108: -15.65826 | I108: -74.08988
A109: 00015152 | B109: 221005 | C109: JORGE CHAVEZ | D109: SAN MARTIN | E109: TOCACHE | F109: UCHIZA | G109: I-1 | H109: -8.42381562 | I109: -76.39887805
A110: 00006695 | B110: 160210 | C110: P.S. I-1 UNION CAMPESINA | D110: LORETO | E110: ALTO AMAZONAS | F110: SANTA CRUZ | G110: I-1 | H110: -5.71083958 | I110: -75.8464288
A111: 00007344 | B111: 030406 | C111: CCELLOPAMPA | D111: APURIMAC | E111: AYMARAES | F111: COTARUSE | G111: I-1 | H111: -14.70984 | I111: -73.56267667
A112: 00007089 | B112: 060414 | C112: LOS LIMONES | D112: CAJAMARCA | E112: CHOTA | F112: PION | G112: I-1 | H112: -6.18808 | I112: -78.49309
A113: 00003665 | B113: 050406 | C113: PUESTO DE SALUD VISCATAN | D113: AYACUCHO | E113: HUANTA | F113: SANTILLANA | G113: I-1 | H113: -12.62557739 | I113: -74.1955548
A114: 00001973 | B114: 200205 | C114: PUESTO DE SALUD QUEBRADA DE AGUA | D114: PIURA | E114: AYABACA | F114: MONTERO | G114: I-1 | H114: -4.64243327 | I114: -79.90523476
A115: 00002191 | B115: 200402 | C115: E.S. CARRASQUILLO | D115: PIURA | E115: MORROPON | F115: BUENOS AIRES | G115: I-1 | H115: -5.22343278 | I115: -80.02582362
A116: 00032635 | B116: 230104 | C116: CENTRO DE SALUD MENTAL COMUNITARIO VILLA DEL NORTE | D116: TACNA | E116: TACNA | F116: CIUDAD NUEVA | G116: I-2 | H116: -17.97852016 | I116: -70.23449365
A117: 00011891 | B117: 150106 | C117: SU MAJESTAD HIROITO | D117: LIMA | E117: LIMA | F117: CARABAYLLO | G117: I-2
A118: 00004096 | B118: 090705 | C118: TOCCLLACURI | D118: HUANCAVELICA | E118: TAYACAJA | F118: COLCABAMBA | G118: I-1 | H118: -12.34669495 | I118: -74.79546134
A119: 00001297 | B119: 040112 | C119: CENTRO DE SALUD CIUDAD BLANCA | D119: AREQUIPA | E119: AREQUIPA | F119: PAUCARPATA | G119: I-3 | H119: -16.41757353 | I119: -71.49123542
A120: 00005879 | B120: 150726 | C120: HUANCATA | D120: LIMA | E120: HUAROCHIRI | F120: SANGALLAYA | G120: I-1 | H120: -12.18430086 | I120: -76.23799226
A121: 00000434 | B121: 120604 | C121: MAZAMARI | D121: JUNIN | E121: SATIPO | F121: MAZAMARI | G121: I-4 | H121: -11.32432961 | I121: -74.52919206
A122: 00000753 | B122: 120101 | C122: HOSPITAL REGIONAL DOCENTE CLINICO QUIRURGICO DANIEL ALCIDES CARRION | D122: JUNIN | E122: HUANCAYO | F122: HUANCAYO | G122: III-E | H122: -12.07314039 | I122: -75.22174075
A123: 00019203 | B123: 101101 | C123: HUAYUCULANO | D123: HUANUCO | E123: YAROWILCA | F123: CHAVINILLO | G123: I-1 | H123: -9.84161213 | I123: -76.62062212
A124: 00027711 | B124: 150115 | C124: Centro de Salud Mental Comunitario La Victoria | D124: LIMA | E124: LIMA | F124: LA VICTORIA | G124: I-3 | H124: -12.071416 | I124: -77.01337496
A125: 00032026 | B125: 150113 | C125: HABILIS | D125: LIMA | E125: LIMA | F125: JESUS MARIA | G125: I-2
A126: 00000552 | B126: 120503 | C126: PARI | D126: JUNIN | E126: JUNIN | F126: ONDORES | G126: I-1 | H126: -10.958155 | I126: -76.21228
A127: 00006407 | B127: 220304 | C127: SAN JUAN DE TALLIQUIHUI | D127: SAN MARTIN | E127: EL DORADO | F127: SANTA ROSA | G127: I-1 | H127: -6.63627167 | I127: -76.571475
A128: 00000830 | B128: 100205 | C128: SAN PEDRO DE ACOBAMBA | D128: HUANUCO | E128: AMBO | F128: HUACAR | G128: I-1 | H128: -10.26651234 | I128: -76.26785631
A129: 00006598 | B129: 221001 | C129: ISHANGA | D129: SAN MARTIN | E129: TOCACHE | F129: TOCACHE | G129: I-1 | H129: -8.329175 | I129: -76.555995
A130: 00006622 | B130: 221001 | C130: SAN CRISTOBAL | D130: SAN MARTIN | E130: TOCACHE | F130: TOCACHE | G130: I-1 | H130: -8.39761667 | I130: -76.50017333
A131: 00035252 | B131: 150140 | C131: CENTRO DE SALUD MENTAL COMUNITARIO SAN IGNACIO DE SURCO | D131: LIMA | E131: LIMA | F131: SANTIAGO DE SURCO | G131: I-3
A132: 00006602 | B132: 221005 | C132: SANTA LUCIA | D132: SAN MARTIN | E132: TOCACHE | F132: UCHIZA | G132: I-3 | H132: -8.34666833 | I132: -76.38809833
A133: 00000590 | B133: 120701 | C133: MISARURASHA | D133: JUNIN | E133: TARMA | F133: TARMA | G133: I-1 | H133: -11.44940847 | I133: -75.66404206
A134: 00002157 | B134: 200802 | C134: E.S. BELLAVISTA | D134: PIURA | E134: SECHURA | F134: BELLAVISTA DE LA UNION | G134: I-3 | H134: -5.43724257 | I134: -80.75432088
A135: 00006375 | B135: 220914 | C135: SHAPAJA | D135: SAN MARTIN | E135: SAN MARTIN | F135: SHAPAJA | G135: I-2 | H135: -6.57519036 | I135: -76.26451859
A136: 00006902 | B136: 220708 | C136: NUEVO LORETO | D136: SAN MARTIN | E136: PICOTA | F136: SHAMBOYACU | G136: I-1 | H136: -7.21726307 | I136: -76.06468854
A137: 00002905 | B137: 230111 | C137: PUESTO DE SALUD 5 Y 6 LA YARADA | D137: TACNA | E137: TACNA | F137: LA YARADA LOS PALOS | G137: I-2 | H137: -18.18389645 | I137: -70.42662523
A138: 00026057 | B138: 100902 | C138: AISPED - CODO DE POZUZO - SANTA MARTHA | D138: HUANUCO | E138: PUERTO INCA | F138: CODO DEL POZUZO | G138: Sin Categoría | H138: -9.6734062 | I138: -75.4621467
A139: 00000755 | B139: 100102 | C139: PERU-COREA | D139: HUANUCO | E139: HUANUCO | F139: AMARILIS | G139: I-4 | H139: -9.91845739 | I139: -76.22713844
A140: 00001645 | B140: 022001 | C140: CENTRO DE SALUD TUMPA | D140: ANCASH | E140: YUNGAY | F140: YUNGAY | G140: I-3 | H140: -9.17339646 | I140: -77.66516121
A141: 00001495 | B141: 020504 | C141: PUESTO DE SALUD RACRACHACA | D141: ANCASH | E141: BOLOGNESI | F141: AQUIA | G141: I-1 | H141: -10.04400667 | I141: -77.13074167
A142: 00001528 | B142: 020604 | C142: CENTRO DE SALUD ANTA | D142: ANCASH | E142: CARHUAZ | F142: ANTA | G142: I-3 | H142: -9.35820167 | I142: -77.59849
A143: 00001692 | B143: 021506 | C143: PUESTO DE SALUD LACABAMBA | D143: ANCASH | E143: PALLASCA | F143: LACABAMBA | G143: I-1 | H143: -8.25931624 | I143: -77.89902352
A144: 00033187 | B144: 150123 | C144: PUESTO DE SALUD BELLA ESMERALDA | D144: LIMA | E144: LIMA | F144: PACHACAMAC | G144: I-2
A145: 00001709 | B145: 021802 | C145: PUESTO DE SALUD LAMPANIN | D145: ANCASH | E145: SANTA | F145: CACERES DEL PERU | G145: I-1 | H145: -8.93579691 | I145: -78.14516733
A146: 00001689 | B146: 021503 | C146: PUESTO DE SALUD MAYAS | D146: ANCASH | E146: PALLASCA | F146: CONCHUCOS | G146: I-1 | H146: -8.27489885 | I146: -77.66860054
A147: 00000673 | B147: 120203 | C147: PUCACOCHA | D147: JUNIN | E147: CONCEPCION | F147: ANDAMARCA | G147: I-2 | H147: -11.69169537 | I147: -74.79927317
A148: 00001194 | B148: 190205 | C148: ANDAHUAYLAS | D148: PASCO | E148: DANIEL ALCIDES CARRION | F148: SAN PEDRO DE PILLAO | G148: I-1 | H148: -10.40400167 | I148: -76.5732
A149: 00016646 | B149: 130801 | C149: UCRUMARCA | D149: LA LIBERTAD | E149: PATAZ | F149: TAYABAMBA | G149: I-2 | H149: -8.23887333 | I149: -77.35878667
A150: 00005987 | B150: 150133 | C150: HOSPITAL MARIA AUXILIADORA | D150: LIMA | E150: LIMA | F150: SAN JUAN DE MIRAFLORES | G150: III-1 | H150: -12.1605768 | I150: -76.9591024
A151: 00001821 | B151: 021014 | C151: PUESTO DE SALUD SAN PEDRO DE PICHIU | D151: ANCASH | E151: HUARI | F151: SAN MARCOS | G151: I-1 | H151: -9.6665898 | I151: -77.17660485
A152: 00001016 | B152: 190108 | C152: CHAUYAR | D152: PASCO | E152: PASCO | F152: SAN FCO DE ASIS DE YARUSYACAN | G152: I-2 | H152: -10.48835826 | I152: -76.21578054
A153: 00001807 | B153: 021907 | C153: PUESTO DE SALUD JOCOSBAMBA | D153: ANCASH | E153: SIHUAS | F153: QUICHES | G153: I-1 | H153: -8.39147279 | I153: -77.54041329
A154: 00001496 | B154: 020504 | C154: PUESTO DE SALUD PACHAPAQUI | D154: ANCASH | E154: BOLOGNESI | F154: AQUIA | G154: I-1 | H154: -9.95999745 | I154: -77.09675504
A155: 00002148 | B155: 200801 | C155: E.S I-1 CHUSIS | D155: PIURA | E155: SECHURA | F155: SECHURA | G155: I-1 | H155: -5.5208047 | I155: -80.81514184
A156: 00001061 | B156: 190105 | C156: CARHUAC | D156: PASCO | E156: PASCO | F156: NINACACA | G156: I-1 | H156: -10.67937288 | I156: -75.98101837
A157: 00001641 | B157: 022003 | C157: CENTRO DE SALUD MANCOS | D157: ANCASH | E157: YUNGAY | F157: MANCOS | G157: I-3 | H157: -9.18850706 | I157: -77.70849951
A158: 00001020 | B158: 190108 | C158: MISHARAN | D158: PASCO | E158: PASCO | F158: SAN FCO DE ASIS DE YARUSYACAN | G158: I-1 | H158: -10.51499156 | I158: -76.20602827
A159: 00001840 | B159: 021009 | C159: PUESTO DE SALUD MASIN | D159: ANCASH | E159: HUARI | F159: MASIN | G159: I-2 | H159: -9.36702785 | I159: -77.09914375
A160: 00001659 | B160: 021801 | C160: CENTRO DE SALUD PROGRESO | D160: ANCASH | E160: SANTA | F160: CHIMBOTE | G160: I-4 | H160: -9.06722886 | I160: -78.58748786
A161: 00001758 | B161: 021404 | C161: PUESTO DE SALUD ACO DE CARHUAPAMPA | D161: ANCASH | E161: OCROS | F161: CARHUAPAMPA | G161: I-1 | H161: -10.50204333 | I161: -77.24415
A162: 00001787 | B162: 021303 | C162: PUESTO DE SALUD PUMPA | D162: ANCASH | E162: MARISCAL LUZURIAGA | F162: ELEAZAR GUZMAN BARRON | G162: I-1 | H162: -8.88743849 | I162: -77.2060032
A163: 00001617 | B163: 021206 | C163: CENTRO DE SALUD PAMPAROMAS | D163: ANCASH | E163: HUAYLAS | F163: PAMPAROMAS | G163: I-3 | H163: -9.07286864 | I163: -77.98197618
A164: 00017925 | B164: 130908 | C164: LA VICTORIA | D164: LA LIBERTAD | E164: SANCHEZ CARRION | F164: SARTIMBAMBA | G164: I-2 | H164: -7.61344654 | I164: -77.75689384
A165: 00001710 | B165: 021802 | C165: PUESTO DE SALUD COLCAP | D165: ANCASH | E165: SANTA | F165: CACERES DEL PERU | G165: I-2 | H165: -8.97890945 | I165: -78.05819521
A166: 00016330 | B166: 080703 | C166: CCONCHACCOLLO | D166: CUSCO | E166: CHUMBIVILCAS | F166: CHAMACA | G166: I-1 | H166: -14.34780167 | I166: -71.87056333
A167: 00003105 | B167: 210901 | C167: QUELLAHUYO POMAOCA | D167: PUNO | E167: MOHO | F167: MOHO | G167: I-1 | H167: -15.27355 | I167: -69.44506333
A168: 00011350 | B168: 090101 | C168: SAN GERONIMO | D168: HUANCAVELICA | E168: HUANCAVELICA | F168: HUANCAVELICA | G168: I-1 | H168: -12.78777953 | I168: -74.99236074
A169: 00010762 | B169: 080401 | C169: ACCHA ALTA - PAMPALLACTA | D169: CUSCO | E169: CALCA | F169: CALCA | G169: I-1 | H169: -13.24063333 | I169: -71.89868784
A170: 00002342 | B170: 080404 | C170: AMPARAES | D170: CUSCO | E170: CALCA | F170: LARES | G170: I-2 | H170: -13.05263672 | I170: -71.94661173
A171: 00010758 | B171: 081305 | C171: CRUZPATA | D171: CUSCO | E171: URUBAMBA | F171: MARAS | G171: I-1 | H171: -13.38311628 | I171: -72.11679357
A172: 00009714 | B172: 090110 | C172: CCOLLPA | D172: HUANCAVELICA | E172: HUANCAVELICA | F172: MANTA | G172: I-1 | H172: -12.60463001 | I172: -75.18031507
A173: 00001878 | B173: 240104 | C173: EL LIMON | D173: TUMBES | E173: TUMBES | F173: PAMPAS DE HOSPITAL | G173: I-1 | H173: -3.72783973 | I173: -80.44168183
A174: 00005392 | B174: 130812 | C174: TAURIJA | D174: LA LIBERTAD | E174: PATAZ | F174: TAURIJA | G174: I-2 | H174: -8.3077349 | I174: -77.4248739
A175: 00001149 | B175: 190304 | C175: SANTA MARIA | D175: PASCO | E175: OXAPAMPA | F175: PALCAZU | G175: I-1 | H175: -10.38766957 | I175: -75.06350938
A176: 00010804 | B176: 060801 | C176: PUENTE ZONANGA | D176: CAJAMARCA | E176: JAEN | F176: JAEN | G176: I-1 | H176: -5.8886652 | I176: -78.82858684
A177: 00001075 | B177: 190303 | C177: GRAPANAZU | D177: PASCO | E177: OXAPAMPA | F177: HUANCABAMBA | G177: I-2 | H177: -10.47643511 | I177: -75.47497619
A178: 00005031 | B178: 060609 | C178: SANTA CRUZ DE LA SUCCHA | D178: CAJAMARCA | E178: CUTERVO | F178: SAN JUAN DE CUTERVO | G178: I-1 | H178: -6.20520509 | I178: -78.59982769
A179: 00001161 | B179: 190306 | C179: SANTA ROSA DE CHIVIS | D179: PASCO | E179: OXAPAMPA | F179: PUERTO BERMUDEZ | G179: I-2 | H179: -10.34359238 | I179: -74.98668752
A180: 00004109 | B180: 090709 | C180: HUARIBAMBA | D180: HUANCAVELICA | E180: TAYACAJA | F180: HUARIBAMBA | G180: I-3 | H180: -12.27870433 | I180: -74.93462003
A181: 00000495 | B181: 120607 | C181: RIO NEGRO | D181: JUNIN | E181: SATIPO | F181: RIO NEGRO | G181: I-3 | H181: -11.20902393 | I181: -74.65857274
A182: 00032703 | B182: 250201 | C182: PUESTO DE SALUD LOS OLIVOS | D182: UCAYALI | E182: ATALAYA | F182: RAIMONDI | G182: I-1
A183: 00001933 | B183: 200111 | C183: PUESTO DE SALUD POTRERILLO | D183: PIURA | E183: PIURA | F183: LAS LOMAS | G183: I-2 | H183: -4.6974699 | I183: -80.09448985
A184: 00033273 | B184: 080902 | C184: SAN ISIDRO LABRADOR - ECHARATI | D184: CUSCO | E184: LA CONVENCION | F184: ECHARATE | G184: Sin Categoría | H184: -12.7756182 | I184: -72.5946831
A185: 00005063 | B185: 010203 | C185: COPALLIN | D185: AMAZONAS | E185: BAGUA | F185: COPALLIN | G185: I-3 | H185: -5.67553775 | I185: -78.42441106
A186: 00018884 | B186: 220101 | C186: CONSULTORIO MEDICO MUNICIPAL PREVENTORIO DR SEGUNDO RODOLFO PEREZ NIETO | D186: SAN MARTIN | E186: MOYOBAMBA | F186: MOYOBAMBA | G186: I-2
A187: 00000343 | B187: 120303 | C187: CENTRO CUYANI | D187: JUNIN | E187: CHANCHAMAYO | F187: PICHANAQUI | G187: I-3 | H187: -10.99203258 | I187: -74.93988905
A188: 00000852 | B188: 100311 | C188: PATAY RONDOS | D188: HUANUCO | E188: DOS DE MAYO | F188: MARIAS | G188: I-2 | H188: -9.56310667 | I188: -76.37773167
A189: 00006904 | B189: 190113 | C189: VIRGEN DEL ROSARIO | D189: PASCO | E189: PASCO | F189: YANACANCHA | G189: I-2 | H189: -10.67610315 | I189: -76.24899232
A190: 00006108 | B190: 150133 | C190: PUESTO DE SALUD VIRGEN DEL BUEN PASO | D190: LIMA | E190: LIMA | F190: SAN JUAN DE MIRAFLORES | G190: I-2
A191: 00005207 | B191: 130101 | C191: PESQUEDA III | D191: LA LIBERTAD | E191: TRUJILLO | F191: TRUJILLO | G191: I-2 | H191: -8.09879639 | I191: -79.00114805
A192: 00005306 | B192: 130501 | C192: HOSPITAL PROVINCIAL DE JULCAN | D192: LA LIBERTAD | E192: JULCAN | F192: JULCAN | G192: II-1 | H192: -8.04216655 | I192: -78.48468033
A193: 00005336 | B193: 131001 | C193: OYON | D193: LA LIBERTAD | E193: SANTIAGO DE CHUCO | F193: SANTIAGO DE CHUCO | G193: I-2 | H193: -8.379065 | I193: -78.40558
A194: 00035033 | B194: 120201 | C194: HEROES DE CONCEPCION | D194: JUNIN | E194: CONCEPCION | F194: CONCEPCION | G194: Sin Categoría | H194: -11.91998 | I194: -75.31996
A195: 00001911 | B195: 200201 | C195: CENTRO DE SALUD AYABACA | D195: PIURA | E195: AYABACA | F195: AYABACA | G195: I-4 | H195: -4.63578921 | I195: -79.71413952
A196: 00004407 | B196: 140308 | C196: OLMOS | D196: LAMBAYEQUE | E196: LAMBAYEQUE | F196: OLMOS | G196: I-4 | H196: -5.991845 | I196: -79.74613667
A197: 00000438 | B197: 120606 | C197: TZIRIARI | D197: JUNIN | E197: SATIPO | F197: PANGOA | G197: I-3 | H197: -11.29066764 | I197: -74.43207523
A198: 00009282 | B198: 010701 | C198: PLAYA GRANDE | D198: AMAZONAS | E198: UTCUBAMBA | F198: BAGUA GRANDE | G198: I-1 | H198: -5.93033383 | I198: -78.3688586
A199: 00018120 | B199: 060903 | C199: LA MUSHCA | D199: CAJAMARCA | E199: SAN IGNACIO | F199: HUARANGO | G199: I-1 | H199: -5.2714643 | I199: -78.7752476
A200: 00004285 | B200: 060903 | C200: HUADUILLO | D200: CAJAMARCA | E200: SAN IGNACIO | F200: HUARANGO | G200: I-1 | H200: -5.31114 | I200: -78.72445
... 8850 more rows

Sheet UBIGEO (hidden)
A2: UBIGEO | B2: DEPARTAMENTO | C2: PROVINCIA | D2: DISTRITO
B3: AMAZONAS
A4: 101 | B4: AMAZONAS | C4: CHACHAPOYAS
A5: 10101 | B5: AMAZONAS | C5: CHACHAPOYAS | D5: CHACHAPOYAS
A6: 10102 | B6: AMAZONAS | C6: CHACHAPOYAS | D6: ASUNCIÓN
A7: 10103 | B7: AMAZONAS | C7: CHACHAPOYAS | D7: BALSAS
A8: 10104 | B8: AMAZONAS | C8: CHACHAPOYAS | D8: CHETO
A9: 10105 | B9: AMAZONAS | C9: CHACHAPOYAS | D9: CHILIQUIN
A10: 10106 | B10: AMAZONAS | C10: CHACHAPOYAS | D10: CHUQUIBAMBA
A11: 10107 | B11: AMAZONAS | C11: CHACHAPOYAS | D11: GRANADA
A12: 10108 | B12: AMAZONAS | C12: CHACHAPOYAS | D12: HUANCAS
A13: 10109 | B13: AMAZONAS | C13: CHACHAPOYAS | D13: LA JALCA
A14: 10110 | B14: AMAZONAS | C14: CHACHAPOYAS | D14: LEIMEBAMBA
A15: 10111 | B15: AMAZONAS | C15: CHACHAPOYAS | D15: LEVANTO
A16: 10112 | B16: AMAZONAS | C16: CHACHAPOYAS | D16: MAGDALENA
A17: 10113 | B17: AMAZONAS | C17: CHACHAPOYAS | D17: MARISCAL CASTILLA
A18: 10114 | B18: AMAZONAS | C18: CHACHAPOYAS | D18: MOLINOPAMPA
A19: 10115 | B19: AMAZONAS | C19: CHACHAPOYAS | D19: MONTEVIDEO
A20: 10116 | B20: AMAZONAS | C20: CHACHAPOYAS | D20: OLLEROS
A21: 10117 | B21: AMAZONAS | C21: CHACHAPOYAS | D21: QUINJALCA
A22: 10118 | B22: AMAZONAS | C22: CHACHAPOYAS | D22: SAN FRANCISCO DE DAGUAS
A23: 10119 | B23: AMAZONAS | C23: CHACHAPOYAS | D23: SAN ISIDRO DE MAINO
A24: 10120 | B24: AMAZONAS | C24: CHACHAPOYAS | D24: SOLOCO
A25: 10121 | B25: AMAZONAS | C25: CHACHAPOYAS | D25: SONCHE
A26: 102 | B26: AMAZONAS | C26: BAGUA
A27: 10201 | B27: AMAZONAS | C27: BAGUA | D27: BAGUA
A28: 10202 | B28: AMAZONAS | C28: BAGUA | D28: ARAMANGO
A29: 10203 | B29: AMAZONAS | C29: BAGUA | D29: COPALLIN
A30: 10204 | B30: AMAZONAS | C30: BAGUA | D30: EL PARCO
A31: 10205 | B31: AMAZONAS | C31: BAGUA | D31: IMAZA
A32: 10206 | B32: AMAZONAS | C32: BAGUA | D32: LA PECA
A33: 103 | B33: AMAZONAS | C33: BONGARÁ
A34: 10301 | B34: AMAZONAS | C34: BONGARÁ | D34: JUMBILLA
A35: 10302 | B35: AMAZONAS | C35: BONGARÁ | D35: CHISQUILLA
A36: 10303 | B36: AMAZONAS | C36: BONGARÁ | D36: CHURUJA
A37: 10304 | B37: AMAZONAS | C37: BONGARÁ | D37: COROSHA
A38: 10305 | B38: AMAZONAS | C38: BONGARÁ | D38: CUISPES
A39: 10306 | B39: AMAZONAS | C39: BONGARÁ | D39: FLORIDA
A40: 10307 | B40: AMAZONAS | C40: BONGARÁ | D40: JAZAN
A41: 10308 | B41: AMAZONAS | C41: BONGARÁ | D41: RECTA
A42: 10309 | B42: AMAZONAS | C42: BONGARÁ | D42: SAN CARLOS
A43: 10310 | B43: AMAZONAS | C43: BONGARÁ | D43: SHIPASBAMBA
A44: 10311 | B44: AMAZONAS | C44: BONGARÁ | D44: VALERA
A45: 10312 | B45: AMAZONAS | C45: BONGARÁ | D45: YAMBRASBAMBA
A46: 104 | B46: AMAZONAS | C46: CONDORCANQUI
A47: 10401 | B47: AMAZONAS | C47: CONDORCANQUI | D47: NIEVA
A48: 10402 | B48: AMAZONAS | C48: CONDORCANQUI | D48: EL CENEPA
A49: 10403 | B49: AMAZONAS | C49: CONDORCANQUI | D49: RÍO SANTIAGO
A50: 105 | B50: AMAZONAS | C50: LUYA
A51: 10501 | B51: AMAZONAS | C51: LUYA | D51: LAMUD
A52: 10502 | B52: AMAZONAS | C52: LUYA | D52: CAMPORREDONDO
A53: 10503 | B53: AMAZONAS | C53: LUYA | D53: COCABAMBA
A54: 10504 | B54: AMAZONAS | C54: LUYA | D54: COLCAMAR
A55: 10505 | B55: AMAZONAS | C55: LUYA | D55: CONILA
A56: 10506 | B56: AMAZONAS | C56: LUYA | D56: INGUILPATA
A57: 10507 | B57: AMAZONAS | C57: LUYA | D57: LONGUITA
A58: 10508 | B58: AMAZONAS | C58: LUYA | D58: LONYA CHICO
A59: 10509 | B59: AMAZONAS | C59: LUYA | D59: LUYA
A60: 10510 | B60: AMAZONAS | C60: LUYA | D60: LUYA VIEJO
A61: 10511 | B61: AMAZONAS | C61: LUYA | D61: MARÍA
A62: 10512 | B62: AMAZONAS | C62: LUYA | D62: OCALLI
A63: 10513 | B63: AMAZONAS | C63: LUYA | D63: OCUMAL
A64: 10514 | B64: AMAZONAS | C64: LUYA | D64: PISUQUIA
A65: 10515 | B65: AMAZONAS | C65: LUYA | D65: PROVIDENCIA
A66: 10516 | B66: AMAZONAS | C66: LUYA | D66: SAN CRISTÓBAL
A67: 10517 | B67: AMAZONAS | C67: LUYA | D67: SAN FRANCISCO DE YESO
A68: 10518 | B68: AMAZONAS | C68: LUYA | D68: SAN JERÓNIMO
A69: 10519 | B69: AMAZONAS | C69: LUYA | D69: SAN JUAN DE LOPECANCHA
A70: 10520 | B70: AMAZONAS | C70: LUYA | D70: SANTA CATALINA
A71: 10521 | B71: AMAZONAS | C71: LUYA | D71: SANTO TOMAS
A72: 10522 | B72: AMAZONAS | C72: LUYA | D72: TINGO
A73: 10523 | B73: AMAZONAS | C73: LUYA | D73: TRITA
A74: 106 | B74: AMAZONAS | C74: RODRÍGUEZ DE MENDOZA
A75: 10601 | B75: AMAZONAS | C75: RODRÍGUEZ DE MENDOZA | D75: SAN NICOLÁS
A76: 10602 | B76: AMAZONAS | C76: RODRÍGUEZ DE MENDOZA | D76: CHIRIMOTO
A77: 10603 | B77: AMAZONAS | C77: RODRÍGUEZ DE MENDOZA | D77: COCHAMAL
A78: 10604 | B78: AMAZONAS | C78: RODRÍGUEZ DE MENDOZA | D78: HUAMBO
A79: 10605 | B79: AMAZONAS | C79: RODRÍGUEZ DE MENDOZA | D79: LIMABAMBA
A80: 10606 | B80: AMAZONAS | C80: RODRÍGUEZ DE MENDOZA | D80: LONGAR
A81: 10607 | B81: AMAZONAS | C81: RODRÍGUEZ DE MENDOZA | D81: MARISCAL BENAVIDES
A82: 10608 | B82: AMAZONAS | C82: RODRÍGUEZ DE MENDOZA | D82: MILPUC
A83: 10609 | B83: AMAZONAS | C83: RODRÍGUEZ DE MENDOZA | D83: OMIA
A84: 10610 | B84: AMAZONAS | C84: RODRÍGUEZ DE MENDOZA | D84: SANTA ROSA
A85: 10611 | B85: AMAZONAS | C85: RODRÍGUEZ DE MENDOZA | D85: TOTORA
A86: 10612 | B86: AMAZONAS | C86: RODRÍGUEZ DE MENDOZA | D86: VISTA ALEGRE
A87: 107 | B87: AMAZONAS | C87: UTCUBAMBA
A88: 10701 | B88: AMAZONAS | C88: UTCUBAMBA | D88: BAGUA GRANDE
A89: 10702 | B89: AMAZONAS | C89: UTCUBAMBA | D89: CAJARURO
A90: 10703 | B90: AMAZONAS | C90: UTCUBAMBA | D90: CUMBA
A91: 10704 | B91: AMAZONAS | C91: UTCUBAMBA | D91: EL MILAGRO
A92: 10705 | B92: AMAZONAS | C92: UTCUBAMBA | D92: JAMALCA
A93: 10706 | B93: AMAZONAS | C93: UTCUBAMBA | D93: LONYA GRANDE
A94: 10707 | B94: AMAZONAS | C94: UTCUBAMBA | D94: YAMON
A95: 2 | B95: ÁNCASH
A96: 201 | B96: ÁNCASH | C96: HUARAZ
A97: 20101 | B97: ÁNCASH | C97: HUARAZ | D97: HUARAZ
A98: 20102 | B98: ÁNCASH | C98: HUARAZ | D98: COCHABAMBA
A99: 20103 | B99: ÁNCASH | C99: HUARAZ | D99: COLCABAMBA
A100: 20104 | B100: ÁNCASH | C100: HUARAZ | D100: HUANCHAY
A101: 20105 | B101: ÁNCASH | C101: HUARAZ | D101: INDEPENDENCIA
A102: 20106 | B102: ÁNCASH | C102: HUARAZ | D102: JANGAS
A103: 20107 | B103: ÁNCASH | C103: HUARAZ | D103: LA LIBERTAD
A104: 20108 | B104: ÁNCASH | C104: HUARAZ | D104: OLLEROS
A105: 20109 | B105: ÁNCASH | C105: HUARAZ | D105: PAMPAS GRANDE
A106: 20110 | B106: ÁNCASH | C106: HUARAZ | D106: PARIACOTO
A107: 20111 | B107: ÁNCASH | C107: HUARAZ | D107: PIRA
A108: 20112 | B108: ÁNCASH | C108: HUARAZ | D108: TARICA
A109: 202 | B109: ÁNCASH | C109: AIJA
A110: 20201 | B110: ÁNCASH | C110: AIJA | D110: AIJA
A111: 20202 | B111: ÁNCASH | C111: AIJA | D111: CORIS
A112: 20203 | B112: ÁNCASH | C112: AIJA | D112: HUACLLAN
A113: 20204 | B113: ÁNCASH | C113: AIJA | D113: LA MERCED
A114: 20205 | B114: ÁNCASH | C114: AIJA | D114: SUCCHA
A115: 203 | B115: ÁNCASH | C115: ANTONIO RAYMONDI
A116: 20301 | B116: ÁNCASH | C116: ANTONIO RAYMONDI | D116: LLAMELLIN
A117: 20302 | B117: ÁNCASH | C117: ANTONIO RAYMONDI | D117: ACZO
A118: 20303 | B118: ÁNCASH | C118: ANTONIO RAYMONDI | D118: CHACCHO
A119: 20304 | B119: ÁNCASH | C119: ANTONIO RAYMONDI | D119: CHINGAS
A120: 20305 | B120: ÁNCASH | C120: ANTONIO RAYMONDI | D120: MIRGAS
A121: 20306 | B121: ÁNCASH | C121: ANTONIO RAYMONDI | D121: SAN JUAN DE RONTOY
A122: 204 | B122: ÁNCASH | C122: ASUNCIÓN
A123: 20401 | B123: ÁNCASH | C123: ASUNCIÓN | D123: CHACAS
A124: 20402 | B124: ÁNCASH | C124: ASUNCIÓN | D124: ACOCHACA
A125: 205 | B125: ÁNCASH | C125: BOLOGNESI
A126: 20501 | B126: ÁNCASH | C126: BOLOGNESI | D126: CHIQUIAN
A127: 20502 | B127: ÁNCASH | C127: BOLOGNESI | D127: ABELARDO PARDO LEZAMETA
A128: 20503 | B128: ÁNCASH | C128: BOLOGNESI | D128: ANTONIO RAYMONDI
A129: 20504 | B129: ÁNCASH | C129: BOLOGNESI | D129: AQUIA
A130: 20505 | B130: ÁNCASH | C130: BOLOGNESI | D130: CAJACAY
A131: 20506 | B131: ÁNCASH | C131: BOLOGNESI | D131: CANIS
A132: 20507 | B132: ÁNCASH | C132: BOLOGNESI | D132: COLQUIOC
A133: 20508 | B133: ÁNCASH | C133: BOLOGNESI | D133: HUALLANCA
A134: 20509 | B134: ÁNCASH | C134: BOLOGNESI | D134: HUASTA
A135: 20510 | B135: ÁNCASH | C135: BOLOGNESI | D135: HUAYLLACAYAN
A136: 20511 | B136: ÁNCASH | C136: BOLOGNESI | D136: LA PRIMAVERA
A137: 20512 | B137: ÁNCASH | C137: BOLOGNESI | D137: MANGAS
A138: 20513 | B138: ÁNCASH | C138: BOLOGNESI | D138: PACLLON
A139: 20514 | B139: ÁNCASH | C139: BOLOGNESI | D139: SAN MIGUEL DE CORPANQUI
A140: 20515 | B140: ÁNCASH | C140: BOLOGNESI | D140: TICLLOS
A141: 206 | B141: ÁNCASH | C141: CARHUAZ
A142: 20601 | B142: ÁNCASH | C142: CARHUAZ | D142: CARHUAZ
A143: 20602 | B143: ÁNCASH | C143: CARHUAZ | D143: ACOPAMPA
A144: 20603 | B144: ÁNCASH | C144: CARHUAZ | D144: AMASHCA
A145: 20604 | B145: ÁNCASH | C145: CARHUAZ | D145: ANTA
A146: 20605 | B146: ÁNCASH | C146: CARHUAZ | D146: ATAQUERO
A147: 20606 | B147: ÁNCASH | C147: CARHUAZ | D147: MARCARA
A148: 20607 | B148: ÁNCASH | C148: CARHUAZ | D148: PARIAHUANCA
A149: 20608 | B149: ÁNCASH | C149: CARHUAZ | D149: SAN MIGUEL DE ACO
A150: 20609 | B150: ÁNCASH | C150: CARHUAZ | D150: SHILLA
A151: 20610 | B151: ÁNCASH | C151: CARHUAZ | D151: TINCO
A152: 20611 | B152: ÁNCASH | C152: CARHUAZ | D152: YUNGAR
A153: 207 | B153: ÁNCASH | C153: CARLOS FERMÍN FITZCARRALD
A154: 20701 | B154: ÁNCASH | C154: CARLOS FERMÍN FITZCARRALD | D154: SAN LUIS
A155: 20702 | B155: ÁNCASH | C155: CARLOS FERMÍN FITZCARRALD | D155: SAN NICOLÁS
A156: 20703 | B156: ÁNCASH | C156: CARLOS FERMÍN FITZCARRALD | D156: YAUYA
A157: 208 | B157: ÁNCASH | C157: CASMA
A158: 20801 | B158: ÁNCASH | C158: CASMA | D158: CASMA
A159: 20802 | B159: ÁNCASH | C159: CASMA | D159: BUENA VISTA ALTA
A160: 20803 | B160: ÁNCASH | C160: CASMA | D160: COMANDANTE NOEL
A161: 20804 | B161: ÁNCASH | C161: CASMA | D161: YAUTAN
A162: 209 | B162: ÁNCASH | C162: CORONGO
A163: 20901 | B163: ÁNCASH | C163: CORONGO | D163: CORONGO
A164: 20902 | B164: ÁNCASH | C164: CORONGO | D164: ACO
A165: 20903 | B165: ÁNCASH | C165: CORONGO | D165: BAMBAS
A166: 20904 | B166: ÁNCASH | C166: CORONGO | D166: CUSCA
A167: 20905 | B167: ÁNCASH | C167: CORONGO | D167: LA PAMPA
A168: 20906 | B168: ÁNCASH | C168: CORONGO | D168: YANAC
A169: 20907 | B169: ÁNCASH | C169: CORONGO | D169: YUPAN
A170: 210 | B170: ÁNCASH | C170: HUARI
A171: 21001 | B171: ÁNCASH | C171: HUARI | D171: HUARI
A172: 21002 | B172: ÁNCASH | C172: HUARI | D172: ANRA
A173: 21003 | B173: ÁNCASH | C173: HUARI | D173: CAJAY
A174: 21004 | B174: ÁNCASH | C174: HUARI | D174: CHAVIN DE HUANTAR
A175: 21005 | B175: ÁNCASH | C175: HUARI | D175: HUACACHI
A176: 21006 | B176: ÁNCASH | C176: HUARI | D176: HUACCHIS
A177: 21007 | B177: ÁNCASH | C177: HUARI | D177: HUACHIS
A178: 21008 | B178: ÁNCASH | C178: HUARI | D178: HUANTAR
A179: 21009 | B179: ÁNCASH | C179: HUARI | D179: MASIN
A180: 21010 | B180: ÁNCASH | C180: HUARI | D180: PAUCAS
A181: 21011 | B181: ÁNCASH | C181: HUARI | D181: PONTO
A182: 21012 | B182: ÁNCASH | C182: HUARI | D182: RAHUAPAMPA
A183: 21013 | B183: ÁNCASH | C183: HUARI | D183: RAPAYAN
A184: 21014 | B184: ÁNCASH | C184: HUARI | D184: SAN MARCOS
A185: 21015 | B185: ÁNCASH | C185: HUARI | D185: SAN PEDRO DE CHANA
A186: 21016 | B186: ÁNCASH | C186: HUARI | D186: UCO
A187: 211 | B187: ÁNCASH | C187: HUARMEY
A188: 21101 | B188: ÁNCASH | C188: HUARMEY | D188: HUARMEY
A189: 21102 | B189: ÁNCASH | C189: HUARMEY | D189: COCHAPETI
A190: 21103 | B190: ÁNCASH | C190: HUARMEY | D190: CULEBRAS
A191: 21104 | B191: ÁNCASH | C191: HUARMEY | D191: HUAYAN
A192: 21105 | B192: ÁNCASH | C192: HUARMEY | D192: MALVAS
A193: 212 | B193: ÁNCASH | C193: HUAYLAS
A194: 21201 | B194: ÁNCASH | C194: HUAYLAS | D194: CARAZ
A195: 21202 | B195: ÁNCASH | C195: HUAYLAS | D195: HUALLANCA
A196: 21203 | B196: ÁNCASH | C196: HUAYLAS | D196: HUATA
A197: 21204 | B197: ÁNCASH | C197: HUAYLAS | D197: HUAYLAS
A198: 21205 | B198: ÁNCASH | C198: HUAYLAS | D198: MATO
A199: 21206 | B199: ÁNCASH | C199: HUAYLAS | D199: PAMPAROMAS
A200: 21207 | B200: ÁNCASH | C200: HUAYLAS | D200: PUEBLO LIBRE
A201: 21208 | B201: ÁNCASH | C201: HUAYLAS | D201: SANTA CRUZ
... 1889 more rows

Sheet ENAHO (hidden)
B2: % POBLACIÓN CON ENFERMEDAD CRÓNICA QUE NO TUVO SÍNTOMA/ENFERMEDAD POR DEPARTAMENTO
C3: 2024
B4: Departamentos | C4: Pob cronica sin sintoma/enfermedad
B5: Amazonas | C5: 0.1406899657
B6: Ancash | C6: 0.04608515925
B7: Apurimac | C7: 0.1445823542
B8: Arequipa | C8: 0.1269103354
B9: Ayacucho | C9: 0.04467913624
B10: Cajamarca | C10: 0.06762501778
B11: Callao | C11: 0.175190847
B12: Cusco | C12: 0.1262153164
B13: Huancavelica | C13: 0.03707955501
B14: Huanuco | C14: 0.05502968435
B15: Ica | C15: 0.09595385703
B16: Junin | C16: 0.09722394008
B17: La Libertad | C17: 0.1392097195
B18: Lambayeque | C18: 0.1759417884
B19: Lima | C19: 0.189288249
B20: Loreto | C20: 0.1276664204
B21: Madre de Dios | C21: 0.07513612707
B22: Moquegua | C22: 0.1413302379
B23: Pasco | C23: 0.0765974436
B24: Piura | C24: 0.1658927477
B25: Puno | C25: 0.08496392248
B26: San Martín | C26: 0.1297590819
B27: Tacna | C27: 0.1640974705
B28: Tumbes | C28: 0.1962266726
B29: Ucayali | C29: 0.0879568019
B30: Lima Metropolitana | C30: 0.1923592404
B31: Total | C31: 0.1393221419
B32: Fuente: ENAHO 2019 - 2024
B33: TABLA A: MORBILIDAD URBANA-RURAL POR DEPARTAMENTO, 2024
B34: Departamentos | C34: Morbilidad Urbana | D34: Morbilidad Rural | E34: Morbilidad Nacional
B35: Amazonas | C35: 0.5617304155 | D35: 0.5355050562 | E35: 0.5506556362 | F35: AMAZONASURBANA | G35: =+C35 -> 0.5617304155
B36: Ancash | C36: 0.8494113144 | D36: 0.7561272167 | E36: 0.8181630808 | F36: ÁNCASHURBANA | G36: =+C36 -> 0.8494113144
B37: Apurimac | C37: 0.544362265 | D37: 0.5882636146 | E37: 0.5670238903 | F37: APURÍMACURBANA | G37: 0.544362265
B38: Arequipa | C38: 0.5712949945 | D38: 0.633836828 | E38: 0.5757159817 | F38: AREQUIPAURBANA | G38: 0.5712949945
B39: Ayacucho | C39: 0.6842085549 | D39: 0.6760399995 | E39: 0.6810857781 | F39: AYACUCHOURBANA | G39: 0.6842085549
B40: Cajamarca | C40: 0.6588645305 | D40: 0.6743990219 | E40: 0.6678376911 | F40: CAJAMARCAURBANA | G40: 0.6588645305
B41: Callao /1 | C41: 0.4822943073 | D41: 0 | E41: 0.4822943073 | F41: CALLAOURBANA | G41: 0.4822943073
B42: Cusco | C42: 0.5317281009 | D42: 0.5990374526 | E42: 0.5568990642 | F42: CUSCOURBANA | G42: 0.5317281009
B43: Huancavelica | C43: 0.5394949958 | D43: 0.5508656895 | E43: 0.5476239097 | F43: HUANCAVELICAURBANA | G43: 0.5394949958
B44: Huanuco | C44: 0.6604076437 | D44: 0.6774051587 | E44: 0.670202272 | F44: HUÁNUCOURBANA | G44: 0.6604076437
B45: Ica | C45: 0.662857066 | D45: 0.6603498908 | E45: 0.6627405321 | F45: ICAURBANA | G45: 0.662857066
B46: Junin | C46: 0.697849777 | D46: 0.6553951565 | E46: 0.6849064214 | F46: JUNÍNURBANA | G46: 0.697849777
B47: La Libertad | C47: 0.5804142419 | D47: 0.5991909237 | E47: 0.5821732081 | F47: LA LIBERTADURBANA | G47: 0.5804142419
B48: Lambayeque | C48: 0.4177484647 | D48: 0.5143144545 | E48: 0.432159935 | F48: LAMBAYEQUEURBANA | G48: 0.4177484647
B49: Lima | C49: 0.4607993793 | D49: 0.5265106938 | E49: 0.461708348 | F49: LIMAURBANA | G49: 0.4607993793
B50: Loreto | C50: 0.4673346781 | D50: 0.3896287134 | E50: 0.4454728669 | F50: LORETOURBANA | G50: 0.4673346781
B51: Madre de Dios | C51: 0.3457603859 | D51: 0.3267651888 | E51: 0.3432547561 | F51: MADRE DE DIOSURBANA | G51: 0.3457603859
B52: Moquegua | C52: 0.5835879422 | D52: 0.65563708 | E52: 0.5962694217 | F52: MOQUEGUAURBANA | G52: 0.5835879422
B53: Pasco | C53: 0.6657320952 | D53: 0.6820160874 | E53: 0.670439688 | F53: PASCOURBANA | G53: 0.6657320952
B54: Piura | C54: 0.5003859616 | D54: 0.5119955315 | E54: 0.502533966 | F54: PIURAURBANA | G54: 0.5003859616
B55: Puno | C55: 0.6845429363 | D55: 0.7090648933 | E55: 0.6932681624 | F55: PUNOURBANA | G55: 0.6845429363
B56: San Martín | C56: 0.5899431739 | D56: 0.5562548297 | E56: 0.5804667252 | F56: SAN MARTÍNURBANA | G56: 0.5899431739
B57: Tacna | C57: 0.548417976 | D57: 0.6017618863 | E57: 0.5549270467 | F57: TACNAURBANA | G57: 0.548417976
B58: Tumbes | C58: 0.3742617321 | D58: 0.3123586264 | E58: 0.3731203506 | F58: TUMBESURBANA | G58: 0.3742617321
B59: Ucayali | C59: 0.655385282 | D59: 0.6372644915 | E59: 0.6526129387 | F59: UCAYALIURBANA | G59: 0.655385282
B60: Lima Metropolitana /1 | C60: 0.4573595533 | E60: 0.4573595533 | F60: LIMA METROPOLITANAURBANA | G60: 0.4573595533
B61: Total | C61: 0.5329947945 | D61: 0.617595243 | E61: 0.5491829425 | F61: AMAZONASRURAL | G61: =+D35 -> 0.5355050562
B62: /1Presenta población totalmente urbana. | F62: ÁNCASHRURAL | G62: =+D36 -> 0.7561272167
B63: Fuente: ENAHO 2019 - 2024 | F63: APURÍMACRURAL | G63: 0.5882636146
F64: AREQUIPARURAL | G64: 0.633836828
F65: AYACUCHORURAL | G65: 0.6760399995
F66: CAJAMARCARURAL | G66: 0.6743990219
F67: CALLAORURAL | G67: 0
F68: CUSCORURAL | G68: 0.5990374526
F69: HUANCAVELICARURAL | G69: 0.5508656895
F70: HUÁNUCORURAL | G70: 0.6774051587
F71: ICARURAL | G71: 0.6603498908
F72: JUNÍNRURAL | G72: 0.6553951565
F73: LA LIBERTADRURAL | G73: 0.5991909237
F74: LAMBAYEQUERURAL | G74: 0.5143144545
F75: LIMARURAL | G75: 0.5265106938
F76: LORETORURAL | G76: 0.3896287134
F77: MADRE DE DIOSRURAL | G77: 0.3267651888
F78: MOQUEGUARURAL | G78: 0.65563708
F79: PASCORURAL | G79: 0.6820160874
F80: PIURARURAL | G80: 0.5119955315
F81: PUNORURAL | G81: 0.7090648933
F82: SAN MARTÍNRURAL | G82: 0.5562548297
F83: TACNARURAL | G83: 0.6017618863
F84: TUMBESRURAL | G84: 0.3123586264
F85: UCAYALIRURAL | G85: 0.6372644915
F86: LIMA METROPOLITANARURAL | G86: =+D60 -> 0
